Workbook

Sheet Vejledning
A1: LØNBEREGNING FOR FRISKOLER gældende for skoleåret 2024-2025
A3: • | B3: Lønspec.-arkene kan benyttes som bilag til lønsystemer der ikke opfylder krav til lønsedler. Du skal blot indtaste arkets navn og måneden for specifikationen og skrive arket ud. Kun linier med beløb udskrives. Linier uden beløb er tomme. Der er et særligt ark med specifikationer for intervallønnede
A5: • | B5: Tast kun i de gule felter! (Medmindre, du virkelig ved, hvad du gør. Arkbeskyttelsen skal dog først ophæves) Alle indtastninger i gule felter kan/bør overskrives! Langt de fleste oplysninger kan indskrives i august-kolonnen, hvorefter de kopieres automatisk til de øvrige måneder.
A7: • | B7: Denne lønberegning er kun til brug for fastansatte lærere og bhkl.ledere, øverste leder og øvrige ledere.
A10: • | B10: Hvis der er brug for flere lærere kan et vilkårligt ark (fane) kopieres.
A12: • | B12: Arkfanens navn bør omdøbes til den ansattes initialer eller navn. HUSK DOG AT DU IKKE MÅ BENYTTE MELLEMRUM I FANENAVNET!
A14: Start | B14: Start med at oplyse den ferieberettigede løn optjent juni og juli(vedr. det skoleår der lige er gået). For lærere og børnehaveklasseledere oplyses tallet i celle A117. For lederne i celle C61. Beløbet bruges til at beregne det særlige ferietillæg der udbetales ultimo maj og august mdr. Beløbet kan også aflæses i sidste skoleårs lønberegning.
B16: Oplys derefter feriepengeberegningsgrundlaget for januar - juli(vedr. det skoleår der lige er gået). For lærere og børnehaveklasseledere oplyses tallet i celle A127. For lederne i celle C71. Beløbet bruges til at beregne værdien af feriepengeberegningsgrundlaget der bruges til afregning af feriepenge eller særlige feriedage. Beløbet kan også aflæses i sidste skoleårs lønberegning.
A17: Ferie | B17: I arkene er der indsat 25 feriedage. Feriedagene følger organisationsaftalens regler omkring ferie. Varsler skolen en anden ferie, skal skolen selv ændre på feriens placering.
A20: Reg. Procent | B20: For skoleåret 24-25 er skemaerne forhåndsudfyldt med gældende reguleringsprocent.Skolen skal selv taste reguleringsprocenten for april 25 når denne udmeldes. Hold øje med skolenyt.
A21: Lønoplysninger | B21: Start med at udfylde august måned med basisløn, pensionsforhold, om den ansatte benytter sig af seniorordning mht. nedsat tid/fuld pension(seniorordningsberegner ligger som en fane i dette værktøj), beskæftigelsesgrad, undervisningstimetal og alle øvrige oplysninger om tillæg såvel faste som særlige samt skatteoplysninger. Læs altid teksten og evt. tilhørende noter ved hver tillæg. De fleste lønoplysninger skal oplyses i årlig grundværdi. Når alle løndele er tastet, kan man udskrive en lønsedel i fanen "lønspec" I Lønspec skrives den ansattes navn - samme navn som fanen er kaldt + hvilken måned lønsedlen ønskes for. Mdr. skrives altid med 3 STORE bogstaver.(august = AUG). Ønskes en lønspecifikaition pr mdr. for alle lærere, vælges fanen "lønspecAar". Her oplyses hvilken måned man ønsker specifikationen for. Fanen "LønsepcAar" bruges ved at se alle lønsoplysninger pr. ansat for et helt skoleår.
A22: OK24 | B22: Lønberegningsarket tager højde for lønstigningen til børnehaveklasseledere pr. 1.april 2025 og stigeningen i OK18 der ligeledes sker pr. 1. april 2025.
A23: UV-tillæg | B23: Ved beregning af uv.tillæg for en person, der ikke er ansat et helt skoleår, skal undervisningstimetallet omregnes til årsbasis (lin 9) ved fx at gange med årets arbejdsdage (=228 for 2024/25) og dividere med ansættelsesperiodens antal arbejdsdage.
A25: • | B25: Der er 6 linier til faste nylønstillæg. Skriv det årlige grundbeløb fra aftaleformularen. Ordene 'funktion' og 'kvalifikation' er vejledende og skal ikke tages bogstaveligt! Tillæg, der ikke er afhængieg af beskæftigelsesgraden vil normalt være funktionstillæg. Tillæg, der er afhængige af beskæftigelsesgraden ers normalt kvalifikationstillæg. Trin 4-tillæg og udligningstillæg er altid afhængige af BG. Der kan ikke gives udligningstillæg samtidig med et trin 4-tillæg. Se i øvrigt arket: 'Nylønstillæg'!
A27: • | B27: Trin 4 tillæg skal beregnes i et særligt ark 'Trin4tillaeg'.
A29: • | B29: OK 08, OK 13 og OK18 tillæg beregnes automatisk.
A31: • | B31: Lønfradrag beregnes ved at oplyse hvor mange feriedage der afvikles i den enkelte måned, og hvor mange dage den ansatte ikke har optjent ferieret. Feriedifference skal med den nye ferielov beregnes i det særskilte ark "feriedifference ny ferielov". Feriedifferencen der beregens i fanen indtastes manuelt i den enkelte ansattes fane som et enten negativt eller positivt beløb.
A33: • | B33: Ved kombinationsbeskæftigede bhkl.leder og lærer skal der udarbejdes to lønberegninger. Det samlede undervisningstimetal skal anføres i hovedstillingen. Gruppelivstillæg og ATP skal beregnes på hovedstillingen, idet der tages hensyn til den samlede beskæftigelsesgrad.
A35: • | B35: Komprimeret udprintning: Når specifikationsarkene udprintes, er der mulighed for at tomme linjer skjules. Dette gøres ved at benytte PRINT-knappen på arkene. Linjerne vises igen efter udprintningen.

Sheet Foraeldreorlov (hidden)
A1: Forældreorlov uden løn
A2: • | B2: Som en del af barselsreglerne har forældre ret til at holde forældreorlov uden løn i en periode. I en sådan periode, skal skolen fortsat indbetale pension til pensionskassen som om der stadig udbetaltes løn.
A4: • | B4: For at holde rede på ændringerne i forbindelse mad forældreorlov uden løn (og anden bevilget orlov uden løn, men med pension) er der indsat en særlig årsspecifikation: 'LonspecAarBarsel'.
A6: • | B6: De øvrige lønspecifikationsark vil ikke vise de rigtige tal for disse måneder, hvor der ikke udbetales løn!
A8: • | B8: Du skal i hver måned, hvor der holdes orlov uden løn skrive antallet af kalenderdage, i hvilke der ikke skal betales løn i lin 4.
A10: • | B10: Hvis der holdes deltidsforældreorlov, hvor orloven forlænges forholdsmæssigt, skrives i lin 6 den beskæftigelsesgrad, som der arbejdes efter.
A12: Eks. | B12: En nybagt mor med normalt 60% beskæftigelse har planlagt at holde 20 ugers forældreorlov uden løn. Imidlertid vil hun gerne udstrække orloven til 30 uger (= 30*7 dage = 210 dage), idet hun kun går på delvis orlov svarende til 20/30 af den hidtidige og så arbejder i den resterende beskæftigelse. Beskæftigelsen udgør altså kun 20%, der skrives i lin 5 i de måneder orloven varer. Pensionen for orlovsdelen udgør 2/3 af den hidtidige, men der betales også pension af den nedsatte beskæftigelse, de 20%. Så totalt set er der ingen ændring!
B13: I celle P3 bliver antallet af orlovsdage summeret. Husk dog, at medtælle orlovsdage fra tidligere eller senere skoleår.
B15: Herunder kan beskæftigelsesgraden beregnes ved forlænget deltidsorlov (hver uge er på 7 dage!)
B16: Hidtidig beskæftigelsesgrad: | C16: 0.6 | D16: antal dage
B17: Antal uger med forældreorlov uden løn iflg. normalreglerne: | C17: 20 | D17: =C17*7 -> 140
B18: Ønskede antal uger med deltidsorlov: | C18: 30 | D18: =C18*7 -> 210
B19: Beskæftigelsesgrad med arbejde under den forlængede orlov: | C19: =C16-ROUND(C17/C18*C16,4) -> 0.2

Sheet Nylønstillaeg
A1: LIDT OM DECENTRALE TILLÆG (NYLØNSTILLÆG)
A2: 1 | B2: Decentrale tillæg kan gives som varige eller midlertidige i en bestemt periode, eller de kan udbetales som en engangsydelse.
A3: 2 | B3: Varige og midlertidige decentrale tillæg er pensionsgivende. For lærere og bhkl.ledere med tjenestemandspension (i Efterlønskassen eller P25) er de ikke automatisk pensionsgivende, men kan aftales at udløse supplerende pension i LP.
A4: 3 | B4: Decentrale nylønstillæg, der ydes som engangsydelser, er som udgangspunkt ikke pensionsgivende, men det kan aftales. Nylønstillæg, der gives som engangsbeløb kan skrives i lin. 42 og 43.
A6: FUNKTIONSTILLÆG
A7: 4 | B7: Funktionsløn, kvalifikationsløn og resultatløn kaldes under et nyløn.
A8: 5 | B8: Funktionsløn gives for varetagelse af særlige funktioner. Fx lokaletilsyn, ansvar for it, ansvarlig for vikartilkald mmm.
A9: 6 | B9: "Funktionstillæg", der gives til alle lærere eller en gruppe efter objektive kriterier på en skole er i virkeligheden kvalifikationstillæg, der er benævnt forkert.
A10: 7 | B10: Normalt er funktionstillæg ikke afhængige af beskæftigelsesgraden, idet varigheden af varetagelsen af funktionen netop ikke afhænger af BG.
A11: 8 | B11: Funktionstillæg er normalt ikke personligt knyttet til en bestemt medarbejder, men følger funktionen. Alligevel vil funktionstillæg ofte være aftalt som varige, (så længe funktionen eksisterer).
A13: KVALIFIKATIONSTILLÆG
A14: 9 | B14: Kvalifikationsløn gives for særlige kvalifikationer og kompetencer , fx diplomuddannelse, kyndighed eller særlig uddannelse i et fag fx fysik eller musik mmm.
A15: 10 | B15: Ofte er begrundelsen for et kvalifikationstillæg at tiltrække eller fastholde medarbejdere.
A16: 11 | B16: Kvalifikationstillæg er som regel personlige og varige, men kan aftales som midlertidige tillæg i en nærmere bestemt periode, eller som engangsydelse.
A18: RESULTATLØN
A19: 12 | B19: Resultatlønstillæg gives som engangsydelser, når bestemte kriterier er opnået. Engangsbeløb skrives i lin. 42 og 43.
A21: SAMMENHÆNG MED ANSATTE MED TRIN 4-TILLÆG
A22: 13 | B22: Ansatte, der pr. 1. april 2013 havde mindst 12 års anciennitet, og som stadig er ansat efter 1. august 2013, overgik 1. august 2013 til basistrin 4. Hvis den hidtidige samlede løn inklusive et evt. udligningstillæg fra 1. august 2004 men eksklusiv alle centralt aftalte tillæg (herunder undervisningstillæg) og alle engangsudbetalinger ved overgangen til basistrin 4 hermed gik ned, skulle der pr. 1. august 2013 beregnes et trin 4-tillæg, der udlignede lønforskellen. Udover trin 4-tillægget, der på en måde indeholder hidtidige decentralt aftalte funktionstillæg og evt. midlertidige kvalifikationstillæg, kan sådanne ansatte få aftalt nye kvalifikation- og funktionstillæg.

Sheet Trin4tillaeg
A1: 1 | B1: ÅRLIG LØN i grundbeløb pr. 31.03.12 | C1: Birgit | D1: Anette | E1: Anette | F1: Anne | I1: allerede udfyldte gule tal er eksempler, som kan/bør overskrives
A2: 2 | B2: Lærer eller børnehaveklasseleder Skriv L eller B
A3: 3 | B3: Løn, basistrin 3 | C3: =325699*(C$2="L")+290311*(C$2="B")*OR(C2="L",C2="B") -> 0 | D3: 0 | E3: 0 | F3: 0 | G3: 0 | H3: 0
A4: 4 | B4: Udligningstillæg fra 2004 | I4: falder bort 1. aug 2013
A5: 5 | B5: Varigt kvalifikationstillæg | I5: ydes afhængig af lokal lønaftale fortsat efter 1. aug 2013 udover trin 4-tillægget
A6: 6 | B6: Gruppevist funktionstillæg (egl. kvalifikationstillæg) | I6: ydes afhængig af lokal lønaftale fortsat efter 1. aug 2013 udover trin 4-tillægget
A7: 7 | B7: Midlertidigt kvalifikationstillæg (indgår ikke i garantilønsberegning) | I7: ydes afhængig af lokal lønaftale fortsat efter 1. aug 2013 udover trin 4-tillægget
A8: 8 | B8: Midlertidige og varige lokalaftalte funktionstillæg (ikke i garantiberegn.) | I8: ydes afhængig af lokal lønaftale fortsat efter 1. aug 2013 udover trin 4-tillægget
A9: 9 | B9: Beregnet garantitillæg før 1. august 2013 (som det burde have set ud) | C9: =IF(C11-SUM(C3:C6)>0,C11-SUM(C3:C6),0)*OR(C2="L",C2="B") -> 0 | D9: 0 | E9: 0 | F9: 0 | G9: 0 | H9: 0 | I9: falder under alle omstændigheder bort 1. aug 2013 for ansatte med 12 års anc.
A10: 10 | B10: OK2008-tillæg jf. §4 stk. 6 og §4 stk. 7 (som det burde have set ud) | C10: =IF(7900-C9>0,7900-C9,0)*OR(C2="L",C2="B") -> 0 | D10: 0 | E10: 0 | F10: 0 | G10: 0 | H10: 0 | I10: falder under alle omstændigheder bort 1. aug 2013 for ansatte med 12 års anc.
A11: 11 | B11: Løn, basistrin 4 pr. 1. august 2013 | C11: =351388*(C$2="L")+309054*(C$2="B") -> 0 | D11: 0 | E11: 0 | F11: 0 | G11: 0 | H11: 0 | I11: svarende til teknisk trin 4
A12: 12 | B12: Pensionsgivende trin 4-tillæg pr. 1. august 2013 | C12: =IF(SUM(C3:C10)-C11>0,SUM(C3:C10)-C11,0) -> 0 | D12: 0 | E12: 0 | F12: 0 | G12: 0 | H12: 0 | I12: for ansatte med tjenestemandspension er det kun pensionsgivende, hvis der i forvejen var aftalt supplerende pension
B13: Skriv beløbene ind for fuld tid! Beskæftigelsesgraden indgår ved den konkrete lønbehandling.
B14: Ansatte, der først opnår 12 års anciennitet senere end 1. april 2013, skal IKKE have beregnet trin 4-tillæg! De beholder et evt. udligningstillæg fra 2004
A15: 13 | B15: Beskæftigelsesgrad (aug 2013)
A16: 14 | B16: Månedligt basistrin 4-løn (aug 2013) | C16: =C11*C$15*1.01304/12 -> 0 | D16: 0 | E16: 0 | F16: =F11*F$15*1.01304/12 -> 0 | G16: 0 | H16: 0
A17: 15 | B17: månedligt trin 4-tillæg (aug 2013) | C17: 0 | D17: 0 | E17: 0 | F17: 0 | G17: 0 | H17: 0
B19: Uddrag af FSLs udmelding om trin 4-tillæg og sammenhængen til decentral løn:
B21: Tillæg skal ikke fordobles
B22: De lærere, som i forvejen er på garantitrinnet og nu skal ind på trin 4, har fået afregnet for de tillæg, som indgår i deres trin 4 tillæg.
B24: Diskussionen har gået på, om man, såfremt man havde et tillæg for eksempelvis at være TR, skulle have tillægget en gang til, når nu tillægget var blevet til et varigt, personligt og pensionsgivende tillæg. Og svaret lyder: Det har man ikke krav på!
B26: Et eksempel: En medarbejder, som i det gamle system fik et tillæg for en bestemt funktion, får nu det tillæg som en del af det nye trin 4 tillæg. Hvis medarbejderen stopper i den funktion, som udløste tillægget, får det ingen konsekvenser for medarbejderens trin 4 tillæg. Men hvis hans funktion overtages af en anden medarbejder, skal denne have tillægget (medmindre tillægget allerede en gang er indregnet i vedkommendes eventuelle trin 4 tillæg).
B28: Det er altså kun nye eller ændrede funktioner samt nye kvalifikationstillæg, som vil være med til at løfte lønnen for dem, der er på trin 4. Dog gælder det, at hvis et af de tillæg, som indgår i en lærers trin 4 tillæg, stiger, fordi det aftales, skal stigningen også komme læreren til gode i form af et nyt tillæg. Det gælder dog kun, hvis læreren stadig er berettiget til tillægget.
B30: Vi er helt klar over, at FSL’s første udmelding ikke var så klar, som det meldes ud her, men de mange henvendelser fra skoler og TR’ere har ført til en fælles afklaring, som tager hensyn til skolernes decentral løn-profil, og det flugter godt med tænkningen bag decentral løn.
B32: Det kan ikke udelukkes, at det vil blive nødvendigt lokalt at diskutere tillægsstruktur og eventuelt lønpolitikken for at være sikker på, at intentionerne i den lokale lønpolitik stadigt overholdes. I den forbindelse er det vigtigt for FSL at understrege, at TR ikke bør opsige varige tillæg uden først at vende det med en konsulent på sekretariatet og diskuteret det med medlemmerne. Ændringer kan have meget vidtgående konsekvenser for de berørte.
B34: Tillæg 4 kan være decentral løn
B35: FSL har regnet ud, at en gennemsnitlig skole binder cirka 1½ % i trin 4 tillægget. Der vil være store lokale forskelle på, hvor meget der er bundet i trin 4 tillægget, afhængigt af hvor mange lærere, der har mere end 12 års anciennitet. Det vil være en god ide at skabe en fælles forståelse for jeres lokale procenttal, inden I begynder jeres lønforhandling. Men det er vigtigt at være opmærksom på, at skolen kan hævde, at en del af den decentrale løn er brugt til at finansiere trin 4 tillægget. Og det er det andet punkt fra forståelsespapiret: Skolerne kan bruge en del af decentral løn til at finansiere trin 4 tillægget.
B37: Der er luft til lokal løn
B38: Det er også vigtigt at nævne, at der stadig skal forhandles decentral løn på skolerne, og at det stadigt er TR, som forhandler med skolens leder.
B40: Det er således vores klare overbevisning, at den decentrale løn fortsat skal udvikles på den enkelte skole, og det er også, hvad vi er blevet præsenteret for i MOS. Aldrig har det været mere nærliggende at sammenligne lønnen med den lokale folkeskole. Vi har identiske arbejdstidsregler fra 1. august 2014, og derfor bør vi også have samme løn. FSL arbejder i øjeblikket på at få bedre tal for den enkelte kommunes lønaftaler for folkeskolen, og vi udvikler til stadighed vores værktøj til lønsammenligning.
B42: Der vil på langt de fleste skoler være et budgetmæssigt råderum til at udvikle den decentrale løn i år. Vi fik ikke nogen central lønstigning den 1. april, og det bør i stedet give plads til en stigning i de lokale tillæg, da de færreste skoler har budgetteret med en nulvækst på lønnen i et overenskomstår.
B44: Samtidig må vi sige, at tænkningen i det nye lønsystem ligesom i det gamle er, at den decentrale løn fortsat skal udvikles. Det nye lønsystem er ”betalt” med afskaffelsen af råderumspapiret og ikke mindst garantiudmøntningen. Så på de fleste skoler bør der alt andet lige være plads til en stigning i den decentrale løn.

Sheet Seniorordningsberegner
A1: Nedsat arbejdstidsberegner
A2: Lærere og børnehaveklasseledere har fra det fyldte 60 år ret til nedsat arbejdstid med op til 175 timer årligt.
A3: Ansatte der d. 31. juli 2013 var fyldt 57 år, har ret til ovennævnte nedsatte arbejdstid med fuld løn og pension.
A4: Ansatte der ikke var fyldt 57 år d. 31. juli 2013 har ret til ovennævnte nedsatte arbejdstid med tilsvarende lønnedgang, dog med fuld pension.
A5: Den nedsatte arbejdstid gælder for den årsnorm hvor den ansatte fylder 60 år.
A7: Beregning:
A8: Der tages udgangspunkt i et årligt timetal på 1924 timer hvorfra de 175 timer fratrækkes.
A9: En fuldtidsansat arbejder 37 timer om ugen.
A10: En nedgang i arbejdstiden på 175 timer svarer til en ugentlig arbejdstid på 33,63 timer.(1924-175 timer/52 uger = 33,63 timer)
A12: 2 skemaer:
A13: Skema 1 kan benyttes til beregning af ny beskæftigelsesgrad ved brug af den nedsatte arbejdstid. Her tages der udgang i oprindelige beskæftigelsesgrad.
A14: Skema 2 kan benyttes til beregning af ønsket beskæftigelsesgrad udregnet efter ønsket arbejdstid. Her tages der udgangspunkt i ønsket arbejdstid.
A16: Antal timer pr. uge - 100% ansat | B16: 37
A17: Antal timer pr. uge - minus 175 timer | B17: 33.63
A19: Skema 1. Beregning af ny beskæftigelsesgrad ved brug af nedsat arbejdstid:
A20: Tast her den oprindelige beskæftigelsesgrad
A21: Ny beskæftigelsesgrad efter brug af op til 175 nedsat arbejdstid | D21: =D20/B16*B17 -> 0
A23: Skema 2 - Beregning af beskæftigelsesgrad udfra ønsket arbejdstid
A24: Tast her den ønskede beskæftigelsesgrad der ønskes arbejdet ud fra
A25: Beskæftigelsesgrad den ansatte uden brug af den nedsatte arbejdstid er ansat på | D25: =D24/B17*B16 -> 0

Sheet LonspecAar
A1: Ark: | C1: A | D1: fx: A (OBS: Brug IKKE mellemrum i arkfanenavne!) | Q1: Gule felter herunder
D2: AUG | E2: SEP | F2: OKT | G2: NOV | H2: DEC | I2: JAN | J2: FEB | K2: MAR | L2: APR | M2: MAJ | N2: JUN | O2: JUL | Q2: er kladdeområde
A3: 1 | C3: LØNSPECIFIKATION for | D3: =INDIRECT($C$1&"!"&VLOOKUP(D$2,mdr,2,0)&$A3) -> A | E3: A | F3: A | G3: A | H3: A | I3: A | J3: A | K3: A | L3: A | M3: A | N3: A | O3: A
A4: 2 | C4: LØNPERIODE: | D4: AUG 24 | E4: SEP 24 | F4: OKT 24 | G4: NOV 24 | H4: DEC 24 | I4: JAN 25 | J4: FEB 25 | K4: MAR 25 | L4: APR 25 | M4: MAJ 25 | N4: JUN 25 | O4: JUL 25 | P4: 2019/2020 | S4: AUG | T4: g
A5: 11 | C5: BESKÆFTIGELSESGRAD: | D5: 0 | E5: 0 | F5: 0 | G5: 0 | H5: 0 | I5: 0 | J5: 0 | K5: 0 | L5: 0 | M5: 0 | N5: 0 | O5: 0 | S5: SEP | T5: h
A6: 3 | C6: DEL AF MÅNED: | D6: 1 | E6: 1 | F6: 1 | G6: 1 | H6: 1 | I6: 1 | J6: 1 | K6: 1 | L6: 1 | M6: 1 | N6: 1 | O6: 1 | S6: OKT | T6: i
A7: 7 | C7: SKOLENS STEDTILLÆGSOMRÅDE: | D7: 0 | E7: 0 | F7: 0 | G7: 0 | H7: 0 | I7: 0 | J7: 0 | K7: 0 | L7: 0 | M7: 0 | N7: 0 | O7: 0 | S7: NOV | T7: j
A8: 12 | C8: ÅRLIGT UNDERVISNINGSTIMETAL: | D8: 0 | E8: 0 | F8: 0 | G8: 0 | H8: 0 | I8: 0 | J8: 0 | K8: 0 | L8: 0 | M8: 0 | N8: 0 | O8: 0 | S8: DEC | T8: k
A9: 4 | C9: LØNTRIN: | D9: 0 | E9: 0 | F9: 0 | G9: 0 | H9: 0 | I9: 0 | J9: 0 | K9: 0 | L9: 0 | M9: 0 | N9: 0 | O9: 0 | S9: JAN | T9: l
C10: PENSIONSORDNING: | D10: =IF(LEFT(INDIRECT($C$1&"!G5"))="L","LP","Tj.m., trin "&RIGHT(INDIRECT($C$1&"!G5"),2)) -> Tj.m., trin | E10: =IF(LEFT(INDIRECT($C$1&"!G5"))="L","LP","Tj.m., trin "&RIGHT(INDIRECT($C$1&"!h5"),2)) -> Tj.m., trin 0 | F10: =IF(LEFT(INDIRECT($C$1&"!G5"))="L","LP","Tj.m., trin "&RIGHT(INDIRECT($C$1&"!i5"),2)) -> Tj.m., trin 0 | G10: =IF(LEFT(INDIRECT($C$1&"!G5"))="L","LP","Tj.m., trin "&RIGHT(INDIRECT($C$1&"!j5"),2)) -> Tj.m., trin 0 | H10: =IF(LEFT(INDIRECT($C$1&"!G5"))="L","LP","Tj.m., trin "&RIGHT(INDIRECT($C$1&"!k5"),2)) -> Tj.m., trin 0 | I10: =IF(LEFT(INDIRECT($C$1&"!G5"))="L","LP","Tj.m., trin "&RIGHT(INDIRECT($C$1&"!l5"),2)) -> Tj.m., trin 0 | J10: =IF(LEFT(INDIRECT($C$1&"!G5"))="L","LP","Tj.m., trin "&RIGHT(INDIRECT($C$1&"!m5"),2)) -> Tj.m., trin 0 | K10: =IF(LEFT(INDIRECT($C$1&"!G5"))="L","LP","Tj.m., trin "&RIGHT(INDIRECT($C$1&"!n5"),2)) -> Tj.m., trin 0 | L10: =IF(LEFT(INDIRECT($C$1&"!G5"))="L","LP","Tj.m., trin "&RIGHT(INDIRECT($C$1&"!o5"),2)) -> Tj.m., trin 0 | M10: =IF(LEFT(INDIRECT($C$1&"!G5"))="L","LP","Tj.m., trin "&RIGHT(INDIRECT($C$1&"!p5"),2)) -> Tj.m., trin 0 | N10: =IF(LEFT(INDIRECT($C$1&"!G5"))="L","LP","Tj.m., trin "&RIGHT(INDIRECT($C$1&"!q5"),2)) -> Tj.m., trin 0 | O10: =IF(LEFT(INDIRECT($C$1&"!G5"))="L","LP","Tj.m., trin "&RIGHT(INDIRECT($C$1&"!r5"),2)) -> Tj.m., trin 0 | S10: FEB | T10: m
A11: 53 | B11: 1 | C11: =IF(P11<>0,INDIRECT($C$1&"!f"&A11),"") ->  | D11: =INDIRECT($C$1&"!"&VLOOKUP(D$2,mdr,2,0)&$A11) -> 0 | E11: 0 | F11: 0 | G11: 0 | H11: 0 | I11: 0 | J11: 0 | K11: 0 | L11: 0 | M11: 0 | N11: 0 | O11: 0 | P11: =SUM(D11:O11) -> 0 | S11: MAR | T11: n
A12: =A11+1 -> 54 | B12: =B11+1 -> 2 | D12: 0 | E12: 0 | F12: 0 | G12: 0 | H12: 0 | I12: 0 | J12: 0 | K12: 0 | L12: 0 | M12: 0 | N12: 0 | O12: 0 | P12: 0 | S12: APR | T12: o
A13: =A12+1 -> 55 | B13: =B12+1 -> 3 | D13: 0 | E13: 0 | F13: 0 | G13: 0 | H13: 0 | I13: 0 | J13: 0 | K13: 0 | L13: 0 | M13: 0 | N13: 0 | O13: 0 | P13: 0 | S13: MAJ | T13: p
A14: 56 | B14: 4 | D14: 0 | E14: 0 | F14: 0 | G14: 0 | H14: 0 | I14: 0 | J14: 0 | K14: 0 | L14: 0 | M14: 0 | N14: 0 | O14: 0 | P14: 0 | S14: JUN | T14: q
A15: 57 | B15: 5 | D15: 0 | E15: 0 | F15: 0 | G15: 0 | H15: 0 | I15: 0 | J15: 0 | K15: 0 | L15: 0 | M15: 0 | N15: 0 | O15: 0 | P15: 0 | S15: JUL | T15: r
A16: 58 | B16: 6 | D16: 0 | E16: 0 | F16: 0 | G16: 0 | H16: 0 | I16: 0 | J16: 0 | K16: 0 | L16: 0 | M16: 0 | N16: 0 | O16: 0 | P16: 0
A17: 59 | B17: 7 | D17: 0 | E17: 0 | F17: 0 | G17: 0 | H17: 0 | I17: 0 | J17: 0 | K17: 0 | L17: 0 | M17: 0 | N17: 0 | O17: 0 | P17: 0
A18: 60 | B18: 8 | D18: 0 | E18: 0 | F18: 0 | G18: 0 | H18: 0 | I18: 0 | J18: 0 | K18: 0 | L18: 0 | M18: 0 | N18: 0 | O18: 0 | P18: 0
A19: 61 | B19: 9 | D19: 0 | E19: 0 | F19: 0 | G19: 0 | H19: 0 | I19: 0 | J19: 0 | K19: 0 | L19: 0 | M19: 0 | N19: 0 | O19: 0 | P19: 0
A20: 62 | B20: 10 | D20: 0 | E20: 0 | F20: 0 | G20: 0 | H20: 0 | I20: 0 | J20: 0 | K20: 0 | L20: 0 | M20: 0 | N20: 0 | O20: 0 | P20: 0
A21: 63 | B21: 11 | D21: =INDIRECT($C$1&"!"&VLOOKUP(D$2,mdr,2,0)&$A21) -> 0 | E21: 0 | F21: 0 | G21: 0 | H21: 0 | I21: 0 | J21: 0 | K21: 0 | L21: 0 | M21: 0 | N21: 0 | O21: 0 | P21: 0
A22: 64 | B22: 12 | D22: 0 | E22: 0 | F22: 0 | G22: 0 | H22: 0 | I22: 0 | J22: 0 | K22: 0 | L22: 0 | M22: 0 | N22: 0 | O22: 0 | P22: 0
A23: 65 | B23: 13 | D23: 0 | E23: 0 | F23: 0 | G23: 0 | H23: 0 | I23: 0 | J23: 0 | K23: 0 | L23: 0 | M23: 0 | N23: 0 | O23: 0 | P23: 0
A24: 66 | B24: 14 | D24: 0 | E24: 0 | F24: 0 | G24: 0 | H24: 0 | I24: 0 | J24: 0 | K24: 0 | L24: 0 | M24: 0 | N24: 0 | O24: 0 | P24: 0
A25: 67 | B25: 15 | D25: 0 | E25: 0 | F25: 0 | G25: 0 | H25: 0 | I25: 0 | J25: 0 | K25: 0 | L25: 0 | M25: 0 | N25: 0 | O25: 0 | P25: 0
A26: 68 | B26: 16 | D26: 0 | E26: 0 | F26: 0 | G26: 0 | H26: 0 | I26: 0 | J26: 0 | K26: 0 | L26: 0 | M26: 0 | N26: 0 | O26: 0 | P26: 0
A27: 69 | B27: 17 | D27: 0 | E27: 0 | F27: 0 | G27: 0 | H27: 0 | I27: 0 | J27: 0 | K27: 0 | L27: 0 | M27: 0 | N27: 0 | O27: 0 | P27: 0
A28: 70 | B28: =B27+1 -> 18 | D28: 0 | E28: 0 | F28: 0 | G28: 0 | H28: 0 | I28: 0 | J28: 0 | K28: 0 | L28: 0 | M28: 0 | N28: 0 | O28: 0 | P28: 0
A29: 71 | B29: =B28+1 -> 19 | D29: 0 | E29: 0 | F29: 0 | G29: 0 | H29: 0 | I29: 0 | J29: 0 | K29: 0 | L29: 0 | M29: 0 | N29: 0 | O29: 0 | P29: 0
A30: 72 | B30: =B29+1 -> 20 | D30: 0 | E30: 0 | F30: 0 | G30: 0 | H30: 0 | I30: 0 | J30: 0 | K30: 0 | L30: 0 | M30: 0 | N30: 0 | O30: 0 | P30: 0
A31: 73 | B31: =B30+1 -> 21 | D31: 0 | E31: 0 | F31: 0 | G31: 0 | H31: 0 | I31: 0 | J31: 0 | K31: 0 | L31: 0 | M31: 0 | N31: 0 | O31: 0 | P31: 0
A32: 74 | B32: =B31+1 -> 22 | D32: =INDIRECT($C$1&"!"&VLOOKUP(D$2,mdr,2,0)&$A32) -> 0 | E32: 0 | F32: 0 | G32: 0 | H32: 0 | I32: 0 | J32: 0 | K32: 0 | L32: 0 | M32: 0 | N32: 0 | O32: 0 | P32: 0
A33: 75 | B33: 23 | D33: 0 | E33: 0 | F33: 0 | G33: 0 | H33: 0 | I33: 0 | J33: 0 | K33: 0 | L33: 0 | M33: 0 | N33: 0 | O33: 0 | P33: 0
A34: 76 | B34: 24 | D34: 0 | E34: 0 | F34: 0 | G34: 0 | H34: 0 | I34: 0 | J34: 0 | K34: 0 | L34: 0 | M34: 0 | N34: 0 | O34: 0 | P34: 0
A35: 77 | B35: 25 | D35: 0 | E35: 0 | F35: 0 | G35: 0 | H35: 0 | I35: 0 | J35: 0 | K35: 0 | L35: 0 | M35: 0 | N35: 0 | O35: 0 | P35: 0
A36: 78 | B36: 26 | D36: 0 | E36: 0 | F36: 0 | G36: 0 | H36: 0 | I36: 0 | J36: 0 | K36: 0 | L36: 0 | M36: 0 | N36: 0 | O36: 0 | P36: 0
A37: 79 | B37: 27 | D37: 0 | E37: 0 | F37: 0 | G37: 0 | H37: 0 | I37: 0 | J37: 0 | K37: 0 | L37: 0 | M37: 0 | N37: 0 | O37: 0 | P37: 0
A38: 80 | B38: 28 | D38: 0 | E38: 0 | F38: 0 | G38: 0 | H38: 0 | I38: 0 | J38: 0 | K38: 0 | L38: 0 | M38: 0 | N38: 0 | O38: 0 | P38: 0
A39: 81 | B39: 29 | D39: 0 | E39: 0 | F39: 0 | G39: 0 | H39: 0 | I39: 0 | J39: 0 | K39: 0 | L39: 0 | M39: 0 | N39: 0 | O39: 0 | P39: 0
A40: 82 | B40: 30 | D40: =INDIRECT($C$1&"!"&VLOOKUP(D$2,mdr,2,0)&$A40) -> 0 | E40: 0 | F40: 0 | G40: 0 | H40: 0 | I40: 0 | J40: 0 | K40: 0 | L40: 0 | M40: 0 | N40: 0 | O40: 0 | P40: 0
A41: 83 | B41: 31 | D41: 0 | E41: 0 | F41: 0 | G41: 0 | H41: 0 | I41: 0 | J41: 0 | K41: 0 | L41: 0 | M41: 0 | N41: 0 | O41: 0 | P41: 0
A42: 84 | B42: 32 | D42: =IF(ISNUMBER(INDIRECT($C$1&"!"&VLOOKUP(D$2,mdr,2,0)&$A42)),INDIRECT($C$1&"!"&VLOOKUP(D$2,mdr,2,0)&$A42),"") -> 0 | E42: =IF(ISNUMBER(INDIRECT($C$1&"!"&VLOOKUP(E$2,mdr,2,0)&$A42)),INDIRECT($C$1&"!"&VLOOKUP(E$2,mdr,2,0)&$A42),"") -> 0 | F42: 0 | G42: 0 | H42: 0 | I42: 0 | J42: 0 | K42: 0 | L42: 0 | M42: 0 | N42: 0 | O42: 0 | P42: 0
A43: 85 | B43: 33 | D43: =INDIRECT($C$1&"!"&VLOOKUP(D$2,mdr,2,0)&$A43) -> 0 | E43: 0 | F43: 0 | G43: 0 | H43: 0 | I43: 0 | J43: 0 | K43: 0 | L43: 0 | M43: 0 | N43: 0 | O43: 0 | P43: 0
A44: 86 | B44: 34 | D44: 0 | E44: 0 | F44: 0 | G44: 0 | H44: 0 | I44: 0 | J44: 0 | K44: 0 | L44: 0 | M44: 0 | N44: 0 | O44: 0 | P44: =SUM(D44:O44) -> 0
A45: 87 | B45: =B44+1 -> 35 | D45: 0 | E45: 0 | F45: 0 | G45: 0 | H45: 0 | I45: 0 | J45: 0 | K45: 0 | L45: 0 | M45: 0 | N45: 0 | O45: 0 | P45: 0
A46: 88 | B46: 36 | D46: 0 | E46: 0 | F46: 0 | G46: 0 | H46: 0 | I46: 0 | J46: 0 | K46: 0 | L46: 0 | M46: 0 | N46: 0 | O46: 0 | P46: 0
A47: 89 | B47: 37 | D47: 0 | E47: 0 | F47: 0 | G47: 0 | H47: 0 | I47: 0 | J47: 0 | K47: 0 | L47: 0 | M47: 0 | N47: 0 | O47: 0 | P47: 0
A48: 90 | B48: 38 | C48: =IF(P48<>0,INDIRECT($C$1&"!f"&A48),"") ->  | D48: 0 | E48: 0 | F48: 0 | G48: 0 | H48: 0 | I48: 0 | J48: 0 | K48: 0 | L48: 0 | M48: 0 | N48: 0 | O48: 0 | P48: 0
A49: 91 | B49: 39 | D49: 0 | E49: 0 | F49: 0 | G49: 0 | H49: 0 | I49: 0 | J49: 0 | K49: 0 | L49: 0 | M49: 0 | N49: 0 | O49: 0 | P49: 0
A50: 92 | B50: 40 | D50: =INDIRECT($C$1&"!"&VLOOKUP(D$2,mdr,2,0)&$A50) -> 0 | E50: 0 | F50: 0 | G50: 0 | H50: 0 | I50: 0 | J50: 0 | K50: 0 | L50: 0 | M50: 0 | N50: 0 | O50: 0 | P50: 0
A51: 93 | B51: 41 | D51: 0 | E51: 0 | F51: 0 | G51: 0 | H51: 0 | I51: 0 | J51: 0 | K51: 0 | L51: 0 | M51: 0 | N51: 0 | O51: 0 | P51: 0
A52: 94 | B52: 42 | D52: 0 | E52: 0 | F52: 0 | G52: 0 | H52: 0 | I52: 0 | J52: 0 | K52: 0 | L52: 0 | M52: 0 | N52: 0 | O52: 0 | P52: 0
A53: 95 | B53: 43 | D53: 0 | E53: 0 | F53: 0 | G53: 0 | H53: 0 | I53: 0 | J53: 0 | K53: 0 | L53: 0 | M53: 0 | N53: 0 | O53: 0 | P53: 0
A54: 96 | B54: 44 | D54: 0 | E54: 0 | F54: 0 | G54: 0 | H54: 0 | I54: 0 | J54: 0 | K54: 0 | L54: 0 | M54: 0 | N54: 0 | O54: 0 | P54: 0
A55: 97 | B55: 45 | D55: 0 | E55: 0 | F55: 0 | G55: 0 | H55: 0 | I55: 0 | J55: 0 | K55: 0 | L55: 0 | M55: 0 | N55: 0 | O55: 0 | P55: 0
A56: 98 | B56: 46 | D56: 0 | E56: 0 | F56: 0 | G56: 0 | H56: 0 | I56: 0 | J56: 0 | K56: 0 | L56: 0 | M56: 0 | N56: 0 | O56: 0 | P56: 0
A57: 99 | B57: 47 | D57: 0 | E57: 0 | F57: 0 | G57: 0 | H57: 0 | I57: 0 | J57: 0 | K57: 0 | L57: 0 | M57: 0 | N57: 0 | O57: 0 | P57: 0
A58: 100 | B58: 48 | D58: 0 | E58: 0 | F58: 0 | G58: 0 | H58: 0 | I58: 0 | J58: 0 | K58: 0 | L58: 0 | M58: 0 | N58: 0 | O58: 0 | P58: 0
A59: 101 | B59: 49 | D59: 0 | E59: 0 | F59: 0 | G59: 0 | H59: 0 | I59: 0 | J59: 0 | K59: 0 | L59: 0 | M59: 0 | N59: 0 | O59: 0 | P59: 0
A60: 102 | B60: 50 | D60: =INDIRECT($C$1&"!"&VLOOKUP(D$2,mdr,2,0)&$A60) -> 0 | E60: 0 | F60: 0 | G60: 0 | H60: 0 | I60: 0 | J60: 0 | K60: 0 | L60: 0 | M60: 0 | N60: 0 | O60: 0 | P60: 0
A61: 103 | B61: 51 | D61: 0 | E61: 0 | F61: 0 | G61: 0 | H61: 0 | I61: 0 | J61: 0 | K61: 0 | L61: 0 | M61: 0 | N61: 0 | O61: 0 | P61: 0
A62: 104 | B62: 52 | D62: 0 | E62: 0 | F62: 0 | G62: 0 | H62: 0 | I62: 0 | J62: 0 | K62: 0 | L62: 0 | M62: 0 | N62: 0 | O62: 0 | P62: 0
A63: 105 | B63: 53 | D63: 0 | E63: 0 | F63: 0 | G63: 0 | H63: 0 | I63: 0 | J63: 0 | K63: 0 | L63: 0 | M63: 0 | N63: 0 | O63: 0 | P63: 0
A64: 106 | B64: 54 | D64: 0 | E64: 0 | F64: 0 | G64: 0 | H64: 0 | I64: 0 | J64: 0 | K64: 0 | L64: 0 | M64: 0 | N64: 0 | O64: 0 | P64: 0
A65: 107 | B65: 55 | D65: 0 | E65: 0 | F65: 0 | G65: 0 | H65: 0 | I65: 0 | J65: 0 | K65: 0 | L65: 0 | M65: 0 | N65: 0 | O65: 0 | P65: 0
A66: 108 | B66: 56 | C66: =IF(SUM(D66:O66)<>0,INDIRECT($C$1&"!f"&A66),"") ->  | D66: 0 | E66: 0 | F66: 0 | G66: 0 | H66: 0 | I66: 0 | J66: 0 | K66: 0 | L66: 0 | M66: 0 | N66: 0 | O66: 0 | P66: 0
A67: 109 | B67: 57 | D67: 0 | E67: 0 | F67: 0 | G67: 0 | H67: 0 | I67: 0 | J67: 0 | K67: 0 | L67: 0 | M67: 0 | N67: 0 | O67: 0 | P67: 0
A68: 110 | B68: 58 | D68: 0 | E68: 0 | F68: 0 | G68: 0 | H68: 0 | I68: 0 | J68: 0 | K68: 0 | L68: 0 | M68: 0 | N68: 0 | O68: 0 | P68: 0
A69: 111 | B69: 59 | D69: 0 | E69: 0 | F69: 0 | G69: 0 | H69: 0 | I69: 0 | J69: 0 | K69: 0 | L69: 0 | M69: 0 | N69: 0 | O69: 0 | P69: 0
A70: 112 | B70: 60 | D70: =INDIRECT($C$1&"!"&VLOOKUP(D$2,mdr,2,0)&$A70) -> 0 | E70: 0 | F70: 0 | G70: 0 | H70: 0 | I70: 0 | J70: 0 | K70: 0 | L70: 0 | M70: 0 | N70: 0 | O70: 0 | P70: 0
A71: 113 | B71: 61 | D71: 0 | E71: 0 | F71: 0 | G71: 0 | H71: 0 | I71: 0 | J71: 0 | K71: 0 | L71: 0 | M71: 0 | N71: 0 | O71: 0
A72: 114 | B72: 62 | D72: 0 | E72: 0 | F72: 0 | G72: 0 | H72: 0 | I72: 0 | J72: 0 | K72: 0 | L72: 0 | M72: 0 | N72: 0 | O72: 0
A73: 29 | B73: 63 | C73: =IF(P73<>0,INDIRECT($C$1&"!f"&A73),"") ->  | D73: 0 | E73: 0 | F73: 0 | G73: 0 | H73: 0 | I73: 0 | J73: 0 | K73: 0 | L73: 0 | M73: 0 | N73: 0 | O73: 0
A74: 30 | B74: 64 | D74: 0 | E74: 0 | F74: 0 | G74: 0 | H74: 0 | I74: 0 | J74: 0 | K74: 0 | L74: 0 | M74: 0 | N74: 0 | O74: 0 | P74: =SUM(D74:O74) -> 0
A75: =A72+1 -> 115 | B75: 65 | D75: 0 | E75: 0 | F75: 0 | G75: 0 | H75: 0 | I75: 0 | J75: 0 | K75: 0 | L75: 0 | M75: 0 | N75: 0 | O75: 0 | P75: 0
A76: =A75+1 -> 116 | B76: 66 | D76: 0 | E76: 0 | F76: 0 | G76: 0 | H76: 0 | I76: =INDIRECT($C$1&"!"&VLOOKUP(I$2,mdr,2,0)&$A76+1) -> 0 | J76: 0 | K76: 0 | L76: 0 | M76: 0 | N76: 0 | O76: 0 | P76: 0
A77: 117 | B77: 67 | D77: 0 | E77: 0 | F77: 0 | G77: 0 | H77: 0 | I77: 0 | J77: 0 | K77: 0 | L77: 0 | M77: 0 | N77: 0 | O77: 0 | P77: 0
A78: 118 | B78: 68 | D78: 0 | E78: 0 | F78: 0 | G78: 0 | H78: 0 | I78: 0 | J78: 0 | K78: 0 | L78: 0 | M78: 0 | N78: 0 | O78: 0 | P78: 0
A79: 119 | B79: 69 | D79: 0 | E79: 0 | F79: 0 | G79: 0 | H79: 0 | I79: 0 | J79: 0 | K79: 0 | L79: 0 | M79: 0 | N79: 0 | O79: 0 | P79: 0
A80: 120 | B80: 70 | D80: 0 | E80: 0 | F80: 0 | G80: 0 | H80: 0 | I80: 0 | J80: 0 | K80: 0 | L80: 0 | M80: 0 | N80: 0 | O80: 0 | P80: 0
A81: 121 | B81: 71 | D81: 0 | E81: 0 | F81: 0 | G81: 0 | H81: 0 | I81: 0 | J81: 0 | K81: 0 | L81: 0 | M81: 0 | N81: 0 | O81: 0 | P81: 0
A82: 122 | B82: 72 | D82: 0 | E82: 0 | F82: 0 | G82: 0 | H82: 0 | I82: 0 | J82: 0 | K82: 0 | L82: 0 | M82: 0 | N82: 0 | O82: 0 | P82: 0
A83: 123 | B83: 73 | D83: 0 | E83: 0 | F83: 0 | G83: 0 | H83: 0 | I83: 0 | J83: 0 | K83: 0 | L83: 0 | M83: 0 | N83: 0 | O83: 0 | P83: 0
A84: 124 | B84: 74 | D84: =INDIRECT($C$1&"!"&VLOOKUP(D$2,mdr,2,0)&$A84) -> 0 | E84: 0 | F84: 0 | G84: 0 | H84: 0 | I84: 0 | J84: 0 | K84: 0 | L84: 0 | M84: 0 | N84: 0 | O84: 0 | P84: 0
A85: 125 | B85: 75 | D85: =INDIRECT($C$1&"!"&VLOOKUP(D$2,mdr,2,0)&$A85) -> 0 | E85: 0 | F85: 0 | G85: 0 | H85: 0 | I85: 0 | J85: 0 | K85: 0 | L85: 0 | M85: 0 | N85: 0 | O85: 0 | P85: 0
A86: 51
A87: 49
A88: 50 | B88: =B85+1 -> 76 | D88: =INDIRECT($C$1&"!"&VLOOKUP(D$2,mdr,2,0)&$A88) -> 0 | E88: =INDIRECT($C$1&"!"&VLOOKUP(E$2,mdr,2,0)&$A88) -> 0 | F88: 0 | G88: 0 | H88: 0 | I88: 0 | J88: 0 | K88: 0 | L88: 0 | M88: 0 | N88: 0 | O88: 0 | P88: 0
A89: 126 | B89: 77 | D89: =INDIRECT($C$1&"!"&VLOOKUP(D$2,mdr,2,0)&$A89) -> 0 | E89: 0 | F89: 0 | G89: 0 | H89: 0 | I89: 0 | J89: 0 | K89: 0 | L89: 0 | M89: 0 | N89: 0 | O89: 0 | P89: =SUM(D89:O89) -> 0
B90: =IF(LEN(CONCATENATE($C$37,$C$38,$C$39))>0,"*)","") ->  | C90: =IF(LEN(CONCATENATE($C$36,$C$37,$C$38))>0,"Taksten beregnes som 1/1924 af alle faste månedsløndele (v. 100% BG) x 12 (bortset fra Gruppelivstillæg)","") -> 
B91: =IF(LEN(CONCATENATE(C61,C62))>0,"**)","") ->  | C91: =IF(LEN(CONCATENATE(C61,C62))>0,"(Der indbetales18% af summen af de 'pensionsgivende løndele', der overstiger skalatrin 33 (bhkl.ledere) eller 42 (lærere) - også selv om der ikke er aftalt supplerende pension.)","") -> 

Sheet LonspecAarBarsel (hidden)
A1: Ark: | C1: A | D1: fx: A (OBS: Brug IKKE mellemrum i arkfanenavne!) | P1: Antal orlovs- | Q1: Gule felter herunder
D2: AUG | E2: SEP | F2: OKT | G2: NOV | H2: DEC | I2: JAN | J2: FEB | K2: MAR | L2: APR | M2: MAJ | N2: JUN | O2: JUL | P2: dage i alt: | Q2: er kladdeområde
C3: Skriv antal dage med forældreorlov uden løn | D3: 31 | E3: 30 | F3: 31 | G3: 30 | P3: =SUM(D3:O3) -> 122
C4: antal dage i måneden | D4: 31 | E4: 30 | F4: 31 | G4: 30 | H4: 31 | I4: 31 | J4: 29 | K4: 31 | L4: 30 | M4: 31 | N4: 30 | O4: 31
C5: Ændret BG. under forældreorlov | F5: 0.8
A6: 1 | C6: LØNSPECIFIKATION for | D6: =INDIRECT($C$1&"!"&VLOOKUP(D$2,mdr,2,0)&$A6) -> A | E6: A | F6: A | G6: A | H6: A | I6: A | J6: A | K6: A | L6: A | M6: A | N6: A | O6: A
A7: 2 | C7: LØNPERIODE: | D7: AUG 24 | E7: SEP 24 | F7: OKT 24 | G7: NOV 24 | H7: DEC 24 | I7: JAN 25 | J7: FEB 25 | K7: MAR 25 | L7: APR 25 | M7: MAJ 25 | N7: JUN 25 | O7: JUL 25
A8: 8 | C8: BESKÆFTIGELSESGRAD iflg. ansætt.brev: | D8: Nej | E8: Nej | F8: Nej | G8: Nej | H8: Nej | I8: Nej | J8: Nej | K8: Nej | L8: Nej | M8: Nej | N8: Nej | O8: Nej | P8: Feriegodt-
A9: 3 | C9: DEL AF MÅNED: | D9: 1 | E9: 1 | F9: 1 | G9: 1 | H9: 1 | I9: 1 | J9: 1 | K9: 1 | L9: 1 | M9: 1 | N9: 1 | O9: 1 | P9: gørelses- | S9: AUG | T9: g
A10: 7 | C10: SKOLENS STEDTILLÆGSOMRÅDE: | D10: 0 | E10: 0 | F10: 0 | G10: 0 | H10: 0 | I10: 0 | J10: 0 | K10: 0 | L10: 0 | M10: 0 | N10: 0 | O10: 0 | P10: grundlag | S10: SEP | T10: h
A11: 9 | C11: ÅRLIGT UNDERVISNINGSTIMETAL: | D11: Nej | E11: Nej | F11: Nej | G11: Nej | H11: Nej | I11: Nej | J11: Nej | K11: Nej | L11: Nej | M11: Nej | N11: Nej | O11: Nej | P11: =LEFT(INDIRECT($C$1&"!a1"),4)+1 -> 2024 | S11: OKT | T11: i
A12: 4 | C12: LØNTRIN: | D12: 0 | E12: 0 | F12: 0 | G12: 0 | H12: 0 | I12: 0 | J12: 0 | K12: 0 | L12: 0 | M12: 0 | N12: 0 | O12: 0 | P12: =INDIRECT($C$1&"!"&"A"&103)+SUM(D16:H33)+SUM(D40:H44) ->  | S12: NOV | T12: j
C13: PENSIONSORDNING: | D13: =IF(LEFT(INDIRECT($C$1&"!G5"))="L","LP","Tj.m., trin "&RIGHT(INDIRECT($C$1&"!G5"),2)) -> Tj.m., trin | E13: =IF(LEFT(INDIRECT($C$1&"!G5"))="L","LP","Tj.m., trin "&RIGHT(INDIRECT($C$1&"!h5"),2)) -> Tj.m., trin 0 | F13: =IF(LEFT(INDIRECT($C$1&"!G5"))="L","LP","Tj.m., trin "&RIGHT(INDIRECT($C$1&"!i5"),2)) -> Tj.m., trin 0 | G13: =IF(LEFT(INDIRECT($C$1&"!G5"))="L","LP","Tj.m., trin "&RIGHT(INDIRECT($C$1&"!j5"),2)) -> Tj.m., trin 0 | H13: =IF(LEFT(INDIRECT($C$1&"!G5"))="L","LP","Tj.m., trin "&RIGHT(INDIRECT($C$1&"!k5"),2)) -> Tj.m., trin 0 | I13: =IF(LEFT(INDIRECT($C$1&"!G5"))="L","LP","Tj.m., trin "&RIGHT(INDIRECT($C$1&"!l5"),2)) -> Tj.m., trin 0 | J13: =IF(LEFT(INDIRECT($C$1&"!G5"))="L","LP","Tj.m., trin "&RIGHT(INDIRECT($C$1&"!m5"),2)) -> Tj.m., trin 0 | K13: =IF(LEFT(INDIRECT($C$1&"!G5"))="L","LP","Tj.m., trin "&RIGHT(INDIRECT($C$1&"!n5"),2)) -> Tj.m., trin 0 | L13: =IF(LEFT(INDIRECT($C$1&"!G5"))="L","LP","Tj.m., trin "&RIGHT(INDIRECT($C$1&"!o5"),2)) -> Tj.m., trin 0 | M13: =IF(LEFT(INDIRECT($C$1&"!G5"))="L","LP","Tj.m., trin "&RIGHT(INDIRECT($C$1&"!p5"),2)) -> Tj.m., trin 0 | N13: =IF(LEFT(INDIRECT($C$1&"!G5"))="L","LP","Tj.m., trin "&RIGHT(INDIRECT($C$1&"!q5"),2)) -> Tj.m., trin 0 | O13: =IF(LEFT(INDIRECT($C$1&"!G5"))="L","LP","Tj.m., trin "&RIGHT(INDIRECT($C$1&"!r5"),2)) -> Tj.m., trin 0 | S13: DEC | T13: k
C14: DEL AF MÅNED med forældreorlov uden løn | D14: =D3/D4 -> 1 | E14: 1 | F14: 1 | G14: 1 | H14: 0 | I14: 0 | J14: 0 | K14: 0 | L14: 0 | M14: 0 | N14: 0 | O14: 0 | P14: Feriegodt- | S14: JAN | T14: l
C15: Ændret BG. I deltids-forældreorlovsperiode: | D15: =IF(AND(D8>D5,D5>0),D5,"") ->  | E15: =IF(AND(E8>E5,E5>0),E5,"") ->  | F15: 0.8 | G15: =IF(AND(G8>G5,G5>0),G5,"") ->  | P15: gørelses- | S15: FEB | T15: m
A16: 48 | B16: 1 | C16: =IF(SUM(D16:O16)<>0,INDIRECT($C$1&"!f"&A16),"") ->  | D16: =INDIRECT($C$1&"!"&VLOOKUP(D$2,mdr,2,0)&$A16)*(1-D$3/D$4)+IF(D$15>0,INDIRECT($C$1&"!"&VLOOKUP(D$2,mdr,2,0)&$A16)*D$3/D$4*D$5/D$8,0) ->  | P16: grundlag | S16: MAR | T16: n
A17: =A16+1 -> 49 | B17: =B16+1 -> 2 | C17: =IF(SUM(D17:O17)<>0,INDIRECT($C$1&"!f"&A17),"") ->  | P17: =P11+1 -> 2025 | S17: APR | T17: o
A18: =A17+1 -> 50 | B18: 3 | D18: =INDIRECT($C$1&"!"&VLOOKUP(D$2,mdr,2,0)&$A18)*(1-D$3/D$4)+IF(D$15>0,INDIRECT($C$1&"!"&VLOOKUP(D$2,mdr,2,0)&$A18)*D$3/D$4*D$5/D$8,0) ->  | F18: =INDIRECT($C$1&"!"&VLOOKUP(F$2,mdr,2,0)&$A18)*(1-F$3/F$4)+IF(F$15>0,INDIRECT($C$1&"!"&VLOOKUP(F$2,mdr,2,0)&$A18)*F$3/F$4*IF(F$5>0,F$15/F$5),0) -> 0 | G18: =INDIRECT($C$1&"!"&VLOOKUP(G$2,mdr,2,0)&$A18)*(1-G$3/G$4)+IF(G$15>0,INDIRECT($C$1&"!"&VLOOKUP(G$2,mdr,2,0)&$A18)*G$3/G$4*IF(G5>0,G15/G$5),0) -> 0 | P18: =SUM(I16:O33)+SUM(I40:O44) ->  | S18: MAJ | T18: p
A19: 51 | B19: 4 | D19: =INDIRECT($C$1&"!"&VLOOKUP(D$2,mdr,2,0)&$A19)*(1-D$3/D$4)+IF(D$15>0,INDIRECT($C$1&"!"&VLOOKUP(D$2,mdr,2,0)&$A19)*D$3/D$4*D$5/D$8,0) ->  | F19: =INDIRECT($C$1&"!"&VLOOKUP(F$2,mdr,2,0)&$A19)*(1-F$3/F$4)+IF(F$15>0,INDIRECT($C$1&"!"&VLOOKUP(F$2,mdr,2,0)&$A19)*F$3/F$4*IF(F$5>0,F$15/F$5),0) -> 0 | S19: JUN | T19: q
A20: 52 | B20: 5 | D20: =INDIRECT($C$1&"!"&VLOOKUP(D$2,mdr,2,0)&$A20)*(1-D$3/D$4)+IF(D$15>0,INDIRECT($C$1&"!"&VLOOKUP(D$2,mdr,2,0)&$A20)*D$3/D$4*D$5/D$8*IF(INDIRECT($C$1&"!d"&$A20)=1,D$5/D$8,1),0) ->  | Q20: =INDIRECT($C$1&"!d"&$A20) -> 0 | S20: JUL | T20: r
A21: 53 | B21: 6 | F21: =INDIRECT($C$1&"!"&VLOOKUP(F$2,mdr,2,0)&$A21)*(1-F$3/F$4)+IF(F$15>0,INDIRECT($C$1&"!"&VLOOKUP(F$2,mdr,2,0)&$A21)*F$3/F$4*IF(F$5>0,F$15/F$5),0) -> 0 | P21: Feriepenge- | Q21: 1
A22: 54 | B22: 7 | D22: =INDIRECT($C$1&"!"&VLOOKUP(D$2,mdr,2,0)&$A22)*(1-D$3/D$4)+IF(D$15>0,INDIRECT($C$1&"!"&VLOOKUP(D$2,mdr,2,0)&$A22)*D$3/D$4*D$5/F$8*IF(INDIRECT($C$1&"!d"&$A22)=1,D$5/D$8,1),0) ->  | F22: =INDIRECT($C$1&"!"&VLOOKUP(F$2,mdr,2,0)&$A22)*(1-F$3/F$4)+IF(F$15>0,INDIRECT($C$1&"!"&VLOOKUP(F$2,mdr,2,0)&$A22)*F$3/F$4*IF(F$5>0,F$15/F$5),0) -> 0 | N22: =INDIRECT($C$1&"!"&VLOOKUP(N$2,mdr,2,0)&$A22)*(1-N$3/N$4)+IF(N$15>0,INDIRECT($C$1&"!"&VLOOKUP(N$2,mdr,2,0)&$A22)*N$3/N$4*N$5/N$8*IF(INDIRECT($C$1&"!d"&$A22)=1,N$5/N$8,1),0) ->  | O22: =INDIRECT($C$1&"!"&VLOOKUP(O$2,mdr,2,0)&$A22)*(1-O$3/O$4)+IF(O$15>0,INDIRECT($C$1&"!"&VLOOKUP(O$2,mdr,2,0)&$A22)*O$3/O$4*O$5/O$8*IF(INDIRECT($C$1&"!d"&$A22)=1,O$5/O$8,1),0) ->  | P22: beregnings- | Q22: 1
A23: 55 | B23: 8 | D23: =INDIRECT($C$1&"!"&VLOOKUP(D$2,mdr,2,0)&$A23)*(1-D$3/D$4)+IF(D$15>0,INDIRECT($C$1&"!"&VLOOKUP(D$2,mdr,2,0)&$A23)*D$3/D$4*IF(INDIRECT($C$1&"!d"&$A23)=1,D$5/D$8,1),0) -> 0 | E23: 0 | F23: =INDIRECT($C$1&"!"&VLOOKUP(F$2,mdr,2,0)&$A23)*(1-F$3/F$4)+IF(F$15>0,INDIRECT($C$1&"!"&VLOOKUP(F$2,mdr,2,0)&$A23)*F$3/F$4*IF(F$5>0,F$15/F$5),0) -> 0 | G23: 0 | H23: 0 | I23: 0 | J23: 0 | K23: 0 | L23: 0 | M23: 0 | N23: 0 | O23: 0 | P23: grundlag | Q23: 0
A24: 56 | B24: 9 | D24: 0 | E24: 0 | F24: 0 | G24: 0 | H24: 0 | I24: 0 | J24: 0 | K24: 0 | L24: 0 | M24: 0 | N24: 0 | O24: 0 | P24: =P11 -> 2024 | Q24: 0
A25: 57 | B25: 10 | D25: 0 | E25: 0 | F25: 0 | G25: 0 | H25: 0 | I25: 0 | J25: 0 | K25: 0 | L25: 0 | M25: 0 | N25: 0 | O25: 0 | P25: =INDIRECT($C$1&"!"&"A"&113)+SUM(D89:H89) ->  | Q25: 0
A26: 58 | B26: 11 | D26: =INDIRECT($C$1&"!"&VLOOKUP(D$2,mdr,2,0)&$A26)*(1-D$3/D$4)+IF(D$15>0,INDIRECT($C$1&"!"&VLOOKUP(D$2,mdr,2,0)&$A26)*D$3/D$4*D$5/D$8,0) -> 
A27: 59 | B27: 12 | P27: Feriepenge-
A28: 60 | B28: 13 | D28: =INDIRECT($C$1&"!"&VLOOKUP(D$2,mdr,2,0)&$A28)*(1-D$3/D$4)+IF(D$15>0,INDIRECT($C$1&"!"&VLOOKUP(D$2,mdr,2,0)&$A28)*D$3/D$4*D$5/D$8,0) ->  | P28: beregnings-
A29: 61 | B29: 14 | P29: grundlag
A30: 62 | B30: 15 | D30: =INDIRECT($C$1&"!"&VLOOKUP(D$2,mdr,2,0)&$A30)*(1-D$3/D$4)+IF(D$15>0,INDIRECT($C$1&"!"&VLOOKUP(D$2,mdr,2,0)&$A30)*D$3/D$4*IF(INDIRECT($C$1&"!d"&$A30)=1,D$5/D$8,1),0) ->  | P30: =P17 -> 2025
A31: 63 | B31: 16 | D31: =INDIRECT($C$1&"!"&VLOOKUP(D$2,mdr,2,0)&$A31)*(1-D$3/D$4)+IF(D$15>0,INDIRECT($C$1&"!"&VLOOKUP(D$2,mdr,2,0)&$A31)*D$3/D$4*D$5/D$8*IF(INDIRECT($C$1&"!d"&$A31)=1,D$5/D$8,1),0) ->  | P31: =SUM(I89:O89) -> 
A32: 64 | B32: 17 | D32: =INDIRECT($C$1&"!"&VLOOKUP(D$2,mdr,2,0)&$A32)*(1-D$3/D$4)+IF(D$15>0,INDIRECT($C$1&"!"&VLOOKUP(D$2,mdr,2,0)&$A32)*D$3/D$4*IF(INDIRECT($C$1&"!d"&$A32)=1,D$8,1),0) ->  | E32: =INDIRECT($C$1&"!"&VLOOKUP(E$2,mdr,2,0)&$A32)*(1-E$3/E$4)+IF(E$15>0,INDIRECT($C$1&"!"&VLOOKUP(E$2,mdr,2,0)&$A32)*E$3/E$4*IF(INDIRECT($C$1&"!d"&$A32)=1,E$8,1),0) ->  | F32: =INDIRECT($C$1&"!"&VLOOKUP(F$2,mdr,2,0)&$A32)*(1-F$3/F$4)+IF(F$15>0,INDIRECT($C$1&"!"&VLOOKUP(F$2,mdr,2,0)&$A32)*F$3/F$4*IF(INDIRECT($C$1&"!d"&$A32)=1,F$8,1),0) ->  | G32: =INDIRECT($C$1&"!"&VLOOKUP(G$2,mdr,2,0)&$A32)*(1-G$3/G$4)+IF(G$15>0,INDIRECT($C$1&"!"&VLOOKUP(G$2,mdr,2,0)&$A32)*G$3/G$4*IF(INDIRECT($C$1&"!d"&$A32)=1,G$5/G$8,1),0) -> 
A33: 65 | B33: 18 | D33: =INDIRECT($C$1&"!"&VLOOKUP(D$2,mdr,2,0)&$A33) -> 0 | E33: =INDIRECT($C$1&"!"&VLOOKUP(E$2,mdr,2,0)&$A33) -> 0 | F33: 0 | G33: 0 | H33: 0 | I33: 0 | J33: 0 | K33: 0 | L33: 0 | M33: 0 | N33: 0 | O33: 0 | P33: Benyt oven-
A34: 66 | B34: 19 | D34: =INDIRECT($C$1&"!"&VLOOKUP(D$2,mdr,2,0)&$A34) -> 0 | E34: 0 | F34: 0 | G34: 0 | H34: 0 | I34: 0 | J34: 0 | K34: 0 | L34: 0 | M34: 0 | N34: 0 | O34: 0 | P34: stående tal i
A35: =A34+1 -> 67 | B35: =B34+1 -> 20
A36: =A35+1 -> 68 | B36: =B35+1 -> 21 | D36: 0 | E36: 0 | F36: 0 | G36: 0 | H36: 0 | I36: 0 | J36: 0 | K36: 0 | L36: 0 | M36: 0 | N36: 0 | O36: 0 | P36: stedet for sum-
A37: 69 | B37: 22 | D37: =INDIRECT($C$1&"!"&VLOOKUP(D$2,mdr,2,0)&$A37) -> 0 | E37: 0 | F37: 0 | G37: 0 | H37: 0 | I37: 0 | J37: 0 | K37: 0 | L37: 0 | M37: 0 | N37: 0 | O37: 0 | P37: merne på
A38: 70 | B38: 23 | D38: 0 | E38: 0 | F38: 0 | G38: 0 | H38: 0 | I38: 0 | J38: 0 | K38: 0 | L38: 0 | M38: 0 | N38: 0 | O38: 0 | P38: hovedarket.
A39: 71 | B39: 24 | D39: 0 | E39: 0 | F39: 0 | G39: 0 | H39: 0 | I39: 0 | J39: 0 | K39: 0 | L39: 0 | M39: 0 | N39: 0 | O39: 0 | P39: (lin 113 og lin114)
A40: 72 | B40: 25 | D40: 0 | E40: 0 | F40: 0 | G40: 0 | H40: 0 | I40: 0 | J40: 0 | K40: 0 | L40: 0 | M40: 0 | N40: 0 | O40: 0
A41: 73 | B41: 26 | D41: 0 | E41: 0 | F41: 0 | G41: 0 | H41: 0 | I41: 0 | J41: 0 | K41: 0 | L41: 0 | M41: 0 | N41: 0 | O41: 0
A42: 74 | B42: 27 | D42: 0 | E42: 0 | F42: 0 | G42: 0 | H42: 0 | I42: 0 | J42: 0 | K42: 0 | L42: 0 | M42: 0 | N42: 0 | O42: 0
A43: =A42+1 -> 75 | B43: =B42+1 -> 28 | C43: =IF(ABS(SUM(D43:O43))>0.01,INDIRECT($C$1&"!f"&A43),"") ->  | D43: 0 | E43: 0 | F43: 0 | G43: 0 | H43: 0 | I43: 0 | J43: 0 | K43: 0 | L43: 0 | M43: 0 | N43: 0 | O43: 0
A44: 76 | B44: =B43+1 -> 29 | D44: 0 | E44: 0 | F44: 0 | G44: 0 | H44: 0 | I44: 0 | J44: 0 | K44: 0 | L44: 0 | M44: 0 | N44: 0 | O44: 0
A45: 77 | B45: 30 | D45: =SUM(D16:D44) ->  | E45: =SUM(E16:E44) -> 
A46: 78 | B46: 31 | D46: 0 | E46: 0 | F46: 0 | G46: 0 | H46: 0 | I46: 0 | J46: 0 | K46: 0 | L46: 0 | M46: 0 | N46: 0 | O46: 0
A47: 79 | B47: 32 | D47: =INDIRECT($C$1&"!"&VLOOKUP(D$2,mdr,2,0)&$A47) -> 0 | E47: 0 | F47: 0 | G47: 0 | H47: 0 | I47: 0 | J47: 0 | K47: 0 | L47: 0 | M47: 0 | N47: 0 | O47: 0
A48: 80 | B48: 33 | D48: 0 | E48: 0 | F48: 0 | G48: 0 | H48: 0 | I48: 0 | J48: 0 | K48: 0 | L48: 0 | M48: 0 | N48: 0 | O48: 0
A49: 81 | B49: 34 | D49: 0 | E49: 0 | F49: 0 | G49: 0 | H49: 0 | I49: 0 | J49: 0 | K49: 0 | L49: 0 | M49: 0 | N49: 0 | O49: 0
A50: 82 | B50: 35 | D50: 0 | E50: 0 | F50: 0 | G50: 0 | H50: 0 | I50: 0 | J50: 0 | K50: 0 | L50: 0 | M50: 0 | N50: 0 | O50: 0
A51: =A50+1 -> 83 | B51: 36 | D51: 0 | E51: 0 | F51: 0 | G51: 0 | H51: 0 | I51: 0 | J51: 0 | K51: 0 | L51: 0 | M51: 0 | N51: 0 | O51: 0
A52: 84 | B52: 37 | D52: 0 | E52: 0 | F52: 0 | G52: 0 | H52: 0 | I52: 0 | J52: 0 | K52: 0 | L52: 0 | M52: 0 | N52: 0 | O52: 0
A53: 85 | B53: 38 | D53: 0 | E53: 0 | F53: 0 | G53: 0 | H53: 0 | I53: 0 | J53: 0 | K53: 0 | L53: 0 | M53: 0 | N53: 0 | O53: 0
A54: 86 | B54: 39 | D54: 0 | E54: 0 | F54: 0 | G54: 0 | H54: 0 | I54: 0 | J54: 0 | K54: 0 | L54: 0 | M54: 0 | N54: 0 | O54: 0
A55: 87 | B55: 40 | D55: 0 | E55: 0 | F55: 0 | G55: 0 | H55: 0 | I55: 0 | J55: 0 | K55: 0 | L55: 0 | M55: 0 | N55: 0 | O55: 0
A56: 88 | B56: 41 | D56: 0 | E56: 0 | F56: 0 | G56: 0 | H56: 0 | I56: 0 | J56: 0 | K56: 0 | L56: 0 | M56: 0 | N56: 0 | O56: 0
A57: 89 | B57: 42 | D57: =INDIRECT($C$1&"!"&VLOOKUP(D$2,mdr,2,0)&$A57) -> 0 | E57: 0 | F57: 0 | G57: 0 | H57: 0 | I57: 0 | J57: 0 | K57: 0 | L57: 0 | M57: 0 | N57: 0 | O57: 0
A58: 90 | B58: 43 | D58: 0 | E58: 0 | F58: 0 | G58: 0 | H58: 0 | I58: 0 | J58: 0 | K58: 0 | L58: 0 | M58: 0 | N58: 0 | O58: 0
A59: 91 | B59: 44 | D59: 0 | E59: 0 | F59: 0 | G59: 0 | H59: 0 | I59: 0 | J59: 0 | K59: 0 | L59: 0 | M59: 0 | N59: 0 | O59: 0
A60: 92 | B60: 45 | D60: 0 | E60: 0 | F60: 0 | G60: 0 | H60: 0 | I60: 0 | J60: 0 | K60: 0 | L60: 0 | M60: 0 | N60: 0 | O60: 0
A61: 93 | B61: =B60+1 -> 46 | D61: 0 | E61: 0 | F61: 0 | G61: 0 | H61: 0 | I61: 0 | J61: 0 | K61: 0 | L61: 0 | M61: 0 | N61: 0 | O61: 0
A62: 94 | B62: =B61+1 -> 47 | D62: 0 | E62: 0 | F62: 0 | G62: 0 | H62: 0 | I62: 0 | J62: 0 | K62: 0 | L62: 0 | M62: 0 | N62: 0 | O62: 0
A63: 95 | B63: 48 | D63: 0 | E63: 0 | F63: 0 | G63: 0 | H63: 0 | I63: 0 | J63: 0 | K63: 0 | L63: 0 | M63: 0 | N63: 0 | O63: 0
A64: 96 | B64: 49 | C64: =IF(ABS(SUM(D65:O65))>0.01,INDIRECT($C$1&"!f"&A64),"") ->  | D64: 0 | E64: 0 | F64: 0 | G64: 0 | H64: 0 | I64: 0 | J64: 0 | K64: 0 | L64: 0 | M64: 0 | N64: 0 | O64: 0
A65: 97 | B65: 50 | D65: 0 | E65: 0 | F65: 0 | G65: 0 | H65: 0 | I65: 0 | J65: 0 | K65: 0 | L65: 0 | M65: 0 | N65: 0 | O65: 0
A66: 98 | B66: 51 | D66: 0 | E66: 0 | F66: 0 | G66: 0 | H66: 0 | I66: 0 | J66: 0 | K66: 0 | L66: 0 | M66: 0 | N66: 0 | O66: 0
A67: =A66+1 -> 99 | B67: 52 | D67: 0 | E67: 0 | F67: 0 | G67: 0 | H67: 0 | I67: 0 | J67: 0 | K67: 0 | L67: 0 | M67: 0 | N67: 0 | O67: 0
A68: 100 | B68: 53 | D68: 0 | E68: 0 | F68: 0 | G68: 0 | H68: 0 | I68: 0 | J68: 0 | K68: 0 | L68: 0 | M68: 0 | N68: 0 | O68: 0
A69: 101 | B69: 54 | D69: 0 | E69: 0 | F69: 0 | G69: 0 | H69: 0 | I69: 0 | J69: 0 | K69: 0 | L69: 0 | M69: 0 | N69: 0 | O69: 0
A70: 102 | B70: =B69+1 -> 55 | C70: =IF(ABS(SUM(D70:O70))>0.01,INDIRECT($C$1&"!f"&A70),"") ->  | D70: 0 | E70: 0 | F70: 0 | G70: 0 | H70: 0 | I70: 0 | J70: 0 | K70: 0 | L70: 0 | M70: 0 | N70: 0 | O70: 0
A71: 103 | B71: 56 | D71: 0 | E71: 0 | F71: 0 | G71: 0 | H71: 0 | I71: 0 | J71: 0 | K71: 0 | L71: 0 | M71: 0 | N71: 0 | O71: 0
A72: 27 | B72: 57 | D72: 0 | E72: 0 | F72: 0 | G72: 0 | H72: 0 | I72: 0 | J72: 0 | K72: 0 | L72: 0 | M72: 0 | N72: 0 | O72: 0
A73: 26 | B73: 58 | D73: =INDIRECT($C$1&"!"&VLOOKUP(D$2,mdr,2,0)&$A73) -> 0 | E73: 0 | F73: 0 | G73: 0 | H73: 0 | I73: 0 | J73: 0 | K73: 0 | L73: 0 | M73: 0 | N73: 0 | O73: 0
A74: 104 | B74: 59 | D74: 0 | E74: 0 | F74: 0 | G74: 0 | H74: 0 | I74: 0 | J74: 0 | K74: 0 | L74: 0 | M74: 0 | N74: 0 | O74: 0
A75: =A74+1 -> 105 | B75: 60 | D75: 0 | E75: 0 | F75: 0 | G75: 0 | H75: 0 | I75: 0 | J75: 0 | K75: 0 | L75: 0 | M75: 0 | N75: 0 | O75: 0
A76: 108 | B76: 61 | D76: =INDIRECT($C$1&"!"&VLOOKUP(D$2,mdr,2,0)&$A76) -> 0 | E76: 0 | F76: 0 | G76: 0 | H76: 0 | I76: 0 | J76: 0 | K76: 0 | L76: 0 | M76: 0 | N76: 0 | O76: 0
A77: 109 | B77: 62 | D77: 0 | E77: 0 | F77: 0 | G77: 0 | H77: 0 | I77: 0 | J77: 0 | K77: 0 | L77: 0 | M77: 0 | N77: 0 | O77: 0
A78: 110 | B78: 63 | D78: 0 | E78: 0 | F78: 0 | G78: 0 | H78: 0 | I78: 0 | J78: 0 | K78: 0 | L78: 0 | M78: 0 | N78: 0 | O78: 0
A79: 111 | B79: 64 | D79: 0 | E79: 0 | F79: 0 | G79: 0 | H79: 0 | I79: 0 | J79: 0 | K79: 0 | L79: 0 | M79: 0 | N79: 0 | O79: 0
A80: 112 | B80: 65 | D80: 0 | E80: 0 | F80: 0 | G80: 0 | H80: 0 | I80: 0 | J80: 0 | K80: 0 | L80: 0 | M80: 0 | N80: 0 | O80: 0
A81: 112 | B81: 66 | D81: 0 | E81: 0 | F81: 0 | G81: 0 | H81: 0 | I81: 0 | J81: 0 | K81: 0 | L81: 0 | M81: 0 | N81: 0 | O81: 0
A82: 44 | B82: 67 | D82: 0 | E82: 0 | F82: 0 | G82: 0 | H82: 0 | I82: 0 | J82: 0 | K82: 0 | L82: 0 | M82: 0 | N82: 0 | O82: 0
A83: 45 | B83: =B79+1 -> 65 | D83: 0 | E83: 0 | F83: 0 | G83: 0 | H83: 0 | I83: 0 | J83: 0 | K83: 0 | L83: 0 | M83: 0 | N83: 0 | O83: 0
A84: 46 | B84: 66 | D84: 0 | E84: 0 | F84: 0 | G84: 0 | H84: 0 | I84: 0 | J84: 0 | K84: 0 | L84: 0 | M84: 0 | N84: 0 | O84: 0
A85: 114 | B85: 67 | D85: 0 | E85: 0 | F85: 0 | G85: 0 | H85: 0 | I85: 0 | J85: 0 | K85: 0 | L85: 0 | M85: 0 | N85: 0 | O85: 0
A86: 115 | B86: 68 | D86: =D47-D75-D68-D70-D82-SUM(D83:D85) -> 0 | E86: =E47-E75-E68-E70-E82-SUM(E83:E85) -> 0 | F86: 0 | G86: 0 | H86: 0 | I86: 0 | J86: 0 | K86: 0 | L86: 0 | M86: 0 | N86: 0 | O86: 0
B87: =IF(LEN(CONCATENATE($C$41,$C$42,$C$43))>0,"*)","") ->  | C87: =IF(LEN(CONCATENATE($C$41,$C$42,$C$43))>0,"Taksten beregnes som 1/1924 af alle faste månedsløndele (v. 100% BG) x 12 (bortset fra Gruppelivstillæg)","") -> 
B88: =IF(LEN(CONCATENATE(C60,C61))>0,"**)","") ->  | C88: =IF(LEN(CONCATENATE(C60,C61))>0,"(Der indbetales18% af summen af de 'pensionsgivende løndele', der overstiger skalatrin 33 (bhkl.ledere) eller 42 (lærere) - også selv om der ikke er aftalt supplerende pension.)","") -> 
C89: Feriepengeberegningsgrundlag | D89: =(SUM(D16:D34)+SUM(D40:D44)+D64+D65)*(1-12/260*INDIRECT($C$1&"!"&VLOOKUP(D$2,mdr,2,0)&"21")) -> 

Sheet LonspecAlle
A1: Ark: | D1: A | E1: B | F1: C | G1: D | H1: E | I1: F | J1: G | K1: H | L1: I | M1: J | N1: K | O1: L | P1: M | Q1: N | R1: O | S1: P | U1: Gule felter herunder
C2: Hvis fanebladsnavnene er omdøbt, skal de gule felter i linie 1 ligeledes omdøbes manuelt. Det forudsættes at arknavnet i kolonne D er reelt eksisterende, da ledeteksterne i kolonne C tages herfra. (OBS: Brug IKKE mellemrum i arkfanenavne!) | U2: er kladdeområde, som
A3: Måned: | C3: AUG | D3: fx: AUG | U3: ikke er med i udskriften
A4: 1 | C4: LØNSPECIFIKATION for | D4: =INDIRECT(D$1&"!"&VLOOKUP($C$3,$W$5:$X$16,2,0)&$A4) -> A | E4: =IF(E$1="","",INDIRECT(E$1&"!"&VLOOKUP($C$3,mdr,2,0)&$A4)) -> B | F4: C | G4: D | H4: E | I4: F | J4: G | K4: H | L4: I | M4: J | N4: K | O4: L | P4: M | Q4: N | R4: O | S4: P | T4: ALLE
A5: 2 | C5: LØNPERIODE: | D5: =INDIRECT(D$1&"!"&VLOOKUP($C$3,mdr,2,0)&$A5) -> AUG 24 | E5: AUG 24 | F5: AUG 24 | G5: AUG 24 | H5: AUG 24 | I5: AUG 24 | J5: AUG 24 | K5: AUG 24 | L5: AUG 24 | M5: AUG 24 | N5: AUG 24 | O5: AUG 24 | P5: AUG 24 | Q5: AUG 24 | R5: AUG 24 | S5: AUG 24 | W5: AUG | X5: g
A6: 11 | C6: BESKÆFTIGELSESGRAD: | D6: 0 | E6: 0 | F6: 0 | G6: 0 | H6: 0 | I6: 0 | J6: 0 | K6: 0 | L6: 0 | M6: 0 | N6: 0 | O6: 0 | P6: 0 | Q6: 0 | R6: 0 | S6: 0 | W6: SEP | X6: h
A7: 3 | C7: DEL AF MÅNED: | D7: 1 | E7: 1 | F7: 1 | G7: 1 | H7: 1 | I7: 1 | J7: 1 | K7: 1 | L7: 1 | M7: 1 | N7: 1 | O7: 1 | P7: 1 | Q7: 1 | R7: 1 | S7: 1 | W7: OKT | X7: i
A8: 7 | C8: SKOLENS STEDTILLÆGSOMRÅDE: | D8: 0 | E8: 0 | F8: 0 | G8: 0 | H8: 0 | I8: 0 | J8: 0 | K8: 0 | L8: 0 | M8: 0 | N8: 0 | O8: 0 | P8: 0 | Q8: 0 | R8: 0 | S8: 0 | W8: NOV | X8: j
A9: 12 | C9: ÅRLIGT UNDERVISNINGSTIMETAL: | D9: 0 | E9: 0 | F9: 0 | G9: 0 | H9: 0 | I9: 0 | J9: 0 | K9: 0 | L9: 0 | M9: 0 | N9: 0 | O9: 0 | P9: 0 | Q9: 0 | R9: 0 | S9: 0 | W9: DEC | X9: k
A10: 4 | C10: LØNTRIN: | D10: 0 | E10: 0 | F10: 0 | G10: 0 | H10: 0 | I10: 0 | J10: 0 | K10: 0 | L10: 0 | M10: 0 | N10: 0 | O10: 0 | P10: 0 | Q10: 0 | R10: 0 | S10: 0 | W10: JAN | X10: l
C11: PENSIONSORDNING: | D11: =IF(LEFT(INDIRECT(D$1&"!G5"))="L","LP","Tj.m., trin "&RIGHT(INDIRECT(D$1&"!G5"),2)) -> Tj.m., trin | E11: =IF(E$1="","",IF(LEFT(INDIRECT(E$1&"!G5"))="L","LP","Tj.m., trin "&RIGHT(INDIRECT(E$1&"!G5"),2))) -> Tj.m., trin | F11: =IF(F$1="","",IF(LEFT(INDIRECT(F$1&"!G5"))="L","LP","Tj.m., trin "&RIGHT(INDIRECT(F$1&"!G5"),2))) -> Tj.m., trin | G11: =IF(G$1="","",IF(LEFT(INDIRECT(G$1&"!G5"))="L","LP","Tj.m., trin "&RIGHT(INDIRECT(G$1&"!G5"),2))) -> Tj.m., trin | H11: Tj.m., trin | I11: Tj.m., trin | J11: Tj.m., trin | K11: Tj.m., trin | L11: Tj.m., trin | M11: Tj.m., trin | N11: Tj.m., trin | O11: Tj.m., trin | P11: Tj.m., trin | Q11: Tj.m., trin | R11: Tj.m., trin | S11: Tj.m., trin | W11: FEB | X11: m
A12: 53 | B12: 1 | C12: =IF(ABS(SUM(D12:S12))>0.1,INDIRECT($D$1&"!f"&A12),"") ->  | D12: =INDIRECT(D$1&"!"&VLOOKUP($C$3,mdr,2,0)&$A12) -> 0 | E12: =INDIRECT(E$1&"!"&VLOOKUP($C$3,mdr,2,0)&$A12) -> 0 | F12: 0 | G12: 0 | H12: 0 | I12: 0 | J12: 0 | K12: 0 | L12: 0 | M12: 0 | N12: 0 | O12: 0 | P12: 0 | Q12: 0 | R12: 0 | S12: 0 | T12: =SUM(D12:S12) -> 0 | W12: MAR | X12: n
A13: =A12+1 -> 54 | B13: =B12+1 -> 2 | C13: =IF(ABS(SUM(D13:S13))>0.1,INDIRECT($D$1&"!f"&A13),"") ->  | D13: 0 | E13: 0 | F13: 0 | G13: 0 | H13: 0 | I13: 0 | J13: 0 | K13: 0 | L13: 0 | M13: 0 | N13: 0 | O13: 0 | P13: 0 | Q13: 0 | R13: 0 | S13: 0 | T13: 0 | W13: APR | X13: o
A14: =A13+1 -> 55 | B14: 3 | D14: 0 | E14: 0 | F14: 0 | G14: 0 | H14: 0 | I14: 0 | J14: 0 | K14: 0 | L14: 0 | M14: 0 | N14: 0 | O14: 0 | P14: 0 | Q14: 0 | R14: 0 | S14: 0 | T14: 0 | W14: MAJ | X14: p
A15: 56 | B15: 4 | D15: 0 | E15: 0 | F15: 0 | G15: 0 | H15: 0 | I15: 0 | J15: 0 | K15: 0 | L15: 0 | M15: 0 | N15: 0 | O15: 0 | P15: 0 | Q15: 0 | R15: 0 | S15: 0 | T15: 0 | W15: JUN | X15: q
A16: 57 | B16: 5 | D16: 0 | E16: 0 | F16: 0 | G16: 0 | H16: 0 | I16: 0 | J16: 0 | K16: 0 | L16: 0 | M16: 0 | N16: 0 | O16: 0 | P16: 0 | Q16: 0 | R16: 0 | S16: 0 | T16: 0 | W16: JUL | X16: r
A17: 58 | B17: 6 | D17: 0 | E17: 0 | F17: 0 | G17: 0 | H17: 0 | I17: 0 | J17: 0 | K17: 0 | L17: 0 | M17: 0 | N17: 0 | O17: 0 | P17: 0 | Q17: 0 | R17: 0 | S17: 0 | T17: 0
A18: 59 | B18: 7 | D18: 0 | E18: 0 | F18: 0 | G18: 0 | H18: 0 | I18: 0 | J18: 0 | K18: 0 | L18: 0 | M18: 0 | N18: 0 | O18: 0 | P18: 0 | Q18: 0 | R18: 0 | S18: 0 | T18: 0
A19: 60 | B19: 8 | D19: =INDIRECT(D$1&"!"&VLOOKUP($C$3,mdr,2,0)&$A19) -> 0 | E19: 0 | F19: 0 | G19: 0 | H19: 0 | I19: 0 | J19: 0 | K19: 0 | L19: 0 | M19: 0 | N19: 0 | O19: 0 | P19: 0 | Q19: 0 | R19: 0 | S19: 0 | T19: 0
A20: 61 | B20: 9 | D20: 0 | E20: 0 | F20: 0 | G20: 0 | H20: 0 | I20: 0 | J20: 0 | K20: 0 | L20: 0 | M20: 0 | N20: 0 | O20: 0 | P20: 0 | Q20: 0 | R20: 0 | S20: 0 | T20: 0
A21: 62 | B21: 10 | D21: 0 | E21: 0 | F21: 0 | G21: 0 | H21: 0 | I21: 0 | J21: 0 | K21: 0 | L21: 0 | M21: 0 | N21: 0 | O21: 0 | P21: 0 | Q21: 0 | R21: 0 | S21: 0 | T21: 0
A22: 63 | B22: 11 | D22: 0 | E22: 0 | F22: 0 | G22: 0 | H22: 0 | I22: 0 | J22: 0 | K22: 0 | L22: 0 | M22: 0 | N22: 0 | O22: 0 | P22: 0 | Q22: 0 | R22: 0 | S22: 0 | T22: 0
A23: 64 | B23: 12 | D23: 0 | E23: 0 | F23: 0 | G23: 0 | H23: 0 | I23: 0 | J23: 0 | K23: 0 | L23: 0 | M23: 0 | N23: 0 | O23: 0 | P23: 0 | Q23: 0 | R23: 0 | S23: 0 | T23: 0
A24: 65 | B24: 13 | D24: 0 | E24: 0 | F24: 0 | G24: 0 | H24: 0 | I24: 0 | J24: 0 | K24: 0 | L24: 0 | M24: 0 | N24: 0 | O24: 0 | P24: 0 | Q24: 0 | R24: 0 | S24: 0 | T24: 0
A25: 66 | B25: 14 | D25: 0 | E25: 0 | F25: 0 | G25: 0 | H25: 0 | I25: 0 | J25: 0 | K25: 0 | L25: 0 | M25: 0 | N25: 0 | O25: 0 | P25: 0 | Q25: 0 | R25: 0 | S25: 0 | T25: 0
A26: 67 | B26: 15 | D26: 0 | E26: 0 | F26: 0 | G26: 0 | H26: 0 | I26: 0 | J26: 0 | K26: 0 | L26: 0 | M26: 0 | N26: 0 | O26: 0 | P26: 0 | Q26: 0 | R26: 0 | S26: 0 | T26: 0
A27: 68 | B27: 16 | D27: 0 | E27: 0 | F27: 0 | G27: 0 | H27: 0 | I27: 0 | J27: 0 | K27: 0 | L27: 0 | M27: 0 | N27: 0 | O27: 0 | P27: 0 | Q27: 0 | R27: 0 | S27: 0 | T27: 0
A28: 69 | B28: 17 | D28: 0 | E28: =INDIRECT(E$1&"!"&VLOOKUP($C$3,mdr,2,0)&$A28) -> 0 | F28: 0 | G28: 0 | H28: 0 | I28: 0 | J28: 0 | K28: 0 | L28: 0 | M28: 0 | N28: 0 | O28: 0 | P28: 0 | Q28: 0 | R28: 0 | S28: 0 | T28: 0
A29: 70 | B29: =B28+1 -> 18 | D29: 0 | E29: 0 | F29: 0 | G29: 0 | H29: 0 | I29: 0 | J29: 0 | K29: 0 | L29: 0 | M29: 0 | N29: 0 | O29: 0 | P29: 0 | Q29: 0 | R29: 0 | S29: 0 | T29: =SUM(D29:S29) -> 0
A30: =A29+1 -> 71 | B30: =B29+1 -> 19 | D30: 0 | E30: 0 | F30: 0 | G30: 0 | H30: 0 | I30: 0 | J30: 0 | K30: 0 | L30: 0 | M30: 0 | N30: 0 | O30: 0 | P30: 0 | Q30: 0 | R30: 0 | S30: 0 | T30: 0
A31: 72 | B31: =B30+1 -> 20 | D31: 0 | E31: =INDIRECT(E$1&"!"&VLOOKUP($C$3,mdr,2,0)&$A31) -> 0 | F31: 0 | G31: 0 | H31: 0 | I31: 0 | J31: 0 | K31: 0 | L31: 0 | M31: 0 | N31: 0 | O31: 0 | P31: 0 | Q31: 0 | R31: 0 | S31: 0 | T31: 0
A32: 73 | B32: =B31+1 -> 21 | D32: 0 | E32: 0 | F32: 0 | G32: 0 | H32: 0 | I32: 0 | J32: 0 | K32: 0 | L32: 0 | M32: 0 | N32: 0 | O32: 0 | P32: 0 | Q32: 0 | R32: 0 | S32: 0 | T32: 0
A33: 74 | B33: 22 | D33: 0 | E33: 0 | F33: 0 | G33: 0 | H33: 0 | I33: 0 | J33: 0 | K33: 0 | L33: 0 | M33: 0 | N33: 0 | O33: 0 | P33: 0 | Q33: 0 | R33: 0 | S33: 0 | T33: 0
A34: 75 | B34: 23 | D34: 0 | E34: 0 | F34: 0 | G34: 0 | H34: 0 | I34: 0 | J34: 0 | K34: 0 | L34: 0 | M34: 0 | N34: 0 | O34: 0 | P34: 0 | Q34: 0 | R34: 0 | S34: 0 | T34: 0
A35: 76 | B35: 24 | D35: 0 | E35: 0 | F35: 0 | G35: 0 | H35: 0 | I35: 0 | J35: 0 | K35: 0 | L35: 0 | M35: 0 | N35: 0 | O35: 0 | P35: 0 | Q35: 0 | R35: 0 | S35: 0 | T35: 0
A36: =A35+1 -> 77 | B36: 25 | D36: 0 | E36: 0 | F36: 0 | G36: 0 | H36: 0 | I36: 0 | J36: 0 | K36: 0 | L36: 0 | M36: 0 | N36: 0 | O36: 0 | P36: 0 | Q36: 0 | R36: 0 | S36: 0 | T36: 0
A37: =A36+1 -> 78 | B37: 26 | D37: =INDIRECT(D$1&"!"&VLOOKUP($C$3,mdr,2,0)&$A37) -> 0 | E37: 0 | F37: 0 | G37: 0 | H37: 0 | I37: 0 | J37: 0 | K37: 0 | L37: 0 | M37: 0 | N37: 0 | O37: 0 | P37: 0 | Q37: 0 | R37: 0 | S37: 0 | T37: 0
A38: =A37+1 -> 79 | B38: 27 | D38: 0 | E38: 0 | F38: 0 | G38: 0 | H38: 0 | I38: 0 | J38: 0 | K38: 0 | L38: 0 | M38: 0 | N38: 0 | O38: 0 | P38: 0 | Q38: 0 | R38: 0 | S38: 0 | T38: 0
A39: =A38+1 -> 80 | B39: 28 | D39: 0 | E39: 0 | F39: 0 | G39: 0 | H39: 0 | I39: 0 | J39: 0 | K39: 0 | L39: 0 | M39: 0 | N39: 0 | O39: 0 | P39: 0 | Q39: 0 | R39: 0 | S39: 0 | T39: 0
A40: =A39+1 -> 81 | B40: 29 | D40: 0 | E40: 0 | F40: 0 | G40: 0 | H40: 0 | I40: 0 | J40: 0 | K40: 0 | L40: 0 | M40: 0 | N40: 0 | O40: 0 | P40: 0 | Q40: 0 | R40: 0 | S40: 0 | T40: 0
A41: =A40+1 -> 82 | B41: 30 | D41: 0 | E41: 0 | F41: 0 | G41: 0 | H41: 0 | I41: 0 | J41: 0 | K41: 0 | L41: 0 | M41: 0 | N41: 0 | O41: 0 | P41: 0 | Q41: 0 | R41: 0 | S41: 0 | T41: 0
A42: =A41+1 -> 83 | B42: 31 | D42: 0 | E42: 0 | F42: 0 | G42: 0 | H42: 0 | I42: 0 | J42: 0 | K42: 0 | L42: 0 | M42: 0 | N42: 0 | O42: 0 | P42: 0 | Q42: 0 | R42: 0 | S42: 0 | T42: 0
A43: =A42+1 -> 84 | B43: 32 | D43: =IF(ISNUMBER(INDIRECT(D$1&"!"&VLOOKUP($C$3,mdr,2,0)&$A43)),INDIRECT(D$1&"!"&VLOOKUP($C$3,mdr,2,0)&$A43),"") -> 0 | E43: 0 | F43: 0 | G43: 0 | H43: 0 | I43: 0 | J43: 0 | K43: 0 | L43: 0 | M43: 0 | N43: 0 | O43: 0 | P43: 0 | Q43: 0 | R43: 0 | S43: 0 | T43: 0
A44: =A43+1 -> 85 | B44: 33 | D44: 0 | E44: 0 | F44: 0 | G44: 0 | H44: 0 | I44: 0 | J44: 0 | K44: 0 | L44: 0 | M44: 0 | N44: 0 | O44: 0 | P44: 0 | Q44: 0 | R44: 0 | S44: 0 | T44: 0
A45: 86 | B45: 34 | D45: 0 | E45: 0 | F45: 0 | G45: 0 | H45: 0 | I45: 0 | J45: 0 | K45: 0 | L45: 0 | M45: 0 | N45: 0 | O45: 0 | P45: 0 | Q45: 0 | R45: 0 | S45: 0 | T45: 0
A46: 87 | B46: =B45+1 -> 35 | D46: 0 | E46: =INDIRECT(E$1&"!"&VLOOKUP($C$3,mdr,2,0)&$A46) -> 0 | F46: 0 | G46: 0 | H46: 0 | I46: 0 | J46: 0 | K46: 0 | L46: 0 | M46: 0 | N46: 0 | O46: 0 | P46: 0 | Q46: 0 | R46: 0 | S46: 0 | T46: 0
A47: 88 | B47: 36 | D47: 0 | E47: 0 | F47: 0 | G47: 0 | H47: 0 | I47: 0 | J47: 0 | K47: 0 | L47: 0 | M47: 0 | N47: 0 | O47: 0 | P47: 0 | Q47: 0 | R47: 0 | S47: 0 | T47: 0
A48: 89 | B48: 37 | D48: 0 | E48: 0 | F48: 0 | G48: 0 | H48: 0 | I48: 0 | J48: 0 | K48: 0 | L48: 0 | M48: 0 | N48: 0 | O48: 0 | P48: 0 | Q48: 0 | R48: 0 | S48: 0 | T48: 0
A49: 90 | B49: 38 | D49: 0 | E49: 0 | F49: 0 | G49: 0 | H49: 0 | I49: 0 | J49: 0 | K49: 0 | L49: 0 | M49: 0 | N49: 0 | O49: 0 | P49: 0 | Q49: 0 | R49: 0 | S49: 0 | T49: 0
A50: 91 | B50: 39 | D50: 0 | E50: 0 | F50: 0 | G50: 0 | H50: 0 | I50: 0 | J50: 0 | K50: 0 | L50: 0 | M50: 0 | N50: 0 | O50: 0 | P50: 0 | Q50: 0 | R50: 0 | S50: 0 | T50: 0
A51: 92 | B51: 40 | D51: =INDIRECT(D$1&"!"&VLOOKUP($C$3,mdr,2,0)&$A51) -> 0 | E51: 0 | F51: 0 | G51: 0 | H51: 0 | I51: 0 | J51: 0 | K51: 0 | L51: 0 | M51: 0 | N51: 0 | O51: 0 | P51: 0 | Q51: 0 | R51: 0 | S51: 0 | T51: 0
A52: 93 | B52: 41 | D52: 0 | E52: 0 | F52: 0 | G52: 0 | H52: 0 | I52: 0 | J52: 0 | K52: 0 | L52: 0 | M52: 0 | N52: 0 | O52: 0 | P52: 0 | Q52: 0 | R52: 0 | S52: 0 | T52: 0
A53: =A52+1 -> 94 | B53: 42 | D53: 0 | E53: 0 | F53: 0 | G53: 0 | H53: 0 | I53: 0 | J53: 0 | K53: 0 | L53: 0 | M53: 0 | N53: 0 | O53: 0 | P53: 0 | Q53: 0 | R53: 0 | S53: 0 | T53: 0
A54: =A53+1 -> 95 | B54: 43 | D54: 0 | E54: 0 | F54: 0 | G54: 0 | H54: 0 | I54: 0 | J54: 0 | K54: 0 | L54: 0 | M54: 0 | N54: 0 | O54: 0 | P54: 0 | Q54: 0 | R54: 0 | S54: 0 | T54: 0
A55: 96 | B55: 44 | D55: 0 | E55: 0 | F55: 0 | G55: 0 | H55: 0 | I55: 0 | J55: 0 | K55: 0 | L55: 0 | M55: 0 | N55: 0 | O55: 0 | P55: 0 | Q55: 0 | R55: 0 | S55: 0 | T55: 0
A56: 97 | B56: 45 | D56: 0 | E56: 0 | F56: 0 | G56: 0 | H56: 0 | I56: 0 | J56: 0 | K56: 0 | L56: 0 | M56: 0 | N56: 0 | O56: 0 | P56: 0 | Q56: 0 | R56: 0 | S56: 0 | T56: 0
A57: 98 | B57: 46 | D57: 0 | E57: 0 | F57: 0 | G57: 0 | H57: 0 | I57: 0 | J57: 0 | K57: 0 | L57: 0 | M57: 0 | N57: 0 | O57: 0 | P57: 0 | Q57: 0 | R57: 0 | S57: 0 | T57: 0
A58: =A57+1 -> 99 | B58: 47 | D58: 0 | E58: 0 | F58: 0 | G58: 0 | H58: 0 | I58: 0 | J58: 0 | K58: 0 | L58: 0 | M58: 0 | N58: 0 | O58: 0 | P58: 0 | Q58: 0 | R58: 0 | S58: 0 | T58: 0
A59: 100 | B59: 48 | D59: 0 | E59: 0 | F59: 0 | G59: 0 | H59: 0 | I59: 0 | J59: 0 | K59: 0 | L59: 0 | M59: 0 | N59: 0 | O59: 0 | P59: 0 | Q59: 0 | R59: 0 | S59: 0 | T59: 0
A60: 101 | B60: 49 | D60: 0 | E60: =INDIRECT(E$1&"!"&VLOOKUP($C$3,mdr,2,0)&$A60) -> 0 | F60: 0 | G60: 0 | H60: 0 | I60: 0 | J60: 0 | K60: 0 | L60: 0 | M60: 0 | N60: 0 | O60: 0 | P60: 0 | Q60: 0 | R60: 0 | S60: 0 | T60: 0
A61: 102 | B61: 50 | D61: 0 | E61: 0 | F61: 0 | G61: 0 | H61: 0 | I61: 0 | J61: 0 | K61: 0 | L61: 0 | M61: 0 | N61: 0 | O61: 0 | P61: 0 | Q61: 0 | R61: 0 | S61: 0 | T61: 0
A62: 103 | B62: 51 | D62: 0 | E62: 0 | F62: 0 | G62: 0 | H62: 0 | I62: 0 | J62: 0 | K62: 0 | L62: 0 | M62: 0 | N62: 0 | O62: 0 | P62: 0 | Q62: 0 | R62: 0 | S62: 0 | T62: 0
A63: 104 | B63: 52 | D63: 0 | E63: 0 | F63: 0 | G63: 0 | H63: 0 | I63: 0 | J63: 0 | K63: 0 | L63: 0 | M63: 0 | N63: 0 | O63: 0 | P63: 0 | Q63: 0 | R63: 0 | S63: 0 | T63: 0
A64: 105 | B64: 53 | D64: 0 | E64: 0 | F64: 0 | G64: 0 | H64: 0 | I64: 0 | J64: 0 | K64: 0 | L64: 0 | M64: 0 | N64: 0 | O64: 0 | P64: 0 | Q64: 0 | R64: 0 | S64: 0 | T64: 0
A65: =A64+1 -> 106 | B65: 54 | D65: 0 | E65: 0 | F65: 0 | G65: 0 | H65: 0 | I65: 0 | J65: 0 | K65: 0 | L65: 0 | M65: 0 | N65: 0 | O65: 0 | P65: 0 | Q65: 0 | R65: 0 | S65: 0 | T65: 0
A66: 107 | B66: 55 | D66: 0 | E66: 0 | F66: 0 | G66: 0 | H66: 0 | I66: 0 | J66: 0 | K66: 0 | L66: 0 | M66: 0 | N66: 0 | O66: 0 | P66: 0 | Q66: 0 | R66: 0 | S66: 0 | T66: 0
A67: 108 | B67: 56 | D67: =INDIRECT(D$1&"!"&VLOOKUP($C$3,mdr,2,0)&$A67) -> 0 | E67: 0 | F67: 0 | G67: 0 | H67: 0 | I67: 0 | J67: 0 | K67: 0 | L67: 0 | M67: 0 | N67: 0 | O67: 0 | P67: 0 | Q67: 0 | R67: 0 | S67: 0 | T67: 0
A68: 109 | B68: 57 | D68: 0 | E68: 0 | F68: 0 | G68: 0 | H68: 0 | I68: 0 | J68: 0 | K68: 0 | L68: 0 | M68: 0 | N68: 0 | O68: 0 | P68: 0 | Q68: 0 | R68: 0 | S68: 0
A69: 110 | B69: 58 | D69: 0 | E69: 0 | F69: 0 | G69: 0 | H69: 0 | I69: 0 | J69: 0 | K69: 0 | L69: 0 | M69: 0 | N69: 0 | O69: 0 | P69: 0 | Q69: 0 | R69: 0 | S69: 0
A70: 111 | B70: 59 | D70: 0 | E70: 0 | F70: 0 | G70: 0 | H70: 0 | I70: 0 | J70: 0 | K70: 0 | L70: 0 | M70: 0 | N70: 0 | O70: 0 | P70: 0 | Q70: 0 | R70: 0 | S70: 0
A71: 112 | B71: 60 | C71: =IF(ABS(SUM(D71:S71))>0.1,INDIRECT($D$1&"!f"&A71),"") ->  | D71: 0 | E71: 0 | F71: 0 | G71: 0 | H71: 0 | I71: 0 | J71: 0 | K71: 0 | L71: 0 | M71: 0 | N71: 0 | O71: 0 | P71: 0 | Q71: 0 | R71: 0 | S71: 0
A72: 113 | B72: 61 | D72: 0 | E72: 0 | F72: 0 | G72: 0 | H72: 0 | I72: 0 | J72: 0 | K72: 0 | L72: 0 | M72: 0 | N72: 0 | O72: 0 | P72: 0 | Q72: 0 | R72: 0 | S72: 0
A73: 114 | B73: 62 | D73: 0 | E73: 0 | F73: 0 | G73: 0 | H73: 0 | I73: 0 | J73: 0 | K73: 0 | L73: 0 | M73: 0 | N73: 0 | O73: 0 | P73: 0 | Q73: 0 | R73: 0 | S73: 0
A74: 29 | B74: 63 | D74: 0 | E74: 0 | F74: 0 | G74: 0 | H74: 0 | I74: 0 | J74: 0 | K74: 0 | L74: 0 | M74: 0 | N74: 0 | O74: 0 | P74: 0 | Q74: 0 | R74: 0 | S74: 0
A75: 30 | B75: 64 | D75: 0 | E75: 0 | F75: 0 | G75: 0 | H75: 0 | I75: 0 | J75: 0 | K75: 0 | L75: 0 | M75: 0 | N75: 0 | O75: 0 | P75: 0 | Q75: 0 | R75: 0 | S75: 0 | T75: 0
A76: =A73+1 -> 115 | B76: 65 | D76: 0 | E76: 0 | F76: 0 | G76: 0 | H76: 0 | I76: 0 | J76: 0 | K76: 0 | L76: 0 | M76: 0 | N76: 0 | O76: 0 | P76: 0 | Q76: 0 | R76: 0 | S76: 0 | T76: 0
A77: =A76+1 -> 116 | B77: 66 | D77: 0 | E77: =INDIRECT(E$1&"!"&VLOOKUP($C$3,mdr,2,0)&$A77) -> 0 | F77: 0 | G77: 0 | H77: 0 | I77: 0 | J77: 0 | K77: 0 | L77: 0 | M77: 0 | N77: 0 | O77: 0 | P77: 0 | Q77: 0 | R77: 0 | S77: 0 | T77: =SUM(D77:S77) -> 0
A78: 117 | B78: 67 | C78: =IF(ABS(SUM(D78:S78))>0.1,INDIRECT($D$1&"!f"&A78),"") ->  | D78: 0 | E78: 0 | F78: 0 | G78: 0 | H78: 0 | I78: 0 | J78: 0 | K78: 0 | L78: 0 | M78: 0 | N78: 0 | O78: 0 | P78: 0 | Q78: 0 | R78: 0 | S78: 0 | T78: 0
A79: 118 | B79: 68 | D79: 0 | E79: 0 | F79: 0 | G79: 0 | H79: 0 | I79: 0 | J79: 0 | K79: 0 | L79: 0 | M79: 0 | N79: 0 | O79: 0 | P79: 0 | Q79: 0 | R79: 0 | S79: 0 | T79: 0
A80: 119 | B80: 69 | D80: 0 | E80: 0 | F80: 0 | G80: 0 | H80: 0 | I80: 0 | J80: 0 | K80: 0 | L80: 0 | M80: 0 | N80: 0 | O80: 0 | P80: 0 | Q80: 0 | R80: 0 | S80: 0 | T80: 0
A81: 120 | B81: 70 | D81: 0 | E81: 0 | F81: 0 | G81: 0 | H81: 0 | I81: 0 | J81: 0 | K81: 0 | L81: 0 | M81: 0 | N81: 0 | O81: 0 | P81: 0 | Q81: 0 | R81: 0 | S81: 0 | T81: 0
A82: 121 | B82: 71 | D82: 0 | E82: 0 | F82: 0 | G82: 0 | H82: 0 | I82: 0 | J82: 0 | K82: 0 | L82: 0 | M82: 0 | N82: 0 | O82: 0 | P82: 0 | Q82: 0 | R82: 0 | S82: 0 | T82: 0
A83: 122 | B83: 72 | D83: 0 | E83: 0 | F83: 0 | G83: 0 | H83: 0 | I83: 0 | J83: 0 | K83: 0 | L83: 0 | M83: 0 | N83: 0 | O83: 0 | P83: 0 | Q83: 0 | R83: 0 | S83: 0 | T83: 0
A84: 123 | B84: 73 | D84: =INDIRECT(D$1&"!"&VLOOKUP($C$3,mdr,2,0)&$A84) -> 0 | E84: 0 | F84: 0 | G84: 0 | H84: 0 | I84: 0 | J84: 0 | K84: 0 | L84: 0 | M84: 0 | N84: 0 | O84: 0 | P84: 0 | Q84: 0 | R84: 0 | S84: 0 | T84: 0
A85: 124 | B85: 74 | D85: =INDIRECT(D$1&"!"&VLOOKUP($C$3,mdr,2,0)&$A85) -> 0 | E85: 0 | F85: 0 | G85: 0 | H85: 0 | I85: 0 | J85: 0 | K85: 0 | L85: 0 | M85: 0 | N85: 0 | O85: 0 | P85: 0 | Q85: 0 | R85: 0 | S85: 0 | T85: 0
A86: 125 | B86: 75 | D86: 0 | E86: =INDIRECT(E$1&"!"&VLOOKUP($C$3,mdr,2,0)&$A86) -> 0 | F86: 0 | G86: 0 | H86: 0 | I86: 0 | J86: 0 | K86: 0 | L86: 0 | M86: 0 | N86: 0 | O86: 0 | P86: 0 | Q86: 0 | R86: 0 | S86: 0 | T86: 0
A87: 51 | B87: 76 | D87: 0 | E87: =INDIRECT(E$1&"!"&VLOOKUP($C$3,mdr,2,0)&$A87) -> 0 | F87: 0 | G87: 0 | H87: 0 | I87: 0 | J87: 0 | K87: 0 | L87: 0 | M87: 0 | N87: 0 | O87: 0 | P87: 0 | Q87: 0 | R87: 0 | S87: 0 | T87: 0
A88: 49 | B88: 77 | C88: =IF(ABS(SUM(D88:S88))>0.1,INDIRECT($D$1&"!f"&A88),"") ->  | D88: 0
A89: 50 | B89: 78 | D89: 0
A90: 126 | B90: =B89+1 -> 79 | D90: 0 | E90: =INDIRECT(E$1&"!"&VLOOKUP($C$3,mdr,2,0)&$A90) -> 0 | F90: 0 | G90: 0 | H90: 0 | I90: 0 | J90: 0 | K90: 0 | L90: 0 | M90: 0 | N90: 0 | O90: 0 | P90: 0 | Q90: 0 | R90: 0 | S90: 0 | T90: =SUM(D90:S90) -> 0
B91: =IF(LEN(CONCATENATE($C$37,$C$38,$C$39))>0,"*)","") ->  | C91: =IF(LEN(CONCATENATE($C$37,$C$38,$C$39))>0,"Taksten beregnes som 1/1924 af alle faste månedsløndele (v. 100% BG) x 12 (bortset fra Gruppelivstillæg)","") -> 
B92: =IF(LEN(CONCATENATE(C62,C63))>0,"**)","") ->  | C92: =IF(LEN(CONCATENATE(C62,C63))>0,"(Der indbetales18% af summen af de 'pensionsgivende løndele', der overstiger skalatrin 33 (bhkl.ledere) eller 42 (lærere) - også selv om der ikke er aftalt supplerende pension.)","") -> 

Sheet Lonspec
A1: Ark: | C1: A | D1: fx: A (OBS: Brug IKKE mellemrum i arkfanenavne!) | F1: Gule felter herunder
A2: Måned: | C2: aug | D2: fx: AUG (Kun 3 bogstaver!) | F2: er kladdeområde, som
F3: ikke er med i udskriften
A4: 1 | C4: LØNSPECIFIKATION for | D4: =INDIRECT($C$1&"!"&VLOOKUP($C$2,mdr,2,0)&A4) -> A
A5: 2 | C5: LØNPERIODE: | D5: AUG 24 | I5: AUG | J5: g
A6: 11 | C6: BESKÆFTIGELSESGRAD: | D6: 0 | I6: SEP | J6: h
A7: 3 | C7: DEL AF MÅNED: | D7: 1 | I7: OKT | J7: i
A8: 7 | C8: SKOLENS STEDTILLÆGSOMRÅDE: | D8: 0 | I8: NOV | J8: j
A9: 12 | C9: ÅRLIGT UNDERVISNINGSTIMETAL: | D9: 0 | I9: DEC | J9: k
A10: 4 | C10: LØNTRIN og PENSIONSORDNING: | D10: =INDIRECT($C$1&"!"&VLOOKUP($C$2,mdr,2,0)&A10)&"; "&IF(LEFT(INDIRECT($C$1&"!G5"))="L","LP","Tjenestemand, trin "&RIGHT(INDIRECT($C$1&"!G5"),2)) -> ; Tjenestemand, trin | I10: JAN | J10: l
B11: Lin | C11: ="'Tomme' linjer kan være skjult i udskriften" -> 'Tomme' linjer kan være skjult i udskriften | I11: FEB | J11: m
A12: 53 | B12: 1 | C12: =IF(E12<>0,INDIRECT($C$1&"!f"&A12),"") ->  | D12: =IF(E12<>0,INDIRECT($C$1&"!"&VLOOKUP($C$2,mdr,2,0)&A12+114),"") ->  | E12: =INDIRECT($C$1&"!"&VLOOKUP($C$2,mdr,2,0)&A12) -> 0 | H12: =INDIRECT($C$1&"!f"&A12) -> Basisløn | I12: MAR | J12: n
A13: =A12+1 -> 54 | B13: =B12+1 -> 2 | E13: 0 | H13: =INDIRECT($C$1&"!f"&A13) -> Områdetillæg | I13: APR | J13: o
A14: =A13+1 -> 55 | B14: =B13+1 -> 3 | E14: 0 | H14: Undervisningstillæg | I14: MAJ | J14: p
A15: 56 | B15: 4 | E15: 0 | H15: Souscheftillæg | I15: JUN | J15: q
A16: 57 | B16: 5 | E16: 0 | G16: =F16*18% -> 0 | H16: Funktionstillæg 1 | I16: JUL | J16: r
A17: 58 | B17: 6 | E17: 0 | G17: =G16/3 -> 0 | H17: Funktionstillæg 2
A18: 59 | B18: 7 | E18: 0 | H18: Funktionstillæg 3
A19: 60 | B19: 8 | E19: 0 | H19: Kvalifikationstillæg 1
A20: 61 | B20: 9 | E20: 0 | H20: Kvalifikationstillæg 2
A21: 62 | B21: 10 | E21: 0 | H21: Kvalifikationstillæg 3
A22: 63 | B22: 11 | E22: 0 | H22: Trin 4-tillæg beregnet 1. aug 2013
A23: 64 | B23: 12 | E23: 0 | H23: Udligningstillæg beregnet 1. aug 2004
A24: 65 | B24: 13 | E24: 0 | G24: =F24/160.33 -> 0 | H24: OK08-tillæg
A25: 66 | B25: 14 | E25: 0 | H25: OK13-tillæg
A26: 67 | B26: 15 | E26: 0 | H26: OK18-tillæg
A27: 68 | B27: 16 | E27: 0 | H27: Fast lokalaftalt godtgørelse
A28: =A27+1 -> 69 | B28: =B27+1 -> 17 | E28: 0 | H28: Gruppelivstillæg
A29: 70 | B29: =B28+1 -> 18 | E29: =INDIRECT($C$1&"!"&VLOOKUP($C$2,mdr,2,0)&A29) -> 0 | G29: =F29*18% -> 0 | H29: Lønfradrag for ikke optjent ferie mv. Pensionsgiv.
A30: 71 | B30: =B29+1 -> 19 | E30: 0 | G30: =G29/3 -> 0 | H30: Lønfradrag for ikke optjent ferie mv. ej pensionsg.
A31: 72 | B31: =B30+1 -> 20 | C31: =IF(E31<>0,INDIRECT($C$1&"!f"&A31),"") ->  | E31: =INDIRECT($C$1&"!"&VLOOKUP($C$2,mdr,2,0)&A31) -> 0 | H31: Feriedifference, pensionsgivende
A32: 73 | B32: =B31+1 -> 21 | E32: 0 | H32: Feriedifference, ikke pensionsgivende
A33: 74 | B33: =B32+1 -> 22 | D33: =IF(E33<>0,INDIRECT($C$1&"!"&VLOOKUP($C$2,mdr,2,0)&A33+114),"") ->  | E33: =INDIRECT($C$1&"!"&VLOOKUP($C$2,mdr,2,0)&A33) -> 0
A34: 75 | B34: 23 | D34: =IF(E34<>0,INDIRECT($C$1&"!"&VLOOKUP($C$2,mdr,2,0)&A34+114),"") ->  | E34: 0 | H34: Skattefri km.godtgørelse, høj sats
A35: 76 | B35: 24 | E35: 0 | H35: Skattefri time/dagpenge
A36: 77 | B36: 25 | E36: =INDIRECT($C$1&"!"&VLOOKUP($C$2,mdr,2,0)&A36) -> 0 | H36: Skattefri jubilæumsgratiale
A37: 78 | B37: 26 | E37: 0 | H37: Lejrskoletillæg på hverdage
A38: 79 | B38: 27 | C38: =IF(E38<>0,INDIRECT($C$1&"!f"&A38),"") ->  | E38: 0 | H38: Lejrskoletillæg lørdage, søndage og helligdage
A39: 80 | B39: 28 | E39: 0 | H39: SPS-tillæg og tillæg for uv. af 2-sprogede
A40: 81 | B40: 29 | C40: =IF(E40<>0,INDIRECT($C$1&"!f"&A40),"") ->  | D40: =IF(E40<>0,INDIRECT($C$1&"!"&VLOOKUP($C$2,mdr,2,0)&A40+115),"") ->  | E40: 0 | H40: 25%-tillæg *)
A41: 82 | B41: 30 | D41: =IF(E41<>0,INDIRECT($C$1&"!"&VLOOKUP($C$2,mdr,2,0)&A41+115),"") ->  | E41: 0
A42: 83 | B42: 31 | D42: =IF(E42<>0,INDIRECT($C$1&"!"&VLOOKUP($C$2,mdr,2,0)&A42+115),"") ->  | E42: 0 | G42: =SUM((E12:E28)+E47)/160.33 -> 0 | H42: Weekendtimer til udbetaling *)
A43: 84 | B43: 32 | D43: =IF(E43<>0,INDIRECT($C$1&"!"&VLOOKUP($C$2,mdr,2,0)&A43+111),"") ->  | E43: =INDIRECT($C$1&"!"&VLOOKUP($C$2,mdr,2,0)&A43) -> 0 | F43: =E43*17.3%/3 -> 0 | G43: =G47/160.33 -> 0 | H43: Eksaminator eller censor tillæg
A44: 85 | B44: 33 | E44: =INDIRECT($C$1&"!"&VLOOKUP($C$2,mdr,2,0)&A44) -> 0 | H44: Skattepligtig jubilæumsgratiale
A45: 86 | B45: 34 | E45: =IF(ISNUMBER(INDIRECT($C$1&"!"&VLOOKUP($C$2,mdr,2,0)&A45)),INDIRECT($C$1&"!"&VLOOKUP($C$2,mdr,2,0)&A45),"") -> 0 | G45: =SUM(E12:E32)+E37+E38+E39+E40+E41+E42+E43+E46+E47 -> 0 | H45: Ferietillæg
A46: 87 | B46: 35 | E46: =INDIRECT($C$1&"!"&VLOOKUP($C$2,mdr,2,0)&A46) -> 0 | H46: Andre engangsudbetalinger iflg. specifikation
A47: 88 | B47: 36 | C47: =IF($E$47<>0,INDIRECT($C$1&"!f"&$A$47),"") ->  | E47: 0 | H47: Seniorbonus 0,8% af fastpåregnelige løndele - pensionsgivede
A48: 89 | B48: 37 | E48: 0 | H48: Bruttoløn (ekskl. pensionstillæg og ATP)
A49: 90 | B49: 38 | D49: =IF(E49<>0,INDIRECT($C$1&"!"&VLOOKUP($C$2,mdr,2,0)&A49+112),"") ->  | E49: 0 | H49: Pensionstillæg basisløn
A50: 91 | B50: =B49+1 -> 39 | E50: 0 | H50: Pensionstillæg undervisningstillæg
A51: 92 | B51: =B50+1 -> 40 | E51: 0 | H51: Pensionstillæg souscheftillæg
A52: 93 | B52: 41 | E52: 0 | H52: Pensionstillæg Funktionstillæg 1
A53: 94 | B53: 42 | E53: 0 | H53: Pensionstillæg Funktionstillæg 2
A54: 95 | B54: 43 | E54: 0 | H54: Pensionstillæg Funktionstillæg 3
A55: 96 | B55: 44 | E55: 0 | H55: Pensionstillæg Kvalifikationstillæg 1
A56: 97 | B56: 45 | E56: 0 | H56: Pensionstillæg Kvalifikationstillæg 2
A57: 98 | B57: 46 | E57: 0 | H57: Pensionstillæg Kvalifikationstillæg 3
A58: 99 | B58: 47 | E58: 0 | H58: Pensionstillæg af trin 4-tillæg
A59: 100 | B59: 48 | E59: 0 | H59: Pensionstillæg af udligningstillæg
A60: 101 | B60: 49 | E60: 0 | H60: Pensionstillæg af OK13-tillæg
A61: 102 | B61: 50 | E61: =INDIRECT($C$1&"!"&VLOOKUP($C$2,mdr,2,0)&A61) -> 0 | H61: Pensionstillæg af OK18-tillæg
A62: 103 | B62: 51 | E62: =INDIRECT($C$1&"!"&VLOOKUP($C$2,mdr,2,0)&A62) -> 0
A63: 104 | B63: 52 | E63: 0 | H63: Pensionstillæg af engangstillæg
A64: 105 | B64: 53 | E64: 0 | H64: Supplerende pensionstillæg på 18% **)
A65: 106 | B65: 54 | E65: 0 | H65: Pensionstillæg af engangsvederlag
A66: 107 | B66: 55 | D66: =IF(E66<>0,INDIRECT($C$1&"!"&VLOOKUP($C$2,mdr,2,0)&A66+113),"") ->  | E66: 0 | H66: Pensionstillæg af feriedifference
A67: 108 | B67: 56 | E67: 0
A68: 109 | B68: 57 | E68: 0 | H68: Pension af seniorbonus
A69: 110 | B69: 58 | E69: 0 | H69: Pensionstillæg i alt
A70: 111 | B70: 59 | C70: =IF(E70<>0,INDIRECT($C$1&"!f"&A70),"") ->  | D70: =IF(E70<>0,INDIRECT($C$1&"!"&VLOOKUP($C$2,mdr,2,0)&A70+112),"") ->  | E70: =INDIRECT($C$1&"!"&VLOOKUP($C$2,mdr,2,0)&A70) -> 0 | H70: Egetbidrag til ATP
A71: 112 | B71: =B70+1 -> 60 | D71: =IF(E71<>0,INDIRECT($C$1&"!"&VLOOKUP($C$2,mdr,2,0)&A71+112),"") ->  | E71: 0 | H71: AMB-grundlag
A72: 113 | B72: 61 | D72: =IF(E72<>0,INDIRECT($C$1&"!"&VLOOKUP($C$2,mdr,2,0)&A72+112),"") ->  | E72: =INDIRECT($C$1&"!"&VLOOKUP($C$2,mdr,2,0)&A72) -> 0 | H72: AM-bidrag
A73: 114 | B73: 62 | D73: =IF(E73<>0,INDIRECT($C$1&"!"&VLOOKUP($C$2,mdr,2,0)&A73+112),"") ->  | E73: =INDIRECT($C$1&"!"&VLOOKUP($C$2,mdr,2,0)&A73) -> 0 | H73: A-indkomst
A74: 29 | B74: 63 | E74: 0 | H74: Skatteprocent
A75: 30 | B75: =B74+1 -> 64 | E75: 0 | H75: Månedligt skattefradrag
A76: 115 | B76: =B75+1 -> 65 | D76: =IF(E76<>0,INDIRECT($C$1&"!"&VLOOKUP($C$2,mdr,2,0)&A76+112),"") ->  | E76: 0 | H76: Skattegrundlag
A77: 116 | B77: 66 | E77: 0 | H77: Skat
A78: =A77+1 -> 117 | B78: 67 | E78: 0 | H78: =INDIRECT($C$1&"!f"&A78) -> Feriegodtgørelsesgrundlag
A79: =A78+1 -> 118 | B79: 68 | E79: 0 | H79: Feriegodtgørelsesgrundlag juni-juli
A80: 119 | B80: 69 | E80: =INDIRECT($C$1&"!"&VLOOKUP($C$2,mdr,2,0)&A80) -> 0 | H80: Egetbidrag til LP
A81: 120 | B81: 70 | E81: 0 | H81: Arbejdsgiverbidrag til LP
A82: 121 | B82: 71 | E82: 0 | H82: Arbejdsgiverbidrag til ATP
A83: 122 | B83: 72 | E83: 0 | H83: Skolens samlede indbetaling til LP
A84: 123 | B84: 73 | E84: 0
A85: 124 | B85: 74 | E85: 0 | H85: Skolens indbetaling til tjenestemandspension
A86: 125 | B86: 75 | E86: 0 | H86: Indbetaling til Gruppeliv
A87: 51 | B87: =B86+1 -> 76 | C87: =IF(E87<>0,INDIRECT($C$1&"!f"&A87),"") ->  | D87: =IF(E87<>0,"Fradrages i den disponible løn","") ->  | E87: =INDIRECT($C$1&"!"&VLOOKUP($C$2,mdr,2,0)&A87) -> 0 | H87: FSL-kontingent
A88: 49 | B88: 76 | C88: =IF(E88<>0,INDIRECT($C$1&"!f"&A88),"") ->  | D88: =IF(E88<>0,"Fradrages i den disponible løn","") ->  | E88: =INDIRECT($C$1&"!"&VLOOKUP($C$2,mdr,2,0)&A88) -> 0
A89: 50 | B89: 77 | C89: =IF(E89<>0,INDIRECT($C$1&"!f"&A89),"") ->  | D89: =IF(E89<>0,"Fradrages i den disponible løn","") ->  | E89: =INDIRECT($C$1&"!"&VLOOKUP($C$2,mdr,2,0)&A89) -> 0
A90: 126 | B90: 78 | C90: =IF(E90<>0,INDIRECT($C$1&"!f"&A90),"") ->  | E90: =INDIRECT($C$1&"!"&VLOOKUP($C$2,mdr,2,0)&A90) -> 0
B91: =IF(LEN(CONCATENATE($C$38,$C$39,$C$40))>0,"*)","") ->  | C91: =IF(LEN(CONCATENATE($C$38,$C$39,$C$40))>0,"Taksten beregnes som 1/1924 af alle faste månedsløndele (v. 100% BG) x 12 (bortset fra Gruppelivstillæg)","") -> 
B92: =IF(LEN(CONCATENATE(C65,C66))>0,"**)","") ->  | C92: =IF(LEN(CONCATENATE(C65,C66))>0,"(Der indbetales18% af summen af de 'pensionsgivende løndele', der overstiger skalatrin 33 (bhkl.ledere) eller 42 (lærere) - også selv om der ikke er aftalt supplerende pension.)","") -> 

Sheet A
A1: 2023/2024 | B1: 1 | C1: Pensionsg. | D1: BG- afh. | E1: Regu- leret | F1: Lønberegning for: (navn eller initialer) | G1: A | H1: =G1 -> A | I1: =H1 -> A | J1: A | K1: A | L1: A | M1: A | N1: A | O1: A | P1: A | Q1: A | R1: A | T1: A | U1: =T1 -> A | V1: =U1 -> A | W1: =V1 -> A | X1: =W1 -> A | Y1: =X1 -> A | Z1: =Y1 -> A | AA1: =Z1 -> A | AB1: =AA1 -> A | AC1: =AB1 -> A | AD1: =AC1 -> A | AE1: =AD1 -> A | AF1: Udfyld gule felter (alle forudfyldte tal i gule felter er eksempler)
A2: jan-juli | B2: =B1+1 -> 2 | F2: Måned | G2: ="AUG "&MID($A$1,3,2)+1 -> AUG 24 | H2: ="SEP "&MID($A$1,3,2)+1 -> SEP 24 | I2: ="OKT "&MID($A$1,3,2)+1 -> OKT 24 | J2: ="NOV "&MID($A$1,3,2)+1 -> NOV 24 | K2: ="DEC "&MID($A$1,3,2)+1 -> DEC 24 | L2: ="JAN "&MID($A$1,3,2)+2 -> JAN 25 | M2: ="FEB "&MID($A$1,3,2)+2 -> FEB 25 | N2: ="MAR "&MID($A$1,3,2)+2 -> MAR 25 | O2: ="APR "&MID($A$1,3,2)+2 -> APR 25 | P2: ="MAJ "&MID($A$1,3,2)+2 -> MAJ 25 | Q2: ="JUN "&MID($A$1,3,2)+2 -> JUN 25 | R2: ="JUL "&MID($A$1,3,2)+2 -> JUL 25 | T2: ="AUG "&MID($A$1,3,2)+1 -> AUG 24 | U2: ="SEP "&MID($A$1,3,2)+1 -> SEP 24 | V2: ="OKT "&MID($A$1,3,2)+1 -> OKT 24 | W2: ="NOV "&MID($A$1,3,2)+1 -> NOV 24 | X2: ="DEC "&MID($A$1,3,2)+1 -> DEC 24 | Y2: ="JAN "&MID($A$1,3,2)+2 -> JAN 25 | Z2: ="FEB "&MID($A$1,3,2)+2 -> FEB 25 | AA2: ="MAR "&MID($A$1,3,2)+2 -> MAR 25 | AB2: ="APR "&MID($A$1,3,2)+2 -> APR 25 | AC2: ="MAJ "&MID($A$1,3,2)+2 -> MAJ 25 | AD2: ="JUN "&MID($A$1,3,2)+2 -> JUN 25 | AE2: ="JUL "&MID($A$1,3,2)+2 -> JUL 25 | AF2: ansat d.
A3: For at lønbereg-ningsaket kan beregne korrekt ferietillæg og feriepenge-beregnings-grundlag, udfyldes først celle A114 og celle A124. Læs kommen-tarerne til de to celler. | B3: 3 | F3: Del af måned antal kalenderdage/månedens kalenderdage | G3: 1 | H3: 1 | I3: 1 | J3: 1 | K3: 1 | L3: 1 | M3: 1 | N3: 1 | O3: 1 | P3: 1 | Q3: 1 | R3: 1 | T3: 1 | U3: 1 | V3: 1 | W3: 1 | X3: 1 | Y3: 1 | Z3: 1 | AA3: 1 | AB3: 1 | AC3: 1 | AD3: 1 | AE3: 1 | AF3: Hvis ansat 10 oktober: 21/31 Hvis fratrådt 15. april 12: 15/30
B4: 4 | C4: sæt 'x' | D4: sæt 'x' | E4: sæt 'x' | F4: Basisløntrin, Læ1 - Læ4, Bh1 - Bh4 | H4: =G4 -> 0 | I4: =H4 -> 0 | J4: =I4 -> 0 | K4: 0 | L4: 0 | M4: 0 | N4: 0 | O4: 0 | P4: 0 | Q4: 0 | R4: 0 | T4: =G4 -> 0 | U4: 0 | V4: 0 | W4: 0 | X4: 0 | Y4: 0 | Z4: 0 | AA4: 0 | AB4: 0 | AC4: 0 | AD4: 0 | AE4: 0 | AF4: basisløn for lærer (Læ) eller bhkl.leder (Bh)
B5: =B4+1 -> 5 | F5: Pensionsordning | H5: =$G5 -> 0 | I5: =$G5 -> 0 | J5: 0 | K5: 0 | L5: 0 | M5: 0 | N5: 0 | O5: 0 | P5: 0 | Q5: 0 | R5: 0 | T5: 0 | U5: 0 | V5: 0 | W5: 0 | X5: 0 | Y5: 0 | Z5: 0 | AA5: 0 | AB5: 0 | AC5: 0 | AD5: 0 | AE5: 0 | AF5: Pxx=P25, Exx=Efterlønskassen, L= Lærernes Pension (xx=skalatrin) fx skalatrin 40 i P25: P40
B6: 6 | F6: Procentregulering +1 | G6: 1.228067 | H6: =G6 -> 1.228067 | I6: =H6 -> 1.228067 | J6: 1.228067 | K6: 1.228067 | L6: 1.228067 | M6: 1.228067 | N6: 1.228067 | O6: 1.228067 | P6: =O6 -> 1.228067 | Q6: =P6 -> 1.228067 | R6: =Q6 -> 1.228067 | T6: =G6 -> 1.228067 | U6: =H6 -> 1.228067 | V6: 1.228067 | W6: 1.228067 | X6: 1.228067 | Y6: 1.228067 | Z6: 1.228067 | AA6: 1.228067 | AB6: 1.228067 | AC6: 1.228067 | AD6: 1.228067 | AE6: 1.228067 | AF6: ="se i løntabel for april "&LEFT($A$1,4)+2&", når den udkommer" -> se i løntabel for april 2025, når den udkommer
B7: 7 | F7: Skolens stedtillægsområde | H7: =$G7 -> 0 | I7: 0 | J7: 0 | K7: 0 | L7: 0 | M7: 0 | N7: 0 | O7: 0 | P7: 0 | Q7: 0 | R7: 0 | T7: 0 | U7: 0 | V7: 0 | W7: 0 | X7: 0 | Y7: 0 | Z7: 0 | AA7: 0 | AB7: 0 | AC7: 0 | AD7: 0 | AE7: 0 | AF7: skolens stedtillægsområde 2-6
F8: Har den ansatte orlov uden løn men med pension? | G8: Nej | H8: =G8 -> Nej | I8: =H8 -> Nej | J8: =I8 -> Nej | K8: Nej | L8: Nej | M8: Nej | N8: Nej | O8: Nej | P8: Nej | Q8: Nej | R8: Nej | T8: Nej | U8: Nej | V8: Nej | W8: Nej | X8: Nej | Y8: Nej | Z8: Nej | AA8: Nej | AB8: Nej | AC8: Nej | AD8: Nej | AE8: Nej | AG8: Nej
F9: Vælg her om den ansatte har ret til seniorbonus. | G9: Nej | H9: =G9 -> Nej | I9: =H9 -> Nej | J9: Nej | K9: Nej | L9: Nej | M9: Nej | N9: Nej | O9: Nej | P9: Nej | Q9: Nej | R9: Nej | T9: Ja | U9: Ja | V9: Ja | W9: Ja | X9: Ja | Y9: Ja | Z9: Ja | AA9: Ja | AB9: Ja | AC9: Ja | AD9: Ja | AE9: Ja | AG9: Ja
B10: =B7+1 -> 8 | F10: Beskæftigelsesgrad den ansatte lønnes med aktuel. 100% = 1 - 85% = 0,85 | H10: =G10 -> 0 | I10: 0 | J10: =I10 -> 0 | K10: =J10 -> 0 | L10: =K10 -> 0 | M10: =L10 -> 0 | N10: =M10 -> 0 | O10: =N10 -> 0 | P10: =O10 -> 0 | Q10: =P10 -> 0 | R10: =Q10 -> 0 | T10: =T11 -> 0 | U10: =U11 -> 0 | V10: 0 | W10: 0 | X10: 0 | Y10: 0 | Z10: 0 | AA10: 0 | AB10: 0 | AC10: 0 | AD10: 0 | AE10: 0 | AF10: iflg. ansættelsesbrev eller pluslønsaftale (IKKE løbende overtid!)
F11: Beskæftigelsesgrad der skal beregnes pension af. Hvis ikke brug af seniorordning/delvis forældreorlov er den det samme som række 9. | H11: 0 | I11: =H11 -> 0 | J11: =I11 -> 0 | K11: 0 | L11: =K11 -> 0 | M11: 0 | N11: 0 | O11: 0 | P11: 0 | Q11: 0 | R11: 0 | T11: 0 | U11: =H11 -> 0 | V11: =I11 -> 0 | W11: =J11 -> 0 | X11: =K11 -> 0 | Y11: =L11 -> 0 | Z11: =M11 -> 0 | AA11: =N11 -> 0 | AB11: =O11 -> 0 | AC11: =P11 -> 0 | AD11: =Q11 -> 0 | AE11: =R11 -> 0
B12: =B10+1 -> 9 | F12: Undervisningstimer årligt | H12: =G12 -> 0 | I12: =H12 -> 0 | J12: =I12 -> 0 | K12: 0 | L12: =K12 -> 0 | M12: 0 | N12: 0 | O12: 0 | P12: 0 | Q12: 0 | R12: 0 | T12: =IF(G12>0,G12/G10*G11,0) -> 0 | U12: 0 | V12: 0 | W12: 0 | X12: 0 | Y12: 0 | Z12: 0 | AA12: 0 | AB12: 0 | AC12: 0 | AD12: 0 | AE12: 0 | AF12: Iflg opgaveoversigt. SKAL omregnes til årligt timetal v. beskæftigelse under 1 år! (Ændres i øvrigt normalt ikke i normperioden)
B13: 10 | F13: Årligt souscheftillæg i grundbeløb, skriv : 19.300 . | H13: =G13 -> 0 | I13: =H13 -> 0 | J13: 0 | K13: 0 | L13: 0 | M13: 0 | N13: 0 | O13: 0 | P13: 0 | Q13: 0 | R13: 0 | T13: 0 | U13: 0 | V13: 0 | W13: 0 | X13: 0 | Y13: 0 | Z13: 0 | AA13: 0 | AB13: 0 | AC13: 0 | AD13: 0 | AE13: 0 | AF13: altid pensionsgivende i LP
B14: 11 | C14: x | E14: x | F14: Funktionsstillæg, årligt grundbeløb | H14: =G14 -> 0 | I14: 0 | J14: 0 | K14: 0 | L14: 0 | M14: 0 | N14: 0 | O14: 0 | P14: 0 | Q14: 0 | R14: 0 | T14: 0 | U14: 0 | V14: 0 | W14: 0 | X14: 0 | Y14: 0 | Z14: 0 | AA14: 0 | AB14: 0 | AC14: 0 | AD14: 0 | AE14: 0 | AF14: pensionsgivende for lærere i LP
B15: =B14+1 -> 12 | C15: x | E15: x | F15: Funktionsstillæg, årligt grundbeløb | H15: 0 | I15: =H15 -> 0 | J15: 0 | K15: 0 | L15: 0 | M15: 0 | N15: 0 | O15: 0 | P15: 0 | Q15: 0 | R15: 0 | T15: 0 | U15: 0 | V15: 0 | W15: 0 | X15: 0 | Y15: 0 | Z15: 0 | AA15: 0 | AB15: 0 | AC15: 0 | AD15: 0 | AE15: 0 | AF15: pensionsgivende for lærere i LP
B16: 13 | C16: x | E16: x | F16: Funktionsstillæg, årligt grundbeløb | H16: 0 | I16: 0 | J16: 0 | K16: =J16 -> 0 | L16: =K16 -> 0 | M16: =L16 -> 0 | N16: =M16 -> 0 | O16: =N16 -> 0 | P16: =O16 -> 0 | Q16: =P16 -> 0 | R16: =Q16 -> 0 | T16: 0 | U16: 0 | V16: 0 | W16: 0 | X16: 0 | Y16: 0 | Z16: 0 | AA16: 0 | AB16: 0 | AC16: 0 | AD16: 0 | AE16: 0 | AF16: pensionsgivende for lærere i LP
B17: 14 | C17: x | D17: x | E17: x | F17: Kval.tillæg, årligt grundbeløb | H17: 0 | I17: 0 | J17: 0 | K17: =J17 -> 0 | L17: =K17 -> 0 | M17: =L17 -> 0 | N17: =M17 -> 0 | O17: =N17 -> 0 | P17: =O17 -> 0 | Q17: =P17 -> 0 | R17: =Q17 -> 0 | T17: 0 | U17: 0 | V17: 0 | W17: 0 | X17: 0 | Y17: 0 | Z17: 0 | AA17: 0 | AB17: 0 | AC17: 0 | AD17: 0 | AE17: 0 | AF17: pensionsgivende for lærere i LP
B18: 15 | C18: x | D18: x | E18: x | F18: Kval.tillæg, årligt grundbeløb | H18: 0 | I18: 0 | J18: 0 | K18: 0 | L18: 0 | M18: 0 | N18: 0 | O18: 0 | P18: 0 | Q18: 0 | R18: 0 | T18: 0 | U18: 0 | V18: 0 | W18: 0 | X18: 0 | Y18: 0 | Z18: 0 | AA18: 0 | AB18: 0 | AC18: 0 | AD18: 0 | AE18: 0 | AF18: pensionsgivende for lærere i LP
B19: =B18+1 -> 16 | C19: x | D19: x | E19: x | F19: Kval.tillæg, årligt grundbeløb | H19: 0 | I19: 0 | J19: 0 | K19: 0 | L19: 0 | M19: 0 | N19: 0 | O19: 0 | P19: 0 | Q19: 0 | R19: 0 | T19: 0 | U19: 0 | V19: 0 | W19: 0 | X19: 0 | Y19: 0 | Z19: 0 | AA19: 0 | AB19: 0 | AC19: 0 | AD19: 0 | AE19: 0 | AF19: pensionsgivende for lærere i LP
B20: =B19+1 -> 17 | F20: Trin 4-tillæg beregnet pr. 1. aug 2013 årligt grundbeløb v. 100% BG | H20: 0 | I20: =H20 -> 0 | J20: 0 | K20: 0 | L20: 0 | M20: 0 | N20: 0 | O20: 0 | P20: 0 | Q20: 0 | R20: 0 | T20: 0 | U20: 0 | V20: 0 | W20: 0 | X20: 0 | Y20: 0 | Z20: 0 | AA20: 0 | AB20: 0 | AC20: 0 | AD20: 0 | AE20: 0 | AF20: pensionsgivende for lærere i LP – kun for lærere, der var ansat på nærværende skole før 1. aug 04
B21: =B20+1 -> 18 | F21: Udligningstillæg, beregnet pr. 1. aug 04 årligt grundbeløb v. 100% BG | H21: 0 | I21: 0 | J21: 0 | K21: 0 | L21: 0 | M21: 0 | N21: 0 | O21: 0 | P21: 0 | Q21: 0 | R21: 0 | T21: 0 | U21: 0 | V21: 0 | W21: 0 | X21: 0 | Y21: 0 | Z21: 0 | AA21: 0 | AB21: 0 | AC21: 0 | AD21: 0 | AE21: 0 | AF21: pensionsgivende for lærere i LP. Kan ikke gives samtidig med trin 4-tillæg
B22: 19 | F22: Suppl. pension i LP JA/NEJ | H22: =G22 -> 0 | I22: 0 | J22: 0 | K22: 0 | L22: 0 | M22: 0 | N22: 0 | O22: 0 | P22: 0 | Q22: 0 | R22: 0 | T22: 0 | U22: 0 | V22: 0 | W22: 0 | X22: 0 | Y22: 0 | Z22: 0 | AA22: 0 | AB22: 0 | AC22: 0 | AD22: 0 | AE22: 0 | AF22: Hvis 'JA' beregnes for alle pensionsgivende beløb pension i LP for personer med tjenestemandspension (17,3% og 18% over visse beløb)
B23: 20 | C23: x | F23: Lokalaftalt fast ulempegodtgørelse (Tast mdr. beløb i nutidsværdi). | H23: =G23 -> 0 | I23: 0 | J23: 0 | K23: 0 | L23: 0 | M23: 0 | N23: 0 | O23: =N23 -> 0 | P23: 0 | Q23: 0 | R23: 0 | T23: 0 | U23: 0 | V23: 0 | W23: 0 | X23: 0 | Y23: 0 | Z23: 0 | AA23: 0 | AB23: 0 | AC23: 0 | AD23: 0 | AE23: 0 | AF23: I stedet for aftentillæg mv., iflg lokalaftale
B24: 21 | F24: Planlagte feriedage | G24: 2 | H24: 0 | I24: 5 | J24: 0 | K24: 0 | L24: 0 | M24: 0 | N24: 0 | O24: =N24 -> 0 | P24: 0 | Q24: 0 | R24: 18 | T24: 2 | U24: 0 | V24: 5 | W24: 0 | X24: 0 | Y24: 0 | Z24: 0 | AA24: 0 | AB24: 0 | AC24: 0 | AD24: 0 | AE24: 18 | AF24: Organisationsaftalen: 5 dage uge 42, 18 dage juli og 2 dage aug.
B25: 22 | F25: .. heraf antal feriedage, hvortil der ikke er optjent ferieret | H25: 0 | I25: 0 | J25: 0 | K25: 0 | L25: 0 | M25: 0 | N25: 0 | O25: 0 | P25: 0 | Q25: 0 | R25: 0 | T25: 0 | U25: 0 | V25: 0 | W25: 0 | X25: 0 | Y25: 0 | Z25: 0 | AA25: 0 | AB25: 0 | AC25: 0 | AD25: 0 | AE25: 0 | AF25: ="Se pjecen ""Ferievejledning "&MID($A$1,1,4)+1&"""" -> Se pjecen "Ferievejledning 2024"
B26: 23 | F26: Evt. feriedifference med pensionsret. Beregnes i særligt skema | H26: 0 | I26: 0 | J26: 0 | K26: 0 | L26: 0 | M26: 0 | N26: 0 | O26: 0 | P26: 0 | Q26: 0 | R26: 0 | T26: 0 | U26: 0 | V26: 0 | W26: 0 | X26: 0 | Y26: 0 | Z26: 0 | AA26: 0 | AB26: 0 | AC26: 0 | AD26: 0 | AE26: 0 | AF26: Beregnes i fanen "feriedifference"
B27: 24 | F27: Evt. feriedifference ikke pensionsgivende. Beregnes i særligt skema. | H27: 0 | I27: 0 | J27: 0 | K27: 0 | L27: 0 | M27: 0 | N27: 0 | O27: 0 | P27: 0 | Q27: 0 | R27: 0 | T27: 0 | U27: 0 | V27: 0 | W27: 0 | X27: 0 | Y27: 0 | Z27: 0 | AA27: 0 | AB27: 0 | AC27: 0 | AD27: 0 | AE27: 0
B28: 25 | F28: Egenbetalte fridage | T28: 0 | U28: 0 | V28: 0 | W28: 0 | X28: 0 | Y28: 0 | Z28: 0 | AA28: 0 | AB28: 0 | AC28: 0 | AD28: 0 | AE28: 0 | AF28: Løn- og pensionsfradrag beregnes i lin 64, 65 og 94
B29: 26 | F29: Skatteprocent | H29: =G29 -> 0 | I29: =H29 -> 0 | J29: 0 | K29: 0 | M29: 0 | N29: 0 | O29: 0 | P29: 0 | Q29: 0 | R29: 0 | T29: 0 | U29: 0 | V29: 0 | W29: 0 | X29: 0 | Y29: 0 | Z29: 0 | AA29: 0 | AB29: 0 | AC29: 0 | AD29: 0 | AE29: 0 | AF29: Skriv ikke procenttegnet, fx 42% - skriv 42
B30: 27 | C30: km- tak-ster | D30: =LEFT($A$1,4)+1 -> 2024 | E30: =LEFT($A$1,4)+2 -> 2025 | F30: Månedligt skattefradrag | H30: =G30 -> 0 | I30: 0 | J30: 0 | K30: 0 | M30: 0 | N30: 0 | O30: 0 | P30: 0 | Q30: 0 | R30: 0 | T30: 0 | U30: 0 | V30: 0 | W30: 0 | X30: 0 | Y30: 0 | Z30: 0 | AA30: 0 | AB30: 0 | AC30: 0 | AD30: 0 | AE30: 0
B31: 28 | D31: 2.23 | E31: 0 | F31: Km.godtgørelse, lav sats (skattefri), antal km: | T31: 0 | U31: 0 | V31: 0 | W31: 0 | X31: 0 | Y31: 0 | Z31: 0 | AA31: 0 | AB31: 0 | AC31: 0 | AD31: 0 | AE31: 0 | AF31: Se løntabel
B32: 29 | D32: 3.79 | E32: 0 | F32: Km.godtgørelse, høj sats (skattefri), antal km: | T32: 0 | U32: 0 | V32: 0 | W32: 0 | X32: 0 | Y32: 0 | Z32: 0 | AA32: 0 | AB32: 0 | AC32: 0 | AD32: 0 | AE32: 0 | AF32: Se løntabel
B33: 30 | F33: Timedagpenge (skattefri), beregn selv! | T33: 0 | U33: 0 | V33: 0 | W33: 0 | X33: 0 | Y33: 0 | Z33: 0 | AA33: 0 | AB33: 0 | AC33: 0 | AD33: 0 | AE33: 0 | AF33: Se løntabel
B34: 31 | F34: Jubilæumsgratiale (skattefri op til 8.000 kr.) | T34: 0 | U34: 0 | V34: 0 | W34: 0 | X34: 0 | Y34: 0 | Z34: 0 | AA34: 0 | AB34: 0 | AC34: 0 | AD34: 0 | AE34: 0 | AF34: Se løntabel
B35: 32 | F35: SPS-tillæg og tillæg for uv. af 2-sprogede | T35: 0 | U35: 0 | V35: 0 | W35: 0 | X35: 0 | Y35: 0 | Z35: 0 | AA35: 0 | AB35: 0 | AC35: 0 | AD35: 0 | AE35: 0 | AF35: Se løntabel
B36: 33 | F36: Lejrskoletillæg på hverdage. Oplys antal påbegyndte dage. | T36: 0 | U36: 0 | V36: 0 | W36: 0 | X36: 0 | Y36: 0 | Z36: 0 | AA36: 0 | AB36: 0 | AC36: 0 | AD36: 0 | AE36: 0
B37: 34 | F37: Lejrskoletillæg lørdage, søndage og helligdage. Oplys antal påbegyndte dage. | T37: 0 | U37: 0 | V37: 0 | W37: 0 | X37: 0 | Y37: 0 | Z37: 0 | AA37: 0 | AB37: 0 | AC37: 0 | AD37: 0 | AE37: 0
B38: 35 | F38: Antal arbejdstimer der udløser 25%-tillæg/ulempetillæg | T38: 0 | U38: 0 | V38: 0 | W38: 0 | X38: 0 | Y38: 0 | Z38: 0 | AA38: 0 | AB38: 0 | AC38: 0 | AD38: 0 | AE38: 0 | AF38: aftentillæg efter kl 17 (indtil kl 06) samt weekendtimer
B39: 36 | F39: Antal arbejdstimer der udløser 50%-tillæg/weekendtillæg | T39: 0 | U39: 0 | V39: 0 | W39: 0 | X39: 0 | Y39: 0 | Z39: 0 | AA39: 0 | AB39: 0 | AC39: 0 | AD39: 0 | AE39: 0 | AF39: Weekendtillæg, kan i stedet afspadseres
B40: 37 | F40: Antal weekendtimer til udbetaling (100%) | T40: 0 | U40: 0 | V40: 0 | W40: 0 | X40: 0 | Y40: 0 | Z40: 0 | AA40: 0 | AB40: 0 | AC40: 0 | AD40: 0 | AE40: 0 | AF40: Weekendtimer til udbetaling (ekskl. tillæg)
B41: 38 | F41: Eksaminator eller censor tillæg | T41: 0 | U41: 0 | V41: 0 | W41: 0 | X41: 0 | Y41: 0 | Z41: 0 | AA41: 0 | AB41: 0 | AC41: 0 | AD41: 0 | AE41: 0
B42: =B41+1 -> 39 | F42: Overarbejds-/mererarbejdsbetaling | T42: 0 | U42: 0 | V42: 0 | W42: 0 | X42: 0 | Y42: 0 | Z42: 0 | AA42: 0 | AB42: 0 | AC42: 0 | AD42: 0 | AE42: 0 | AF42: Efter årsopgørelse i juli eller ved fratræden
B43: 40 | F43: Særlige feriedage til udbetaling | T43: 0 | U43: 0 | V43: 0 | W43: 0 | X43: 0 | Y43: 0 | Z43: 0 | AA43: 0 | AB43: 0 | AC43: 0 | AD43: 0 | AE43: 0 | AF43: ="I juli eller ved fratræden. "&"Se pjecen ""Ferievejledning "&MID($A$1,1,4)+1&"""" -> I juli eller ved fratræden. Se pjecen "Ferievejledning 2024"
B44: 41 | F44: Særlig feriegodtgørelse (Ferietillæg) 2,02% | G44: =(A117+G117)*2.02% -> 0 | P44: =AF117*1.5% -> 0 | T44: 0 | U44: 0 | V44: 0 | W44: 0 | X44: 0 | Y44: 0 | Z44: 0 | AA44: 0 | AB44: 0 | AC44: 0 | AD44: 0 | AE44: 0 | AF44: Udbetales august og maj.
B45: 42 | C45: x | F45: Resultatlønstillæg | T45: 0 | U45: 0 | V45: 0 | W45: 0 | X45: 0 | Y45: 0 | Z45: 0 | AA45: 0 | AB45: 0 | AC45: 0 | AD45: 0 | AE45: 0 | AF45: Evt pensionsgivende
B46: 43 | C46: x | F46: Engangs nylønstillæg | T46: 0 | U46: 0 | V46: 0 | W46: 0 | X46: 0 | Y46: 0 | Z46: 0 | AA46: 0 | AB46: 0 | AC46: 0 | AD46: 0 | AE46: 0 | AF46: Evt pensionsgivende
B47: 44 | F47: Praktiklærervederlag | T47: 0 | U47: 0 | V47: 0 | W47: 0 | X47: 0 | Y47: 0 | Z47: 0 | AA47: 0 | AB47: 0 | AC47: 0 | AD47: 0 | AE47: 0
B48: =B47+1 -> 45 | F48: Midlertidig tillæg skoleår 2024/2025 | T48: 0 | U48: 0 | V48: 0 | W48: 0 | X48: 0 | Y48: 0 | Z48: 0 | AA48: 0 | AB48: 0 | AC48: 0 | AD48: 0 | AE48: 0
B49: 46 | C49: Disse tre linjer fradrages i den disponible løn | F49: Gavekasse | G49: 0 | H49: =G49 -> 0 | I49: =H49 -> 0 | J49: 0 | K49: 0 | L49: 0 | M49: 0 | N49: 0 | O49: 0 | P49: 0 | Q49: 0 | R49: 0 | T49: 0 | U49: 0 | V49: 0 | W49: 0 | X49: 0 | Y49: 0 | Z49: 0 | AA49: 0 | AB49: 0 | AC49: 0 | AD49: 0 | AE49: 0 | AF49: Fx: 'Kaffekasse'
B50: 47 | F50: Kaffekasse | G50: 0 | H50: =G50 -> 0 | I50: 0 | J50: 0 | K50: 0 | L50: 0 | M50: 0 | N50: 0 | O50: 0 | P50: 0 | Q50: 0 | R50: 0 | T50: 0 | U50: 0 | V50: 0 | W50: 0 | X50: 0 | Y50: 0 | Z50: 0 | AA50: 0 | AB50: 0 | AC50: 0 | AD50: 0 | AE50: 0 | AF50: Fx: 'Gavekasse'
B51: 48 | F51: FSL-kontingent | G51: 0 | H51: =G51 -> 0 | I51: =H51 -> 0 | J51: 0 | K51: 0 | L51: 0 | M51: 0 | N51: 0 | O51: 0 | P51: 0 | Q51: 0 | R51: 0 | T51: 0 | U51: 0 | V51: 0 | W51: 0 | X51: 0 | Y51: 0 | Z51: 0 | AA51: 0 | AB51: 0 | AC51: 0 | AD51: 0 | AE51: 0 | AF51: FX: 'FSL-kontingent'
A52: =A2 -> jan-juli | B52: 49 | F52: Måned | G52: =G2 -> AUG 24 | H52: SEP 24 | I52: OKT 24 | J52: NOV 24 | K52: DEC 24 | L52: JAN 25 | M52: FEB 25 | N52: MAR 25 | O52: APR 25 | P52: MAJ 25 | Q52: JUN 25 | R52: JUL 25 | T52: AUG 24 | U52: SEP 24 | V52: OKT 24 | W52: NOV 24 | X52: DEC 24 | Y52: JAN 25 | Z52: FEB 25 | AA52: MAR 25 | AB52: APR 25 | AC52: MAJ 25 | AD52: JUN 25 | AE52: JUL 25 | AF52: SUM | AI52: LP | AJ52: E-NEJ | AK52: E-JA
B53: 50 | C53: 1 | D53: 1 | E53: 1 | F53: Basisløn | G53: =IF(G8="Ja",0,ROUND(IF(G10>0,ROUND((ROUND(VLOOKUP(G4,Grundlon12!$A$67:$G$74,2,0)*G6,0))/12,2),0)*G10*G3,2)) -> 0 | H53: =IF(H8="Ja",0,ROUND(IF(H10>0,ROUND((ROUND(VLOOKUP(H4,Grundlon12!$A$67:$G$74,2,0)*H6,0))/12,2),0)*H10*H3,2)) -> 0 | I53: =IF(I8="Ja",0,ROUND(IF(I10>0,ROUND((ROUND(VLOOKUP(I4,Grundlon12!$A$67:$G$74,2,0)*I6,0))/12,2),0)*I10*I3,2)) -> 0 | J53: =IF(J8="Ja",0,ROUND(IF(J10>0,ROUND((ROUND(VLOOKUP(J4,Grundlon12!$A$67:$G$74,2,0)*J6,0))/12,2),0)*J10*J3,2)) -> 0 | K53: =IF(K8="Ja",0,ROUND(IF(K10>0,ROUND((ROUND(VLOOKUP(K4,Grundlon12!$A$67:$G$74,2,0)*K6,0))/12,2),0)*K10*K3,2)) -> 0 | L53: =IF(L8="Ja",0,ROUND(IF(L10>0,ROUND((ROUND(VLOOKUP(L4,Grundlon12!$A$67:$G$74,2,0)*L6,0))/12,2),0)*L10*L3,2)) -> 0 | M53: =IF(M8="Ja",0,ROUND(IF(M10>0,ROUND((ROUND(VLOOKUP(M4,Grundlon12!$A$67:$G$74,2,0)*M6,0))/12,2),0)*M10*M3,2)) -> 0 | N53: =IF(N8="Ja",0,ROUND(IF(N10>0,ROUND((ROUND(VLOOKUP(N4,Grundlon12!$A$67:$G$74,2,0)*N6,0))/12,2),0)*N10*N3,2)) -> 0 | O53: =IF(O8="Ja",0,ROUND(IF(O10>0,ROUND((ROUND(VLOOKUP(O4,Grundlon12!$A$75:$G$82,2,0)*O6,0))/12,2),0)*O10*O3,2)) -> 0 | P53: =IF(P8="Ja",0,ROUND(IF(P10>0,ROUND((ROUND(VLOOKUP(P4,Grundlon12!$A$75:$G$82,2,0)*P6,0))/12,2),0)*P10*P3,2)) -> 0 | Q53: =IF(Q8="Ja",0,ROUND(IF(Q10>0,ROUND((ROUND(VLOOKUP(Q4,Grundlon12!$A$75:$G$82,2,0)*Q6,0))/12,2),0)*Q10*Q3,2)) -> 0 | R53: =IF(R8="Ja",0,ROUND(IF(R10>0,ROUND((ROUND(VLOOKUP(R4,Grundlon12!$A$75:$G$82,2,0)*R6,0))/12,2),0)*R10*R3,2)) -> 0 | T53: =ROUND(IF(T10>0,ROUND((ROUND(VLOOKUP(T4,Grundlon12!$A$67:$G$74,2,0)*T6,0))/12,2),0)*T10*T3,2) -> 0 | U53: =ROUND(IF(U10>0,ROUND((ROUND(VLOOKUP(U4,Grundlon12!$A$67:$G$74,2,0)*U6,0))/12,2),0)*U10*U3,2) -> 0 | V53: =ROUND(IF(V10>0,ROUND((ROUND(VLOOKUP(V4,Grundlon12!$A$67:$G$74,2,0)*V6,0))/12,2),0)*V10*V3,2) -> 0 | W53: =ROUND(IF(W10>0,ROUND((ROUND(VLOOKUP(W4,Grundlon12!$A$67:$G$74,2,0)*W6,0))/12,2),0)*W10*W3,2) -> 0 | X53: =ROUND(IF(X10>0,ROUND((ROUND(VLOOKUP(X4,Grundlon12!$A$67:$G$74,2,0)*X6,0))/12,2),0)*X10*X3,2) -> 0 | Y53: =ROUND(IF(Y10>0,ROUND((ROUND(VLOOKUP(Y4,Grundlon12!$A$67:$G$74,2,0)*Y6,0))/12,2),0)*Y10*Y3,2) -> 0 | Z53: =ROUND(IF(Z10>0,ROUND((ROUND(VLOOKUP(Z4,Grundlon12!$A$67:$G$74,2,0)*Z6,0))/12,2),0)*Z10*Z3,2) -> 0 | AA53: =ROUND(IF(AA10>0,ROUND((ROUND(VLOOKUP(AA4,Grundlon12!$A$67:$G$74,2,0)*AA6,0))/12,2),0)*AA10*AA3,2) -> 0 | AB53: =ROUND(IF(AB10>0,ROUND((ROUND(VLOOKUP(AB4,Grundlon12!$A$67:$G$74,2,0)*AB6,0))/12,2),0)*AB10*AB3,2) -> 0 | AC53: =ROUND(IF(AC10>0,ROUND((ROUND(VLOOKUP(AC4,Grundlon12!$A$67:$G$74,2,0)*AC6,0))/12,2),0)*AC10*AC3,2) -> 0 | AD53: =ROUND(IF(AD10>0,ROUND((ROUND(VLOOKUP(AD4,Grundlon12!$A$67:$G$74,2,0)*AD6,0))/12,2),0)*AD10*AD3,2) -> 0 | AE53: =ROUND(IF(AE10>0,ROUND((ROUND(VLOOKUP(AE4,Grundlon12!$A$67:$G$74,2,0)*AE6,0))/12,2),0)*AE10*AE3,2) -> 0 | AF53: =SUM(G53:R53) -> 0 | AG53: =F53 -> Basisløn | AH53: 48 | AI53: + | AK53: + | AL53: 1
B54: =B53+1 -> 51 | D54: 1 | E54: 0 | F54: Områdetillæg | G54: =IF(G8="Ja",0,ROUND(IF(G10>0,ROUND((VLOOKUP(G4,omraadetabel12,G7,0))/12,2),0)*G10*G3,2)) -> 0 | H54: =IF(H8="Ja",0,ROUND(IF(H10>0,ROUND((VLOOKUP(H4,omraadetabel12,H7,0))/12,2),0)*H10*H3,2)) -> 0 | I54: 0 | J54: 0 | K54: 0 | L54: 0 | M54: 0 | N54: 0 | O54: 0 | P54: 0 | Q54: 0 | R54: 0 | T54: =ROUND(IF(T10>0,ROUND((VLOOKUP(T4,omraadetabel12,T7,0))/12,2),0)*T10*T3,2) -> 0 | U54: 0 | V54: 0 | W54: 0 | X54: 0 | Y54: 0 | Z54: 0 | AA54: 0 | AB54: 0 | AC54: 0 | AD54: 0 | AE54: 0 | AF54: 0 | AG54: =F54 -> Områdetillæg | AH54: 49 | AL54: 2
B55: =B54+1 -> 52 | C55: 1 | D55: 0 | E55: 1 | F55: Undervisningstillæg | G55: =IF(G8="Ja",0,ROUND(SUM(G131:G134)*G3,2)) -> 0 | H55: =IF(H8="Ja",0,ROUND(SUM(H131:H134)*H3,2)) -> 0 | I55: =IF(I8="Ja",0,ROUND(SUM(I131:I134)*I3,2)) -> 0 | J55: 0 | K55: 0 | L55: 0 | M55: 0 | N55: 0 | O55: 0 | P55: 0 | Q55: 0 | R55: 0 | T55: =ROUND(SUM(T131:T134)*T3,2) -> 0 | U55: 0 | V55: 0 | W55: 0 | X55: 0 | Y55: 0 | Z55: 0 | AA55: 0 | AB55: 0 | AC55: 0 | AD55: 0 | AE55: 0 | AF55: 0 | AG55: Undervisningstillæg | AH55: 50 | AI55: + | AK55: + | AL55: 3
B56: 53 | C56: 1 | D56: 0 | E56: 1 | F56: Souscheftillæg | G56: =IF(G8="Ja",0,ROUND(G13*G$6*G3/12,2)) -> 0 | H56: =IF(H8="Ja",0,ROUND(H13*H$6*H3/12,2)) -> 0 | I56: =IF(I8="Ja",0,ROUND(I13*I$6*I3/12,2)) -> 0 | J56: 0 | K56: 0 | L56: 0 | M56: 0 | N56: 0 | O56: 0 | P56: 0 | Q56: 0 | R56: 0 | T56: =ROUND(T13*T$6*T3/12,2) -> 0 | U56: 0 | V56: 0 | W56: 0 | X56: 0 | Y56: 0 | Z56: 0 | AA56: 0 | AB56: 0 | AC56: 0 | AD56: 0 | AE56: 0 | AF56: 0 | AG56: Souscheftillæg | AH56: 51 | AI56: + | AJ56: + | AK56: + | AL56: 4
B57: 54 | C57: =(C14<>"")*1 -> 1 | D57: 0 | E57: 1 | F57: Funktionstillæg 1 | G57: =IF(G8="Ja",0,ROUND(G14*G$6*G$3*IF($D57>0,G$10,1)/12,2)) -> 0 | H57: =IF(H8="Ja",0,ROUND(H14*H$6*H$3*IF($D57>0,H$10,1)/12,2)) -> 0 | I57: =IF(I8="Ja",0,ROUND(I14*I$6*I$3*IF($D57>0,I$10,1)/12,2)) -> 0 | J57: 0 | K57: 0 | L57: 0 | M57: 0 | N57: 0 | O57: 0 | P57: 0 | Q57: 0 | R57: 0 | T57: =ROUND(T14*T$6*T$3*IF($D57>0,T$10,1)/12,2) -> 0 | U57: 0 | V57: 0 | W57: 0 | X57: 0 | Y57: 0 | Z57: 0 | AA57: 0 | AB57: 0 | AC57: 0 | AD57: 0 | AE57: 0 | AF57: 0 | AG57: Funktionstillæg 1 | AH57: 52 | AI57: + | AK57: + | AL57: 5
B58: 55 | C58: 1 | D58: 0 | E58: 1 | F58: Funktionstillæg 2 | G58: =IF(G8="Ja",0,ROUND(G15*G$6*G$3*IF($D58>0,G$10,1)/12,2)) -> 0 | H58: =IF(H8="Ja",0,ROUND(H15*H$6*H$3*IF($D58>0,H$10,1)/12,2)) -> 0 | I58: =IF(I8="Ja",0,ROUND(I15*I$6*I$3*IF($D58>0,I$10,1)/12,2)) -> 0 | J58: 0 | K58: 0 | L58: 0 | M58: 0 | N58: 0 | O58: 0 | P58: 0 | Q58: 0 | R58: 0 | T58: =ROUND(T15*T$6*T$3*IF($D58>0,T$10,1)/12,2) -> 0 | U58: 0 | V58: 0 | W58: 0 | X58: 0 | Y58: 0 | Z58: 0 | AA58: 0 | AB58: 0 | AC58: 0 | AD58: 0 | AE58: 0 | AF58: 0 | AG58: Funktionstillæg 2 | AH58: 53 | AI58: + | AK58: + | AL58: 6
B59: 56 | C59: 1 | D59: 0 | E59: 1 | F59: Funktionstillæg 3 | G59: =IF(G8="Ja",0,ROUND(G16*G$6*G$3*IF($D59>0,G$10,1)/12,2)) -> 0 | H59: =IF(H8="Ja",0,ROUND(H16*H$6*H$3*IF($D59>0,H$10,1)/12,2)) -> 0 | I59: =IF(I8="Ja",0,ROUND(I16*I$6*I$3*IF($D59>0,I$10,1)/12,2)) -> 0 | J59: 0 | K59: 0 | L59: 0 | M59: 0 | N59: 0 | O59: 0 | P59: 0 | Q59: 0 | R59: 0 | T59: =ROUND(T16*T$6*T$3*IF($D59>0,T$10,1)/12,2) -> 0 | U59: 0 | V59: 0 | W59: 0 | X59: 0 | Y59: 0 | Z59: 0 | AA59: 0 | AB59: 0 | AC59: 0 | AD59: 0 | AE59: 0 | AF59: 0 | AG59: Funktionstillæg 3 | AH59: 54 | AI59: + | AK59: + | AL59: 7
B60: 57 | C60: =(C17<>"")*1 -> 1 | D60: 1 | E60: =(E18<>"")*1 -> 1 | F60: Kvalifikationstillæg 1 | G60: =IF(G8="Ja",0,ROUND(G17*G$6*G$3*IF($D60>0,G$10,1)/12,2)) -> 0 | H60: =IF(H8="Ja",0,ROUND(H17*H$6*H$3*IF($D60>0,H$10,1)/12,2)) -> 0 | I60: =IF(I8="Ja",0,ROUND(I17*I$6*I$3*IF($D60>0,I$10,1)/12,2)) -> 0 | J60: 0 | K60: 0 | L60: 0 | M60: 0 | N60: 0 | O60: 0 | P60: 0 | Q60: 0 | R60: 0 | T60: =ROUND(T17*T$6*T$3*IF($D60>0,T$10,1)/12,2) -> 0 | U60: 0 | V60: 0 | W60: 0 | X60: 0 | Y60: 0 | Z60: 0 | AA60: 0 | AB60: 0 | AC60: 0 | AD60: 0 | AE60: 0 | AF60: 0 | AG60: Kvalifikationstillæg 1 | AH60: 55 | AI60: + | AK60: + | AL60: 8
B61: 58 | C61: 1 | D61: 1 | E61: =(E18<>"")*1 -> 1 | F61: Kvalifikationstillæg 2 | G61: =IF(G8="Ja",0,ROUND(G18*G$6*G$3*IF($D61>0,G$10,1)/12,2)) -> 0 | H61: =IF(H8="Ja",0,ROUND(H18*H$6*H$3*IF($D61>0,H$10,1)/12,2)) -> 0 | I61: =IF(I8="Ja",0,ROUND(I18*I$6*I$3*IF($D61>0,I$10,1)/12,2)) -> 0 | J61: 0 | K61: 0 | L61: 0 | M61: 0 | N61: 0 | O61: 0 | P61: 0 | Q61: 0 | R61: 0 | T61: =ROUND(T18*T$6*T$3*IF($D61>0,T$10,1)/12,2) -> 0 | U61: 0 | V61: 0 | W61: 0 | X61: 0 | Y61: 0 | Z61: 0 | AA61: 0 | AB61: 0 | AC61: 0 | AD61: 0 | AE61: 0 | AF61: 0 | AG61: Kvalifikationstillæg 2 | AH61: 56 | AI61: + | AK61: + | AL61: 9
B62: 59 | C62: 1 | D62: 1 | E62: =(E19<>"")*1 -> 1 | F62: Kvalifikationstillæg 3 | G62: =IF(G8="Ja",0,ROUND(G19*G$6*G$3*IF($D62>0,G$10,1)/12,2)) -> 0 | H62: =IF(H8="Ja",0,ROUND(H19*H$6*H$3*IF($D62>0,H$10,1)/12,2)) -> 0 | I62: =IF(I8="Ja",0,ROUND(I19*I$6*I$3*IF($D62>0,I$10,1)/12,2)) -> 0 | J62: 0 | K62: 0 | L62: 0 | M62: 0 | N62: 0 | O62: 0 | P62: 0 | Q62: 0 | R62: 0 | T62: =ROUND(T19*T$6*T$3*IF($D62>0,T$10,1)/12,2) -> 0 | U62: 0 | V62: 0 | W62: 0 | X62: 0 | Y62: 0 | Z62: 0 | AA62: 0 | AB62: 0 | AC62: 0 | AD62: 0 | AE62: 0 | AF62: 0 | AG62: Kvalifikationstillæg 3 | AH62: 57 | AI62: + | AK62: + | AL62: 10
B63: 60 | C63: 1 | D63: 1 | E63: 1 | F63: Trin 4-tillæg beregnet 1. aug 2013 | G63: =IF(G8="Ja",0,ROUND(G20*G$6*G$10/12*G3,2)) -> 0 | H63: =IF(H8="Ja",0,ROUND(H20*H$6*H$10/12*H3,2)) -> 0 | I63: =IF(I8="Ja",0,ROUND(I20*I$6*I$10/12*I3,2)) -> 0 | J63: 0 | K63: 0 | L63: 0 | M63: 0 | N63: 0 | O63: 0 | P63: 0 | Q63: 0 | R63: 0 | T63: =ROUND(T20*T$6*T$10/12*T3,2) -> 0 | U63: 0 | V63: 0 | W63: 0 | X63: 0 | Y63: 0 | Z63: 0 | AA63: 0 | AB63: 0 | AC63: 0 | AD63: 0 | AE63: 0 | AF63: 0 | AG63: Trin 4-tillæg beregnet 1. aug 2013 | AH63: 58 | AI63: + | AK63: + | AL63: 11
B64: 61 | C64: 1 | D64: 1 | E64: 1 | F64: Udligningstillæg beregnet 1. aug 2004 | G64: =IF(G8="Ja",0,ROUND(G21*G$6*G$10/12*G3,2)) -> 0 | H64: =IF(H8="Ja",0,ROUND(H21*H$6*H$10/12*H3,2)) -> 0 | I64: =IF(I8="Ja",0,ROUND(I21*I$6*I$10/12*I3,2)) -> 0 | J64: 0 | K64: 0 | L64: 0 | M64: 0 | N64: 0 | O64: 0 | P64: 0 | Q64: 0 | R64: 0 | T64: =ROUND(T21*T$6*T$10/12*T3,2) -> 0 | U64: 0 | V64: 0 | W64: 0 | X64: 0 | Y64: 0 | Z64: 0 | AA64: 0 | AB64: 0 | AC64: 0 | AD64: 0 | AE64: 0 | AF64: 0 | AG64: Udligningstillæg beregnet 1. aug 2004 | AH64: 59 | AI64: + | AK64: + | AL64: 12
B65: 62 | D65: 1 | E65: 1 | F65: OK08-tillæg | G65: =IF(G8="Ja",0,ROUND((IF(RIGHT(G4)="1",5200)+IF(OR(RIGHT(G4)="2",RIGHT(G4)="3"),7900))*G6/12*G10*G3,2)) -> 0 | H65: =IF(H8="Ja",0,ROUND((IF(RIGHT(H4)="1",5200)+IF(OR(RIGHT(H4)="2",RIGHT(H4)="3"),7900))*H6/12*H10*H3,2)) -> 0 | I65: =IF(I8="Ja",0,ROUND((IF(RIGHT(I4)="1",5200)+IF(OR(RIGHT(I4)="2",RIGHT(I4)="3"),7900))*I6/12*I10*I3,2)) -> 0 | J65: 0 | K65: 0 | L65: 0 | M65: 0 | N65: 0 | O65: 0 | P65: 0 | Q65: 0 | R65: 0 | T65: =ROUND((IF(RIGHT(T4)="1",5200)+IF(OR(RIGHT(T4)="2",RIGHT(T4)="3"),7900))*T6/12*T10*T3,2) -> 0 | U65: 0 | V65: 0 | W65: 0 | X65: 0 | Y65: 0 | Z65: 0 | AA65: 0 | AB65: 0 | AC65: 0 | AD65: 0 | AE65: 0 | AF65: 0 | AG65: OK08-tillæg | AH65: 60 | AL65: 13
B66: 63 | C66: 1 | D66: 1 | E66: 1 | F66: OK13-tillæg | G66: =IF(G8="Ja",0,ROUND(2800*G$6*G$10*G3/12,2)) -> 0 | H66: =IF(H8="Ja",0,ROUND(2800*H$6*H$10*H3/12,2)) -> 0 | I66: =IF(I8="Ja",0,ROUND(2800*I$6*I$10*I3/12,2)) -> 0 | J66: 0 | K66: 0 | L66: 0 | M66: 0 | N66: 0 | O66: 0 | P66: 0 | Q66: 0 | R66: 0 | T66: =ROUND(2800*T$6*T$10*T3/12,2) -> 0 | U66: 0 | V66: 0 | W66: 0 | X66: 0 | Y66: 0 | Z66: 0 | AA66: 0 | AB66: 0 | AC66: 0 | AD66: 0 | AE66: 0 | AF66: 0 | AG66: OK13-tillæg | AH66: 61 | AI66: + | AJ66: + | AK66: + | AL66: 14
B67: 64 | C67: 1 | D67: 1 | E67: 1 | F67: OK18-tillæg | G67: =IF(G8="Ja",0,ROUND(900*G$6*G$10*G3/12,2)) -> 0 | H67: =IF(H8="Ja",0,ROUND(900*H$6*H$10*H3/12,2)) -> 0 | I67: 0 | J67: 0 | K67: 0 | L67: 0 | M67: 0 | N67: 0 | O67: =IF(O8="Ja",0,ROUND(4100*O$6*O$10*O3/12,2)) -> 0 | P67: =IF(P8="Ja",0,ROUND(4100*P$6*P$10*P3/12,2)) -> 0 | Q67: 0 | R67: =IF(R8="Ja",0,ROUND(4100*R$6*R$10*R3/12,2)) -> 0 | T67: =ROUND(900*T$6*T$10*T3/12,2) -> 0 | U67: 0 | V67: 0 | W67: 0 | X67: 0 | Y67: 0 | Z67: 0 | AA67: 0 | AB67: 0 | AC67: 0 | AD67: 0 | AE67: 0 | AF67: 0 | AG67: OK18-tillæg | AH67: 62 | AI67: + | AJ67: + | AK67: + | AL67: 15
B68: 65 | C68: =(C23<>"")*1 -> 1 | D68: =(D23<>"")*1 -> 0 | E68: =(E23<>"")*1 -> 0 | F68: Fast lokalaftalt godtgørelse | G68: =IF(G8="Ja",0,G$23*IF($D68>0,G$10,1)*IF($E68>0,G$6,1)*$G3) -> 0 | H68: =IF(H8="Ja",0,H$23*IF($D68>0,H$10,1)*IF($E68>0,H$6,1)*$G3) -> 0 | I68: =IF(I8="Ja",0,I$23*IF($D68>0,I$10,1)*IF($E68>0,I$6,1)*$G3) -> 0 | J68: 0 | K68: 0 | L68: 0 | M68: 0 | N68: 0 | O68: 0 | P68: 0 | Q68: 0 | R68: 0 | T68: =T$23*IF($D68>0,T$10,1)*IF($E68>0,T$6,1)*$G3 -> 0 | U68: =U23*IF($D68>0,U$10,1)*IF($E68>0,U$6,1)*U3 -> 0 | V68: 0 | W68: 0 | X68: 0 | Y68: 0 | Z68: 0 | AA68: 0 | AB68: 0 | AC68: 0 | AD68: 0 | AE68: 0 | AF68: 0 | AG68: Fast lokalaftalt godtgørelse | AH68: 63 | AI68: HVIS | AK68: HVIS | AL68: 16
B69: 66 | F69: Gruppelivstillæg | G69: =IF(G8="Ja",0,IF(G10>0,108.35*G3,0)) -> 0 | H69: =IF(H8="Ja",0,IF(H10>0,108.35*H3,0)) -> 0 | I69: =IF(I8="Ja",0,IF(I10>0,108.35*I3,0)) -> 0 | J69: 0 | K69: 0 | L69: 0 | M69: 0 | N69: 0 | O69: 0 | P69: 0 | Q69: 0 | R69: 0 | T69: =IF(T10>0,108.35*T3,0) -> 0 | U69: 0 | V69: 0 | W69: 0 | X69: 0 | Y69: 0 | Z69: 0 | AA69: 0 | AB69: 0 | AC69: 0 | AD69: 0 | AE69: 0 | AF69: 0
B70: 67 | F70: Lønfradrag for ikke optjent ferie mv. Pensionsgiv. | G70: =-(MAX(0,MIN(G$24,G$25*1))+G$28)*4.62%*(SUM(G$53:G$69)+G88-G$54-G$65-G$69-G68*($C$68=0)) -> 0 | H70: =-(MAX(0,MIN(H$24,H$25*1))+H$28)*4.62%*(SUM(H$53:H$69)+H88-H$54-H$65-H$69-H68*($C$68=0)) -> 0 | I70: 0 | J70: 0 | K70: 0 | L70: 0 | M70: 0 | N70: 0 | O70: 0 | P70: 0 | Q70: 0 | R70: 0 | T70: =-(MAX(0,MIN(T$24,T$25*1))+T$28)*4.62%*(SUM(T$53:T$69)-T$54-T$65-T$69-T68*($C$68=0)) -> 0 | U70: 0 | V70: 0 | W70: 0 | X70: 0 | Y70: 0 | Z70: 0 | AA70: 0 | AB70: 0 | AC70: 0 | AD70: 0 | AE70: 0 | AF70: 0 | AG70: =-10*4.62%*(R53+R55+R66+R68) -> 0
B71: 68 | F71: Lønfradrag for ikke optjent ferie mv. ej pensionsg. | G71: =-(MAX(0,MIN(G$24,G$25*1))+G$28)*4.62%*SUM(G54+G65+G68*($C68<>1)) -> 0 | H71: =-(MAX(0,MIN(H$24,H$25*1))+H$28)*4.62%*SUM(H54+H65+H68*($C68<>1)) -> 0 | I71: =-(MAX(0,MIN(I$24,I$25*1))+I$28)*4.62%*SUM(I54+I65+I68*($C68<>1)) -> 0 | J71: 0 | K71: 0 | L71: 0 | M71: 0 | N71: 0 | O71: 0 | P71: 0 | Q71: 0 | R71: 0 | T71: =-(MAX(0,MIN(T$24,T$25*1))+T$28)*4.62%*SUM(T54+T65+T68*($C68<>1)+T69) -> 0 | U71: 0 | V71: 0 | W71: 0 | X71: 0 | Y71: 0 | Z71: 0 | AA71: 0 | AB71: 0 | AC71: 0 | AD71: 0 | AE71: 0 | AF71: 0
B72: 69 | F72: Feriedifference, pensionsgivende | G72: =G26 -> 0 | H72: =H26 -> 0 | I72: 0 | J72: 0 | K72: 0 | L72: 0 | M72: 0 | N72: 0 | O72: 0 | P72: 0 | Q72: 0 | R72: 0 | T72: 0 | U72: 0 | V72: 0 | W72: 0 | X72: 0 | Y72: 0 | Z72: 0 | AA72: 0 | AB72: 0 | AC72: 0 | AD72: 0 | AE72: 0 | AF72: 0
B73: 70 | F73: Feriedifference, ikke pensionsgivende | G73: =G27 -> 0 | H73: =H27 -> 0 | I73: 0 | J73: 0 | K73: 0 | L73: 0 | M73: 0 | N73: 0 | O73: 0 | P73: 0 | Q73: 0 | R73: 0 | T73: 0 | U73: 0 | V73: 0 | W73: 0 | X73: 0 | Y73: 0 | Z73: 0 | AA73: 0 | AB73: 0 | AC73: 0 | AD73: 0 | AE73: 0 | AF73: 0
B74: 71 | F74: Skattefri km.godtgørelse, lav sats | G74: =$D31*G31 -> 0 | H74: =$D31*H31 -> 0 | I74: 0 | J74: 0 | K74: 0 | L74: =$E31*L31 -> 0 | M74: 0 | N74: 0 | O74: 0 | P74: 0 | Q74: 0 | R74: 0 | T74: =$D31*T31 -> 0 | U74: 0 | V74: 0 | W74: 0 | X74: 0 | Y74: =$E31*Y31 -> 0 | Z74: 0 | AA74: 0 | AB74: 0 | AC74: 0 | AD74: 0 | AE74: 0 | AF74: 0
B75: 72 | F75: Skattefri km.godtgørelse, høj sats | G75: 0 | H75: =$D32*H32 -> 0 | I75: 0 | J75: 0 | K75: 0 | L75: 0 | M75: 0 | N75: 0 | O75: 0 | P75: 0 | Q75: 0 | R75: 0 | T75: 0 | U75: 0 | V75: 0 | W75: 0 | X75: 0 | Y75: 0 | Z75: 0 | AA75: 0 | AB75: 0 | AC75: 0 | AD75: 0 | AE75: 0 | AF75: 0
B76: 73 | F76: Skattefri time/dagpenge | G76: =G33 -> 0 | H76: =H33 -> 0 | I76: 0 | J76: 0 | K76: 0 | L76: 0 | M76: 0 | N76: 0 | O76: 0 | P76: 0 | Q76: 0 | R76: 0 | T76: 0 | U76: 0 | V76: 0 | W76: 0 | X76: 0 | Y76: 0 | Z76: 0 | AA76: 0 | AB76: 0 | AC76: 0 | AD76: 0 | AE76: 0 | AF76: 0
B77: 74 | F77: Skattefri jubilæumsgratiale | G77: =MIN(8000,G34*G6) -> 0 | H77: =MIN(8000,H34*H6) -> 0 | I77: 0 | J77: 0 | K77: 0 | L77: 0 | M77: 0 | N77: 0 | O77: 0 | P77: 0 | Q77: 0 | R77: 0 | T77: 0 | U77: 0 | V77: 0 | W77: 0 | X77: 0 | Y77: 0 | Z77: 0 | AA77: 0 | AB77: 0 | AC77: 0 | AD77: 0 | AE77: 0 | AF77: 0
B78: 75 | F78: Lejrskoletillæg på hverdage | G78: =IF(G36>0,163.64*G6*G36,0) -> 0 | H78: =IF(H36>0,163.64*H6*H36,0) -> 0 | I78: 0 | J78: 0 | K78: 0 | L78: 0 | M78: 0 | N78: 0 | O78: 0 | P78: 0 | Q78: 0 | R78: 0 | T78: 0 | U78: 0 | V78: 0 | W78: 0 | X78: 0 | Y78: 0 | Z78: 0 | AA78: 0 | AB78: 0 | AC78: 0 | AD78: 0 | AE78: 0
B79: 76 | F79: Lejrskoletillæg lørdage, søndage og helligdage | G79: =IF(G37>0,372.2*G6*G37,0) -> 0 | H79: =IF(H37>0,372.2*H6*H37,0) -> 0 | I79: 0 | J79: 0 | K79: 0 | L79: 0 | M79: 0 | N79: 0 | O79: 0 | P79: 0 | Q79: 0 | R79: 0 | T79: 0 | U79: 0 | V79: 0 | W79: 0 | X79: 0 | Y79: 0 | Z79: 0 | AA79: 0 | AB79: 0 | AC79: 0 | AD79: 0 | AE79: 0
B80: =B77+1 -> 75 | F80: SPS-tillæg og tillæg for uv. af 2-sprogede | G80: =IF(G35>0,G35*(19*G$6),0) -> 0 | H80: =IF(H35>0,H35*(19*H$6),0) -> 0 | I80: =IF(I35>0,I35*(19*I$6),0) -> 0 | J80: 0 | K80: 0 | L80: 0 | M80: 0 | N80: 0 | O80: 0 | P80: 0 | Q80: 0 | R80: 0 | T80: =ROUND(T35*ROUND(19*T$6,2),0) -> 0 | U80: 0 | V80: 0 | W80: 0 | X80: 0 | Y80: 0 | Z80: 0 | AA80: 0 | AB80: 0 | AC80: 0 | AD80: 0 | AE80: 0 | AF80: =SUM(G80:R80) -> 0
B81: 76 | F81: 25%-tillæg *) | G81: =IF(G38>0,G38*G$163*25%,0) -> 0 | H81: =IF(H38>0,H38*H$163*25%,0) -> 0 | I81: =IF(I38>0,I38*I$163*25%,0) -> 0 | J81: 0 | K81: 0 | L81: 0 | M81: 0 | N81: 0 | O81: 0 | P81: 0 | Q81: 0 | R81: 0 | T81: 0 | U81: 0 | V81: 0 | W81: 0 | X81: 0 | Y81: 0 | Z81: 0 | AA81: 0 | AB81: 0 | AC81: 0 | AD81: 0 | AE81: 0 | AF81: 0
B82: 77 | F82: 50%-tillæg *) | G82: =IF(G39>0,G39*G$163*50%,0) -> 0 | H82: =IF(H39>0,H39*H$163*50%,0) -> 0 | I82: 0 | J82: 0 | K82: 0 | L82: 0 | M82: 0 | N82: 0 | O82: 0 | P82: 0 | Q82: 0 | R82: 0 | T82: 0 | U82: 0 | V82: 0 | W82: 0 | X82: 0 | Y82: 0 | Z82: 0 | AA82: 0 | AB82: 0 | AC82: 0 | AD82: 0 | AE82: 0 | AF82: 0
B83: 78 | F83: Weekendtimer til udbetaling *) | G83: =IF(G40>0,G40*G$163,0) -> 0 | H83: =IF(H40>0,H40*H$163,0) -> 0 | I83: 0 | J83: 0 | K83: 0 | L83: 0 | M83: 0 | N83: 0 | O83: 0 | P83: 0 | Q83: 0 | R83: 0 | T83: 0 | U83: 0 | V83: 0 | W83: 0 | X83: 0 | Y83: 0 | Z83: 0 | AA83: 0 | AB83: 0 | AC83: 0 | AD83: 0 | AE83: 0 | AF83: 0
B84: 79 | F84: Eksaminator eller censor tillæg | G84: =IF(G41>0,267.31*G6*G41,0) -> 0 | H84: =IF(H41>0,267.31*H6*H41,0) -> 0 | I84: 0 | J84: 0 | K84: 0 | L84: 0 | M84: 0 | N84: 0 | O84: 0 | P84: 0 | Q84: 0 | R84: 0 | T84: 0 | U84: 0 | V84: 0 | W84: 0 | X84: 0 | Y84: 0 | Z84: 0 | AA84: 0 | AB84: 0 | AC84: 0 | AD84: 0 | AE84: 0
B85: 80 | F85: Skattepligtig jubilæumsgratiale | G85: =IF(G34>0,MAX(G34*G6-8000,0),0) -> 0 | H85: =IF(H34>0,MAX(H34*H6-8000,0),0) -> 0 | I85: 0 | J85: 0 | K85: 0 | L85: 0 | M85: 0 | N85: 0 | O85: 0 | P85: 0 | Q85: 0 | R85: 0 | T85: 0 | U85: 0 | V85: 0 | W85: 0 | X85: 0 | Y85: 0 | Z85: 0 | AA85: 0 | AB85: 0 | AC85: 0 | AD85: 0 | AE85: 0
B86: 81 | F86: Ferietillæg | G86: =G44 -> 0 | H86: =H44 -> 0 | I86: 0 | J86: 0 | K86: 0 | L86: 0 | M86: 0 | N86: 0 | O86: 0 | P86: 0 | Q86: 0 | R86: 0 | T86: 0 | U86: 0 | V86: 0 | W86: 0 | X86: 0 | Y86: 0 | Z86: 0 | AA86: 0 | AB86: 0 | AC86: 0 | AD86: 0 | AE86: 0
B87: 82 | F87: Andre engangsudbetalinger iflg. specifikation | G87: =SUM(G42:G43)+SUM(G45:G48) -> 0 | H87: =SUM(H42:H43)+SUM(H45:H48) -> 0 | I87: =SUM(I42:I43)+SUM(I45:I48) -> 0 | J87: 0 | K87: 0 | L87: 0 | M87: 0 | N87: 0 | O87: 0 | P87: 0 | Q87: 0 | R87: 0 | T87: 0 | U87: 0 | V87: 0 | W87: 0 | X87: 0 | Y87: 0 | Z87: 0 | AA87: 0 | AB87: 0 | AC87: 0 | AD87: 0 | AE87: 0 | AF87: 0
F88: Seniorbonus 0,8% af fastpåregnelige løndele - pensionsgivede | G88: =IF(G9="ja",SUM((G53:G68)*0.8%),0) -> 0 | H88: =IF(H9="ja",SUM((H53:H68)*0.8%),0) -> 0 | I88: =IF(I9="ja",SUM((I53:I68)*0.8%),0) -> 0 | J88: =IF(J9="ja",SUM((J53:J68)*0.8%),0) -> 0 | K88: =IF(K9="ja",SUM((K53:K68)*0.8%),0) -> 0 | L88: =IF(L9="ja",SUM((L53:L68)*0.8%),0) -> 0 | M88: =IF(M9="ja",SUM((M53:M68)*0.8%),0) -> 0 | N88: =IF(N9="ja",SUM((N53:N68)*0.8%),0) -> 0 | O88: =IF(O9="ja",SUM((O53:O68)*0.8%),0) -> 0 | P88: =IF(P9="ja",SUM((P53:P68)*0.8%),0) -> 0 | Q88: =IF(Q9="ja",SUM((Q53:Q68)*0.8%),0) -> 0 | R88: =IF(R9="ja",SUM((R53:R68)*0.8%),0) -> 0 | T88: =IF(T9="Ja",SUM(T53:T68)*0.8%,0) -> 0 | U88: =IF(U9="Ja",SUM(U53:U68)*0.8%,0) -> 0 | V88: =IF(V9="Ja",SUM(V53:V68)*0.8%,0) -> 0 | W88: 0 | X88: 0 | Y88: 0 | Z88: 0 | AA88: 0 | AB88: 0 | AC88: 0 | AD88: 0 | AE88: 0
B89: =B87+1 -> 83 | F89: Bruttoløn (ekskl. pensionstillæg og ATP) | G89: =SUM(G53:G88) -> 0 | H89: =SUM(H53:H88) -> 0 | I89: =SUM(I53:I88) -> 0 | J89: =SUM(J53:J88) -> 0 | K89: =SUM(K53:K88) -> 0 | L89: 0 | M89: 0 | N89: 0 | O89: 0 | P89: 0 | Q89: 0 | R89: 0 | T89: =SUM(T53:T87) -> 0 | U89: =SUM(U53:U87) -> 0 | V89: 0 | W89: 0 | X89: 0 | Y89: 0 | Z89: 0 | AA89: 0 | AB89: 0 | AC89: =SUM(AC53:AC87) -> 0 | AD89: =SUM(AD53:AD87) -> 0 | AE89: 0 | AF89: 0
B90: 84 | F90: Pensionstillæg basisløn | G90: =ROUND(G53*17.3%/3,2)*(G5="L") -> 0 | H90: 0 | I90: 0 | J90: 0 | K90: 0 | L90: 0 | M90: 0 | N90: 0 | O90: 0 | P90: 0 | Q90: 0 | R90: 0 | T90: =ROUND(T53/T10*T11*17.3%/3,2)*(T5="L") ->  | U90: =ROUND(U53*17.3%/3,2)*(U5="L") -> 0 | V90: 0 | W90: 0 | X90: 0 | Y90: 0 | Z90: 0 | AA90: 0 | AB90: 0 | AC90: 0 | AD90: 0 | AE90: 0 | AF90: 0
B91: 85 | F91: Pensionstillæg undervisningstillæg | G91: =ROUND(G55*17.3%/3,2)*(G5="L") -> 0 | H91: 0 | I91: 0 | J91: 0 | K91: 0 | L91: 0 | M91: 0 | N91: 0 | O91: 0 | P91: 0 | Q91: 0 | R91: 0 | T91: 0 | U91: 0 | V91: 0 | W91: 0 | X91: 0 | Y91: 0 | Z91: 0 | AA91: 0 | AB91: 0 | AC91: 0 | AD91: 0 | AE91: 0 | AF91: 0
B92: 86 | F92: Pensionstillæg souscheftillæg | G92: =ROUND(G56*17.3%/3,2)*(G5="L") -> 0 | H92: 0 | I92: 0 | J92: 0 | K92: 0 | L92: 0 | M92: 0 | N92: 0 | O92: 0 | P92: 0 | Q92: 0 | R92: 0 | T92: 0 | U92: 0 | V92: 0 | W92: 0 | X92: 0 | Y92: 0 | Z92: 0 | AA92: 0 | AB92: 0 | AC92: 0 | AD92: 0 | AE92: 0 | AF92: 0
B93: 87 | D93: =(D14<>"")*1 -> 0 | F93: Pensionstillæg Funktionstillæg 1 | G93: =ROUND(G57*17.3%/3,2)*(G5="L") -> 0 | H93: 0 | I93: 0 | J93: 0 | K93: 0 | L93: 0 | M93: 0 | N93: 0 | O93: 0 | P93: 0 | Q93: 0 | R93: 0 | T93: 0 | U93: 0 | V93: 0 | W93: 0 | X93: 0 | Y93: 0 | Z93: 0 | AA93: 0 | AB93: 0 | AC93: 0 | AD93: 0 | AE93: 0 | AF93: 0
B94: 88 | D94: =(D15<>"")*1 -> 0 | F94: Pensionstillæg Funktionstillæg 2 | G94: =ROUND(G58*17.3%/3,2)*(G5="L") -> 0 | H94: 0 | I94: 0 | J94: 0 | K94: 0 | L94: 0 | M94: 0 | N94: 0 | O94: 0 | P94: 0 | Q94: 0 | R94: 0 | T94: 0 | U94: 0 | V94: 0 | W94: 0 | X94: 0 | Y94: 0 | Z94: 0 | AA94: 0 | AB94: 0 | AC94: 0 | AD94: 0 | AE94: 0 | AF94: 0
B95: 89 | D95: =(D16<>"")*1 -> 0 | F95: Pensionstillæg Funktionstillæg 3 | G95: =ROUND(G59*17.3%/3,2)*(G5="L") -> 0 | H95: 0 | I95: 0 | J95: 0 | K95: 0 | L95: 0 | M95: 0 | N95: 0 | O95: 0 | P95: 0 | Q95: 0 | R95: 0 | T95: 0 | U95: 0 | V95: 0 | W95: 0 | X95: 0 | Y95: 0 | Z95: 0 | AA95: 0 | AB95: 0 | AC95: 0 | AD95: 0 | AE95: 0 | AF95: 0
B96: 90 | D96: =(D18<>"")*1 -> 1 | F96: Pensionstillæg Kvalifikationstillæg 1 | G96: =ROUND(G60*17.3%/3,2)*(G5="L") -> 0 | H96: 0 | I96: 0 | J96: 0 | K96: 0 | L96: 0 | M96: 0 | N96: 0 | O96: 0 | P96: 0 | Q96: 0 | R96: 0 | T96: 0 | U96: 0 | V96: 0 | W96: 0 | X96: 0 | Y96: 0 | Z96: 0 | AA96: 0 | AB96: 0 | AC96: 0 | AD96: 0 | AE96: 0 | AF96: 0
B97: 91 | D97: =(D18<>"")*1 -> 1 | F97: Pensionstillæg Kvalifikationstillæg 2 | G97: =ROUND(G61*17.3%/3,2)*(G5="L") -> 0 | H97: 0 | I97: 0 | J97: 0 | K97: 0 | L97: 0 | M97: 0 | N97: 0 | O97: 0 | P97: 0 | Q97: 0 | R97: 0 | T97: 0 | U97: 0 | V97: 0 | W97: 0 | X97: 0 | Y97: 0 | Z97: 0 | AA97: 0 | AB97: 0 | AC97: 0 | AD97: 0 | AE97: 0 | AF97: 0
B98: 92 | D98: =(D19<>"")*1 -> 1 | F98: Pensionstillæg Kvalifikationstillæg 3 | G98: =ROUND(G62*17.3%/3,2)*(G5="L") -> 0 | H98: 0 | I98: 0 | J98: 0 | K98: 0 | L98: 0 | M98: 0 | N98: 0 | O98: 0 | P98: 0 | Q98: 0 | R98: 0 | T98: 0 | U98: 0 | V98: 0 | W98: 0 | X98: 0 | Y98: 0 | Z98: 0 | AA98: 0 | AB98: 0 | AC98: 0 | AD98: 0 | AE98: 0 | AF98: 0
B99: 93 | F99: Pensionstillæg af trin 4-tillæg | G99: =ROUND(G63*17.3%/3,2)*(G5="L") -> 0 | H99: 0 | I99: 0 | J99: 0 | K99: 0 | L99: 0 | M99: 0 | N99: 0 | O99: 0 | P99: 0 | Q99: 0 | R99: 0 | T99: 0 | U99: 0 | V99: 0 | W99: 0 | X99: 0 | Y99: 0 | Z99: 0 | AA99: 0 | AB99: 0 | AC99: 0 | AD99: 0 | AE99: 0 | AF99: =SUM(G99:R99) -> 0
B100: 94 | F100: Pensionstillæg af udligningstillæg | G100: =ROUND(G64*17.3%/3,2)*(G5="L") -> 0 | H100: 0 | I100: 0 | J100: 0 | K100: 0 | L100: 0 | M100: 0 | N100: 0 | O100: 0 | P100: 0 | Q100: 0 | R100: 0 | T100: 0 | U100: 0 | V100: 0 | W100: 0 | X100: 0 | Y100: 0 | Z100: 0 | AA100: 0 | AB100: 0 | AC100: 0 | AD100: 0 | AE100: 0 | AF100: 0
B101: 95 | F101: Pensionstillæg af OK13-tillæg | G101: =ROUND(G66*17.3%/3,2)*(G5="L") -> 0 | H101: 0 | I101: 0 | J101: 0 | K101: 0 | L101: 0 | M101: 0 | N101: 0 | O101: 0 | P101: 0 | Q101: 0 | R101: 0 | T101: 0 | U101: 0 | V101: 0 | W101: 0 | X101: 0 | Y101: 0 | Z101: 0 | AA101: 0 | AB101: 0 | AC101: 0 | AD101: 0 | AE101: 0 | AF101: 0
B102: 96 | F102: Pensionstillæg af OK18-tillæg | G102: =ROUND(G67*17.3%/3,2)*(G5="L") -> 0 | H102: 0 | I102: 0 | J102: 0 | K102: 0 | L102: 0 | M102: 0 | N102: 0 | O102: 0 | P102: 0 | Q102: 0 | R102: 0 | T102: =ROUND(T67*17.3%/3,2)*($T$5="L") -> 0 | U102: 0 | V102: 0 | W102: 0 | X102: 0 | Y102: 0 | Z102: 0 | AA102: 0 | AB102: 0 | AC102: 0 | AD102: 0 | AE102: 0 | AF102: 0
B103: 97 | F103: Pensionstillæg af fast ulempeydelse | G103: =G68*0.173*($C23="x")/3*(G5="L") -> 0 | H103: 0 | I103: 0 | J103: 0 | K103: 0 | L103: 0 | M103: 0 | N103: 0 | O103: 0 | P103: 0 | Q103: 0 | R103: 0 | T103: 0 | U103: 0 | V103: 0 | W103: 0 | X103: 0 | Y103: 0 | Z103: 0 | AA103: 0 | AB103: 0 | AC103: 0 | AD103: 0 | AE103: 0 | AF103: 0
B104: 98 | F104: Pensionstillæg af engangstillæg | G104: =(G84*0.173+(G45*0.173*($C45="x")+G46*0.173*($C46="x")+G42*0.173*(G11<1)))/3*(G5="L") -> 0 | H104: =(H84*0.173+(H45*0.173*($C45="x")+H46*0.173*($C46="x")+H42*0.173*(H11<1)))/3*(H5="L") -> 0 | I104: 0 | J104: 0 | K104: 0 | L104: 0 | M104: 0 | N104: 0 | O104: 0 | P104: 0 | Q104: 0 | R104: 0 | T104: =(T84*0.173+(T45*0.173*($C45="x")+T46*0.173*($C46="x")+T42*0.173*(T10<1)))/3*(T5="L") -> 0 | U104: 0 | V104: 0 | W104: 0 | X104: 0 | Y104: 0 | Z104: 0 | AA104: 0 | AB104: 0 | AC104: 0 | AD104: 0 | AE104: 0 | AF104: 0
B105: 99 | F105: Supplerende pensionstillæg på 18% **) | G105: =IF(LEFT(G$5)<>"L",G148/3,0) -> 0 | H105: =IF(LEFT(H$5)<>"L",H148/3,0) -> 0 | I105: 0 | J105: 0 | K105: 0 | L105: 0 | M105: 0 | N105: 0 | O105: 0 | P105: 0 | Q105: 0 | R105: 0 | T105: =IF(LEFT(T$5)<>"L",T148/3,0) -> 0 | U105: =IF(LEFT(U$5)<>"L",U148/3,0) -> 0 | V105: 0 | W105: 0 | X105: 0 | Y105: 0 | Z105: 0 | AA105: 0 | AB105: 0 | AC105: 0 | AD105: 0 | AE105: 0 | AF105: 0
B106: 96 | F106: Fradrag i pensionstillæg for ikke optjent ferie mv. | G106: =IF(G5="L",G70*17.3%/3,G70*18%/3) -> 0 | H106: =IF(H5="L",H70*17.3%/3,H70*18%/3) -> 0 | I106: 0 | J106: 0 | K106: 0 | L106: 0 | M106: 0 | N106: 0 | O106: 0 | P106: 0 | Q106: 0 | R106: 0 | T106: 0 | U106: 0 | V106: 0 | W106: 0 | X106: 0 | Y106: 0 | Z106: 0 | AA106: 0 | AB106: 0 | AC106: 0 | AD106: 0 | AE106: 0 | AF106: 0
B107: 97 | F107: Pensionstillæg af feriedifference | G107: =G72*17.3%/3*(G5="L") -> 0 | H107: =H72*17.3%/3*(H5="L") -> 0 | I107: 0 | J107: 0 | K107: 0 | L107: 0 | M107: 0 | N107: 0 | O107: 0 | P107: 0 | Q107: 0 | R107: 0 | T107: 0 | U107: 0 | V107: 0 | W107: 0 | X107: 0 | Y107: 0 | Z107: 0 | AA107: 0 | AB107: 0 | AC107: 0 | AD107: 0 | AE107: 0 | AF107: 0
B108: 98 | F108: Ekstra pension i forhold til seniorordning eller orlov uden løn men med pension | G108: =IF(OR(G8="Ja",G11>G10),SUM(T90:T107)-SUM(G90:G107)+T109-G109,0) -> 0 | H108: =IF(OR(H8="Ja",H11>H10),SUM(U90:U107)-SUM(H90:H107)+U109-H109,0) -> 0 | I108: =IF(OR(I8="Ja",I11>I10),SUM(V90:V107)-SUM(I90:I107)+V109-I109,0) -> 0 | J108: 0 | K108: 0 | L108: 0 | M108: 0 | N108: 0 | O108: 0 | P108: 0 | Q108: 0 | R108: 0
B109: 99 | F109: Pension af seniorbonus | G109: =ROUND(G88*17.3%/3,2)*(G5="L") -> 0 | H109: 0 | I109: 0 | J109: 0 | K109: 0 | L109: 0 | M109: 0 | N109: 0 | O109: 0 | P109: 0 | Q109: =ROUND(Q88*17.3%/3,2)*(Q5="L") -> 0 | R109: 0 | T109: =ROUND(T88*17.3%/3,2)*($T$5="L") -> 0 | U109: =ROUND(U88*17.3%/3,2)*($T$5="L") -> 0 | V109: 0 | W109: 0 | X109: 0 | Y109: 0 | Z109: 0 | AA109: 0 | AB109: 0 | AC109: 0 | AD109: 0 | AE109: 0
B110: 100 | F110: Pensionstillæg i alt | G110: =SUM(G90:G109) -> 0 | H110: =SUM(H90:H109) -> 0 | I110: 0 | J110: =SUM(J90:J109) -> 0 | K110: 0 | L110: 0 | M110: 0 | N110: 0 | O110: 0 | P110: 0 | Q110: 0 | R110: 0 | T110: =SUM(T90:T107)+T109 ->  | U110: =SUM(U90:U107)+U109 -> 0 | V110: =SUM(V90:V107) -> 0 | W110: 0 | X110: 0 | Y110: 0 | Z110: 0 | AA110: 0 | AB110: 0 | AC110: 0 | AD110: 0 | AE110: 0 | AF110: 0
B111: =B110+1 -> 101 | F111: Egetbidrag til ATP | G111: =ROUND(G123/3,2) -> 0 | H111: =ROUND(H123/3,2) -> 0 | I111: =IF(I8="Ja",0,ROUND(I123/3,2)) -> 0 | J111: 0 | K111: 0 | L111: 0 | M111: 0 | N111: 0 | O111: 0 | P111: 0 | Q111: 0 | R111: 0 | T111: =ROUND(T123/3,2) -> 0 | U111: =ROUND(U123/3,2) -> 0 | V111: 0 | W111: 0 | X111: 0 | Y111: 0 | Z111: 0 | AA111: 0 | AB111: 0 | AC111: 0 | AD111: 0 | AE111: 0 | AF111: =SUM(G111:R111) -> 0
B112: =B111+1 -> 102 | F112: AMB-grundlag | G112: =SUM(G53:G73)+SUM(G78:G88)-G111 -> 0 | H112: =SUM(H53:H73)+SUM(H78:H88)-H111 -> 0 | I112: 0 | J112: 0 | K112: 0 | L112: 0 | M112: 0 | N112: 0 | O112: 0 | P112: 0 | Q112: 0 | R112: 0 | T112: =SUM(T53:T73)+SUM(T78:T87)-T111 -> 0 | U112: =SUM(U53:U73)+SUM(U78:U87)-U111 -> 0 | V112: =SUM(V53:V73)+SUM(V78:V87)-V111 -> 0 | W112: =SUM(W53:W73)+SUM(W78:W87)-W111 -> 0 | X112: =SUM(X53:X73)+SUM(X78:X87)-X111 -> 0 | Y112: =SUM(Y53:Y73)+SUM(Y78:Y87)-Y111 -> 0 | Z112: =SUM(Z53:Z73)+SUM(Z78:Z87)-Z111 -> 0 | AA112: =SUM(AA53:AA73)+SUM(AA78:AA87)-AA111 -> 0 | AB112: =SUM(AB53:AB73)+SUM(AB78:AB87)-AB111 -> 0 | AC112: =SUM(AC53:AC73)+SUM(AC78:AC87)-AC111 -> 0 | AD112: =SUM(AD53:AD73)+SUM(AD78:AD87)-AD111 -> 0 | AE112: =SUM(AE53:AE73)+SUM(AE78:AE87)-AE111 -> 0 | AF112: =SUM(G112:R112) -> 0
B113: =B112+1 -> 103 | F113: AM-bidrag | G113: =ROUND(G112*8%,0) -> 0 | H113: =ROUND(H112*8%,0) -> 0 | I113: 0 | J113: 0 | K113: 0 | L113: 0 | M113: 0 | N113: 0 | O113: 0 | P113: 0 | Q113: 0 | R113: 0 | T113: =ROUND(T112*8%,0) -> 0 | U113: =ROUND(U112*8%,0) -> 0 | V113: 0 | W113: 0 | X113: 0 | Y113: 0 | Z113: 0 | AA113: 0 | AB113: 0 | AC113: 0 | AD113: 0 | AE113: 0 | AF113: =SUM(G113:R113) -> 0
B114: 104 | F114: A-indkomst | G114: =G112-G113 -> 0 | H114: =H112-H113 -> 0 | I114: 0 | J114: 0 | K114: 0 | L114: 0 | M114: 0 | N114: 0 | O114: 0 | P114: 0 | Q114: 0 | R114: 0 | T114: =T112-T113 -> 0 | U114: =U112-U113 -> 0 | V114: 0 | W114: 0 | X114: 0 | Y114: 0 | Z114: 0 | AA114: 0 | AB114: 0 | AC114: 0 | AD114: 0 | AE114: 0 | AF114: =SUM(G114:R114) -> 0
B115: 105 | F115: Skattegrundlag | G115: =TRUNC((G114-G30)/10)*10 -> 0 | H115: =TRUNC((H114-H30)/10)*10 -> 0 | I115: =IF(I8="Ja",0,TRUNC((I114-I30)/10)*10) -> 0 | J115: =TRUNC((J114-J30)/10)*10 -> 0 | K115: 0 | L115: 0 | M115: 0 | N115: 0 | O115: 0 | P115: 0 | Q115: 0 | R115: 0 | T115: 0 | U115: 0 | V115: 0 | W115: 0 | X115: 0 | Y115: 0 | Z115: 0 | AA115: 0 | AB115: 0 | AC115: 0 | AD115: 0 | AE115: 0
B116: 106 | F116: Skat | G116: =MAX(0,TRUNC(G115*G29/100)) -> 0 | H116: 0 | I116: 0 | J116: 0 | K116: 0 | L116: 0 | M116: 0 | N116: 0 | O116: 0 | P116: 0 | Q116: 0 | R116: 0 | T116: 0 | U116: 0 | V116: 0 | W116: 0 | X116: 0 | Y116: 0 | Z116: 0 | AA116: 0 | AB116: 0 | AC116: 0 | AD116: 0 | AE116: 0 | AF116: =SUM(G116:R116) -> 0
B117: 107 | F117: Feriegodtgørelsesgrundlag | G117: =SUM(G53:G73)+G78+G79+SUM(G80:G84)+G87+G88 -> 0 | H117: =SUM(H53:H73)+H78+H79+SUM(H80:H84)+H87+H88 -> 0 | I117: 0 | J117: 0 | K117: =SUM(K53:K73)+K78+K79+SUM(K80:K84)+K87+K88 -> 0 | L117: 0 | M117: 0 | N117: 0 | O117: =SUM(O53:O73)+O78+O79+SUM(O80:O84)+O87+O88 -> 0 | P117: =SUM(P53:P73)+P78+P79+SUM(P80:P84)+P87+P88 -> 0 | T117: =SUM(T53:T73)+T78+T79+SUM(T80:T85)+T87 -> 0 | U117: =SUM(U53:U73)+U78+U79+SUM(U80:U85)+U87 -> 0 | V117: 0 | W117: 0 | X117: 0 | Y117: 0 | Z117: 0 | AA117: 0 | AB117: 0 | AC117: 0 | AF117: =G117+H117+I117+J117+K117+L117+M117+N117+O117+P117 -> 0
B118: 108 | F118: Feriegodtgørelsesgrundlag juni-juli | Q118: =SUM(Q53:Q73)+Q78+Q79+SUM(Q80:Q85)+Q87+Q88 -> 0 | R118: =SUM(R53:R73)+R78+R79+SUM(R80:R85)+R87+R88 -> 0 | S118: =SUM(Q118:R118) -> 0 | AD118: =SUM(AD53:AD73)+AD78+AD79+SUM(AD80:AD85)+AD87 -> 0 | AE118: =SUM(AE53:AE73)+AE78+AE79+SUM(AE80:AE85)+AE87 -> 0 | AF118: =SUM(L118:R118) -> 0
B119: 109 | F119: Egetbidrag til LP | G119: =G110 -> 0 | H119: =H110 -> 0 | I119: 0 | J119: 0 | K119: 0 | L119: 0 | M119: 0 | N119: 0 | O119: 0 | P119: 0 | Q119: 0 | R119: 0 | T119: =T110 ->  | U119: =U110 -> 0 | V119: 0 | W119: 0 | X119: 0 | Y119: 0 | Z119: 0 | AA119: 0 | AB119: 0 | AC119: 0 | AD119: 0 | AE119: 0 | AF119: 0
B120: 110 | F120: Arbejdsgiverbidrag til LP | G120: =G110*2 -> 0 | H120: =H110*2 -> 0 | I120: 0 | J120: 0 | K120: 0 | L120: 0 | M120: 0 | N120: 0 | O120: 0 | P120: 0 | Q120: 0 | R120: 0 | T120: =T110*2 ->  | U120: =U110*2 -> 0 | V120: 0 | W120: 0 | X120: 0 | Y120: 0 | Z120: 0 | AA120: 0 | AB120: 0 | AC120: 0 | AD120: 0 | AE120: 0 | AF120: 0
B121: 111 | F121: Arbejdsgiverbidrag til ATP | G121: =G123*2/3 -> 0 | H121: =H123*2/3 -> 0 | I121: 0 | J121: 0 | K121: 0 | L121: 0 | M121: 0 | N121: 0 | O121: 0 | P121: 0 | Q121: 0 | R121: 0 | T121: =T123*2/3 -> 0 | U121: =U123*2/3 -> 0 | V121: 0 | W121: 0 | X121: 0 | Y121: 0 | Z121: 0 | AA121: 0 | AB121: 0 | AC121: 0 | AD121: 0 | AE121: 0 | AF121: 0
B122: 112 | F122: Skolens samlede indbetaling til LP | G122: =G119+G120 -> 0 | H122: =H119+H120 -> 0 | I122: 0 | J122: 0 | K122: 0 | L122: 0 | M122: 0 | N122: 0 | O122: 0 | P122: 0 | Q122: 0 | R122: 0 | T122: =T119+T120 ->  | U122: =U119+U120 -> 0 | V122: 0 | W122: 0 | X122: 0 | Y122: 0 | Z122: 0 | AA122: 0 | AB122: 0 | AC122: 0 | AD122: 0 | AE122: 0 | AF122: 0
B123: 113 | F123: Skolens samlede indbetaling til ATP | G123: =297/3*(((G10*G3)>=9/37)+((G10*G3)>=18/37)+((G10*G3)>=27/37)) -> 0 | H123: 0 | I123: 0 | J123: 0 | K123: 0 | L123: =297/3*(((L10*L3)>=9/37)+((L10*L3)>=18/37)+((L10*L3)>=27/37)) -> 0 | M123: =297/3*(((M10*M3)>=9/37)+((M10*M3)>=18/37)+((M10*M3)>=27/37)) -> 0 | N123: 0 | O123: 0 | P123: 0 | Q123: 0 | R123: 0 | T123: =284/3*(((T10*T3)>=9/37)+((T10*T3)>=18/37)+((T10*T3)>=27/37)) -> 0 | U123: 0 | V123: 0 | W123: 0 | X123: 0 | Y123: 0 | Z123: 0 | AA123: 0 | AB123: 0 | AC123: 0 | AD123: 0 | AE123: 0 | AF123: 0
B124: 114 | F124: Skolens indbetaling til tjenestemandspension | G124: =IF(OR(LEFT(G5)="P",LEFT(G5)="E"),ROUND(ROUND(ROUND(VLOOKUP(VALUE(MID(G5,2,2)),Skalalontabel12,7,0)*G6,0)/12,2)*15%*MIN(1,G10)*G3,2)+G149,0) -> 0 | H124: 0 | I124: 0 | J124: 0 | K124: 0 | L124: 0 | M124: 0 | N124: 0 | O124: 0 | P124: 0 | Q124: 0 | R124: 0 | T124: =IF(OR(LEFT(T5)="P",LEFT(T5)="E"),ROUND(ROUND(ROUND(VLOOKUP(VALUE(MID(T5,2,2)),Skalalontabel12,7,0)*T6,0)/12,2)*15%*MIN(1,T10)*T3,2),0) -> 0 | U124: 0 | V124: 0 | W124: 0 | X124: 0 | Y124: 0 | Z124: 0 | AA124: 0 | AB124: 0 | AC124: 0 | AD124: 0 | AE124: 0 | AF124: 0
B125: 115 | F125: Indbetaling til Gruppeliv | G125: =108.35*(G10>0) -> 0 | H125: =108.35*(H10>0) -> 0 | I125: =IF(I8="Ja",0,108.35*(I10>0)) -> 0 | J125: =108.35*(J10>0) -> 0 | K125: 0 | L125: 0 | M125: 0 | N125: 0 | O125: 0 | P125: 0 | Q125: 0 | R125: 0 | T125: 0 | U125: 0 | V125: 0 | W125: 0 | X125: 0 | Y125: 0 | Z125: 0 | AA125: 0 | AB125: 0 | AC125: 0 | AD125: 0 | AE125: 0 | AF125: 0
B126: =B125+1 -> 116 | F126: Løn til den ansattes disposition | G126: =G89-(G116+G111+G113+G125)-G49-G50-G51 -> 0 | H126: =H89-(H116+H111+H113+H125)-H49-H50-H51 -> 0 | I126: =IF(I8="Ja",0,I89-(I116+I111+I113+I125)-I49-I50-I51) -> 0 | J126: =J89-(J116+J111+J113+J125)-J49-J50-J51 -> 0 | K126: 0 | L126: 0 | M126: 0 | N126: 0 | O126: 0 | P126: 0 | Q126: 0 | R126: 0 | T126: 0 | U126: 0 | V126: 0 | W126: 0 | X126: 0 | Y126: 0 | Z126: 0 | AA126: 0 | AB126: 0 | AC126: 0 | AD126: 0 | AE126: 0 | AF126: =SUM(G126:R126) -> 0
B127: 117 | F127: ="Feriepengeberegningsgrundlag, jan-dec "&MID($A$1,3,2)+1 -> Feriepengeberegningsgrundlag, jan-dec 24 | G127: =(G117+G110)*(1-12/260*G24) -> 0 | H127: =(H117+H110)*(1-12/260*H24) -> 0 | I127: =(I117+I110)*(1-12/260*I24) -> 0 | J127: =(J117+J110)*(1-12/260*J24) -> 0 | K127: 0 | L127: Kalenderårets sum benyttes ved fratræden og særlige feriedage | S127: =SUM(G127:K127)+A127 -> 0 | T127: =(T117+T110)*(1-12/260*T24) ->  | U127: =(U117+U110)*(1-12/260*U24) -> 0 | V127: 0 | W127: 0 | X127: 0 | Y127: Kalenderårets sum benyttes ved fratræden og særlige feriedage | AF127: =A127+SUM(G127:K127) -> 0
B128: 118 | F128: ="Feriepengeberegningsgrundlag, jan-jul "&MID($A$1,3,2)+2 -> Feriepengeberegningsgrundlag, jan-jul 25 | G128: Kalenderårets sum benyttes ved fratræden og særlige feriedage | L128: =(L118+L110)*(1-12/260*L24) -> 0 | M128: =(M118+M110)*(1-12/260*M24) -> 0 | N128: 0 | O128: 0 | P128: 0 | Q128: 0 | R128: 0 | S128: =SUM(L128:R128) -> 0 | T128: Kalenderårets sum benyttes ved fratræden og særlige feriedage | Y128: =(Y118+Y110)*(1-12/260*Y24) -> 0 | Z128: =(Z118+Z110)*(1-12/260*Z24) -> 0 | AA128: 0 | AB128: 0 | AC128: 0 | AD128: 0 | AE128: 0 | AF128: =SUM(L128:R128) -> 0
B129: 119 | F129: Beregningsgrundlag for fastpåregnelige løndele | G129: =IF(G10>0,SUM(G53:G69)/G10/G3+G88/G10/G3,0) -> 0 | H129: =IF(H10>0,SUM(H53:H69)/H10/H3+H88/H10/H3,0) -> 0 | I129: 0 | J129: 0 | K129: 0 | L129: 0 | M129: 0 | N129: 0 | O129: 0 | P129: 0 | Q129: 0 | R129: 0 | T129: =IF(T10>0,SUM(T53:T68)/T10/T3,0) -> 0 | U129: 0 | V129: 0 | W129: 0 | X129: 0 | Y129: 0 | Z129: 0 | AA129: 0 | AB129: 0 | AC129: 0 | AD129: 0 | AE129: 0
B130: =B129+1 -> 120 | F130: Beregningsgrundlag af feriediff. for pension | G130: =IF(G10>0,SUM(G90:G103+G109)/G10/G3,0) -> 0 | H130: =IF(H10>0,SUM(H90:H103+H109)/H10/H3,0) -> 0 | I130: =IF(I10>0,SUM(I90:I103+I109)/I10/I3,0) -> 0 | J130: =IF(J10>0,SUM(J90:J103+J109)/J10/J3,0) -> 0 | K130: =IF(K10>0,SUM(K90:K103+K109)/K10/K3,0) -> 0 | L130: =IF(L10>0,SUM(L90:L103+L109)/L10/L3,0) -> 0 | M130: =IF(M10>0,SUM(M90:M103+M109)/M10/M3,0) -> 0 | N130: =IF(N10>0,SUM(N90:N103+N109)/N10/N3,0) -> 0 | O130: =IF(O10>0,SUM(O90:O103+O109)/O10/O3,0) -> 0 | P130: =IF(P10>0,SUM(P90:P103+P109)/P10/P3,0) -> 0 | Q130: =IF(Q10>0,SUM(Q90:Q103+Q109)/Q10/Q3,0) -> 0 | R130: =IF(R10>0,SUM(R90:R103+R109)/R10/R3,0) -> 0 | T130: =IF(T10>0,SUM(T90:T103)/T10/T3,0) -> 0 | U130: 0 | V130: 0 | W130: 0 | X130: 0 | Y130: 0 | Z130: 0 | AA130: 0 | AB130: 0 | AC130: 0 | AD130: 0 | AE130: 0
B131: =B130+1 -> 121 | F131: læ: 0-650, bh: 0-750 | G131: =IF(LEFT(G$4)<>"b",IF(G$12>=650,650*ROUND(16.38*G$6,2)/12,G$12*ROUND(16.38*G$6,2)/12),IF(G$12>=750,750*ROUND(22.41*G$6,2)/12,G$12*ROUND(22.41*G$6,2)/12)) -> 0 | H131: 0 | I131: 0 | J131: 0 | K131: 0 | L131: 0 | M131: 0 | N131: 0 | O131: 0 | P131: 0 | Q131: 0 | R131: 0 | T131: 0 | U131: 0 | V131: 0 | W131: 0 | X131: 0 | Y131: 0 | Z131: 0 | AA131: 0 | AB131: 0 | AC131: 0 | AD131: 0 | AE131: 0 | AF131: specifikation af uv.tillæg
B132: =B131+1 -> 122 | F132: læ: 650-700, bh: 750-800 | G132: =IF(LEFT(G$4)<>"b",IF(G$12>650,IF(G$12>=700,50*ROUND(98.3*G$6,2)/12,(G$12-650)*ROUND(98.3*G$6,2)/12),0),IF(G$12>750,IF(G$12>=800,50*ROUND(65.53*G$6,2)/12,(G$12-750)*ROUND(65.53*G$6,2)/12),0)) -> 0 | H132: 0 | I132: 0 | J132: 0 | K132: 0 | L132: 0 | M132: 0 | N132: 0 | O132: 0 | P132: 0 | Q132: 0 | R132: 0 | T132: 0 | U132: 0 | V132: 0 | W132: 0 | X132: 0 | Y132: 0 | Z132: 0 | AA132: 0 | AB132: 0 | AC132: 0 | AD132: 0 | AE132: 0 | AF132: specifikation af uv.tillæg
B133: =B132+1 -> 123 | F133: læ: 700-750, bh: 800-835 | G133: =IF(LEFT(G$4)<>"b",IF(G$12>700,IF(G$12>=750,50*ROUND(131.07*G$6,2)/12,(G$12-700)*ROUND(131.07*G$6,2)/12),0),IF(G$12>800,IF(G$12>=835,35*ROUND(131.07*G$6,2)/12,(G$12-800)*ROUND(131.07*G$6,2)/12),0)) -> 0 | H133: 0 | I133: 0 | J133: 0 | K133: 0 | L133: 0 | M133: 0 | N133: 0 | O133: 0 | P133: 0 | Q133: 0 | R133: 0 | T133: 0 | U133: 0 | V133: 0 | W133: 0 | X133: 0 | Y133: 0 | Z133: 0 | AA133: 0 | AB133: 0 | AC133: 0 | AD133: 0 | AE133: 0 | AF133: specifikation af uv.tillæg
B134: =B133+1 -> 124 | F134: læ: 750- , bh: 835- | G134: =IF(LEFT(G$4)<>"b",IF(G$12>750,(G$12-750)*ROUND(163.83*G$6,2)/12,0),IF(G$12>835,(G$12-835)*ROUND(163.83*G$6,2)/12,0)) -> 0 | H134: 0 | I134: 0 | J134: 0 | K134: 0 | L134: 0 | M134: 0 | N134: 0 | O134: 0 | P134: 0 | Q134: 0 | R134: 0 | T134: 0 | U134: 0 | V134: 0 | W134: 0 | X134: 0 | Y134: 0 | Z134: 0 | AA134: 0 | AB134: 0 | AC134: 0 | AD134: 0 | AE134: 0 | AF134: specifikation af uv.tillæg
G135: =IF(G10<G11,G124*G10,G124) -> 0
F139: Pensg. løn skalatrin 33 eller 42 | G139: =ROUND(ROUND(ROUND(VLOOKUP(IF(LEFT(G4)="B",33,42),Skalalontabel12,7,0)*G6,0)/12,2)*G10*G3,2) -> 0 | H139: =ROUND(ROUND(ROUND(VLOOKUP(IF(LEFT(H4)="B",33,42),Skalalontabel12,7,0)*H6,0)/12,2)*H10*H3,2) -> 0 | I139: 0 | J139: 0 | K139: 0 | L139: 0 | M139: 0 | N139: 0 | O139: 0 | P139: 0 | Q139: 0 | R139: 0 | T139: 0 | U139: 0 | V139: 0 | W139: 0 | X139: 0 | Y139: 0 | Z139: 0 | AA139: 0 | AB139: 0 | AC139: 0 | AD139: 0 | AE139: 0
F140: PENSIONSGRUNDLAG | G140: =IF($C$56=1,G56,"0")+IF($C$57=1,G57,"0")+IF($C$58=1,G58,"0")+IF($C$59=1,G59,"0")+IF($C$60=1,G60,"0")+IF($C$61=1,G61,"0")+IF($C$62=1,G62,"0")+IF($C$68=1,G68,"0")+G63+G64+G66+G67+G72+G88+IF($C$45="x",G45,"0")+IF($C$46="x",G46,"0")+IF(G84>0,G84,0) -> 0 | H140: =IF($C$56=1,H56,"0")+IF($C$57=1,H57,"0")+IF($C$58=1,H58,"0")+IF($C$59=1,H59,"0")+IF($C$60=1,H60,"0")+IF($C$61=1,H61,"0")+IF($C$62=1,H62,"0")+IF($C$68=1,H68,"0")+H63+H64+H66+H67+H72+H88+IF($C$45="x",H45,"0")+IF($C$46="x",H46,"0")+IF(H84>0,H84,0) -> 0 | I140: 0 | J140: 0 | K140: 0 | L140: 0 | M140: 0 | N140: 0 | O140: 0 | P140: 0 | Q140: 0 | R140: 0 | T140: =IF($C$56=1,T56,"0")+IF($C$57=1,T57,"0")+IF($C$58=1,T58,"0")+IF($C$59=1,T59,"0")+IF($C$60=1,T60,"0")+IF($C$61=1,T61,"0")+IF($C$62=1,T62,"0")+IF($C$68=1,T68,"0")+T63+T64+T66+T67+T72+T88+IF($C$45="x",T45,"0")+IF($C$46="x",T46,"0")+IF(T84>0,T84,0) -> 0 | U140: =IF($C$56=1,U56,"0")+IF($C$57=1,U57,"0")+IF($C$58=1,U58,"0")+IF($C$59=1,U59,"0")+IF($C$60=1,U60,"0")+IF($C$61=1,U61,"0")+IF($C$62=1,U62,"0")+IF($C$68=1,U68,"0")+U63+U64+U66+U67+U72+U88+IF($C$45="x",U45,"0")+IF($C$46="x",U46,"0")+IF(U84>0,U84,0) -> 0 | V140: 0 | W140: 0 | X140: 0 | Y140: 0 | Z140: 0 | AA140: 0 | AB140: 0 | AC140: 0 | AD140: 0 | AE140: 0
F141: 0.18 | G141: =ROUND(G140*18%,2) -> 0 | H141: =ROUND(H140*18%,2) -> 0 | I141: 0 | J141: 0 | K141: 0 | L141: 0 | M141: 0 | N141: 0 | O141: 0 | P141: 0 | Q141: 0 | R141: 0 | T141: =ROUND(T140*18%,2) -> 0 | U141: =ROUND(U140*18%,2) -> 0 | V141: 0 | W141: 0 | X141: 0 | Y141: 0 | Z141: 0 | AA141: 0 | AB141: 0 | AC141: 0 | AD141: 0 | AE141: 0
F142: basisløn, uv-tillæg, område og ok08 | G142: =G53+G54+G55+G65 -> 0 | H142: =H53+H54+H55+H65 -> 0 | I142: 0 | J142: 0 | K142: 0 | L142: 0 | M142: 0 | N142: 0 | O142: 0 | P142: 0 | Q142: 0 | R142: 0 | T142: =T53+T54+T55+T65 -> 0 | U142: 0 | V142: 0 | W142: 0 | X142: 0 | Y142: 0 | Z142: 0 | AA142: 0 | AB142: 0 | AC142: 0 | AD142: 0 | AE142: 0
F143: Hvor meget overstigers skalatrinsløn med | G143: =G142-G139 -> 0 | H143: =H142-H139 -> 0 | I143: 0 | J143: 0 | K143: 0 | L143: 0 | M143: 0 | N143: 0 | O143: 0 | P143: 0 | Q143: 0 | R143: 0 | T143: =T142-T139 -> 0 | U143: =U142-U139 -> 0 | V143: =V142-V139 -> 0 | W143: 0 | X143: 0 | Y143: 0 | Z143: 0 | AA143: 0 | AB143: 0 | AC143: 0 | AD143: 0 | AE143: 0
F144: REN 17,3% PENSION | G144: =IF(AND(G143<-1,G140<G145),G140*17.3%,G141) -> 0 | H144: =IF(AND(H143<-1,H140<H145),H140*17.3%,H141) -> 0 | I144: 0 | J144: 0 | K144: 0 | L144: 0 | M144: 0 | N144: 0 | O144: 0 | P144: 0 | Q144: 0 | R144: 0 | T144: =IF(AND(T143<-1,T140<T145),T140*17.3%,T141) -> 0 | U144: =IF(AND(U143<-1,U140<U145),U140*17.3%,U141) -> 0 | V144: =IF(AND(V143<0,V140<V145),V140*17.3%,0) -> 0 | W144: =IF(AND(W143<-1,W140<W145),W140*17.3%,W141) -> 0 | X144: =IF(AND(X143<0,X140<X145),X140*17.3%,0) -> 0 | Y144: =IF(AND(Y143<-1,Y140<Y145),Y140*17.3%,Y141) -> 0 | Z144: =IF(AND(Z143<0,Z140<Z145),Z140*17.3%,0) -> 0 | AA144: =IF(AND(AA143<-1,AA140<AA145),AA140*17.3%,AA141) -> 0 | AB144: =IF(AND(AB143<0,AB140<AB145),AB140*17.3%,0) -> 0 | AC144: =IF(AND(AC143<-1,AC140<AC145),AC140*17.3%,AC141) -> 0 | AD144: =IF(AND(AD143<0,AD140<AD145),AD140*17.3%,0) -> 0 | AE144: =IF(AND(AE143<-1,AE140<AE145),AE140*17.3%,AE141) -> 0
F145: Supplerende pension | G145: =G143*-1 -> 0 | H145: =H143*-1 -> 0 | I145: 0 | J145: 0 | K145: 0 | L145: 0 | M145: 0 | N145: 0 | O145: 0 | P145: 0 | Q145: 0 | R145: 0 | T145: =T143*-1 -> 0 | U145: =U143*-1 -> 0 | V145: =V143*-1 -> 0 | W145: 0 | X145: 0 | Y145: 0 | Z145: 0 | AA145: 0 | AB145: 0 | AC145: 0 | AD145: 0 | AE145: 0
F146: 18% BEREGNING | G146: =IF(AND(G140>G145,G143<-1),(G140-G145)*18%+G145*17.3%,G140*18%) -> 0 | H146: =IF(AND(H140>H145,H143<-1),(H140-H145)*18%+H145*17.3%,H140*18%) -> 0 | I146: 0 | J146: 0 | K146: 0 | L146: 0 | M146: 0 | N146: 0 | O146: 0 | P146: 0 | Q146: 0 | R146: 0 | T146: =IF(AND(T140>T145,T143<-1),(T140-T145)*18%+T145*17.3%,T140*18%) -> 0 | U146: =IF(AND(U140>U145,U143<-1),(U140-U145)*18%+U145*17.3%,U140*18%) -> 0 | V146: =IF(AND(V140>V145,V143<-1),(V140-V145)*18%+V145*17.3%,V140*18%) -> 0 | W146: 0 | X146: 0 | Y146: 0 | Z146: 0 | AA146: 0 | AB146: 0 | AC146: 0 | AD146: 0 | AE146: 0
F147: ER DER EN 17,3% FRADRAG | G147: =IF(AND(G143<-1,G140<G145),G140*-0.7%,0) -> 0 | H147: =IF(AND(H143<-1,H140<H145),H140*-0.7%,0) -> 0 | I147: 0 | J147: 0 | K147: 0 | L147: 0 | M147: 0 | N147: 0 | O147: 0 | P147: 0 | Q147: 0 | R147: 0 | T147: =IF(AND(T143<-1,T140<T145),T140*-0.7%,0) -> 0 | U147: =IF(AND(U143<-1,U140<U145),U140*-0.7%,0) -> 0 | V147: =IF(AND(V143<-1,V140<V145),V140*-0.7%,0) -> 0 | W147: 0 | X147: 0 | Y147: 0 | Z147: 0 | AA147: 0 | AB147: 0 | AC147: 0 | AD147: 0 | AE147: 0
F148: SUPPLERENDE PENSION I ALT | G148: =IF(G143<-1,G146-G147,G141) -> 0 | H148: =IF(H143<-1,H146-H147,H141) -> 0 | I148: 0 | J148: 0 | K148: 0 | L148: 0 | M148: 0 | N148: 0 | O148: 0 | P148: 0 | Q148: 0 | R148: 0 | T148: =IF(T143<-1,T146-T147,T141) -> 0 | U148: =IF(U143<-1,U146-U147,U141) -> 0 | V148: =SUM(V146:V147) -> 0 | W148: =IF(W143<-1,W146-W147,W141) -> 0 | X148: =SUM(X146:X147) -> 0 | Y148: =IF(Y143<-1,Y146-Y147,Y141) -> 0 | Z148: =SUM(Z146:Z147) -> 0 | AA148: =IF(AA143<-1,AA146-AA147,AA141) -> 0 | AB148: =SUM(AB146:AB147) -> 0 | AC148: =IF(AC143<-1,AC146-AC147,AC141) -> 0 | AD148: =SUM(AD146:AD147) -> 0 | AE148: =IF(AE143<-1,AE146-AE147,AE141) -> 0
F149: Difference tjenestemandspension - seniorordning | G149: =T124-(T124/T11*G10) ->  | H149: =U124-(U124/U11*H10) ->  | I149: =V124-(V124/V11*I10) ->  | J149: =W124-(W124/W11*J10) ->  | K149: =X124-(X124/X11*K10) ->  | L149: =Y124-(Y124/Y11*L10) ->  | M149: =Z124-(Z124/Z11*M10) ->  | N149: =AA124-(AA124/AA11*N10) ->  | O149: =AB124-(AB124/AB11*O10) ->  | P149: =AC124-(AC124/AC11*P10) ->  | Q149: =AD124-(AD124/AD11*Q10) ->  | R149: =AE124-(AE124/AE11*R10) -> 
F157: ferietillægsberegning | P157: ="1,5% * "&TEXT($A117+SUM($G117:$K117),"#.000,00")&" (feriegodtgørelsesgrundlag for "&LEFT($A$1,4)+1&")" -> 1,5% * 000,00 (feriegodtgørelsesgrundlag for 2024) | Q157: ="1,5% * "&TEXT($A117+SUM($G117:$K117),"#.000,00")&" (feriegodtgørelsesgrundlag for "&LEFT($A$1,4)+1&")" -> 1,5% * 000,00 (feriegodtgørelsesgrundlag for 2024) | R157: ="1,5% * "&TEXT($A117+SUM($G117:$K117),"#.000,00")&" (feriegodtgørelsesgrundlag for "&LEFT($A$1,4)+1&")" -> 1,5% * 000,00 (feriegodtgørelsesgrundlag for 2024) | AC157: ="1,5% * "&TEXT($A117+SUM($G117:$K117),"#.000,00")&" (feriegodtgørelsesgrundlag for "&LEFT($A$1,4)+1&")" -> 1,5% * 000,00 (feriegodtgørelsesgrundlag for 2024) | AD157: ="1,5% * "&TEXT($A117+SUM($G117:$K117),"#.000,00")&" (feriegodtgørelsesgrundlag for "&LEFT($A$1,4)+1&")" -> 1,5% * 000,00 (feriegodtgørelsesgrundlag for 2024) | AE157: ="1,5% * "&TEXT($A117+SUM($G117:$K117),"#.000,00")&" (feriegodtgørelsesgrundlag for "&LEFT($A$1,4)+1&")" -> 1,5% * 000,00 (feriegodtgørelsesgrundlag for 2024)
A162: LinJer i spec-arket, til beregn. af timeløn mv. | G162: ="lin. 1 - lin.16" -> lin. 1 - lin.16 | H162: ="lin. 1, lin.2"&IF($D57>0,", lin.5","")&IF($D58>0,", lin.6","")&IF($D59>0,", lin.7","")&IF($D60>0,", lin.8","")&IF($D61>0,", lin.9","")&IF($D62>0,", lin.10","")&", lin. 11 - lin. 15"&IF($D68>0,", lin.16","") -> lin. 1, lin.2, lin.8, lin.9, lin.10, lin. 11 - lin. 15 | I162: lin. 1, lin.2, lin.8, lin.9, lin.10, lin. 11 - lin. 15 | J162: lin. 1, lin.2, lin.8, lin.9, lin.10, lin. 11 - lin. 15 | K162: lin. 1, lin.2, lin.8, lin.9, lin.10, lin. 11 - lin. 15 | L162: lin. 1, lin.2, lin.8, lin.9, lin.10, lin. 11 - lin. 15 | M162: lin. 1, lin.2, lin.8, lin.9, lin.10, lin. 11 - lin. 15 | N162: lin. 1, lin.2, lin.8, lin.9, lin.10, lin. 11 - lin. 15 | O162: lin. 1, lin.2, lin.8, lin.9, lin.10, lin. 11 - lin. 15 | P162: lin. 1, lin.2, lin.8, lin.9, lin.10, lin. 11 - lin. 15 | Q162: lin. 1, lin.2, lin.8, lin.9, lin.10, lin. 11 - lin. 15 | R162: lin. 1, lin.2, lin.8, lin.9, lin.10, lin. 11 - lin. 15 | T162: ="lin. 1 - lin.16" -> lin. 1 - lin.16 | U162: ="lin. 1, lin.2"&IF($D57>0,", lin.5","")&IF($D58>0,", lin.6","")&IF($D59>0,", lin.7","")&IF($D60>0,", lin.8","")&IF($D61>0,", lin.9","")&IF($D62>0,", lin.10","")&", lin. 11 - lin. 15"&IF($D68>0,", lin.16","") -> lin. 1, lin.2, lin.8, lin.9, lin.10, lin. 11 - lin. 15 | V162: lin. 1, lin.2, lin.8, lin.9, lin.10, lin. 11 - lin. 15 | W162: lin. 1, lin.2, lin.8, lin.9, lin.10, lin. 11 - lin. 15 | X162: lin. 1, lin.2, lin.8, lin.9, lin.10, lin. 11 - lin. 15 | Y162: lin. 1, lin.2, lin.8, lin.9, lin.10, lin. 11 - lin. 15 | Z162: lin. 1, lin.2, lin.8, lin.9, lin.10, lin. 11 - lin. 15 | AA162: lin. 1, lin.2, lin.8, lin.9, lin.10, lin. 11 - lin. 15 | AB162: lin. 1, lin.2, lin.8, lin.9, lin.10, lin. 11 - lin. 15 | AC162: lin. 1, lin.2, lin.8, lin.9, lin.10, lin. 11 - lin. 15 | AD162: lin. 1, lin.2, lin.8, lin.9, lin.10, lin. 11 - lin. 15 | AE162: lin. 1, lin.2, lin.8, lin.9, lin.10, lin. 11 - lin. 15
A163: Timetakst vedr 25, og 50% mv. | G163: =ROUND(G129/160.33,2) -> 0 | H163: 0 | I163: 0 | J163: 0 | K163: 0 | L163: 0 | M163: 0 | N163: 0 | O163: 0 | P163: 0 | Q163: 0 | R163: 0 | T163: =ROUND(T129/160.33,2) -> 0 | U163: 0 | V163: 0 | W163: 0 | X163: 0 | Y163: 0 | Z163: 0 | AA163: 0 | AB163: 0 | AC163: 0 | AD163: 0 | AE163: 0
A164: Timetakst vedr 25, og 50% mv., pensionstillæg | G164: =ROUND(G130/160.33,2) -> 0 | H164: 0 | I164: 0 | J164: 0 | K164: 0 | L164: 0 | M164: 0 | N164: 0 | O164: 0 | P164: 0 | Q164: 0 | R164: 0 | T164: =ROUND(T130/160.33,2) -> 0 | U164: 0 | V164: 0 | W164: 0 | X164: 0 | Y164: 0 | Z164: 0 | AA164: 0 | AB164: 0 | AC164: 0 | AD164: 0 | AE164: 0
A165: Læ UV-tillæg | G165: ="= ("&TEXT(16.38*G$6,"#0,00")&" * "&MIN(650,G$12)&" + "&TEXT(98.3*G$6,"#0,00")&" * "&MAX(0,MIN(50,G$12-650))&" + "&TEXT(131.07*G$6,"#0,00")&" * "&MAX(0,MIN(50,G$12-700))&" + "&TEXT(163.83*G$6,"#0,00")&" * "&MAX(0,G$12-750)&") / 12 * "&TEXT(G$3,"#0/#0")&" =" -> = (20,12 * 650 + 120,72 * 0 + 160,96 * 0 + 201,19 * 0) / 12 * 1/1 = | H165: = (20,12 * 0 + 120,72 * 0 + 160,96 * 0 + 201,19 * 0) / 12 * 1/1 = | I165: = (20,12 * 0 + 120,72 * 0 + 160,96 * 0 + 201,19 * 0) / 12 * 1/1 = | J165: = (20,12 * 0 + 120,72 * 0 + 160,96 * 0 + 201,19 * 0) / 12 * 1/1 = | K165: = (20,12 * 0 + 120,72 * 0 + 160,96 * 0 + 201,19 * 0) / 12 * 1/1 = | L165: = (20,12 * 0 + 120,72 * 0 + 160,96 * 0 + 201,19 * 0) / 12 * 1/1 = | M165: = (20,12 * 0 + 120,72 * 0 + 160,96 * 0 + 201,19 * 0) / 12 * 1/1 = | N165: = (20,12 * 0 + 120,72 * 0 + 160,96 * 0 + 201,19 * 0) / 12 * 1/1 = | O165: = (20,12 * 0 + 120,72 * 0 + 160,96 * 0 + 201,19 * 0) / 12 * 1/1 = | P165: = (20,12 * 0 + 120,72 * 0 + 160,96 * 0 + 201,19 * 0) / 12 * 1/1 = | Q165: = (20,12 * 0 + 120,72 * 0 + 160,96 * 0 + 201,19 * 0) / 12 * 1/1 = | R165: = (20,12 * 0 + 120,72 * 0 + 160,96 * 0 + 201,19 * 0) / 12 * 1/1 = | T165: = (20,12 * 0 + 120,72 * 0 + 160,96 * 0 + 201,19 * 0) / 12 * 1/1 = | U165: = (20,12 * 0 + 120,72 * 0 + 160,96 * 0 + 201,19 * 0) / 12 * 1/1 = | V165: = (20,12 * 0 + 120,72 * 0 + 160,96 * 0 + 201,19 * 0) / 12 * 1/1 = | W165: = (20,12 * 0 + 120,72 * 0 + 160,96 * 0 + 201,19 * 0) / 12 * 1/1 = | X165: = (20,12 * 0 + 120,72 * 0 + 160,96 * 0 + 201,19 * 0) / 12 * 1/1 = | Y165: = (20,12 * 0 + 120,72 * 0 + 160,96 * 0 + 201,19 * 0) / 12 * 1/1 = | Z165: = (20,12 * 0 + 120,72 * 0 + 160,96 * 0 + 201,19 * 0) / 12 * 1/1 = | AA165: = (20,12 * 0 + 120,72 * 0 + 160,96 * 0 + 201,19 * 0) / 12 * 1/1 = | AB165: = (20,12 * 0 + 120,72 * 0 + 160,96 * 0 + 201,19 * 0) / 12 * 1/1 = | AC165: = (20,12 * 0 + 120,72 * 0 + 160,96 * 0 + 201,19 * 0) / 12 * 1/1 = | AD165: = (20,12 * 0 + 120,72 * 0 + 160,96 * 0 + 201,19 * 0) / 12 * 1/1 = | AE165: = (20,12 * 0 + 120,72 * 0 + 160,96 * 0 + 201,19 * 0) / 12 * 1/1 =
A166: Bhkl-uvtillæg | G166: ="= ("&TEXT(22.41*G$6,"#0,00")&" * "&MIN(750,G$12)&" + "&TEXT(55.63*G$6,"#0,00")&" * "&MAX(0,MIN(50,G$12-750))&" + "&TEXT(131.07*G$6,"#0,00")&" * "&MAX(0,MIN(50,G$12-800))&" + "&TEXT(163.83*G$6,"#0,00")&" * "&MAX(0,G$12-835)&") / 12 * "&TEXT(G$3,"#0/#0")&" =" -> = (27,52 * 750 + 68,32 * 0 + 160,96 * 0 + 201,19 * 0) / 12 * 1/1 = | H166: = (27,52 * 0 + 68,32 * 0 + 160,96 * 0 + 201,19 * 0) / 12 * 1/1 = | I166: = (27,52 * 0 + 68,32 * 0 + 160,96 * 0 + 201,19 * 0) / 12 * 1/1 = | J166: = (27,52 * 0 + 68,32 * 0 + 160,96 * 0 + 201,19 * 0) / 12 * 1/1 = | K166: = (27,52 * 0 + 68,32 * 0 + 160,96 * 0 + 201,19 * 0) / 12 * 1/1 = | L166: = (27,52 * 0 + 68,32 * 0 + 160,96 * 0 + 201,19 * 0) / 12 * 1/1 = | M166: = (27,52 * 0 + 68,32 * 0 + 160,96 * 0 + 201,19 * 0) / 12 * 1/1 = | N166: = (27,52 * 0 + 68,32 * 0 + 160,96 * 0 + 201,19 * 0) / 12 * 1/1 = | O166: = (27,52 * 0 + 68,32 * 0 + 160,96 * 0 + 201,19 * 0) / 12 * 1/1 = | P166: = (27,52 * 0 + 68,32 * 0 + 160,96 * 0 + 201,19 * 0) / 12 * 1/1 = | Q166: = (27,52 * 0 + 68,32 * 0 + 160,96 * 0 + 201,19 * 0) / 12 * 1/1 = | R166: = (27,52 * 0 + 68,32 * 0 + 160,96 * 0 + 201,19 * 0) / 12 * 1/1 = | T166: = (27,52 * 0 + 68,32 * 0 + 160,96 * 0 + 201,19 * 0) / 12 * 1/1 = | U166: = (27,52 * 0 + 68,32 * 0 + 160,96 * 0 + 201,19 * 0) / 12 * 1/1 = | V166: = (27,52 * 0 + 68,32 * 0 + 160,96 * 0 + 201,19 * 0) / 12 * 1/1 = | W166: = (27,52 * 0 + 68,32 * 0 + 160,96 * 0 + 201,19 * 0) / 12 * 1/1 = | X166: = (27,52 * 0 + 68,32 * 0 + 160,96 * 0 + 201,19 * 0) / 12 * 1/1 = | Y166: = (27,52 * 0 + 68,32 * 0 + 160,96 * 0 + 201,19 * 0) / 12 * 1/1 = | Z166: = (27,52 * 0 + 68,32 * 0 + 160,96 * 0 + 201,19 * 0) / 12 * 1/1 = | AA166: = (27,52 * 0 + 68,32 * 0 + 160,96 * 0 + 201,19 * 0) / 12 * 1/1 = | AB166: = (27,52 * 0 + 68,32 * 0 + 160,96 * 0 + 201,19 * 0) / 12 * 1/1 = | AC166: = (27,52 * 0 + 68,32 * 0 + 160,96 * 0 + 201,19 * 0) / 12 * 1/1 = | AD166: = (27,52 * 0 + 68,32 * 0 + 160,96 * 0 + 201,19 * 0) / 12 * 1/1 = | AE166: = (27,52 * 0 + 68,32 * 0 + 160,96 * 0 + 201,19 * 0) / 12 * 1/1 =
B167: 1 | D167: 50 | F167: Basisløn | G167: ="= "&TEXT(VLOOKUP(G$4,basistabel12,2,0)*G$6/12,"#.000,00")&" * "&TEXT(G$10,"0,0000")&" * "&TEXT(G$3,"#0/#0")&" =" ->  | U167: ="= "&TEXT(VLOOKUP(U4,basistabel12,2,0)*U6/12,"#.000,00")&" * "&TEXT(U10,"0,0000")&" * "&TEXT(U3,"#0/#0")&" =" -> 
B168: =B167+1 -> 2 | D168: =B54 -> 51 | F168: Områdetillæg | G168: ="= "&TEXT(VLOOKUP(G$4,omraadetabel12,G$7,0)/12,"#.000,00")&" * "&TEXT(G$10,"0,0000")&" * "&TEXT(G$3,"#0/#0")&" =" -> 
B169: =B168+1 -> 3 | D169: 52 | F169: Undervisningstillæg | G169: =IF(LEFT(G4)="L",G165,G166) -> = (27,52 * 750 + 68,32 * 0 + 160,96 * 0 + 201,19 * 0) / 12 * 1/1 = | H169: =IF(LEFT(H4)="L",H165,H166) -> = (27,52 * 0 + 68,32 * 0 + 160,96 * 0 + 201,19 * 0) / 12 * 1/1 = | I169: = (27,52 * 0 + 68,32 * 0 + 160,96 * 0 + 201,19 * 0) / 12 * 1/1 = | J169: = (27,52 * 0 + 68,32 * 0 + 160,96 * 0 + 201,19 * 0) / 12 * 1/1 = | K169: = (27,52 * 0 + 68,32 * 0 + 160,96 * 0 + 201,19 * 0) / 12 * 1/1 = | L169: = (27,52 * 0 + 68,32 * 0 + 160,96 * 0 + 201,19 * 0) / 12 * 1/1 = | M169: = (27,52 * 0 + 68,32 * 0 + 160,96 * 0 + 201,19 * 0) / 12 * 1/1 = | N169: = (27,52 * 0 + 68,32 * 0 + 160,96 * 0 + 201,19 * 0) / 12 * 1/1 = | O169: = (27,52 * 0 + 68,32 * 0 + 160,96 * 0 + 201,19 * 0) / 12 * 1/1 = | P169: = (27,52 * 0 + 68,32 * 0 + 160,96 * 0 + 201,19 * 0) / 12 * 1/1 = | Q169: =IF(LEFT(Q4)="L",Q165,Q166) -> = (27,52 * 0 + 68,32 * 0 + 160,96 * 0 + 201,19 * 0) / 12 * 1/1 = | R169: = (27,52 * 0 + 68,32 * 0 + 160,96 * 0 + 201,19 * 0) / 12 * 1/1 = | S169: 0 | T169: = (27,52 * 0 + 68,32 * 0 + 160,96 * 0 + 201,19 * 0) / 12 * 1/1 = | U169: = (27,52 * 0 + 68,32 * 0 + 160,96 * 0 + 201,19 * 0) / 12 * 1/1 = | V169: = (27,52 * 0 + 68,32 * 0 + 160,96 * 0 + 201,19 * 0) / 12 * 1/1 = | W169: = (27,52 * 0 + 68,32 * 0 + 160,96 * 0 + 201,19 * 0) / 12 * 1/1 = | X169: = (27,52 * 0 + 68,32 * 0 + 160,96 * 0 + 201,19 * 0) / 12 * 1/1 = | Y169: = (27,52 * 0 + 68,32 * 0 + 160,96 * 0 + 201,19 * 0) / 12 * 1/1 = | Z169: = (27,52 * 0 + 68,32 * 0 + 160,96 * 0 + 201,19 * 0) / 12 * 1/1 = | AA169: = (27,52 * 0 + 68,32 * 0 + 160,96 * 0 + 201,19 * 0) / 12 * 1/1 = | AB169: = (27,52 * 0 + 68,32 * 0 + 160,96 * 0 + 201,19 * 0) / 12 * 1/1 = | AC169: = (27,52 * 0 + 68,32 * 0 + 160,96 * 0 + 201,19 * 0) / 12 * 1/1 = | AD169: = (27,52 * 0 + 68,32 * 0 + 160,96 * 0 + 201,19 * 0) / 12 * 1/1 = | AE169: = (27,52 * 0 + 68,32 * 0 + 160,96 * 0 + 201,19 * 0) / 12 * 1/1 =
B170: 4 | D170: 53 | F170: Souscheftillæg | G170: 19.300 i årligt grundbeløb. Ikke afh. Af bg. | H170: 19.300 i årligt grundbeløb. Ikke afh. Af bg. | I170: 19.300 i årligt grundbeløb. Ikke afh. Af bg. | J170: 19.300 i årligt grundbeløb. Ikke afh. Af bg. | K170: 19.300 i årligt grundbeløb. Ikke afh. Af bg. | L170: 19.300 i årligt grundbeløb. Ikke afh. Af bg. | M170: 19.300 i årligt grundbeløb. Ikke afh. Af bg. | N170: 19.300 i årligt grundbeløb. Ikke afh. Af bg. | O170: 19.300 i årligt grundbeløb. Ikke afh. Af bg. | P170: 19.300 i årligt grundbeløb. Ikke afh. Af bg. | Q170: 19.300 i årligt grundbeløb. Ikke afh. Af bg. | R170: 19.300 i årligt grundbeløb. Ikke afh. Af bg. | S170: 19.300 i årligt grundbeløb. Ikke afh. Af bg. | T170: 19.300 i årligt grundbeløb. Ikke afh. Af bg. | U170: 19.300 i årligt grundbeløb. Ikke afh. Af bg. | V170: 19.300 i årligt grundbeløb. Ikke afh. Af bg. | W170: 19.300 i årligt grundbeløb. Ikke afh. Af bg. | X170: 19.300 i årligt grundbeløb. Ikke afh. Af bg. | Y170: 19.300 i årligt grundbeløb. Ikke afh. Af bg. | Z170: 19.300 i årligt grundbeløb. Ikke afh. Af bg. | AA170: 19.300 i årligt grundbeløb. Ikke afh. Af bg. | AB170: 19.300 i årligt grundbeløb. Ikke afh. Af bg. | AC170: 19.300 i årligt grundbeløb. Ikke afh. Af bg. | AD170: 19.300 i årligt grundbeløb. Ikke afh. Af bg. | AE170: 19.300 i årligt grundbeløb. Ikke afh. Af bg.
B171: 5 | D171: 54 | F171: Funktionstillæg 1 | G171: ="= "&TEXT(G14,"#.###,00")&" * "&G$6&IF($D57>0," * "&TEXT(G$10,"0,0000"),"")&" * "&TEXT(G$3,"#0/#0")&" / 12 =" -> = ,00 * 1,228067 * 1/1 / 12 = | H171: ="= "&TEXT(H14,"#.###,00")&" * "&H$6&IF($D57>0," * "&TEXT(H$10,"0,0000"),"")&" * "&TEXT(H$3,"#0/#0")&" / 12 =" -> = ,00 * 1,228067 * 1/1 / 12 = | I171: = ,00 * 1,228067 * 1/1 / 12 = | J171: = ,00 * 1,228067 * 1/1 / 12 = | K171: = ,00 * 1,228067 * 1/1 / 12 = | L171: = ,00 * 1,228067 * 1/1 / 12 = | M171: = ,00 * 1,228067 * 1/1 / 12 = | N171: = ,00 * 1,228067 * 1/1 / 12 = | O171: = ,00 * 1,228067 * 1/1 / 12 = | P171: = ,00 * 1,228067 * 1/1 / 12 = | Q171: ="= "&TEXT(Q14,"#.###,00")&" * "&Q$6&IF($D57>0," * "&TEXT(Q$10,"0,0000"),"")&" * "&TEXT(Q$3,"#0/#0")&" / 12 =" -> = ,00 * 1,228067 * 1/1 / 12 = | R171: = ,00 * 1,228067 * 1/1 / 12 = | S171: = ,00 * * 0/1 / 12 = | T171: = ,00 * 1,228067 * 1/1 / 12 = | U171: = ,00 * 1,228067 * 1/1 / 12 = | V171: = ,00 * 1,228067 * 1/1 / 12 = | W171: = ,00 * 1,228067 * 1/1 / 12 = | X171: = ,00 * 1,228067 * 1/1 / 12 = | Y171: = ,00 * 1,228067 * 1/1 / 12 = | Z171: = ,00 * 1,228067 * 1/1 / 12 = | AA171: = ,00 * 1,228067 * 1/1 / 12 = | AB171: = ,00 * 1,228067 * 1/1 / 12 = | AC171: = ,00 * 1,228067 * 1/1 / 12 = | AD171: = ,00 * 1,228067 * 1/1 / 12 = | AE171: = ,00 * 1,228067 * 1/1 / 12 =
B172: 6 | D172: 55 | F172: Funktionstillæg 2 | G172: ="= "&TEXT(G15,"#.###,00")&" * "&G$6&IF($D58>0," * "&TEXT(G$10,"0,0000"),"")&" * "&TEXT(G$3,"#0/#0")&" / 12 =" -> = ,00 * 1,228067 * 1/1 / 12 = | H172: ="= "&TEXT(H15,"#.###,00")&" * "&H$6&IF($D58>0," * "&TEXT(H$10,"0,0000"),"")&" * "&TEXT(H$3,"#0/#0")&" / 12 =" -> = ,00 * 1,228067 * 1/1 / 12 = | I172: = ,00 * 1,228067 * 1/1 / 12 = | J172: = ,00 * 1,228067 * 1/1 / 12 = | K172: = ,00 * 1,228067 * 1/1 / 12 = | L172: = ,00 * 1,228067 * 1/1 / 12 = | M172: = ,00 * 1,228067 * 1/1 / 12 = | N172: = ,00 * 1,228067 * 1/1 / 12 = | O172: = ,00 * 1,228067 * 1/1 / 12 = | P172: = ,00 * 1,228067 * 1/1 / 12 = | Q172: ="= "&TEXT(Q15,"#.###,00")&" * "&Q$6&IF($D58>0," * "&TEXT(Q$10,"0,0000"),"")&" * "&TEXT(Q$3,"#0/#0")&" / 12 =" -> = ,00 * 1,228067 * 1/1 / 12 = | R172: = ,00 * 1,228067 * 1/1 / 12 = | S172: = ,00 * * 0/1 / 12 = | T172: = ,00 * 1,228067 * 1/1 / 12 = | U172: = ,00 * 1,228067 * 1/1 / 12 = | V172: = ,00 * 1,228067 * 1/1 / 12 = | W172: = ,00 * 1,228067 * 1/1 / 12 = | X172: = ,00 * 1,228067 * 1/1 / 12 = | Y172: = ,00 * 1,228067 * 1/1 / 12 = | Z172: = ,00 * 1,228067 * 1/1 / 12 = | AA172: = ,00 * 1,228067 * 1/1 / 12 = | AB172: = ,00 * 1,228067 * 1/1 / 12 = | AC172: = ,00 * 1,228067 * 1/1 / 12 = | AD172: = ,00 * 1,228067 * 1/1 / 12 = | AE172: = ,00 * 1,228067 * 1/1 / 12 =
B173: 7 | D173: 56 | F173: Funktionstillæg 3 | G173: ="= "&TEXT(G16,"#.###,00")&" * "&G$6&IF($D59>0," * "&TEXT(G$10,"0,0000"),"")&" * "&TEXT(G$3,"#0/#0")&" / 12 =" -> = ,00 * 1,228067 * 1/1 / 12 = | H173: ="= "&TEXT(H16,"#.###,00")&" * "&H$6&IF($D59>0," * "&TEXT(H$10,"0,0000"),"")&" * "&TEXT(H$3,"#0/#0")&" / 12 =" -> = ,00 * 1,228067 * 1/1 / 12 = | I173: = ,00 * 1,228067 * 1/1 / 12 = | J173: = ,00 * 1,228067 * 1/1 / 12 = | K173: = ,00 * 1,228067 * 1/1 / 12 = | L173: = ,00 * 1,228067 * 1/1 / 12 = | M173: = ,00 * 1,228067 * 1/1 / 12 = | N173: = ,00 * 1,228067 * 1/1 / 12 = | O173: = ,00 * 1,228067 * 1/1 / 12 = | P173: = ,00 * 1,228067 * 1/1 / 12 = | Q173: ="= "&TEXT(Q16,"#.###,00")&" * "&Q$6&IF($D59>0," * "&TEXT(Q$10,"0,0000"),"")&" * "&TEXT(Q$3,"#0/#0")&" / 12 =" -> = ,00 * 1,228067 * 1/1 / 12 = | R173: = ,00 * 1,228067 * 1/1 / 12 = | S173: = ,00 * * 0/1 / 12 = | T173: = ,00 * 1,228067 * 1/1 / 12 = | U173: = ,00 * 1,228067 * 1/1 / 12 = | V173: = ,00 * 1,228067 * 1/1 / 12 = | W173: = ,00 * 1,228067 * 1/1 / 12 = | X173: = ,00 * 1,228067 * 1/1 / 12 = | Y173: = ,00 * 1,228067 * 1/1 / 12 = | Z173: = ,00 * 1,228067 * 1/1 / 12 = | AA173: = ,00 * 1,228067 * 1/1 / 12 = | AB173: = ,00 * 1,228067 * 1/1 / 12 = | AC173: = ,00 * 1,228067 * 1/1 / 12 = | AD173: = ,00 * 1,228067 * 1/1 / 12 = | AE173: = ,00 * 1,228067 * 1/1 / 12 =
B174: 8 | D174: 57 | F174: Kvalifikationstillæg 1 | G174: ="= "&TEXT(G17,"#.###,00")&" * "&G$6&IF($D60>0," * "&TEXT(G$10,"0,0000"),"")&" * "&TEXT(G$3,"#0/#0")&" / 12 =" -> = ,00 * 1,228067 * 0,0000 * 1/1 / 12 = | H174: ="= "&TEXT(H17,"#.###,00")&" * "&H$6&IF($D60>0," * "&TEXT(H$10,"0,0000"),"")&" * "&TEXT(H$3,"#0/#0")&" / 12 =" -> = ,00 * 1,228067 * 0,0000 * 1/1 / 12 = | I174: = ,00 * 1,228067 * 0,0000 * 1/1 / 12 = | J174: = ,00 * 1,228067 * 0,0000 * 1/1 / 12 = | K174: = ,00 * 1,228067 * 0,0000 * 1/1 / 12 = | L174: = ,00 * 1,228067 * 0,0000 * 1/1 / 12 = | M174: = ,00 * 1,228067 * 0,0000 * 1/1 / 12 = | N174: = ,00 * 1,228067 * 0,0000 * 1/1 / 12 = | O174: = ,00 * 1,228067 * 0,0000 * 1/1 / 12 = | P174: = ,00 * 1,228067 * 0,0000 * 1/1 / 12 = | Q174: ="= "&TEXT(Q17,"#.###,00")&" * "&Q$6&IF($D60>0," * "&TEXT(Q$10,"0,0000"),"")&" * "&TEXT(Q$3,"#0/#0")&" / 12 =" -> = ,00 * 1,228067 * 0,0000 * 1/1 / 12 = | R174: = ,00 * 1,228067 * 0,0000 * 1/1 / 12 = | S174: = ,00 * * 0,0000 * 0/1 / 12 = | T174: = ,00 * 1,228067 * 0,0000 * 1/1 / 12 = | U174: = ,00 * 1,228067 * 0,0000 * 1/1 / 12 = | V174: = ,00 * 1,228067 * 0,0000 * 1/1 / 12 = | W174: = ,00 * 1,228067 * 0,0000 * 1/1 / 12 = | X174: = ,00 * 1,228067 * 0,0000 * 1/1 / 12 = | Y174: = ,00 * 1,228067 * 0,0000 * 1/1 / 12 = | Z174: = ,00 * 1,228067 * 0,0000 * 1/1 / 12 = | AA174: = ,00 * 1,228067 * 0,0000 * 1/1 / 12 = | AB174: = ,00 * 1,228067 * 0,0000 * 1/1 / 12 = | AC174: = ,00 * 1,228067 * 0,0000 * 1/1 / 12 = | AD174: = ,00 * 1,228067 * 0,0000 * 1/1 / 12 = | AE174: = ,00 * 1,228067 * 0,0000 * 1/1 / 12 =
B175: 9 | D175: 58 | F175: Kvalifikationstillæg 2 | G175: ="= "&TEXT(G18,"#.###,00")&" * "&G$6&IF($D61>0," * "&TEXT(G$10,"0,0000"),"")&" * "&TEXT(G$3,"#0/#0")&" / 12 =" -> = ,00 * 1,228067 * 0,0000 * 1/1 / 12 = | H175: ="= "&TEXT(H18,"#.###,00")&" * "&H$6&IF($D61>0," * "&TEXT(H$10,"0,0000"),"")&" * "&TEXT(H$3,"#0/#0")&" / 12 =" -> = ,00 * 1,228067 * 0,0000 * 1/1 / 12 = | I175: = ,00 * 1,228067 * 0,0000 * 1/1 / 12 = | J175: = ,00 * 1,228067 * 0,0000 * 1/1 / 12 = | K175: = ,00 * 1,228067 * 0,0000 * 1/1 / 12 = | L175: = ,00 * 1,228067 * 0,0000 * 1/1 / 12 = | M175: = ,00 * 1,228067 * 0,0000 * 1/1 / 12 = | N175: = ,00 * 1,228067 * 0,0000 * 1/1 / 12 = | O175: = ,00 * 1,228067 * 0,0000 * 1/1 / 12 = | P175: = ,00 * 1,228067 * 0,0000 * 1/1 / 12 = | Q175: ="= "&TEXT(Q18,"#.###,00")&" * "&Q$6&IF($D61>0," * "&TEXT(Q$10,"0,0000"),"")&" * "&TEXT(Q$3,"#0/#0")&" / 12 =" -> = ,00 * 1,228067 * 0,0000 * 1/1 / 12 = | R175: = ,00 * 1,228067 * 0,0000 * 1/1 / 12 = | S175: = ,00 * * 0,0000 * 0/1 / 12 = | T175: = ,00 * 1,228067 * 0,0000 * 1/1 / 12 = | U175: = ,00 * 1,228067 * 0,0000 * 1/1 / 12 = | V175: = ,00 * 1,228067 * 0,0000 * 1/1 / 12 = | W175: = ,00 * 1,228067 * 0,0000 * 1/1 / 12 = | X175: = ,00 * 1,228067 * 0,0000 * 1/1 / 12 = | Y175: = ,00 * 1,228067 * 0,0000 * 1/1 / 12 = | Z175: = ,00 * 1,228067 * 0,0000 * 1/1 / 12 = | AA175: = ,00 * 1,228067 * 0,0000 * 1/1 / 12 = | AB175: = ,00 * 1,228067 * 0,0000 * 1/1 / 12 = | AC175: = ,00 * 1,228067 * 0,0000 * 1/1 / 12 = | AD175: = ,00 * 1,228067 * 0,0000 * 1/1 / 12 = | AE175: = ,00 * 1,228067 * 0,0000 * 1/1 / 12 =
B176: 10 | D176: 59 | F176: Kvalifikationstillæg 3 | G176: ="= "&TEXT(G19,"#.###,00")&" * "&G$6&IF($D62>0," * "&TEXT(G$10,"0,0000"),"")&" * "&TEXT(G$3,"#0/#0")&" / 12 =" -> = ,00 * 1,228067 * 0,0000 * 1/1 / 12 = | H176: ="= "&TEXT(H19,"#.###,00")&" * "&H$6&IF($D62>0," * "&TEXT(H$10,"0,0000"),"")&" * "&TEXT(H$3,"#0/#0")&" / 12 =" -> = ,00 * 1,228067 * 0,0000 * 1/1 / 12 = | I176: = ,00 * 1,228067 * 0,0000 * 1/1 / 12 = | J176: = ,00 * 1,228067 * 0,0000 * 1/1 / 12 = | K176: = ,00 * 1,228067 * 0,0000 * 1/1 / 12 = | L176: = ,00 * 1,228067 * 0,0000 * 1/1 / 12 = | M176: = ,00 * 1,228067 * 0,0000 * 1/1 / 12 = | N176: = ,00 * 1,228067 * 0,0000 * 1/1 / 12 = | O176: = ,00 * 1,228067 * 0,0000 * 1/1 / 12 = | P176: = ,00 * 1,228067 * 0,0000 * 1/1 / 12 = | Q176: ="= "&TEXT(Q19,"#.###,00")&" * "&Q$6&IF($D62>0," * "&TEXT(Q$10,"0,0000"),"")&" * "&TEXT(Q$3,"#0/#0")&" / 12 =" -> = ,00 * 1,228067 * 0,0000 * 1/1 / 12 = | R176: = ,00 * 1,228067 * 0,0000 * 1/1 / 12 = | S176: = ,00 * * 0,0000 * 0/1 / 12 = | T176: = ,00 * 1,228067 * 0,0000 * 1/1 / 12 = | U176: = ,00 * 1,228067 * 0,0000 * 1/1 / 12 = | V176: = ,00 * 1,228067 * 0,0000 * 1/1 / 12 = | W176: = ,00 * 1,228067 * 0,0000 * 1/1 / 12 = | X176: = ,00 * 1,228067 * 0,0000 * 1/1 / 12 = | Y176: = ,00 * 1,228067 * 0,0000 * 1/1 / 12 = | Z176: = ,00 * 1,228067 * 0,0000 * 1/1 / 12 = | AA176: = ,00 * 1,228067 * 0,0000 * 1/1 / 12 = | AB176: = ,00 * 1,228067 * 0,0000 * 1/1 / 12 = | AC176: = ,00 * 1,228067 * 0,0000 * 1/1 / 12 = | AD176: = ,00 * 1,228067 * 0,0000 * 1/1 / 12 = | AE176: = ,00 * 1,228067 * 0,0000 * 1/1 / 12 =
B177: 11 | D177: 60 | F177: Trin 4-tillæg beregnet 1. aug 2013 | G177: ="= "&TEXT(G20,"#.###,00")&" * "&G$6&" * "&TEXT(G$10,"0,0000")&" * "&TEXT(G$3,"#0/#0")&" / 12 =" -> = ,00 * 1,228067 * 0,0000 * 1/1 / 12 = | H177: ="= "&TEXT(H20,"#.###,00")&" * "&H$6&" * "&TEXT(H$10,"0,0000")&" * "&TEXT(H$3,"#0/#0")&" / 12 =" -> = ,00 * 1,228067 * 0,0000 * 1/1 / 12 = | I177: = ,00 * 1,228067 * 0,0000 * 1/1 / 12 = | J177: = ,00 * 1,228067 * 0,0000 * 1/1 / 12 = | K177: = ,00 * 1,228067 * 0,0000 * 1/1 / 12 = | L177: = ,00 * 1,228067 * 0,0000 * 1/1 / 12 = | M177: = ,00 * 1,228067 * 0,0000 * 1/1 / 12 = | N177: = ,00 * 1,228067 * 0,0000 * 1/1 / 12 = | O177: = ,00 * 1,228067 * 0,0000 * 1/1 / 12 = | P177: = ,00 * 1,228067 * 0,0000 * 1/1 / 12 = | Q177: ="= "&TEXT(Q20,"#.###,00")&" * "&Q$6&" * "&TEXT(Q$10,"0,0000")&" * "&TEXT(Q$3,"#0/#0")&" / 12 =" -> = ,00 * 1,228067 * 0,0000 * 1/1 / 12 = | R177: = ,00 * 1,228067 * 0,0000 * 1/1 / 12 = | S177: = ,00 * * 0,0000 * 0/1 / 12 = | T177: = ,00 * 1,228067 * 0,0000 * 1/1 / 12 = | U177: = ,00 * 1,228067 * 0,0000 * 1/1 / 12 = | V177: = ,00 * 1,228067 * 0,0000 * 1/1 / 12 = | W177: = ,00 * 1,228067 * 0,0000 * 1/1 / 12 = | X177: = ,00 * 1,228067 * 0,0000 * 1/1 / 12 = | Y177: = ,00 * 1,228067 * 0,0000 * 1/1 / 12 = | Z177: = ,00 * 1,228067 * 0,0000 * 1/1 / 12 = | AA177: = ,00 * 1,228067 * 0,0000 * 1/1 / 12 = | AB177: = ,00 * 1,228067 * 0,0000 * 1/1 / 12 = | AC177: = ,00 * 1,228067 * 0,0000 * 1/1 / 12 = | AD177: = ,00 * 1,228067 * 0,0000 * 1/1 / 12 = | AE177: = ,00 * 1,228067 * 0,0000 * 1/1 / 12 =
B178: 12 | D178: 61 | F178: Udligningstillæg beregnet 1. aug 2004 | G178: ="= "&TEXT(G21,"#.###,00")&" * "&G$6&" * "&TEXT(G$10,"0,0000")&" * "&TEXT(G$3,"#0/#0")&" / 12 =" -> = ,00 * 1,228067 * 0,0000 * 1/1 / 12 = | H178: ="= "&TEXT(H21,"#.###,00")&" * "&H$6&" * "&TEXT(H$10,"0,0000")&" * "&TEXT(H$3,"#0/#0")&" / 12 =" -> = ,00 * 1,228067 * 0,0000 * 1/1 / 12 = | I178: = ,00 * 1,228067 * 0,0000 * 1/1 / 12 = | J178: = ,00 * 1,228067 * 0,0000 * 1/1 / 12 = | K178: = ,00 * 1,228067 * 0,0000 * 1/1 / 12 = | L178: = ,00 * 1,228067 * 0,0000 * 1/1 / 12 = | M178: = ,00 * 1,228067 * 0,0000 * 1/1 / 12 = | N178: = ,00 * 1,228067 * 0,0000 * 1/1 / 12 = | O178: = ,00 * 1,228067 * 0,0000 * 1/1 / 12 = | P178: = ,00 * 1,228067 * 0,0000 * 1/1 / 12 = | Q178: ="= "&TEXT(Q21,"#.###,00")&" * "&Q$6&" * "&TEXT(Q$10,"0,0000")&" * "&TEXT(Q$3,"#0/#0")&" / 12 =" -> = ,00 * 1,228067 * 0,0000 * 1/1 / 12 = | R178: = ,00 * 1,228067 * 0,0000 * 1/1 / 12 = | S178: = ,00 * * 0,0000 * 0/1 / 12 = | T178: = ,00 * 1,228067 * 0,0000 * 1/1 / 12 = | U178: = ,00 * 1,228067 * 0,0000 * 1/1 / 12 = | V178: = ,00 * 1,228067 * 0,0000 * 1/1 / 12 = | W178: = ,00 * 1,228067 * 0,0000 * 1/1 / 12 = | X178: = ,00 * 1,228067 * 0,0000 * 1/1 / 12 = | Y178: = ,00 * 1,228067 * 0,0000 * 1/1 / 12 = | Z178: = ,00 * 1,228067 * 0,0000 * 1/1 / 12 = | AA178: = ,00 * 1,228067 * 0,0000 * 1/1 / 12 = | AB178: = ,00 * 1,228067 * 0,0000 * 1/1 / 12 = | AC178: = ,00 * 1,228067 * 0,0000 * 1/1 / 12 = | AD178: = ,00 * 1,228067 * 0,0000 * 1/1 / 12 = | AE178: = ,00 * 1,228067 * 0,0000 * 1/1 / 12 =
B179: 13 | D179: 62 | F179: OK08-tillæg | G179: ="= "&TEXT(IF(RIGHT(G4)="1",5200)+IF(RIGHT(G4)="2",7900)+IF(RIGHT(G4)="3",7900),"#.###")&" * "&G$6&" * "&TEXT(G$10,"0,0000")&" * "&TEXT(G$3,"#0/#0")&" / 12 =" -> = * 1,228067 * 0,0000 * 1/1 / 12 = | H179: ="= "&TEXT(IF(RIGHT(H4)="1",5200)+IF(RIGHT(H4)="2",7900)+IF(RIGHT(H4)="3",7900),"#.###")&" * "&H$6&" * "&TEXT(H$10,"0,0000")&" * "&TEXT(H$3,"#0/#0")&" / 12 =" -> = * 1,228067 * 0,0000 * 1/1 / 12 = | I179: = * 1,228067 * 0,0000 * 1/1 / 12 = | J179: = * 1,228067 * 0,0000 * 1/1 / 12 = | K179: = * 1,228067 * 0,0000 * 1/1 / 12 = | L179: = * 1,228067 * 0,0000 * 1/1 / 12 = | M179: = * 1,228067 * 0,0000 * 1/1 / 12 = | N179: = * 1,228067 * 0,0000 * 1/1 / 12 = | O179: = * 1,228067 * 0,0000 * 1/1 / 12 = | P179: = * 1,228067 * 0,0000 * 1/1 / 12 = | Q179: ="= "&TEXT(IF(RIGHT(Q4)="1",5200)+IF(RIGHT(Q4)="2",7900)+IF(RIGHT(Q4)="3",7900),"#.###")&" * "&Q$6&" * "&TEXT(Q$10,"0,0000")&" * "&TEXT(Q$3,"#0/#0")&" / 12 =" -> = * 1,228067 * 0,0000 * 1/1 / 12 = | R179: = * 1,228067 * 0,0000 * 1/1 / 12 = | S179: = * * 0,0000 * 0/1 / 12 = | T179: = * 1,228067 * 0,0000 * 1/1 / 12 = | U179: = * 1,228067 * 0,0000 * 1/1 / 12 = | V179: = * 1,228067 * 0,0000 * 1/1 / 12 = | W179: = * 1,228067 * 0,0000 * 1/1 / 12 = | X179: = * 1,228067 * 0,0000 * 1/1 / 12 = | Y179: = * 1,228067 * 0,0000 * 1/1 / 12 = | Z179: = * 1,228067 * 0,0000 * 1/1 / 12 = | AA179: = * 1,228067 * 0,0000 * 1/1 / 12 = | AB179: = * 1,228067 * 0,0000 * 1/1 / 12 = | AC179: = * 1,228067 * 0,0000 * 1/1 / 12 = | AD179: = * 1,228067 * 0,0000 * 1/1 / 12 = | AE179: = * 1,228067 * 0,0000 * 1/1 / 12 =
B180: 14 | D180: 63 | F180: OK13-tillæg | G180: ="= 2.800 * "&G6&" * "&TEXT(G$10,"0,0000")&" * "&TEXT(G$3,"#0/#0")&" / 12 =" -> = 2.800 * 1,228067 * 0,0000 * 1/1 / 12 = | H180: ="= 2.800 * "&H6&" * "&TEXT(H$10,"0,0000")&" * "&TEXT(H$3,"#0/#0")&" / 12 =" -> = 2.800 * 1,228067 * 0,0000 * 1/1 / 12 = | I180: = 2.800 * 1,228067 * 0,0000 * 1/1 / 12 = | J180: = 2.800 * 1,228067 * 0,0000 * 1/1 / 12 = | K180: = 2.800 * 1,228067 * 0,0000 * 1/1 / 12 = | L180: = 2.800 * 1,228067 * 0,0000 * 1/1 / 12 = | M180: = 2.800 * 1,228067 * 0,0000 * 1/1 / 12 = | N180: = 2.800 * 1,228067 * 0,0000 * 1/1 / 12 = | O180: = 2.800 * 1,228067 * 0,0000 * 1/1 / 12 = | P180: = 2.800 * 1,228067 * 0,0000 * 1/1 / 12 = | Q180: ="= 2.800 * "&Q6&" * "&TEXT(Q$10,"0,0000")&" * "&TEXT(Q$3,"#0/#0")&" / 12 =" -> = 2.800 * 1,228067 * 0,0000 * 1/1 / 12 = | R180: = 2.800 * 1,228067 * 0,0000 * 1/1 / 12 = | S180: = 2.800 * * 0,0000 * 0/1 / 12 = | T180: = 2.800 * 1,228067 * 0,0000 * 1/1 / 12 = | U180: = 2.800 * 1,228067 * 0,0000 * 1/1 / 12 = | V180: = 2.800 * 1,228067 * 0,0000 * 1/1 / 12 = | W180: = 2.800 * 1,228067 * 0,0000 * 1/1 / 12 = | X180: = 2.800 * 1,228067 * 0,0000 * 1/1 / 12 = | Y180: = 2.800 * 1,228067 * 0,0000 * 1/1 / 12 = | Z180: = 2.800 * 1,228067 * 0,0000 * 1/1 / 12 = | AA180: = 2.800 * 1,228067 * 0,0000 * 1/1 / 12 = | AB180: = 2.800 * 1,228067 * 0,0000 * 1/1 / 12 = | AC180: = 2.800 * 1,228067 * 0,0000 * 1/1 / 12 = | AD180: = 2.800 * 1,228067 * 0,0000 * 1/1 / 12 = | AE180: = 2.800 * 1,228067 * 0,0000 * 1/1 / 12 =
B181: 15 | D181: 64 | F181: OK18-tillæg | G181: ="= 900 * "&G6&" * "&TEXT(G$10,"0,0000")&" * "&TEXT(G$3,"#0/#0")&" / 12 =" -> = 900 * 1,228067 * 0,0000 * 1/1 / 12 = | H181: ="= 900 * "&H6&" * "&TEXT(H$10,"0,0000")&" * "&TEXT(H$3,"#0/#0")&" / 12 =" -> = 900 * 1,228067 * 0,0000 * 1/1 / 12 = | I181: = 900 * 1,228067 * 0,0000 * 1/1 / 12 = | J181: = 900 * 1,228067 * 0,0000 * 1/1 / 12 = | K181: = 900 * 1,228067 * 0,0000 * 1/1 / 12 = | L181: = 900 * 1,228067 * 0,0000 * 1/1 / 12 = | M181: = 900 * 1,228067 * 0,0000 * 1/1 / 12 = | N181: = 900 * 1,228067 * 0,0000 * 1/1 / 12 = | O181: = 900 * 1,228067 * 0,0000 * 1/1 / 12 = | P181: = 900 * 1,228067 * 0,0000 * 1/1 / 12 = | Q181: ="= 900 * "&Q6&" * "&TEXT(Q$10,"0,0000")&" * "&TEXT(Q$3,"#0/#0")&" / 12 =" -> = 900 * 1,228067 * 0,0000 * 1/1 / 12 = | R181: = 900 * 1,228067 * 0,0000 * 1/1 / 12 = | S181: = 900 * * 0,0000 * 0/1 / 12 = | T181: = 900 * 1,228067 * 0,0000 * 1/1 / 12 = | U181: = 900 * 1,228067 * 0,0000 * 1/1 / 12 = | V181: = 900 * 1,228067 * 0,0000 * 1/1 / 12 = | W181: = 900 * 1,228067 * 0,0000 * 1/1 / 12 = | X181: = 900 * 1,228067 * 0,0000 * 1/1 / 12 = | Y181: = 900 * 1,228067 * 0,0000 * 1/1 / 12 = | Z181: = 900 * 1,228067 * 0,0000 * 1/1 / 12 = | AA181: = 900 * 1,228067 * 0,0000 * 1/1 / 12 = | AB181: = 900 * 1,228067 * 0,0000 * 1/1 / 12 = | AC181: = 900 * 1,228067 * 0,0000 * 1/1 / 12 = | AD181: = 900 * 1,228067 * 0,0000 * 1/1 / 12 = | AE181: = 900 * 1,228067 * 0,0000 * 1/1 / 12 =
B182: 16 | D182: 65 | F182: Fast lokalaftalt godtgørelse | G182: ="= "&TEXT(G23,"#.###,00")&IF($E23<>""," * "&G$6,"")&IF($D23<>""," * "&TEXT(G$10,"0,0000"),"")&" * "&TEXT(G$3,"#0/#0")&" / 12 =" -> = ,00 * 1/1 / 12 = | H182: ="= "&TEXT(H23,"#.###,00")&IF($E23<>""," * "&H$6,"")&IF($D23<>""," * "&TEXT(H$10,"0,0000"),"")&" * "&TEXT(H$3,"#0/#0")&" / 12 =" -> = ,00 * 1/1 / 12 = | I182: = ,00 * 1/1 / 12 = | J182: = ,00 * 1/1 / 12 = | K182: = ,00 * 1/1 / 12 = | L182: = ,00 * 1/1 / 12 = | M182: = ,00 * 1/1 / 12 = | N182: = ,00 * 1/1 / 12 = | O182: = ,00 * 1/1 / 12 = | P182: = ,00 * 1/1 / 12 = | Q182: ="= "&TEXT(Q23,"#.###,00")&IF($E23<>""," * "&Q$6,"")&IF($D23<>""," * "&TEXT(Q$10,"0,0000"),"")&" * "&TEXT(Q$3,"#0/#0")&" / 12 =" -> = ,00 * 1/1 / 12 = | R182: = ,00 * 1/1 / 12 = | S182: = ,00 * 0/1 / 12 = | T182: = ,00 * 1/1 / 12 = | U182: = ,00 * 1/1 / 12 = | V182: = ,00 * 1/1 / 12 = | W182: = ,00 * 1/1 / 12 = | X182: = ,00 * 1/1 / 12 = | Y182: = ,00 * 1/1 / 12 = | Z182: = ,00 * 1/1 / 12 = | AA182: = ,00 * 1/1 / 12 = | AB182: = ,00 * 1/1 / 12 = | AC182: = ,00 * 1/1 / 12 = | AD182: = ,00 * 1/1 / 12 = | AE182: = ,00 * 1/1 / 12 =
B183: 17 | D183: 66 | F183: Gruppelivstillæg | G183: ="= 108,35 * "&TEXT(G$3,"#0/#0")&" =" -> = 108,35 * 1/1 = | H183: ="= 108,35 * "&TEXT(H$3,"#0/#0")&" =" -> = 108,35 * 1/1 = | I183: = 108,35 * 1/1 = | J183: = 108,35 * 1/1 = | K183: = 108,35 * 1/1 = | L183: = 108,35 * 1/1 = | M183: = 108,35 * 1/1 = | N183: = 108,35 * 1/1 = | O183: = 108,35 * 1/1 = | P183: ="= 108,35 * "&TEXT(P$3,"#0/#0")&" =" -> = 108,35 * 1/1 = | Q183: = 108,35 * 1/1 = | R183: = 108,35 * 1/1 = | S183: = 108,35 * 0/1 = | T183: ="= 108,35 * "&TEXT(T$3,"#0/#0")&" =" -> = 108,35 * 1/1 = | U183: ="= 108,35 * "&TEXT(U$3,"#0/#0")&" =" -> = 108,35 * 1/1 = | V183: = 108,35 * 1/1 = | W183: = 108,35 * 1/1 = | X183: = 108,35 * 1/1 = | Y183: = 108,35 * 1/1 = | Z183: = 108,35 * 1/1 = | AA183: = 108,35 * 1/1 = | AB183: = 108,35 * 1/1 = | AC183: = 108,35 * 1/1 = | AD183: = 108,35 * 1/1 = | AE183: = 108,35 * 1/1 =
B184: 18 | D184: 67 | F184: Lønfradrag for ikke optjent ferie mv., pensionsgiv. | G184: ="= "&-(MAX(0,MIN(G$24,G$25*1))+G$28)&" * 4,62% * SUM(lin. 1; lin. 3 - 12; lin. 14-15; lin. 36"&(IF(AND($C$68=1,G$68>0)," - 16","; ")&") =") -> = 0 * 4,62% * SUM(lin. 1; lin. 3 - 12; lin. 14-15; lin. 36; ) = | H184: ="= "&-(MAX(0,MIN(H$24,H$25*1))+H$28)&" * 4,62% * SUM(lin. 1; lin. 3 - 12; lin. 14-15; lin. 36"&(IF(AND($C$68=1,H$68>0)," - 16","; ")&") =") -> = 0 * 4,62% * SUM(lin. 1; lin. 3 - 12; lin. 14-15; lin. 36; ) = | I184: = 0 * 4,62% * SUM(lin. 1; lin. 3 - 12; lin. 14-15; lin. 36; ) = | J184: = 0 * 4,62% * SUM(lin. 1; lin. 3 - 12; lin. 14-15; lin. 36; ) = | K184: = 0 * 4,62% * SUM(lin. 1; lin. 3 - 12; lin. 14-15; lin. 36; ) = | L184: = 0 * 4,62% * SUM(lin. 1; lin. 3 - 12; lin. 14-15; lin. 36; ) = | M184: = 0 * 4,62% * SUM(lin. 1; lin. 3 - 12; lin. 14-15; lin. 36; ) = | N184: = 0 * 4,62% * SUM(lin. 1; lin. 3 - 12; lin. 14-15; lin. 36; ) = | O184: = 0 * 4,62% * SUM(lin. 1; lin. 3 - 12; lin. 14-15; lin. 36; ) = | P184: ="= "&-(MAX(0,MIN(P$24,P$25*1))+P$28)&" * 4,62% * SUM(lin. 1; lin. 3 - 12; lin. 14-15; lin. 36"&(IF(AND($C$68=1,P$68>0)," - 16","; ")&") =") -> = 0 * 4,62% * SUM(lin. 1; lin. 3 - 12; lin. 14-15; lin. 36; ) = | Q184: = 0 * 4,62% * SUM(lin. 1; lin. 3 - 12; lin. 14-15; lin. 36; ) = | R184: = 0 * 4,62% * SUM(lin. 1; lin. 3 - 12; lin. 14-15; lin. 36; ) = | S184: = 0 * 4,62% * SUM(lin. 1; lin. 3 - 12; lin. 14-15; lin. 36; ) = | T184: ="= "&-(MAX(0,MIN(T$24,T$25*1))+T$28)&" * 4,62% * SUM(lin. 1; lin. 3 - 12; lin. 14-15"&(IF(AND($C$68=1,T$68>0)," - 16","; ")&") =") -> = 0 * 4,62% * SUM(lin. 1; lin. 3 - 12; lin. 14-15; ) = | U184: = 0 * 4,62% * SUM(lin. 1; lin. 3 - 12; lin. 14-15; ) = | V184: = 0 * 4,62% * SUM(lin. 1; lin. 3 - 12; lin. 14-15; ) = | W184: = 0 * 4,62% * SUM(lin. 1; lin. 3 - 12; lin. 14-15; ) = | X184: = 0 * 4,62% * SUM(lin. 1; lin. 3 - 12; lin. 14-15; ) = | Y184: = 0 * 4,62% * SUM(lin. 1; lin. 3 - 12; lin. 14-15; ) = | Z184: = 0 * 4,62% * SUM(lin. 1; lin. 3 - 12; lin. 14-15; ) = | AA184: = 0 * 4,62% * SUM(lin. 1; lin. 3 - 12; lin. 14-15; ) = | AB184: = 0 * 4,62% * SUM(lin. 1; lin. 3 - 12; lin. 14-15; ) = | AC184: = 0 * 4,62% * SUM(lin. 1; lin. 3 - 12; lin. 14-15; ) = | AD184: = 0 * 4,62% * SUM(lin. 1; lin. 3 - 12; lin. 14-15; ) = | AE184: = 0 * 4,62% * SUM(lin. 1; lin. 3 - 12; lin. 14-15; ) =
B185: 19 | D185: 68 | F185: Lønfradrag for ikke optjent ferie mv., ej pensionsg. | G185: ="= "&-(MAX(0,MIN(G$24,G$25*1))+G$28)&" * 4,62% * SUM(lin. 2; lin. 13"&(IF(AND($C$68=1,G$68>0),";"," ; lin. 16")&") =") -> = 0 * 4,62% * SUM(lin. 2; lin. 13 ; lin. 16) = | H185: = 0 * 4,62% * SUM(lin. 2; lin. 13 ; lin. 16) = | I185: = 0 * 4,62% * SUM(lin. 2; lin. 13 ; lin. 16) = | J185: = 0 * 4,62% * SUM(lin. 2; lin. 13 ; lin. 16) = | K185: = 0 * 4,62% * SUM(lin. 2; lin. 13 ; lin. 16) = | L185: = 0 * 4,62% * SUM(lin. 2; lin. 13 ; lin. 16) = | M185: = 0 * 4,62% * SUM(lin. 2; lin. 13 ; lin. 16) = | N185: = 0 * 4,62% * SUM(lin. 2; lin. 13 ; lin. 16) = | O185: = 0 * 4,62% * SUM(lin. 2; lin. 13 ; lin. 16) = | P185: = 0 * 4,62% * SUM(lin. 2; lin. 13 ; lin. 16) = | Q185: = 0 * 4,62% * SUM(lin. 2; lin. 13 ; lin. 16) = | R185: = 0 * 4,62% * SUM(lin. 2; lin. 13 ; lin. 16) = | S185: = 0 * 4,62% * SUM(lin. 2; lin. 13 ; lin. 16) = | T185: = 0 * 4,62% * SUM(lin. 2; lin. 13 ; lin. 16) = | U185: = 0 * 4,62% * SUM(lin. 2; lin. 13 ; lin. 16) = | V185: = 0 * 4,62% * SUM(lin. 2; lin. 13 ; lin. 16) = | W185: = 0 * 4,62% * SUM(lin. 2; lin. 13 ; lin. 16) = | X185: = 0 * 4,62% * SUM(lin. 2; lin. 13 ; lin. 16) = | Y185: = 0 * 4,62% * SUM(lin. 2; lin. 13 ; lin. 16) = | Z185: = 0 * 4,62% * SUM(lin. 2; lin. 13 ; lin. 16) = | AA185: = 0 * 4,62% * SUM(lin. 2; lin. 13 ; lin. 16) = | AB185: = 0 * 4,62% * SUM(lin. 2; lin. 13 ; lin. 16) = | AC185: = 0 * 4,62% * SUM(lin. 2; lin. 13 ; lin. 16) = | AD185: = 0 * 4,62% * SUM(lin. 2; lin. 13 ; lin. 16) = | AE185: = 0 * 4,62% * SUM(lin. 2; lin. 13 ; lin. 16) =
B186: 20 | D186: 69 | F186: Feriedifference, pensionsgivende | G186: Hvis forskel på bg. fra optjening til afvikling(se evt. særskilt bilag) | H186: Hvis forskel på bg. fra optjening til afvikling(se evt. særskilt bilag) | I186: Hvis forskel på bg. fra optjening til afvikling(se evt. særskilt bilag) | J186: Hvis forskel på bg. fra optjening til afvikling(se evt. særskilt bilag) | K186: Hvis forskel på bg. fra optjening til afvikling(se evt. særskilt bilag) | L186: Hvis forskel på bg. fra optjening til afvikling(se evt. særskilt bilag) | M186: Hvis forskel på bg. fra optjening til afvikling(se evt. særskilt bilag) | N186: Hvis forskel på bg. fra optjening til afvikling(se evt. særskilt bilag) | O186: Hvis forskel på bg. fra optjening til afvikling(se evt. særskilt bilag) | P186: Hvis forskel på bg. fra optjening til afvikling(se evt. særskilt bilag) | Q186: Hvis forskel på bg. fra optjening til afvikling(se evt. særskilt bilag) | R186: Hvis forskel på bg. fra optjening til afvikling(se evt. særskilt bilag) | S186: Hvis forskel på bg. fra optjening til afvikling(se evt. særskilt bilag) | T186: Hvis forskel på bg. fra optjening til afvikling(se evt. særskilt bilag) | U186: Hvis forskel på bg. fra optjening til afvikling(se evt. særskilt bilag) | V186: Hvis forskel på bg. fra optjening til afvikling(se evt. særskilt bilag) | W186: Hvis forskel på bg. fra optjening til afvikling(se evt. særskilt bilag) | X186: Hvis forskel på bg. fra optjening til afvikling(se evt. særskilt bilag) | Y186: Hvis forskel på bg. fra optjening til afvikling(se evt. særskilt bilag) | Z186: Hvis forskel på bg. fra optjening til afvikling(se evt. særskilt bilag) | AA186: Hvis forskel på bg. fra optjening til afvikling(se evt. særskilt bilag) | AB186: Hvis forskel på bg. fra optjening til afvikling(se evt. særskilt bilag) | AC186: Hvis forskel på bg. fra optjening til afvikling(se evt. særskilt bilag) | AD186: Hvis forskel på bg. fra optjening til afvikling(se evt. særskilt bilag) | AE186: Hvis forskel på bg. fra optjening til afvikling(se evt. særskilt bilag)
B187: 21 | D187: 70 | F187: Feriedifference, ikke pensionsgivende | G187: Hvis forskel på bg. fra optjening til afvikling(se evt. særskilt bilag) | H187: Hvis forskel på bg. fra optjening til afvikling(se evt. særskilt bilag) | I187: Hvis forskel på bg. fra optjening til afvikling(se evt. særskilt bilag) | J187: Hvis forskel på bg. fra optjening til afvikling(se evt. særskilt bilag) | K187: Hvis forskel på bg. fra optjening til afvikling(se evt. særskilt bilag) | L187: Hvis forskel på bg. fra optjening til afvikling(se evt. særskilt bilag) | M187: Hvis forskel på bg. fra optjening til afvikling(se evt. særskilt bilag) | N187: Hvis forskel på bg. fra optjening til afvikling(se evt. særskilt bilag) | O187: Hvis forskel på bg. fra optjening til afvikling(se evt. særskilt bilag) | P187: Hvis forskel på bg. fra optjening til afvikling(se evt. særskilt bilag) | Q187: Hvis forskel på bg. fra optjening til afvikling(se evt. særskilt bilag) | R187: Hvis forskel på bg. fra optjening til afvikling(se evt. særskilt bilag) | S187: Hvis forskel på bg. fra optjening til afvikling(se evt. særskilt bilag) | T187: Hvis forskel på bg. fra optjening til afvikling(se evt. særskilt bilag) | U187: Hvis forskel på bg. fra optjening til afvikling(se evt. særskilt bilag) | V187: Hvis forskel på bg. fra optjening til afvikling(se evt. særskilt bilag) | W187: Hvis forskel på bg. fra optjening til afvikling(se evt. særskilt bilag) | X187: Hvis forskel på bg. fra optjening til afvikling(se evt. særskilt bilag) | Y187: Hvis forskel på bg. fra optjening til afvikling(se evt. særskilt bilag) | Z187: Hvis forskel på bg. fra optjening til afvikling(se evt. særskilt bilag) | AA187: Hvis forskel på bg. fra optjening til afvikling(se evt. særskilt bilag) | AB187: Hvis forskel på bg. fra optjening til afvikling(se evt. særskilt bilag) | AC187: Hvis forskel på bg. fra optjening til afvikling(se evt. særskilt bilag) | AD187: Hvis forskel på bg. fra optjening til afvikling(se evt. særskilt bilag) | AE187: Hvis forskel på bg. fra optjening til afvikling(se evt. særskilt bilag)
B188: 22 | D188: 71 | F188: Skattefri km.godtgørelse, lav sats | G188: ="= "&G31&" km a "&TEXT($D$31,"0,00")&" =" -> = km a 2,23 = | H188: ="= "&H31&" km a "&TEXT($D$31,"0,00")&" =" -> = km a 2,23 = | I188: = km a 2,23 = | J188: = km a 2,23 = | K188: = km a 2,23 = | L188: = km a 2,23 = | M188: = km a 2,23 = | N188: = km a 2,23 = | O188: = km a 2,23 = | P188: = km a 2,23 = | Q188: ="= "&Q31&" km a "&TEXT($D$31,"0,00")&" =" -> = km a 2,23 = | R188: = km a 2,23 = | S188: = km a 2,23 = | T188: ="= "&T31&" km a "&TEXT($D$31,"0,00")&" =" -> = 0 km a 2,23 = | U188: = 0 km a 2,23 = | V188: = 0 km a 2,23 = | W188: = 0 km a 2,23 = | X188: = 0 km a 2,23 = | Y188: = 0 km a 2,23 = | Z188: ="= "&Z31&" km a "&TEXT($E$31,"0,00")&" =" -> = 0 km a 0,00 = | AA188: = 0 km a 0,00 = | AB188: = 0 km a 0,00 = | AC188: = 0 km a 0,00 = | AD188: = 0 km a 0,00 = | AE188: = 0 km a 0,00 =
B189: 23 | D189: 72 | F189: Skattefri km.godtgørelse, høj sats | G189: ="= "&G32&" km a "&TEXT($D$32,"0,00")&" =" -> = km a 3,79 = | H189: ="= "&H32&" km a "&TEXT($D$32,"0,00")&" =" -> = km a 3,79 = | I189: = km a 3,79 = | J189: = km a 3,79 = | K189: = km a 3,79 = | L189: = km a 3,79 = | M189: = km a 3,79 = | N189: = km a 3,79 = | O189: = km a 3,79 = | P189: = km a 3,79 = | Q189: ="= "&Q32&" km a "&TEXT($D$32,"0,00")&" =" -> = km a 3,79 = | R189: = km a 3,79 = | S189: = km a 3,79 = | T189: ="= "&T32&" km a "&TEXT($D$32,"0,00")&" =" -> = 0 km a 3,79 = | U189: = 0 km a 3,79 = | V189: = 0 km a 3,79 = | W189: = 0 km a 3,79 = | X189: = 0 km a 3,79 = | Y189: = 0 km a 3,79 = | Z189: ="= "&Z32&" km a "&TEXT($E$32,"0,00")&" =" -> = 0 km a 0,00 = | AA189: = 0 km a 0,00 = | AB189: = 0 km a 0,00 = | AC189: = 0 km a 0,00 = | AD189: = 0 km a 0,00 = | AE189: = 0 km a 0,00 =
B190: 24 | D190: 73 | F190: Skattefri time/dagpenge | G190: ="(spørg administrationen vedr. beregning)" -> (spørg administrationen vedr. beregning) | H190: ="(spørg administrationen vedr. beregning)" -> (spørg administrationen vedr. beregning) | I190: (spørg administrationen vedr. beregning) | J190: (spørg administrationen vedr. beregning) | K190: (spørg administrationen vedr. beregning) | L190: (spørg administrationen vedr. beregning) | M190: (spørg administrationen vedr. beregning) | N190: (spørg administrationen vedr. beregning) | O190: (spørg administrationen vedr. beregning) | P190: ="(spørg administrationen vedr. beregning)" -> (spørg administrationen vedr. beregning) | Q190: (spørg administrationen vedr. beregning) | R190: (spørg administrationen vedr. beregning) | S190: (spørg administrationen vedr. beregning) | T190: ="(spørg administrationen vedr. beregning)" -> (spørg administrationen vedr. beregning) | U190: ="(spørg administrationen vedr. beregning)" -> (spørg administrationen vedr. beregning) | V190: (spørg administrationen vedr. beregning) | W190: (spørg administrationen vedr. beregning) | X190: (spørg administrationen vedr. beregning) | Y190: (spørg administrationen vedr. beregning) | Z190: (spørg administrationen vedr. beregning) | AA190: (spørg administrationen vedr. beregning) | AB190: (spørg administrationen vedr. beregning) | AC190: (spørg administrationen vedr. beregning) | AD190: (spørg administrationen vedr. beregning) | AE190: (spørg administrationen vedr. beregning)
B191: 25 | D191: 74 | F191: Skattefri jubilæumsgratiale | G191: ="= "&TEXT(G34,"#.###")&" (højst 8.000 kr. er skattefri, resten i lin. 33)" -> = (højst 8.000 kr. er skattefri, resten i lin. 33) | H191: ="= "&TEXT(H34,"#.###")&" (højst 8.000 kr. er skattefri, resten i lin. 33)" -> = (højst 8.000 kr. er skattefri, resten i lin. 33) | I191: = (højst 8.000 kr. er skattefri, resten i lin. 33) | J191: = (højst 8.000 kr. er skattefri, resten i lin. 33) | K191: = (højst 8.000 kr. er skattefri, resten i lin. 33) | L191: = (højst 8.000 kr. er skattefri, resten i lin. 33) | M191: = (højst 8.000 kr. er skattefri, resten i lin. 33) | N191: = (højst 8.000 kr. er skattefri, resten i lin. 33) | O191: = (højst 8.000 kr. er skattefri, resten i lin. 33) | P191: = (højst 8.000 kr. er skattefri, resten i lin. 33) | Q191: = (højst 8.000 kr. er skattefri, resten i lin. 33) | R191: = (højst 8.000 kr. er skattefri, resten i lin. 33) | S191: ="= "&TEXT(S34,"#.###")&" (højst 8.000 kr. er skattefri, resten i lin. 34)" -> = (højst 8.000 kr. er skattefri, resten i lin. 34) | T191: ="= "&TEXT(T34,"#.###")&" (højst 8.000 kr. er skattefri, resten i lin. 30)" -> = (højst 8.000 kr. er skattefri, resten i lin. 30) | U191: = (højst 8.000 kr. er skattefri, resten i lin. 30) | V191: = (højst 8.000 kr. er skattefri, resten i lin. 30) | W191: = (højst 8.000 kr. er skattefri, resten i lin. 30) | X191: = (højst 8.000 kr. er skattefri, resten i lin. 30) | Y191: = (højst 8.000 kr. er skattefri, resten i lin. 30) | Z191: = (højst 8.000 kr. er skattefri, resten i lin. 30) | AA191: = (højst 8.000 kr. er skattefri, resten i lin. 30) | AB191: = (højst 8.000 kr. er skattefri, resten i lin. 30) | AC191: = (højst 8.000 kr. er skattefri, resten i lin. 30) | AD191: = (højst 8.000 kr. er skattefri, resten i lin. 30) | AE191: = (højst 8.000 kr. er skattefri, resten i lin. 30)
F192: Lejrskole hverdage | G192: ="= "&G36&" dag a "&ROUND(163.64*G$6,2)&" =" -> = dag a 200,96 = | H192: ="= "&H36&" dag a "&ROUND(163.64*H$6,2)&" =" -> = dag a 200,96 = | I192: = dag a 200,96 = | J192: = dag a 200,96 = | K192: = dag a 200,96 = | L192: = dag a 200,96 = | M192: = dag a 200,96 = | N192: = dag a 200,96 = | O192: = dag a 200,96 = | P192: ="= "&P36&" dag a "&ROUND(163.64*P$6,2)&" =" -> = dag a 200,96 = | Q192: ="= "&Q36&" dag a "&ROUND(163.64*Q$6,2)&" =" -> = dag a 200,96 = | R192: = dag a 200,96 = | S192: = dag a 0 =
F193: Lejrskole weekend | G193: ="= "&G37&" dag a "&ROUND(372.2*G$6,2)&" =" -> = dag a 457,09 = | H193: ="= "&H37&" dag a "&ROUND(372.2*H$6,2)&" =" -> = dag a 457,09 = | I193: = dag a 457,09 = | J193: = dag a 457,09 = | K193: = dag a 457,09 = | L193: = dag a 457,09 = | M193: = dag a 457,09 = | N193: = dag a 457,09 = | O193: = dag a 457,09 = | P193: ="= "&P37&" dag a "&ROUND(372.2*P$6,2)&" =" -> = dag a 457,09 = | Q193: ="= "&Q37&" dag a "&ROUND(372.2*Q$6,2)&" =" -> = dag a 457,09 = | R193: = dag a 457,09 = | S193: = dag a 0 =
B194: 26 | D194: =B80 -> 75 | F194: Specialundervisningstillæg og tillæg for uv. af 2-sprogede | G194: ="= "&G35&" t. a "&ROUND(19*G$6,2)&" =" -> = t. a 23,33 = | H194: ="= "&H35&" t. a "&ROUND(19*H$6,2)&" =" -> = t. a 23,33 = | I194: = t. a 23,33 = | J194: = t. a 23,33 = | K194: = t. a 23,33 = | L194: = t. a 23,33 = | M194: = t. a 23,33 = | N194: = t. a 23,33 = | O194: = t. a 23,33 = | P194: = t. a 23,33 = | Q194: ="= "&Q35&" t. a "&ROUND(19*Q$6,2)&" =" -> = t. a 23,33 = | R194: = t. a 23,33 = | S194: = t. a 0 = | T194: = 0 t. a 23,33 = | U194: = 0 t. a 23,33 = | V194: = 0 t. a 23,33 = | W194: = 0 t. a 23,33 = | X194: = 0 t. a 23,33 = | Y194: = 0 t. a 23,33 = | Z194: = 0 t. a 23,33 = | AA194: = 0 t. a 23,33 = | AB194: = 0 t. a 23,33 = | AC194: = 0 t. a 23,33 = | AD194: = 0 t. a 23,33 = | AE194: = 0 t. a 23,33 =
B195: 26 | D195: =B81 -> 76 | F195: Eksaminator og censorvederlag | G195: ="= "&G41&" t. a "&ROUND(267.31*G$6,2)&" =" -> = t. a 328,27 = | H195: ="= "&H41&" t. a "&ROUND(267.31*H$6,2)&" =" -> = t. a 328,27 = | I195: = t. a 328,27 = | J195: = t. a 328,27 = | K195: = t. a 328,27 = | L195: = t. a 328,27 = | M195: = t. a 328,27 = | N195: = t. a 328,27 = | O195: = t. a 328,27 = | P195: ="= "&P41&" t. a "&ROUND(267.31*P$6,2)&" =" -> = t. a 328,27 = | Q195: ="= "&Q41&" t. a "&ROUND(267.31*Q$6,2)&" =" -> = t. a 328,27 = | R195: = t. a 328,27 = | S195: = t. a 0 = | T195: ="= "&T36&" t. a "&ROUND(19*T$6,2)&" =" -> = 0 t. a 23,33 = | U195: = 0 t. a 23,33 = | V195: = 0 t. a 23,33 = | W195: = 0 t. a 23,33 = | X195: = 0 t. a 23,33 = | Y195: = 0 t. a 23,33 = | Z195: = 0 t. a 23,33 = | AA195: = 0 t. a 23,33 = | AB195: = 0 t. a 23,33 = | AC195: = 0 t. a 23,33 = | AD195: = 0 t. a 23,33 = | AE195: = 0 t. a 23,33 =
B196: 27 | D196: =B81 -> 76 | F196: 25%-tillæg | G196: ="= "&G38&" t. a "&TEXT(G$163,"#,00")&" * 25% =" -> = t. a ,00 * 25% = | H196: ="= "&H38&" t. a "&TEXT(H$163,"#,00")&" * 25% =" -> = t. a ,00 * 25% = | I196: = t. a ,00 * 25% = | J196: = t. a ,00 * 25% = | K196: = t. a ,00 * 25% = | L196: = t. a ,00 * 25% = | M196: = t. a ,00 * 25% = | N196: = t. a ,00 * 25% = | O196: = t. a ,00 * 25% = | P196: = t. a ,00 * 25% = | Q196: ="= "&Q38&" t. a "&TEXT(Q$163,"#,00")&" * 25% =" -> = t. a ,00 * 25% = | R196: = t. a ,00 * 25% = | S196: = t. a ,00 * 25% = | T196: = 0 t. a ,00 * 25% = | U196: = 0 t. a ,00 * 25% = | V196: = 0 t. a ,00 * 25% = | W196: = 0 t. a ,00 * 25% = | X196: = 0 t. a ,00 * 25% = | Y196: = 0 t. a ,00 * 25% = | Z196: = 0 t. a ,00 * 25% = | AA196: = 0 t. a ,00 * 25% = | AB196: = 0 t. a ,00 * 25% = | AC196: = 0 t. a ,00 * 25% = | AD196: = 0 t. a ,00 * 25% = | AE196: = 0 t. a ,00 * 25% =
B197: 28 | D197: =B82 -> 77 | F197: 50%-tillæg | G197: ="= "&G39&" t. a "&TEXT(G$163,"#,00")&" *50% =" -> = t. a ,00 *50% = | H197: ="= "&H39&" t. a "&TEXT(H$163,"#,00")&" *50% =" -> = t. a ,00 *50% = | I197: = t. a ,00 *50% = | J197: = t. a ,00 *50% = | K197: = t. a ,00 *50% = | L197: = t. a ,00 *50% = | M197: = t. a ,00 *50% = | N197: = t. a ,00 *50% = | O197: = t. a ,00 *50% = | P197: = t. a ,00 *50% = | Q197: ="= "&Q39&" t. a "&TEXT(Q$163,"#,00")&" *50% =" -> = t. a ,00 *50% = | R197: = t. a ,00 *50% = | S197: = t. a ,00 *50% = | T197: = 0 t. a ,00 *50% = | U197: = 0 t. a ,00 *50% = | V197: = 0 t. a ,00 *50% = | W197: = 0 t. a ,00 *50% = | X197: = 0 t. a ,00 *50% = | Y197: = 0 t. a ,00 *50% = | Z197: = 0 t. a ,00 *50% = | AA197: = 0 t. a ,00 *50% = | AB197: = 0 t. a ,00 *50% = | AC197: = 0 t. a ,00 *50% = | AD197: = 0 t. a ,00 *50% = | AE197: = 0 t. a ,00 *50% =
B198: 29-37 | D198: =B83 -> 78 | F198: Weekendtimer | G198: ="= "&G40&" t. a "&TEXT(G$163,"#,00")&" =" -> = t. a ,00 = | H198: ="= "&H40&" t. a "&TEXT(H$163,"#,00")&" =" -> = t. a ,00 = | I198: = t. a ,00 = | J198: = t. a ,00 = | K198: = t. a ,00 = | L198: = t. a ,00 = | M198: = t. a ,00 = | N198: = t. a ,00 = | O198: = t. a ,00 = | P198: = t. a ,00 = | Q198: ="= "&Q40&" t. a "&TEXT(Q$163,"#,00")&" =" -> = t. a ,00 = | R198: = t. a ,00 = | S198: = t. a ,00 = | T198: = 0 t. a ,00 = | U198: = 0 t. a ,00 = | V198: = 0 t. a ,00 = | W198: = 0 t. a ,00 = | X198: = 0 t. a ,00 = | Y198: = 0 t. a ,00 = | Z198: = 0 t. a ,00 = | AA198: = 0 t. a ,00 = | AB198: = 0 t. a ,00 = | AC198: = 0 t. a ,00 = | AD198: = 0 t. a ,00 = | AE198: = 0 t. a ,00 =
B199: 29-37 | D199: =B87 -> 82 | F199: Andre engangsudbetalinger iflg. specifikation | G199: ="= "&IF(G87<>0,"Se specifikation lin. 68- 76 i arket "&$G$1) -> = FALSK | H199: ="= "&IF(H87<>0,"Se specifikation lin. 68- 76 i arket "&$G$1) -> = FALSK | I199: = FALSK | J199: = FALSK | K199: = FALSK | L199: = FALSK | M199: = FALSK | N199: = FALSK | O199: = FALSK | P199: = FALSK | Q199: ="= "&IF(Q87<>0,"Se specifikation lin. 68- 76 i arket "&$G$1) -> = FALSK | R199: = FALSK | S199: = FALSK | T199: ="= "&IF(T87<>0,"Se specifikation lin. 68- 76 i arket "&$G$1) -> = FALSK | U199: = FALSK | V199: = FALSK | W199: = FALSK | X199: = FALSK | Y199: = FALSK | Z199: = FALSK | AA199: = FALSK | AB199: = FALSK | AC199: ="= "&IF(#REF!<>0,"Se specifikation lin. 68- 76 i arket "&$G$1) ->  | AD199: ="= "&IF(AD87<>0,"Se specifikation lin. 68- 76 i arket "&$G$1) -> = FALSK | AE199: = FALSK
D200: 116 | F200: Seniorbonus | G200: Fastpåregnelgie løndele *0,8% | H200: Fastpåregnelgie løndele *0,8% | I200: Fastpåregnelgie løndele *0,8% | J200: Fastpåregnelgie løndele *0,8% | K200: Fastpåregnelgie løndele *0,8% | L200: Fastpåregnelgie løndele *0,8% | M200: Fastpåregnelgie løndele *0,8% | N200: Fastpåregnelgie løndele *0,8% | O200: Fastpåregnelgie løndele *0,8% | P200: Fastpåregnelgie løndele *0,8% | Q200: Fastpåregnelgie løndele *0,8% | R200: Fastpåregnelgie løndele *0,8% | S200: Fastpåregnelgie løndele *0,8%
B201: 38 | D201: =B89 -> 83 | F201: Bruttoløn (ekskl. pensionstillæg og ATP)
B202: 39 | D202: 84 | F202: Pensionstillæg basisløn | G202: ="= "&TEXT(G53,"#.###,00")&" * 17,3% / 3 =" -> = ,00 * 17,3% / 3 = | H202: ="= "&TEXT(H53,"#.###,00")&" * 17,3% / 3 =" -> = ,00 * 17,3% / 3 = | I202: = ,00 * 17,3% / 3 = | J202: = ,00 * 17,3% / 3 = | K202: = ,00 * 17,3% / 3 = | L202: = ,00 * 17,3% / 3 = | M202: = ,00 * 17,3% / 3 = | N202: = ,00 * 17,3% / 3 = | O202: = ,00 * 17,3% / 3 = | P202: = ,00 * 17,3% / 3 = | Q202: ="= "&TEXT(Q53,"#.###,00")&" * 17,3% / 3 =" -> = ,00 * 17,3% / 3 = | R202: = ,00 * 17,3% / 3 = | S202: = ,00 * 17,3% / 3 = | T202: ="= "&TEXT(T53,"#.###,00")&" * 17,3% / 3 =" -> = ,00 * 17,3% / 3 = | U202: = ,00 * 17,3% / 3 = | V202: = ,00 * 17,3% / 3 = | W202: = ,00 * 17,3% / 3 = | X202: = ,00 * 17,3% / 3 = | Y202: = ,00 * 17,3% / 3 = | Z202: = ,00 * 17,3% / 3 = | AA202: = ,00 * 17,3% / 3 = | AB202: = ,00 * 17,3% / 3 = | AC202: = ,00 * 17,3% / 3 = | AD202: = ,00 * 17,3% / 3 = | AE202: = ,00 * 17,3% / 3 =
B203: 40 | D203: 85 | F203: Pensionstillæg undervisningstillæg | G203: ="= "&TEXT(G55,"#.###,00")&" * 17,3% / 3 =" -> = ,00 * 17,3% / 3 = | H203: ="= "&TEXT(H55,"#.###,00")&" * 17,3% / 3 =" -> = ,00 * 17,3% / 3 = | I203: = ,00 * 17,3% / 3 = | J203: = ,00 * 17,3% / 3 = | K203: = ,00 * 17,3% / 3 = | L203: = ,00 * 17,3% / 3 = | M203: = ,00 * 17,3% / 3 = | N203: = ,00 * 17,3% / 3 = | O203: = ,00 * 17,3% / 3 = | P203: = ,00 * 17,3% / 3 = | Q203: ="= "&TEXT(Q55,"#.###,00")&" * 17,3% / 3 =" -> = ,00 * 17,3% / 3 = | R203: = ,00 * 17,3% / 3 = | S203: = ,00 * 17,3% / 3 = | T203: ="= "&TEXT(T55,"#.###,00")&" * 17,3% / 3 =" -> = ,00 * 17,3% / 3 = | U203: = ,00 * 17,3% / 3 = | V203: = ,00 * 17,3% / 3 = | W203: = ,00 * 17,3% / 3 = | X203: = ,00 * 17,3% / 3 = | Y203: = ,00 * 17,3% / 3 = | Z203: = ,00 * 17,3% / 3 = | AA203: = ,00 * 17,3% / 3 = | AB203: = ,00 * 17,3% / 3 = | AC203: = ,00 * 17,3% / 3 = | AD203: = ,00 * 17,3% / 3 = | AE203: = ,00 * 17,3% / 3 =
B204: 41 | D204: 86 | F204: Pensionstillæg souscheftillæg | G204: ="= "&TEXT(G56,"#.###,00")&" * 17,3% / 3 =" -> = ,00 * 17,3% / 3 = | H204: ="= "&TEXT(H56,"#.###,00")&" * 17,3% / 3 =" -> = ,00 * 17,3% / 3 = | I204: = ,00 * 17,3% / 3 = | J204: = ,00 * 17,3% / 3 = | K204: = ,00 * 17,3% / 3 = | L204: = ,00 * 17,3% / 3 = | M204: = ,00 * 17,3% / 3 = | N204: = ,00 * 17,3% / 3 = | O204: = ,00 * 17,3% / 3 = | P204: = ,00 * 17,3% / 3 = | Q204: ="= "&TEXT(Q56,"#.###,00")&" * 17,3% / 3 =" -> = ,00 * 17,3% / 3 = | R204: = ,00 * 17,3% / 3 = | S204: = ,00 * 17,3% / 3 = | T204: ="= "&TEXT(T56,"#.###,00")&" * 17,3% / 3 =" -> = ,00 * 17,3% / 3 = | U204: = ,00 * 17,3% / 3 = | V204: = ,00 * 17,3% / 3 = | W204: = ,00 * 17,3% / 3 = | X204: = ,00 * 17,3% / 3 = | Y204: = ,00 * 17,3% / 3 = | Z204: = ,00 * 17,3% / 3 = | AA204: = ,00 * 17,3% / 3 = | AB204: = ,00 * 17,3% / 3 = | AC204: = ,00 * 17,3% / 3 = | AD204: = ,00 * 17,3% / 3 = | AE204: = ,00 * 17,3% / 3 =
B205: 42 | D205: 87 | F205: Pensionstillæg Funktionstillæg 1 | G205: ="= "&TEXT(G57,"#.###,00")&" * 17,3% / 3 =" -> = ,00 * 17,3% / 3 = | H205: ="= "&TEXT(H57,"#.###,00")&" * 17,3% / 3 =" -> = ,00 * 17,3% / 3 = | I205: = ,00 * 17,3% / 3 = | J205: = ,00 * 17,3% / 3 = | K205: = ,00 * 17,3% / 3 = | L205: = ,00 * 17,3% / 3 = | M205: = ,00 * 17,3% / 3 = | N205: = ,00 * 17,3% / 3 = | O205: = ,00 * 17,3% / 3 = | P205: = ,00 * 17,3% / 3 = | Q205: ="= "&TEXT(Q57,"#.###,00")&" * 17,3% / 3 =" -> = ,00 * 17,3% / 3 = | R205: = ,00 * 17,3% / 3 = | S205: = ,00 * 17,3% / 3 = | T205: ="= "&TEXT(T57,"#.###,00")&" * 17,3% / 3 =" -> = ,00 * 17,3% / 3 = | U205: = ,00 * 17,3% / 3 = | V205: = ,00 * 17,3% / 3 = | W205: = ,00 * 17,3% / 3 = | X205: = ,00 * 17,3% / 3 = | Y205: = ,00 * 17,3% / 3 = | Z205: = ,00 * 17,3% / 3 = | AA205: = ,00 * 17,3% / 3 = | AB205: = ,00 * 17,3% / 3 = | AC205: = ,00 * 17,3% / 3 = | AD205: = ,00 * 17,3% / 3 = | AE205: = ,00 * 17,3% / 3 =
B206: 43 | D206: 88 | F206: Pensionstillæg Funktionstillæg 2 | G206: ="= "&TEXT(G58,"#.###,00")&" * 17,3% / 3 =" -> = ,00 * 17,3% / 3 = | H206: ="= "&TEXT(H58,"#.###,00")&" * 17,3% / 3 =" -> = ,00 * 17,3% / 3 = | I206: = ,00 * 17,3% / 3 = | J206: = ,00 * 17,3% / 3 = | K206: = ,00 * 17,3% / 3 = | L206: = ,00 * 17,3% / 3 = | M206: = ,00 * 17,3% / 3 = | N206: = ,00 * 17,3% / 3 = | O206: = ,00 * 17,3% / 3 = | P206: = ,00 * 17,3% / 3 = | Q206: ="= "&TEXT(Q58,"#.###,00")&" * 17,3% / 3 =" -> = ,00 * 17,3% / 3 = | R206: = ,00 * 17,3% / 3 = | S206: = ,00 * 17,3% / 3 = | T206: ="= "&TEXT(T58,"#.###,00")&" * 17,3% / 3 =" -> = ,00 * 17,3% / 3 = | U206: = ,00 * 17,3% / 3 = | V206: = ,00 * 17,3% / 3 = | W206: = ,00 * 17,3% / 3 = | X206: = ,00 * 17,3% / 3 = | Y206: = ,00 * 17,3% / 3 = | Z206: = ,00 * 17,3% / 3 = | AA206: = ,00 * 17,3% / 3 = | AB206: = ,00 * 17,3% / 3 = | AC206: = ,00 * 17,3% / 3 = | AD206: = ,00 * 17,3% / 3 = | AE206: = ,00 * 17,3% / 3 =
B207: 44 | D207: 89 | F207: Pensionstillæg Funktionstillæg 3 | G207: ="= "&TEXT(G59,"#.###,00")&" * 17,3% / 3 =" -> = ,00 * 17,3% / 3 = | H207: ="= "&TEXT(H59,"#.###,00")&" * 17,3% / 3 =" -> = ,00 * 17,3% / 3 = | I207: = ,00 * 17,3% / 3 = | J207: = ,00 * 17,3% / 3 = | K207: = ,00 * 17,3% / 3 = | L207: = ,00 * 17,3% / 3 = | M207: = ,00 * 17,3% / 3 = | N207: = ,00 * 17,3% / 3 = | O207: = ,00 * 17,3% / 3 = | P207: = ,00 * 17,3% / 3 = | Q207: ="= "&TEXT(Q59,"#.###,00")&" * 17,3% / 3 =" -> = ,00 * 17,3% / 3 = | R207: = ,00 * 17,3% / 3 = | S207: = ,00 * 17,3% / 3 = | T207: ="= "&TEXT(T59,"#.###,00")&" * 17,3% / 3 =" -> = ,00 * 17,3% / 3 = | U207: = ,00 * 17,3% / 3 = | V207: = ,00 * 17,3% / 3 = | W207: = ,00 * 17,3% / 3 = | X207: = ,00 * 17,3% / 3 = | Y207: = ,00 * 17,3% / 3 = | Z207: = ,00 * 17,3% / 3 = | AA207: = ,00 * 17,3% / 3 = | AB207: = ,00 * 17,3% / 3 = | AC207: = ,00 * 17,3% / 3 = | AD207: = ,00 * 17,3% / 3 = | AE207: = ,00 * 17,3% / 3 =
B208: 45 | D208: 90 | F208: Pensionstillæg Kvalifikationstillæg 1 | G208: ="= "&TEXT(G60,"#.###,00")&" * 17,3% / 3 =" -> = ,00 * 17,3% / 3 = | H208: ="= "&TEXT(H60,"#.###,00")&" * 17,3% / 3 =" -> = ,00 * 17,3% / 3 = | I208: = ,00 * 17,3% / 3 = | J208: = ,00 * 17,3% / 3 = | K208: = ,00 * 17,3% / 3 = | L208: = ,00 * 17,3% / 3 = | M208: = ,00 * 17,3% / 3 = | N208: = ,00 * 17,3% / 3 = | O208: = ,00 * 17,3% / 3 = | P208: = ,00 * 17,3% / 3 = | Q208: ="= "&TEXT(Q60,"#.###,00")&" * 17,3% / 3 =" -> = ,00 * 17,3% / 3 = | R208: = ,00 * 17,3% / 3 = | S208: = ,00 * 17,3% / 3 = | T208: ="= "&TEXT(T60,"#.###,00")&" * 17,3% / 3 =" -> = ,00 * 17,3% / 3 = | U208: = ,00 * 17,3% / 3 = | V208: = ,00 * 17,3% / 3 = | W208: = ,00 * 17,3% / 3 = | X208: = ,00 * 17,3% / 3 = | Y208: = ,00 * 17,3% / 3 = | Z208: = ,00 * 17,3% / 3 = | AA208: = ,00 * 17,3% / 3 = | AB208: = ,00 * 17,3% / 3 = | AC208: = ,00 * 17,3% / 3 = | AD208: = ,00 * 17,3% / 3 = | AE208: = ,00 * 17,3% / 3 =
B209: 46 | D209: 91 | F209: Pensionstillæg Kvalifikationstillæg 2 | G209: ="= "&TEXT(G61,"#.###,00")&" * 17,3% / 3 =" -> = ,00 * 17,3% / 3 = | H209: ="= "&TEXT(H61,"#.###,00")&" * 17,3% / 3 =" -> = ,00 * 17,3% / 3 = | I209: = ,00 * 17,3% / 3 = | J209: = ,00 * 17,3% / 3 = | K209: = ,00 * 17,3% / 3 = | L209: = ,00 * 17,3% / 3 = | M209: = ,00 * 17,3% / 3 = | N209: = ,00 * 17,3% / 3 = | O209: = ,00 * 17,3% / 3 = | P209: = ,00 * 17,3% / 3 = | Q209: ="= "&TEXT(Q61,"#.###,00")&" * 17,3% / 3 =" -> = ,00 * 17,3% / 3 = | R209: = ,00 * 17,3% / 3 = | S209: = ,00 * 17,3% / 3 = | T209: ="= "&TEXT(T61,"#.###,00")&" * 17,3% / 3 =" -> = ,00 * 17,3% / 3 = | U209: = ,00 * 17,3% / 3 = | V209: = ,00 * 17,3% / 3 = | W209: = ,00 * 17,3% / 3 = | X209: = ,00 * 17,3% / 3 = | Y209: = ,00 * 17,3% / 3 = | Z209: = ,00 * 17,3% / 3 = | AA209: = ,00 * 17,3% / 3 = | AB209: = ,00 * 17,3% / 3 = | AC209: = ,00 * 17,3% / 3 = | AD209: = ,00 * 17,3% / 3 = | AE209: = ,00 * 17,3% / 3 =
B210: 47 | D210: 92 | F210: Pensionstillæg Kvalifikationstillæg 3 | G210: ="= "&TEXT(G62,"#.###,00")&" * 17,3% / 3 =" -> = ,00 * 17,3% / 3 = | H210: ="= "&TEXT(H62,"#.###,00")&" * 17,3% / 3 =" -> = ,00 * 17,3% / 3 = | I210: = ,00 * 17,3% / 3 = | J210: = ,00 * 17,3% / 3 = | K210: = ,00 * 17,3% / 3 = | L210: = ,00 * 17,3% / 3 = | M210: = ,00 * 17,3% / 3 = | N210: = ,00 * 17,3% / 3 = | O210: = ,00 * 17,3% / 3 = | P210: = ,00 * 17,3% / 3 = | Q210: ="= "&TEXT(Q62,"#.###,00")&" * 17,3% / 3 =" -> = ,00 * 17,3% / 3 = | R210: = ,00 * 17,3% / 3 = | S210: = ,00 * 17,3% / 3 = | T210: ="= "&TEXT(T62,"#.###,00")&" * 17,3% / 3 =" -> = ,00 * 17,3% / 3 = | U210: = ,00 * 17,3% / 3 = | V210: = ,00 * 17,3% / 3 = | W210: = ,00 * 17,3% / 3 = | X210: = ,00 * 17,3% / 3 = | Y210: = ,00 * 17,3% / 3 = | Z210: = ,00 * 17,3% / 3 = | AA210: = ,00 * 17,3% / 3 = | AB210: = ,00 * 17,3% / 3 = | AC210: = ,00 * 17,3% / 3 = | AD210: = ,00 * 17,3% / 3 = | AE210: = ,00 * 17,3% / 3 =
B211: 48 | D211: 93 | F211: Pensionstillæg af trin 4-tillæg | G211: ="= "&TEXT(G63,"#.###,00")&" * 17,3% /3 =" -> = ,00 * 17,3% /3 = | H211: ="= "&TEXT(H63,"#.###,00")&" * 17,3% /3 =" -> = ,00 * 17,3% /3 = | I211: = ,00 * 17,3% /3 = | J211: = ,00 * 17,3% /3 = | K211: = ,00 * 17,3% /3 = | L211: = ,00 * 17,3% /3 = | M211: = ,00 * 17,3% /3 = | N211: = ,00 * 17,3% /3 = | O211: = ,00 * 17,3% /3 = | P211: = ,00 * 17,3% /3 = | Q211: ="= "&TEXT(Q63,"#.###,00")&" * 17,3% /3 =" -> = ,00 * 17,3% /3 = | R211: = ,00 * 17,3% /3 = | S211: = ,00 * 17,3% /3 = | T211: ="= "&TEXT(T63,"#.###,00")&" * 17,3% /3 =" -> = ,00 * 17,3% /3 = | U211: = ,00 * 17,3% /3 = | V211: = ,00 * 17,3% /3 = | W211: = ,00 * 17,3% /3 = | X211: = ,00 * 17,3% /3 = | Y211: = ,00 * 17,3% /3 = | Z211: = ,00 * 17,3% /3 = | AA211: = ,00 * 17,3% /3 = | AB211: = ,00 * 17,3% /3 = | AC211: = ,00 * 17,3% /3 = | AD211: = ,00 * 17,3% /3 = | AE211: = ,00 * 17,3% /3 =
B212: 49 | D212: 94 | F212: Pensionstillæg af udligningstillæg | G212: ="= "&TEXT(G64,"#.###,00")&" * 17,3% / 3 =" -> = ,00 * 17,3% / 3 = | H212: ="= "&TEXT(H64,"#.###,00")&" * 17,3% / 3 =" -> = ,00 * 17,3% / 3 = | I212: = ,00 * 17,3% / 3 = | J212: = ,00 * 17,3% / 3 = | K212: = ,00 * 17,3% / 3 = | L212: = ,00 * 17,3% / 3 = | M212: = ,00 * 17,3% / 3 = | N212: = ,00 * 17,3% / 3 = | O212: = ,00 * 17,3% / 3 = | P212: = ,00 * 17,3% / 3 = | Q212: ="= "&TEXT(Q64,"#.###,00")&" * 17,3% / 3 =" -> = ,00 * 17,3% / 3 = | R212: = ,00 * 17,3% / 3 = | S212: = ,00 * 17,3% / 3 = | T212: ="= "&TEXT(T64,"#.###,00")&" * 17,3% / 3 =" -> = ,00 * 17,3% / 3 = | U212: = ,00 * 17,3% / 3 = | V212: = ,00 * 17,3% / 3 = | W212: = ,00 * 17,3% / 3 = | X212: = ,00 * 17,3% / 3 = | Y212: = ,00 * 17,3% / 3 = | Z212: = ,00 * 17,3% / 3 = | AA212: = ,00 * 17,3% / 3 = | AB212: = ,00 * 17,3% / 3 = | AC212: = ,00 * 17,3% / 3 = | AD212: = ,00 * 17,3% / 3 = | AE212: = ,00 * 17,3% / 3 =
B213: 50 | D213: 95 | F213: Pensionstillæg af OK13-tillæg | G213: ="= "&TEXT(G66,"#.###,00")&" * 17,3% / 3 =" -> = ,00 * 17,3% / 3 = | H213: ="= "&TEXT(H66,"#.###,00")&" * 17,3% / 3 =" -> = ,00 * 17,3% / 3 = | I213: = ,00 * 17,3% / 3 = | J213: = ,00 * 17,3% / 3 = | K213: = ,00 * 17,3% / 3 = | L213: = ,00 * 17,3% / 3 = | M213: = ,00 * 17,3% / 3 = | N213: = ,00 * 17,3% / 3 = | O213: = ,00 * 17,3% / 3 = | P213: = ,00 * 17,3% / 3 = | Q213: ="= "&TEXT(Q66,"#.###,00")&" * 17,3% / 3 =" -> = ,00 * 17,3% / 3 = | R213: = ,00 * 17,3% / 3 = | S213: = ,00 * 17,3% / 3 = | T213: ="= "&TEXT(T66,"#.###,00")&" * 17,3% / 3 =" -> = ,00 * 17,3% / 3 = | U213: = ,00 * 17,3% / 3 = | V213: = ,00 * 17,3% / 3 = | W213: = ,00 * 17,3% / 3 = | X213: = ,00 * 17,3% / 3 = | Y213: = ,00 * 17,3% / 3 = | Z213: = ,00 * 17,3% / 3 = | AA213: = ,00 * 17,3% / 3 = | AB213: = ,00 * 17,3% / 3 = | AC213: = ,00 * 17,3% / 3 = | AD213: = ,00 * 17,3% / 3 = | AE213: = ,00 * 17,3% / 3 =
B214: 51 | D214: 96 | F214: Pensionstillæg af OK18-tillæg | G214: ="= "&TEXT(G67,"#.###,00")&" * 17,3% / 3 =" -> = ,00 * 17,3% / 3 = | H214: ="= "&TEXT(H67,"#.###,00")&" * 17,3% / 3 =" -> = ,00 * 17,3% / 3 = | I214: = ,00 * 17,3% / 3 = | J214: = ,00 * 17,3% / 3 = | K214: = ,00 * 17,3% / 3 = | L214: = ,00 * 17,3% / 3 = | M214: = ,00 * 17,3% / 3 = | N214: = ,00 * 17,3% / 3 = | O214: = ,00 * 17,3% / 3 = | P214: = ,00 * 17,3% / 3 = | Q214: ="= "&TEXT(Q67,"#.###,00")&" * 17,3% / 3 =" -> = ,00 * 17,3% / 3 = | R214: = ,00 * 17,3% / 3 = | S214: = ,00 * 17,3% / 3 = | T214: ="= "&TEXT(T67,"#.###,00")&" * 17,3% / 3 =" -> = ,00 * 17,3% / 3 = | U214: = ,00 * 17,3% / 3 = | V214: = ,00 * 17,3% / 3 = | W214: = ,00 * 17,3% / 3 = | X214: = ,00 * 17,3% / 3 = | Y214: = ,00 * 17,3% / 3 = | Z214: = ,00 * 17,3% / 3 = | AA214: = ,00 * 17,3% / 3 = | AB214: = ,00 * 17,3% / 3 = | AC214: = ,00 * 17,3% / 3 = | AD214: = ,00 * 17,3% / 3 = | AE214: = ,00 * 17,3% / 3 =
... 25 more rows

Sheet ArkA (hidden)

Sheet Ark3 (hidden)

Sheet Ark4 (hidden)

Sheet Ark5 (hidden)

Sheet B
A1: 2023/2024 | B1: 1 | C1: Pensionsg. | D1: BG- afh. | E1: Regu- leret | F1: Lønberegning for: (navn eller initialer) | G1: B | H1: =G1 -> B | I1: =H1 -> B | J1: B | K1: B | L1: B | M1: B | N1: B | O1: B | P1: B | Q1: B | R1: B | T1: A | U1: =T1 -> A | V1: =U1 -> A | W1: A | X1: A | Y1: A | Z1: A | AA1: A | AB1: A | AC1: A | AD1: A | AE1: A | AF1: Udfyld gule felter (alle forudfyldte tal i gule felter er eksempler)
A2: jan-juli | B2: =B1+1 -> 2 | F2: Måned | G2: ="AUG "&MID($A$1,3,2)+1 -> AUG 24 | H2: ="SEP "&MID($A$1,3,2)+1 -> SEP 24 | I2: ="OKT "&MID($A$1,3,2)+1 -> OKT 24 | J2: ="NOV "&MID($A$1,3,2)+1 -> NOV 24 | K2: ="DEC "&MID($A$1,3,2)+1 -> DEC 24 | L2: ="JAN "&MID($A$1,3,2)+2 -> JAN 25 | M2: ="FEB "&MID($A$1,3,2)+2 -> FEB 25 | N2: ="MAR "&MID($A$1,3,2)+2 -> MAR 25 | O2: ="APR "&MID($A$1,3,2)+2 -> APR 25 | P2: ="MAJ "&MID($A$1,3,2)+2 -> MAJ 25 | Q2: ="JUN "&MID($A$1,3,2)+2 -> JUN 25 | R2: ="JUL "&MID($A$1,3,2)+2 -> JUL 25 | T2: ="AUG "&MID($A$1,3,2)+1 -> AUG 24 | U2: ="SEP "&MID($A$1,3,2)+1 -> SEP 24 | V2: ="OKT "&MID($A$1,3,2)+1 -> OKT 24 | W2: ="NOV "&MID($A$1,3,2)+1 -> NOV 24 | X2: ="DEC "&MID($A$1,3,2)+1 -> DEC 24 | Y2: ="JAN "&MID($A$1,3,2)+2 -> JAN 25 | Z2: ="FEB "&MID($A$1,3,2)+2 -> FEB 25 | AA2: ="MAR "&MID($A$1,3,2)+2 -> MAR 25 | AB2: ="APR "&MID($A$1,3,2)+2 -> APR 25 | AC2: ="MAJ "&MID($A$1,3,2)+2 -> MAJ 25 | AD2: ="JUN "&MID($A$1,3,2)+2 -> JUN 25 | AE2: ="JUL "&MID($A$1,3,2)+2 -> JUL 25 | AF2: ansat d.
A3: For at lønbereg-ningsaket kan beregne korrekt ferietillæg og feriepenge-beregnings-grundlag, udfyldes først celle A114 og celle A124. Læs kommen-tarerne til de to celler. | B3: 3 | F3: Del af måned antal kalenderdage/månedens kalenderdage | G3: 1 | H3: 1 | I3: 1 | J3: 1 | K3: 1 | L3: 1 | M3: 1 | N3: 1 | O3: 1 | P3: 1 | Q3: 1 | R3: 1 | T3: 1 | U3: 1 | V3: 1 | W3: 1 | X3: 1 | Y3: 1 | Z3: 1 | AA3: 1 | AB3: 1 | AC3: 1 | AD3: 1 | AE3: 1 | AF3: Hvis ansat 10 oktober: 21/31 Hvis fratrådt 15. april 12: 15/30
B4: 4 | C4: sæt 'x' | D4: sæt 'x' | E4: sæt 'x' | F4: Basisløntrin, Læ1 - Læ4, Bh1 - Bh4 | H4: =G4 -> 0 | I4: =H4 -> 0 | J4: =I4 -> 0 | K4: 0 | L4: 0 | M4: 0 | N4: 0 | O4: 0 | P4: 0 | Q4: 0 | R4: 0 | T4: =G4 -> 0 | U4: 0 | V4: 0 | W4: 0 | X4: 0 | Y4: 0 | Z4: 0 | AA4: 0 | AB4: 0 | AC4: 0 | AD4: 0 | AE4: 0 | AF4: basisløn for lærer (Læ) eller bhkl.leder (Bh)
B5: =B4+1 -> 5 | F5: Pensionsordning | H5: =$G5 -> 0 | I5: =$G5 -> 0 | J5: 0 | K5: 0 | L5: 0 | M5: 0 | N5: 0 | O5: 0 | P5: 0 | Q5: 0 | R5: 0 | T5: 0 | U5: 0 | V5: 0 | W5: 0 | X5: 0 | Y5: 0 | Z5: 0 | AA5: 0 | AB5: 0 | AC5: 0 | AD5: 0 | AE5: 0 | AF5: Pxx=P25, Exx=Efterlønskassen, L= Lærernes Pension (xx=skalatrin) fx skalatrin 40 i P25: P40
B6: 6 | F6: Procentregulering +1 | G6: 1.228067 | H6: =G6 -> 1.228067 | I6: =H6 -> 1.228067 | J6: 1.228067 | K6: 1.228067 | L6: 1.228067 | M6: 1.228067 | N6: 1.228067 | O6: 1.228067 | P6: =O6 -> 1.228067 | Q6: =P6 -> 1.228067 | R6: =Q6 -> 1.228067 | T6: 1.228067 | U6: 1.228067 | V6: 1.228067 | W6: 1.228067 | X6: 1.228067 | Y6: 1.228067 | Z6: 1.228067 | AA6: 1.228067 | AB6: 1.228067 | AC6: 1.228067 | AD6: 1.228067 | AE6: 1.228067 | AF6: ="se i løntabel for april "&LEFT($A$1,4)+2&", når den udkommer" -> se i løntabel for april 2025, når den udkommer
B7: 7 | F7: Skolens stedtillægsområde | H7: =$G7 -> 0 | I7: 0 | J7: 0 | K7: 0 | L7: 0 | M7: 0 | N7: 0 | O7: 0 | P7: 0 | Q7: 0 | R7: 0 | T7: 0 | U7: 0 | V7: 0 | W7: 0 | X7: 0 | Y7: 0 | Z7: 0 | AA7: 0 | AB7: 0 | AC7: 0 | AD7: 0 | AE7: 0 | AF7: skolens stedtillægsområde 2-6
F8: Har den ansatte orlov uden løn men med pension? | G8: Nej | H8: =G8 -> Nej | I8: =H8 -> Nej | J8: =I8 -> Nej | K8: Nej | L8: Nej | M8: Nej | N8: Nej | O8: Nej | P8: Nej | Q8: Nej | R8: Nej | T8: Nej | U8: Nej | V8: Nej | W8: Nej | X8: Nej | Y8: Nej | Z8: Nej | AA8: Nej | AB8: Nej | AC8: Nej | AD8: Nej | AE8: Nej | AG8: Nej
F9: Vælg her om den ansatte har ret til seniorbonus. | G9: Nej | H9: =G9 -> Nej | I9: Nej | J9: Nej | K9: Nej | L9: Nej | M9: Nej | N9: Nej | O9: Nej | P9: Nej | Q9: Nej | R9: Nej | T9: Ja | U9: Ja | V9: Ja | W9: Ja | X9: Ja | Y9: Ja | Z9: Ja | AA9: Ja | AB9: Ja | AC9: Ja | AD9: Ja | AE9: Ja | AG9: Ja
B10: =B7+1 -> 8 | F10: Beskæftigelsesgrad den ansatte lønnes med aktuel. 100% = 1 - 85% = 0,85 | H10: 0 | I10: 0 | J10: =I10 -> 0 | K10: 0 | L10: =K10 -> 0 | M10: 0 | N10: 0 | O10: 0 | P10: 0 | Q10: 0 | R10: 0 | T10: =T11 -> 0 | U10: =U11 -> 0 | V10: 0 | W10: 0 | X10: 0 | Y10: 0 | Z10: 0 | AA10: 0 | AB10: 0 | AC10: 0 | AD10: 0 | AE10: 0 | AF10: iflg. ansættelsesbrev eller pluslønsaftale (IKKE løbende overtid!)
F11: Beskæftigelsesgrad der skal beregnes pension af. Hvis ikke brug af seniorordning/delvis forældreorlov er den det samme som række 9. | H11: 0 | I11: =H11 -> 0 | J11: =I11 -> 0 | K11: 0 | L11: 0 | M11: 0 | N11: 0 | O11: 0 | P11: 0 | Q11: 0 | R11: 0 | T11: 0 | U11: 0 | V11: 0 | W11: 0 | X11: 0 | Y11: 0 | Z11: 0 | AA11: 0 | AB11: 0 | AC11: 0 | AD11: 0 | AE11: 0
B12: =B10+1 -> 9 | F12: Undervisningstimer årligt | H12: =G12 -> 0 | I12: =H12 -> 0 | J12: =I12 -> 0 | K12: 0 | L12: 0 | M12: 0 | N12: 0 | O12: 0 | P12: 0 | Q12: 0 | R12: 0 | T12: =IF(G12>0,G12/G10*G11,0) -> 0 | U12: 0 | V12: 0 | W12: 0 | X12: 0 | Y12: 0 | Z12: 0 | AA12: 0 | AB12: 0 | AC12: 0 | AD12: 0 | AE12: 0 | AF12: Iflg opgaveoversigt. SKAL omregnes til årligt timetal v. beskæftigelse under 1 år! (Ændres i øvrigt normalt ikke i normperioden)
B13: 10 | F13: Årligt souscheftillæg i grundbeløb, skriv : 19.300 . | H13: =G13 -> 0 | I13: =H13 -> 0 | J13: 0 | K13: 0 | L13: 0 | M13: 0 | N13: 0 | O13: 0 | P13: 0 | Q13: 0 | R13: 0 | T13: 0 | U13: 0 | V13: 0 | W13: 0 | X13: 0 | Y13: 0 | Z13: 0 | AA13: 0 | AB13: 0 | AC13: 0 | AD13: 0 | AE13: 0 | AF13: altid pensionsgivende i LP
B14: 11 | C14: x | E14: x | F14: Funktionsstillæg, årligt grundbeløb | H14: =G14 -> 0 | I14: 0 | J14: 0 | K14: 0 | L14: 0 | M14: 0 | N14: 0 | O14: 0 | P14: 0 | Q14: 0 | R14: 0 | T14: 0 | U14: 0 | V14: 0 | W14: 0 | X14: 0 | Y14: 0 | Z14: 0 | AA14: 0 | AB14: 0 | AC14: 0 | AD14: 0 | AE14: 0 | AF14: pensionsgivende for lærere i LP
B15: =B14+1 -> 12 | C15: x | E15: x | F15: Funktionsstillæg, årligt grundbeløb | H15: 0 | I15: 0 | J15: 0 | K15: 0 | L15: 0 | M15: 0 | N15: 0 | O15: 0 | P15: 0 | Q15: 0 | R15: 0 | T15: 0 | U15: 0 | V15: 0 | W15: 0 | X15: 0 | Y15: 0 | Z15: 0 | AA15: 0 | AB15: 0 | AC15: 0 | AD15: 0 | AE15: 0 | AF15: pensionsgivende for lærere i LP
B16: 13 | C16: x | E16: x | F16: Funktionsstillæg, årligt grundbeløb | H16: 0 | I16: 0 | J16: 0 | K16: 0 | L16: 0 | M16: 0 | N16: 0 | O16: 0 | P16: 0 | Q16: 0 | R16: 0 | T16: 0 | U16: 0 | V16: 0 | W16: 0 | X16: 0 | Y16: 0 | Z16: 0 | AA16: 0 | AB16: 0 | AC16: 0 | AD16: 0 | AE16: 0 | AF16: pensionsgivende for lærere i LP
B17: 14 | C17: x | D17: x | E17: x | F17: Kval.tillæg, årligt grundbeløb | H17: 0 | I17: 0 | J17: 0 | K17: 0 | L17: 0 | M17: 0 | N17: 0 | O17: 0 | P17: 0 | Q17: 0 | R17: 0 | T17: 0 | U17: 0 | V17: 0 | W17: 0 | X17: 0 | Y17: 0 | Z17: 0 | AA17: 0 | AB17: 0 | AC17: 0 | AD17: 0 | AE17: 0 | AF17: pensionsgivende for lærere i LP
B18: 15 | C18: x | D18: x | E18: x | F18: Kval.tillæg, årligt grundbeløb | H18: 0 | I18: 0 | J18: 0 | K18: 0 | L18: 0 | M18: 0 | N18: 0 | O18: 0 | P18: 0 | Q18: 0 | R18: 0 | T18: 0 | U18: 0 | V18: 0 | W18: 0 | X18: 0 | Y18: 0 | Z18: 0 | AA18: 0 | AB18: 0 | AC18: 0 | AD18: 0 | AE18: 0 | AF18: pensionsgivende for lærere i LP
B19: =B18+1 -> 16 | C19: x | D19: x | E19: x | F19: Kval.tillæg, årligt grundbeløb | H19: 0 | I19: 0 | J19: 0 | K19: 0 | L19: 0 | M19: 0 | N19: 0 | O19: 0 | P19: 0 | Q19: 0 | R19: 0 | T19: 0 | U19: 0 | V19: 0 | W19: 0 | X19: 0 | Y19: 0 | Z19: 0 | AA19: 0 | AB19: 0 | AC19: 0 | AD19: 0 | AE19: 0 | AF19: pensionsgivende for lærere i LP
B20: =B19+1 -> 17 | F20: Trin 4-tillæg beregnet pr. 1. aug 2013 årligt grundbeløb v. 100% BG | H20: 0 | I20: 0 | J20: 0 | K20: 0 | L20: 0 | M20: 0 | N20: 0 | O20: 0 | P20: 0 | Q20: 0 | R20: 0 | T20: =G20 -> 0 | U20: 0 | V20: 0 | W20: 0 | X20: 0 | Y20: 0 | Z20: 0 | AA20: 0 | AB20: 0 | AC20: 0 | AD20: 0 | AE20: 0 | AF20: pensionsgivende for lærere i LP – kun for lærere, der var ansat på nærværende skole før 1. aug 04
B21: =B20+1 -> 18 | F21: Udligningstillæg, beregnet pr. 1. aug 04 årligt grundbeløb v. 100% BG | H21: 0 | I21: 0 | J21: 0 | K21: 0 | L21: 0 | M21: 0 | N21: 0 | O21: 0 | P21: 0 | Q21: 0 | R21: 0 | T21: 0 | U21: 0 | V21: 0 | W21: 0 | X21: 0 | Y21: 0 | Z21: 0 | AA21: 0 | AB21: 0 | AC21: 0 | AD21: 0 | AE21: 0 | AF21: pensionsgivende for lærere i LP. Kan ikke gives samtidig med trin 4-tillæg
B22: 19 | F22: Suppl. pension i LP JA/NEJ | H22: =G22 -> 0 | I22: 0 | J22: 0 | K22: 0 | L22: 0 | M22: 0 | N22: 0 | O22: 0 | P22: 0 | Q22: 0 | R22: 0 | T22: 0 | U22: 0 | V22: 0 | W22: 0 | X22: 0 | Y22: 0 | Z22: 0 | AA22: 0 | AB22: 0 | AC22: 0 | AD22: 0 | AE22: 0 | AF22: Hvis 'JA' beregnes for alle pensionsgivende beløb pension i LP for personer med tjenestemandspension (17,3% og 18% over visse beløb)
B23: 20 | C23: x | F23: Lokalaftalt fast ulempegodtgørelse (Tast mdr. beløb i nutidsværdi). | H23: =G23 -> 0 | I23: 0 | J23: 0 | K23: 0 | L23: 0 | M23: 0 | N23: 0 | O23: =N23 -> 0 | P23: 0 | Q23: 0 | R23: 0 | T23: 0 | U23: 0 | V23: 0 | W23: 0 | X23: 0 | Y23: 0 | Z23: 0 | AA23: 0 | AB23: 0 | AC23: 0 | AD23: 0 | AE23: 0 | AF23: I stedet for aftentillæg mv., iflg lokalaftale
B24: 21 | F24: Planlagte feriedage | G24: 2 | H24: 0 | I24: 5 | J24: 0 | K24: 0 | L24: 0 | M24: 0 | N24: 0 | O24: =N24 -> 0 | P24: 0 | Q24: 0 | R24: 18 | T24: 2 | U24: 0 | V24: 5 | W24: 0 | X24: 0 | Y24: 0 | Z24: 0 | AA24: 0 | AB24: 0 | AC24: 0 | AD24: 0 | AE24: 18 | AF24: Organisationsaftalen: 5 dage uge 42, 18 dage juli og 2 dage aug.
B25: 22 | F25: .. heraf antal feriedage, hvortil der ikke er optjent ferieret | H25: 0 | I25: 0 | J25: 0 | K25: 0 | L25: 0 | M25: 0 | N25: 0 | O25: 0 | P25: 0 | Q25: 0 | R25: 0 | T25: 0 | U25: 0 | V25: 0 | W25: 0 | X25: 0 | Y25: 0 | Z25: 0 | AA25: 0 | AB25: 0 | AC25: 0 | AD25: 0 | AE25: 0 | AF25: ="Se pjecen ""Ferievejledning "&MID($A$1,1,4)+1&"""" -> Se pjecen "Ferievejledning 2024"
B26: 23 | F26: Evt. feriedifference med pensionsret. Beregnes i særligt skema | H26: 0 | I26: 0 | J26: 0 | K26: 0 | L26: 0 | M26: 0 | N26: 0 | O26: 0 | P26: 0 | Q26: 0 | R26: 0 | T26: 0 | U26: 0 | V26: 0 | W26: 0 | X26: 0 | Y26: 0 | Z26: 0 | AA26: 0 | AB26: 0 | AC26: 0 | AD26: 0 | AE26: 0 | AF26: Beregnes i fanen "feriedifference"
B27: 24 | F27: Evt. feriedifference ikke pensionsgivende. Beregnes i særligt skema. | H27: 0 | I27: 0 | J27: 0 | K27: 0 | L27: 0 | M27: 0 | N27: 0 | O27: 0 | P27: 0 | Q27: 0 | R27: 0 | T27: 0 | U27: 0 | V27: 0 | W27: 0 | X27: 0 | Y27: 0 | Z27: 0 | AA27: 0 | AB27: 0 | AC27: 0 | AD27: 0 | AE27: 0
B28: 25 | F28: Egenbetalte fridage | T28: 0 | U28: 0 | V28: 0 | W28: 0 | X28: 0 | Y28: 0 | Z28: 0 | AA28: 0 | AB28: 0 | AC28: 0 | AD28: 0 | AE28: 0 | AF28: Løn- og pensionsfradrag beregnes i lin 64, 65 og 94
B29: 26 | F29: Skatteprocent | H29: =G29 -> 0 | I29: =H29 -> 0 | J29: 0 | K29: 0 | M29: 0 | N29: 0 | O29: 0 | P29: 0 | Q29: 0 | R29: 0 | T29: 0 | U29: 0 | V29: 0 | W29: 0 | X29: 0 | Y29: 0 | Z29: 0 | AA29: 0 | AB29: 0 | AC29: 0 | AD29: 0 | AE29: 0 | AF29: Skriv ikke procenttegnet, fx 42% - skriv 42
B30: 27 | C30: km- tak-ster | D30: =LEFT($A$1,4)+1 -> 2024 | E30: =LEFT($A$1,4)+2 -> 2025 | F30: Månedligt skattefradrag | H30: =G30 -> 0 | I30: 0 | J30: 0 | K30: 0 | M30: 0 | N30: 0 | O30: 0 | P30: 0 | Q30: 0 | R30: 0 | T30: 0 | U30: 0 | V30: 0 | W30: 0 | X30: 0 | Y30: 0 | Z30: 0 | AA30: 0 | AB30: 0 | AC30: 0 | AD30: 0 | AE30: 0
B31: 28 | D31: 2.23 | E31: 0 | F31: Km.godtgørelse, lav sats (skattefri), antal km: | T31: 0 | U31: 0 | V31: 0 | W31: 0 | X31: 0 | Y31: 0 | Z31: 0 | AA31: 0 | AB31: 0 | AC31: 0 | AD31: 0 | AE31: 0 | AF31: Se løntabel
B32: 29 | D32: 3.79 | E32: 0 | F32: Km.godtgørelse, høj sats (skattefri), antal km: | T32: 0 | U32: 0 | V32: 0 | W32: 0 | X32: 0 | Y32: 0 | Z32: 0 | AA32: 0 | AB32: 0 | AC32: 0 | AD32: 0 | AE32: 0 | AF32: Se løntabel
B33: 30 | F33: Timedagpenge (skattefri), beregn selv! | T33: 0 | U33: 0 | V33: 0 | W33: 0 | X33: 0 | Y33: 0 | Z33: 0 | AA33: 0 | AB33: 0 | AC33: 0 | AD33: 0 | AE33: 0 | AF33: Se løntabel
B34: 31 | F34: Jubilæumsgratiale (skattefri op til 8.000 kr.) | T34: 0 | U34: 0 | V34: 0 | W34: 0 | X34: 0 | Y34: 0 | Z34: 0 | AA34: 0 | AB34: 0 | AC34: 0 | AD34: 0 | AE34: 0 | AF34: Se løntabel
B35: 32 | F35: SPS-tillæg og tillæg for uv. af 2-sprogede | T35: 0 | U35: 0 | V35: 0 | W35: 0 | X35: 0 | Y35: 0 | Z35: 0 | AA35: 0 | AB35: 0 | AC35: 0 | AD35: 0 | AE35: 0 | AF35: Se løntabel
B36: 33 | F36: Lejrskoletillæg på hverdage. Oplys antal påbegyndte dage. | T36: 0 | U36: 0 | V36: 0 | W36: 0 | X36: 0 | Y36: 0 | Z36: 0 | AA36: 0 | AB36: 0 | AC36: 0 | AD36: 0 | AE36: 0
B37: 34 | F37: Lejrskoletillæg lørdage, søndage og helligdage. Oplys antal påbegyndte dage. | T37: 0 | U37: 0 | V37: 0 | W37: 0 | X37: 0 | Y37: 0 | Z37: 0 | AA37: 0 | AB37: 0 | AC37: 0 | AD37: 0 | AE37: 0
B38: 35 | F38: Antal arbejdstimer der udløser 25%-tillæg/ulempetillæg | T38: 0 | U38: 0 | V38: 0 | W38: 0 | X38: 0 | Y38: 0 | Z38: 0 | AA38: 0 | AB38: 0 | AC38: 0 | AD38: 0 | AE38: 0 | AF38: aftentillæg efter kl 17 (indtil kl 06) samt weekendtimer
B39: 36 | F39: Antal arbejdstimer der udløser 50%-tillæg/weekendtillæg | T39: 0 | U39: 0 | V39: 0 | W39: 0 | X39: 0 | Y39: 0 | Z39: 0 | AA39: 0 | AB39: 0 | AC39: 0 | AD39: 0 | AE39: 0 | AF39: Weekendtillæg, kan i stedet afspadseres
B40: 37 | F40: Antal weekendtimer til udbetaling (100%) | T40: 0 | U40: 0 | V40: 0 | W40: 0 | X40: 0 | Y40: 0 | Z40: 0 | AA40: 0 | AB40: 0 | AC40: 0 | AD40: 0 | AE40: 0 | AF40: Weekendtimer til udbetaling (ekskl. tillæg)
B41: 38 | F41: Eksaminator eller censor tillæg | T41: 0 | U41: 0 | V41: 0 | W41: =J41 -> 0 | X41: 0 | Y41: 0 | Z41: 0 | AA41: 0 | AB41: 0 | AC41: 0 | AD41: 0 | AE41: 0
B42: =B41+1 -> 39 | F42: Overarbejds-/mererarbejdsbetaling | T42: =G42 -> 0 | U42: 0 | V42: 0 | W42: 0 | X42: 0 | Y42: 0 | Z42: 0 | AA42: 0 | AB42: 0 | AC42: 0 | AD42: 0 | AE42: 0 | AF42: Efter årsopgørelse i juli eller ved fratræden
B43: 40 | F43: Særlige feriedage til udbetaling | T43: 0 | U43: 0 | V43: 0 | W43: 0 | X43: 0 | Y43: 0 | Z43: 0 | AA43: 0 | AB43: 0 | AC43: 0 | AD43: 0 | AE43: 0 | AF43: ="I juli eller ved fratræden. "&"Se pjecen ""Ferievejledning "&MID($A$1,1,4)+1&"""" -> I juli eller ved fratræden. Se pjecen "Ferievejledning 2024"
B44: 41 | F44: Særlig feriegodtgørelse (Ferietillæg) 2,02% | G44: =(A117+G117)*2.02% -> 0 | P44: =AF117*1.5% -> 0 | T44: 0 | U44: 0 | V44: 0 | W44: 0 | X44: 0 | Y44: 0 | Z44: 0 | AA44: 0 | AB44: 0 | AC44: 0 | AD44: 0 | AE44: 0 | AF44: Udbetales august og maj.
B45: 42 | C45: x | F45: Resultatlønstillæg | T45: 0 | U45: 0 | V45: 0 | W45: 0 | X45: 0 | Y45: 0 | Z45: 0 | AA45: 0 | AB45: 0 | AC45: 0 | AD45: 0 | AE45: 0 | AF45: Evt pensionsgivende
B46: 43 | C46: x | F46: Engangs nylønstillæg | T46: 0 | U46: 0 | V46: 0 | W46: 0 | X46: 0 | Y46: 0 | Z46: 0 | AA46: 0 | AB46: 0 | AC46: 0 | AD46: 0 | AE46: 0 | AF46: Evt pensionsgivende
B47: 44 | F47: Praktiklærervederlag | T47: 0 | U47: 0 | V47: 0 | W47: 0 | X47: 0 | Y47: 0 | Z47: 0 | AA47: 0 | AB47: 0 | AC47: 0 | AD47: 0 | AE47: 0
B48: =B47+1 -> 45 | F48: Midlertidig tillæg skoleår 2024/2025 | T48: 0 | U48: 0 | V48: 0 | W48: 0 | X48: 0 | Y48: 0 | Z48: 0 | AA48: 0 | AB48: 0 | AC48: 0 | AD48: 0 | AE48: 0
B49: 46 | C49: Disse tre linjer fradrages i den disponible løn | F49: Gavekasse | G49: 0 | H49: =G49 -> 0 | I49: =H49 -> 0 | J49: 0 | K49: 0 | L49: 0 | M49: 0 | N49: 0 | O49: 0 | P49: 0 | Q49: 0 | R49: 0 | T49: 0 | U49: 0 | V49: 0 | W49: 0 | X49: 0 | Y49: 0 | Z49: 0 | AA49: 0 | AB49: 0 | AC49: 0 | AD49: 0 | AE49: 0 | AF49: Fx: 'Kaffekasse'
B50: 47 | F50: Kaffekasse | G50: 0 | H50: =G50 -> 0 | I50: 0 | J50: 0 | K50: 0 | L50: 0 | M50: 0 | N50: 0 | O50: 0 | P50: 0 | Q50: 0 | R50: 0 | T50: 0 | U50: 0 | V50: 0 | W50: 0 | X50: 0 | Y50: 0 | Z50: 0 | AA50: 0 | AB50: 0 | AC50: 0 | AD50: 0 | AE50: 0 | AF50: Fx: 'Gavekasse'
B51: 48 | F51: FSL-kontingent | G51: 0 | H51: =G51 -> 0 | I51: 0 | J51: 0 | K51: 0 | L51: 0 | M51: 0 | N51: 0 | O51: 0 | P51: 0 | Q51: 0 | R51: 0 | T51: 0 | U51: 0 | V51: 0 | W51: 0 | X51: 0 | Y51: 0 | Z51: 0 | AA51: 0 | AB51: 0 | AC51: 0 | AD51: 0 | AE51: 0 | AF51: FX: 'FSL-kontingent'
A52: =A2 -> jan-juli | B52: 49 | F52: Måned | G52: =G2 -> AUG 24 | H52: SEP 24 | I52: OKT 24 | J52: NOV 24 | K52: DEC 24 | L52: JAN 25 | M52: FEB 25 | N52: MAR 25 | O52: APR 25 | P52: MAJ 25 | Q52: JUN 25 | R52: JUL 25 | T52: AUG 24 | U52: SEP 24 | V52: OKT 24 | W52: NOV 24 | X52: DEC 24 | Y52: JAN 25 | Z52: FEB 25 | AA52: MAR 25 | AB52: APR 25 | AC52: MAJ 25 | AD52: JUN 25 | AE52: JUL 25 | AF52: SUM | AI52: LP | AJ52: E-NEJ | AK52: E-JA
B53: 50 | C53: 1 | D53: 1 | E53: 1 | F53: Basisløn | G53: =IF(G8="Ja",0,ROUND(IF(G10>0,ROUND((ROUND(VLOOKUP(G4,Grundlon12!$A$67:$G$74,2,0)*G6,0))/12,2),0)*G10*G3,2)) -> 0 | H53: =IF(H8="Ja",0,ROUND(IF(H10>0,ROUND((ROUND(VLOOKUP(H4,Grundlon12!$A$67:$G$74,2,0)*H6,0))/12,2),0)*H10*H3,2)) -> 0 | I53: =IF(I8="Ja",0,ROUND(IF(I10>0,ROUND((ROUND(VLOOKUP(I4,Grundlon12!$A$67:$G$74,2,0)*I6,0))/12,2),0)*I10*I3,2)) -> 0 | J53: =IF(J8="Ja",0,ROUND(IF(J10>0,ROUND((ROUND(VLOOKUP(J4,Grundlon12!$A$67:$G$74,2,0)*J6,0))/12,2),0)*J10*J3,2)) -> 0 | K53: =IF(K8="Ja",0,ROUND(IF(K10>0,ROUND((ROUND(VLOOKUP(K4,Grundlon12!$A$67:$G$74,2,0)*K6,0))/12,2),0)*K10*K3,2)) -> 0 | L53: =IF(L8="Ja",0,ROUND(IF(L10>0,ROUND((ROUND(VLOOKUP(L4,Grundlon12!$A$67:$G$74,2,0)*L6,0))/12,2),0)*L10*L3,2)) -> 0 | M53: =IF(M8="Ja",0,ROUND(IF(M10>0,ROUND((ROUND(VLOOKUP(M4,Grundlon12!$A$67:$G$74,2,0)*M6,0))/12,2),0)*M10*M3,2)) -> 0 | N53: =IF(N8="Ja",0,ROUND(IF(N10>0,ROUND((ROUND(VLOOKUP(N4,Grundlon12!$A$67:$G$74,2,0)*N6,0))/12,2),0)*N10*N3,2)) -> 0 | O53: =IF(O8="Ja",0,ROUND(IF(O10>0,ROUND((ROUND(VLOOKUP(O4,Grundlon12!$A$75:$G$82,2,0)*O6,0))/12,2),0)*O10*O3,2)) -> 0 | P53: =IF(P8="Ja",0,ROUND(IF(P10>0,ROUND((ROUND(VLOOKUP(P4,Grundlon12!$A$75:$G$82,2,0)*P6,0))/12,2),0)*P10*P3,2)) -> 0 | Q53: =IF(Q8="Ja",0,ROUND(IF(Q10>0,ROUND((ROUND(VLOOKUP(Q4,Grundlon12!$A$75:$G$82,2,0)*Q6,0))/12,2),0)*Q10*Q3,2)) -> 0 | R53: =IF(R8="Ja",0,ROUND(IF(R10>0,ROUND((ROUND(VLOOKUP(R4,Grundlon12!$A$75:$G$82,2,0)*R6,0))/12,2),0)*R10*R3,2)) -> 0 | T53: =ROUND(IF(T10>0,ROUND((ROUND(VLOOKUP(T4,Grundlon12!$A$67:$G$74,2,0)*T6,0))/12,2),0)*T10*T3,2) -> 0 | U53: =ROUND(IF(U10>0,ROUND((ROUND(VLOOKUP(U4,Grundlon12!$A$67:$G$74,2,0)*U6,0))/12,2),0)*U10*U3,2) -> 0 | V53: =ROUND(IF(V10>0,ROUND((ROUND(VLOOKUP(V4,Grundlon12!$A$67:$G$74,2,0)*V6,0))/12,2),0)*V10*V3,2) -> 0 | W53: =ROUND(IF(W10>0,ROUND((ROUND(VLOOKUP(W4,Grundlon12!$A$67:$G$74,2,0)*W6,0))/12,2),0)*W10*W3,2) -> 0 | X53: =ROUND(IF(X10>0,ROUND((ROUND(VLOOKUP(X4,Grundlon12!$A$67:$G$74,2,0)*X6,0))/12,2),0)*X10*X3,2) -> 0 | Y53: =ROUND(IF(Y10>0,ROUND((ROUND(VLOOKUP(Y4,Grundlon12!$A$67:$G$74,2,0)*Y6,0))/12,2),0)*Y10*Y3,2) -> 0 | Z53: =ROUND(IF(Z10>0,ROUND((ROUND(VLOOKUP(Z4,Grundlon12!$A$67:$G$74,2,0)*Z6,0))/12,2),0)*Z10*Z3,2) -> 0 | AA53: =ROUND(IF(AA10>0,ROUND((ROUND(VLOOKUP(AA4,Grundlon12!$A$67:$G$74,2,0)*AA6,0))/12,2),0)*AA10*AA3,2) -> 0 | AB53: =ROUND(IF(AB10>0,ROUND((ROUND(VLOOKUP(AB4,Grundlon12!$A$67:$G$74,2,0)*AB6,0))/12,2),0)*AB10*AB3,2) -> 0 | AC53: =ROUND(IF(AC10>0,ROUND((ROUND(VLOOKUP(AC4,Grundlon12!$A$67:$G$74,2,0)*AC6,0))/12,2),0)*AC10*AC3,2) -> 0 | AD53: =ROUND(IF(AD10>0,ROUND((ROUND(VLOOKUP(AD4,Grundlon12!$A$67:$G$74,2,0)*AD6,0))/12,2),0)*AD10*AD3,2) -> 0 | AE53: =ROUND(IF(AE10>0,ROUND((ROUND(VLOOKUP(AE4,Grundlon12!$A$67:$G$74,2,0)*AE6,0))/12,2),0)*AE10*AE3,2) -> 0 | AF53: =SUM(G53:R53) -> 0 | AG53: =F53 -> Basisløn | AH53: 48 | AI53: + | AK53: + | AL53: 1
B54: =B53+1 -> 51 | D54: 1 | E54: 0 | F54: Områdetillæg | G54: =IF(G8="Ja",0,ROUND(IF(G10>0,ROUND((VLOOKUP(G4,omraadetabel12,G7,0))/12,2),0)*G10*G3,2)) -> 0 | H54: 0 | I54: 0 | J54: 0 | K54: 0 | L54: 0 | M54: 0 | N54: 0 | O54: 0 | P54: 0 | Q54: 0 | R54: 0 | T54: =ROUND(IF(T10>0,ROUND((VLOOKUP(T4,omraadetabel12,T7,0))/12,2),0)*T10*T3,2) -> 0 | U54: 0 | V54: 0 | W54: 0 | X54: 0 | Y54: 0 | Z54: 0 | AA54: 0 | AB54: 0 | AC54: 0 | AD54: 0 | AE54: 0 | AF54: 0 | AG54: =F54 -> Områdetillæg | AH54: 49 | AL54: 2
B55: =B54+1 -> 52 | C55: 1 | D55: 0 | E55: 1 | F55: Undervisningstillæg | G55: =IF(G8="Ja",0,ROUND(SUM(G131:G134)*G3,2)) -> 0 | H55: =IF(H8="Ja",0,ROUND(SUM(H131:H134)*H3,2)) -> 0 | I55: =IF(I8="Ja",0,ROUND(SUM(I131:I134)*I3,2)) -> 0 | J55: 0 | K55: 0 | L55: 0 | M55: 0 | N55: 0 | O55: 0 | P55: 0 | Q55: 0 | R55: 0 | T55: =ROUND(SUM(T131:T134)*T3,2) -> 0 | U55: 0 | V55: 0 | W55: 0 | X55: 0 | Y55: 0 | Z55: 0 | AA55: 0 | AB55: 0 | AC55: 0 | AD55: 0 | AE55: 0 | AF55: 0 | AG55: Undervisningstillæg | AH55: 50 | AI55: + | AK55: + | AL55: 3
B56: 53 | C56: 1 | D56: 0 | E56: 1 | F56: Souscheftillæg | G56: =IF(G8="Ja",0,ROUND(G13*G$6*G3/12,2)) -> 0 | H56: =IF(H8="Ja",0,ROUND(H13*H$6*H3/12,2)) -> 0 | I56: =IF(I8="Ja",0,ROUND(I13*I$6*I3/12,2)) -> 0 | J56: 0 | K56: 0 | L56: 0 | M56: 0 | N56: 0 | O56: 0 | P56: 0 | Q56: 0 | R56: 0 | T56: =ROUND(T13*T$6*T3/12,2) -> 0 | U56: 0 | V56: 0 | W56: 0 | X56: 0 | Y56: 0 | Z56: 0 | AA56: 0 | AB56: 0 | AC56: 0 | AD56: 0 | AE56: 0 | AF56: 0 | AG56: Souscheftillæg | AH56: 51 | AI56: + | AJ56: + | AK56: + | AL56: 4
B57: 54 | C57: =(C14<>"")*1 -> 1 | D57: 0 | E57: 1 | F57: Funktionstillæg 1 | G57: =IF(G8="Ja",0,ROUND(G14*G$6*G$3*IF($D57>0,G$10,1)/12,2)) -> 0 | H57: =IF(H8="Ja",0,ROUND(H14*H$6*H$3*IF($D57>0,H$10,1)/12,2)) -> 0 | I57: =IF(I8="Ja",0,ROUND(I14*I$6*I$3*IF($D57>0,I$10,1)/12,2)) -> 0 | J57: 0 | K57: 0 | L57: 0 | M57: 0 | N57: 0 | O57: 0 | P57: 0 | Q57: 0 | R57: 0 | T57: =ROUND(T14*T$6*T$3*IF($D57>0,T$10,1)/12,2) -> 0 | U57: 0 | V57: 0 | W57: 0 | X57: 0 | Y57: 0 | Z57: 0 | AA57: 0 | AB57: 0 | AC57: 0 | AD57: 0 | AE57: 0 | AF57: 0 | AG57: Funktionstillæg 1 | AH57: 52 | AI57: + | AK57: + | AL57: 5
B58: 55 | C58: 1 | D58: 0 | E58: 1 | F58: Funktionstillæg 2 | G58: =IF(G8="Ja",0,ROUND(G15*G$6*G$3*IF($D58>0,G$10,1)/12,2)) -> 0 | H58: =IF(H8="Ja",0,ROUND(H15*H$6*H$3*IF($D58>0,H$10,1)/12,2)) -> 0 | I58: =IF(I8="Ja",0,ROUND(I15*I$6*I$3*IF($D58>0,I$10,1)/12,2)) -> 0 | J58: 0 | K58: 0 | L58: 0 | M58: 0 | N58: 0 | O58: 0 | P58: 0 | Q58: 0 | R58: 0 | T58: 0 | U58: 0 | V58: 0 | W58: 0 | X58: 0 | Y58: 0 | Z58: 0 | AA58: 0 | AB58: 0 | AC58: 0 | AD58: 0 | AE58: 0 | AF58: 0 | AG58: Funktionstillæg 2 | AH58: 53 | AI58: + | AK58: + | AL58: 6
B59: 56 | C59: 1 | D59: 0 | E59: 1 | F59: Funktionstillæg 3 | G59: =IF(G8="Ja",0,ROUND(G16*G$6*G$3*IF($D59>0,G$10,1)/12,2)) -> 0 | H59: =IF(H8="Ja",0,ROUND(H16*H$6*H$3*IF($D59>0,H$10,1)/12,2)) -> 0 | I59: =IF(I8="Ja",0,ROUND(I16*I$6*I$3*IF($D59>0,I$10,1)/12,2)) -> 0 | J59: 0 | K59: 0 | L59: 0 | M59: 0 | N59: 0 | O59: 0 | P59: 0 | Q59: 0 | R59: 0 | T59: 0 | U59: 0 | V59: 0 | W59: 0 | X59: 0 | Y59: 0 | Z59: 0 | AA59: 0 | AB59: 0 | AC59: 0 | AD59: 0 | AE59: 0 | AF59: 0 | AG59: Funktionstillæg 3 | AH59: 54 | AI59: + | AK59: + | AL59: 7
B60: 57 | C60: 1 | D60: 1 | E60: =(E18<>"")*1 -> 1 | F60: Kvalifikationstillæg 1 | G60: =IF(G8="Ja",0,ROUND(G17*G$6*G$3*IF($D60>0,G$10,1)/12,2)) -> 0 | H60: =IF(H8="Ja",0,ROUND(H17*H$6*H$3*IF($D60>0,H$10,1)/12,2)) -> 0 | I60: =IF(I8="Ja",0,ROUND(I17*I$6*I$3*IF($D60>0,I$10,1)/12,2)) -> 0 | J60: 0 | K60: 0 | L60: 0 | M60: 0 | N60: 0 | O60: 0 | P60: 0 | Q60: 0 | R60: 0 | T60: 0 | U60: 0 | V60: 0 | W60: 0 | X60: 0 | Y60: 0 | Z60: 0 | AA60: 0 | AB60: 0 | AC60: 0 | AD60: 0 | AE60: 0 | AF60: 0 | AG60: Kvalifikationstillæg 1 | AH60: 55 | AI60: + | AK60: + | AL60: 8
B61: 58 | C61: 1 | D61: 1 | E61: =(E18<>"")*1 -> 1 | F61: Kvalifikationstillæg 2 | G61: =IF(G8="Ja",0,ROUND(G18*G$6*G$3*IF($D61>0,G$10,1)/12,2)) -> 0 | H61: =IF(H8="Ja",0,ROUND(H18*H$6*H$3*IF($D61>0,H$10,1)/12,2)) -> 0 | I61: =IF(I8="Ja",0,ROUND(I18*I$6*I$3*IF($D61>0,I$10,1)/12,2)) -> 0 | J61: 0 | K61: 0 | L61: 0 | M61: 0 | N61: 0 | O61: 0 | P61: 0 | Q61: 0 | R61: 0 | T61: 0 | U61: 0 | V61: 0 | W61: 0 | X61: 0 | Y61: 0 | Z61: 0 | AA61: 0 | AB61: 0 | AC61: 0 | AD61: 0 | AE61: 0 | AF61: 0 | AG61: Kvalifikationstillæg 2 | AH61: 56 | AI61: + | AK61: + | AL61: 9
B62: 59 | C62: 1 | D62: 1 | E62: =(E19<>"")*1 -> 1 | F62: Kvalifikationstillæg 3 | G62: =IF(G8="Ja",0,ROUND(G19*G$6*G$3*IF($D62>0,G$10,1)/12,2)) -> 0 | H62: =IF(H8="Ja",0,ROUND(H19*H$6*H$3*IF($D62>0,H$10,1)/12,2)) -> 0 | I62: =IF(I8="Ja",0,ROUND(I19*I$6*I$3*IF($D62>0,I$10,1)/12,2)) -> 0 | J62: 0 | K62: 0 | L62: 0 | M62: 0 | N62: 0 | O62: 0 | P62: 0 | Q62: 0 | R62: 0 | T62: 0 | U62: 0 | V62: 0 | W62: 0 | X62: 0 | Y62: 0 | Z62: 0 | AA62: 0 | AB62: 0 | AC62: 0 | AD62: 0 | AE62: 0 | AF62: 0 | AG62: Kvalifikationstillæg 3 | AH62: 57 | AI62: + | AK62: + | AL62: 10
B63: 60 | C63: 1 | D63: 1 | E63: 1 | F63: Trin 4-tillæg beregnet 1. aug 2013 | G63: =IF(G8="Ja",0,ROUND(G20*G$6*G$10/12*G3,2)) -> 0 | H63: =IF(H8="Ja",0,ROUND(H20*H$6*H$10/12*H3,2)) -> 0 | I63: =IF(I8="Ja",0,ROUND(I20*I$6*I$10/12*I3,2)) -> 0 | J63: 0 | K63: 0 | L63: 0 | M63: 0 | N63: 0 | O63: 0 | P63: 0 | Q63: 0 | R63: 0 | T63: =ROUND(T20*T$6*T$10/12*T3,2) -> 0 | U63: 0 | V63: 0 | W63: 0 | X63: 0 | Y63: 0 | Z63: 0 | AA63: 0 | AB63: 0 | AC63: 0 | AD63: 0 | AE63: 0 | AF63: 0 | AG63: Trin 4-tillæg beregnet 1. aug 2013 | AH63: 58 | AI63: + | AK63: + | AL63: 11
B64: 61 | C64: 1 | D64: 1 | E64: 1 | F64: Udligningstillæg beregnet 1. aug 2004 | G64: =IF(G8="Ja",0,ROUND(G21*G$6*G$10/12*G3,2)) -> 0 | H64: =IF(H8="Ja",0,ROUND(H21*H$6*H$10/12*H3,2)) -> 0 | I64: =IF(I8="Ja",0,ROUND(I21*I$6*I$10/12*I3,2)) -> 0 | J64: 0 | K64: 0 | L64: 0 | M64: 0 | N64: 0 | O64: 0 | P64: 0 | Q64: 0 | R64: 0 | T64: =ROUND(T21*T$6*T$10/12*T3,2) -> 0 | U64: 0 | V64: 0 | W64: 0 | X64: 0 | Y64: 0 | Z64: 0 | AA64: 0 | AB64: 0 | AC64: 0 | AD64: 0 | AE64: 0 | AF64: 0 | AG64: Udligningstillæg beregnet 1. aug 2004 | AH64: 59 | AI64: + | AK64: + | AL64: 12
B65: 62 | D65: 1 | E65: 1 | F65: OK08-tillæg | G65: =IF(G8="Ja",0,ROUND((IF(RIGHT(G4)="1",5200)+IF(OR(RIGHT(G4)="2",RIGHT(G4)="3"),7900))*G6/12*G10*G3,2)) -> 0 | H65: =IF(H8="Ja",0,ROUND((IF(RIGHT(H4)="1",5200)+IF(OR(RIGHT(H4)="2",RIGHT(H4)="3"),7900))*H6/12*H10*H3,2)) -> 0 | I65: =IF(I8="Ja",0,ROUND((IF(RIGHT(I4)="1",5200)+IF(OR(RIGHT(I4)="2",RIGHT(I4)="3"),7900))*I6/12*I10*I3,2)) -> 0 | J65: 0 | K65: 0 | L65: 0 | M65: 0 | N65: 0 | O65: 0 | P65: 0 | Q65: 0 | R65: 0 | T65: =ROUND((IF(RIGHT(T4)="1",5200)+IF(OR(RIGHT(T4)="2",RIGHT(T4)="3"),7900))*T6/12*T10*T3,2) -> 0 | U65: 0 | V65: 0 | W65: 0 | X65: 0 | Y65: 0 | Z65: 0 | AA65: 0 | AB65: 0 | AC65: 0 | AD65: 0 | AE65: 0 | AF65: 0 | AG65: OK08-tillæg | AH65: 60 | AL65: 13
B66: 63 | C66: 1 | D66: 1 | E66: 1 | F66: OK13-tillæg | G66: =IF(G8="Ja",0,ROUND(2800*G$6*G$10*G3/12,2)) -> 0 | H66: =IF(H8="Ja",0,ROUND(2800*H$6*H$10*H3/12,2)) -> 0 | I66: =IF(I8="Ja",0,ROUND(2800*I$6*I$10*I3/12,2)) -> 0 | J66: 0 | K66: 0 | L66: 0 | M66: 0 | N66: 0 | O66: 0 | P66: 0 | Q66: 0 | R66: 0 | T66: =ROUND(2800*T$6*T$10*T3/12,2) -> 0 | U66: 0 | V66: 0 | W66: 0 | X66: 0 | Y66: 0 | Z66: 0 | AA66: 0 | AB66: 0 | AC66: 0 | AD66: 0 | AE66: 0 | AF66: 0 | AG66: OK13-tillæg | AH66: 61 | AI66: + | AJ66: + | AK66: + | AL66: 14
B67: 64 | C67: 1 | D67: 1 | E67: 1 | F67: OK18-tillæg | G67: =IF(G8="Ja",0,ROUND(900*G$6*G$10*G3/12,2)) -> 0 | H67: 0 | I67: 0 | J67: 0 | K67: 0 | L67: 0 | M67: 0 | N67: 0 | O67: =IF(O8="Ja",0,ROUND(4100*O$6*O$10*O3/12,2)) -> 0 | P67: =IF(P8="Ja",0,ROUND(4100*P$6*P$10*P3/12,2)) -> 0 | Q67: 0 | R67: =IF(R8="Ja",0,ROUND(4100*R$6*R$10*R3/12,2)) -> 0 | T67: =ROUND(900*T$6*T$10*T3/12,2) -> 0 | U67: 0 | V67: 0 | W67: 0 | X67: 0 | Y67: 0 | Z67: 0 | AA67: 0 | AB67: 0 | AC67: 0 | AD67: 0 | AE67: 0 | AF67: 0 | AG67: OK18-tillæg | AH67: 62 | AI67: + | AJ67: + | AK67: + | AL67: 15
B68: 65 | C68: =(C23<>"")*1 -> 1 | D68: =(D23<>"")*1 -> 0 | E68: =(E23<>"")*1 -> 0 | F68: Fast lokalaftalt godtgørelse | G68: =IF(G8="Ja",0,G$23*IF($D68>0,G$10,1)*IF($E68>0,G$6,1)*$G3) -> 0 | H68: =IF(H8="Ja",0,H$23*IF($D68>0,H$10,1)*IF($E68>0,H$6,1)*$G3) -> 0 | I68: =IF(I8="Ja",0,I$23*IF($D68>0,I$10,1)*IF($E68>0,I$6,1)*$G3) -> 0 | J68: 0 | K68: 0 | L68: 0 | M68: 0 | N68: 0 | O68: 0 | P68: 0 | Q68: 0 | R68: 0 | T68: =T$23*IF($D68>0,T$10,1)*IF($E68>0,T$6,1)*$G3 -> 0 | U68: =U23*IF($D68>0,U$10,1)*IF($E68>0,U$6,1)*U3 -> 0 | V68: 0 | W68: 0 | X68: 0 | Y68: 0 | Z68: 0 | AA68: 0 | AB68: 0 | AC68: 0 | AD68: 0 | AE68: 0 | AF68: 0 | AG68: Fast lokalaftalt godtgørelse | AH68: 63 | AI68: HVIS | AK68: HVIS | AL68: 16
B69: 66 | F69: Gruppelivstillæg | G69: =IF(G8="Ja",0,IF(G10>0,108.35*G3,0)) -> 0 | H69: =IF(H8="Ja",0,IF(H10>0,108.35*H3,0)) -> 0 | I69: =IF(I8="Ja",0,IF(I10>0,108.35*I3,0)) -> 0 | J69: 0 | K69: 0 | L69: 0 | M69: 0 | N69: 0 | O69: 0 | P69: 0 | Q69: 0 | R69: 0 | T69: =IF(T10>0,108.35*T3,0) -> 0 | U69: 0 | V69: 0 | W69: 0 | X69: 0 | Y69: 0 | Z69: 0 | AA69: 0 | AB69: 0 | AC69: 0 | AD69: 0 | AE69: 0 | AF69: 0
B70: 67 | F70: Lønfradrag for ikke optjent ferie mv. Pensionsgiv. | G70: =-(MAX(0,MIN(G$24,G$25*1))+G$28)*4.62%*(SUM(G$53:G$69)+G88-G$54-G$65-G$69-G68*($C$68=0)) -> 0 | H70: =-(MAX(0,MIN(H$24,H$25*1))+H$28)*4.62%*(SUM(H$53:H$69)+H88-H$54-H$65-H$69-H68*($C$68=0)) -> 0 | I70: 0 | J70: 0 | K70: 0 | L70: 0 | M70: 0 | N70: 0 | O70: 0 | P70: 0 | Q70: 0 | R70: 0 | T70: =-(MAX(0,MIN(T$24,T$25*1))+T$28)*4.62%*(SUM(T$53:T$69)-T$54-T$65-T$69-T68*($C$68=0)) -> 0 | U70: 0 | V70: 0 | W70: 0 | X70: 0 | Y70: 0 | Z70: 0 | AA70: 0 | AB70: 0 | AC70: 0 | AD70: 0 | AE70: 0 | AF70: 0 | AG70: =-10*4.62%*(R53+R55+R66+R68) -> 0
B71: 68 | F71: Lønfradrag for ikke optjent ferie mv. ej pensionsg. | G71: =-(MAX(0,MIN(G$24,G$25*1))+G$28)*4.62%*SUM(G54+G65+G68*($C68<>1)) -> 0 | H71: =-(MAX(0,MIN(H$24,H$25*1))+H$28)*4.62%*SUM(H54+H65+H68*($C68<>1)) -> 0 | I71: =-(MAX(0,MIN(I$24,I$25*1))+I$28)*4.62%*SUM(I54+I65+I68*($C68<>1)) -> 0 | J71: 0 | K71: 0 | L71: 0 | M71: 0 | N71: 0 | O71: 0 | P71: 0 | Q71: 0 | R71: 0 | T71: =-(MAX(0,MIN(T$24,T$25*1))+T$28)*4.62%*SUM(T54+T65+T68*($C68<>1)+T69) -> 0 | U71: 0 | V71: 0 | W71: 0 | X71: 0 | Y71: 0 | Z71: 0 | AA71: 0 | AB71: 0 | AC71: 0 | AD71: 0 | AE71: 0 | AF71: 0
B72: 69 | F72: Feriedifference, pensionsgivende | G72: =G26 -> 0 | H72: 0 | I72: 0 | J72: 0 | K72: 0 | L72: 0 | M72: 0 | N72: 0 | O72: 0 | P72: 0 | Q72: 0 | R72: 0 | T72: 0 | U72: 0 | V72: 0 | W72: 0 | X72: 0 | Y72: 0 | Z72: 0 | AA72: 0 | AB72: 0 | AC72: 0 | AD72: 0 | AE72: 0 | AF72: 0
B73: 70 | F73: Feriedifference, ikke pensionsgivende | G73: 0 | H73: 0 | I73: 0 | J73: 0 | K73: 0 | L73: 0 | M73: 0 | N73: 0 | O73: 0 | P73: 0 | Q73: 0 | R73: 0 | T73: 0 | U73: 0 | V73: 0 | W73: 0 | X73: 0 | Y73: 0 | Z73: 0 | AA73: 0 | AB73: 0 | AC73: 0 | AD73: 0 | AE73: 0 | AF73: 0
B74: 71 | F74: Skattefri km.godtgørelse, lav sats | G74: =$D31*G31 -> 0 | H74: 0 | I74: 0 | J74: 0 | K74: 0 | L74: =$E31*L31 -> 0 | M74: 0 | N74: 0 | O74: 0 | P74: 0 | Q74: 0 | R74: 0 | T74: =$D31*T31 -> 0 | U74: 0 | V74: 0 | W74: 0 | X74: 0 | Y74: =$E31*Y31 -> 0 | Z74: 0 | AA74: 0 | AB74: 0 | AC74: 0 | AD74: 0 | AE74: 0 | AF74: 0
B75: 72 | F75: Skattefri km.godtgørelse, høj sats | G75: 0 | H75: 0 | I75: 0 | J75: 0 | K75: 0 | L75: 0 | M75: 0 | N75: 0 | O75: 0 | P75: 0 | Q75: 0 | R75: 0 | T75: 0 | U75: 0 | V75: 0 | W75: 0 | X75: 0 | Y75: 0 | Z75: 0 | AA75: 0 | AB75: 0 | AC75: 0 | AD75: 0 | AE75: 0 | AF75: 0
B76: 73 | F76: Skattefri time/dagpenge | G76: =G33 -> 0 | H76: 0 | I76: 0 | J76: 0 | K76: 0 | L76: 0 | M76: 0 | N76: 0 | O76: 0 | P76: 0 | Q76: 0 | R76: 0 | T76: 0 | U76: 0 | V76: 0 | W76: 0 | X76: 0 | Y76: 0 | Z76: 0 | AA76: 0 | AB76: 0 | AC76: 0 | AD76: 0 | AE76: 0 | AF76: 0
B77: 74 | F77: Skattefri jubilæumsgratiale | G77: =MIN(8000,G34*G6) -> 0 | H77: 0 | I77: 0 | J77: 0 | K77: 0 | L77: 0 | M77: 0 | N77: 0 | O77: 0 | P77: 0 | Q77: 0 | R77: 0 | T77: 0 | U77: 0 | V77: 0 | W77: 0 | X77: 0 | Y77: 0 | Z77: 0 | AA77: 0 | AB77: 0 | AC77: 0 | AD77: 0 | AE77: 0 | AF77: 0
B78: 75 | F78: Lejrskoletillæg på hverdage | G78: =IF(G36>0,163.64*G6*G36,0) -> 0 | H78: 0 | I78: 0 | J78: 0 | K78: 0 | L78: 0 | M78: 0 | N78: 0 | O78: 0 | P78: 0 | Q78: 0 | R78: 0 | T78: 0 | U78: 0 | V78: 0 | W78: 0 | X78: 0 | Y78: 0 | Z78: 0 | AA78: 0 | AB78: 0 | AC78: 0 | AD78: 0 | AE78: 0
B79: 76 | F79: Lejrskoletillæg lørdage, søndage og helligdage | G79: =IF(G37>0,372.2*G6*G37,0) -> 0 | H79: 0 | I79: 0 | J79: 0 | K79: 0 | L79: 0 | M79: 0 | N79: 0 | O79: 0 | P79: 0 | Q79: 0 | R79: 0 | T79: 0 | U79: 0 | V79: 0 | W79: 0 | X79: 0 | Y79: 0 | Z79: 0 | AA79: 0 | AB79: 0 | AC79: 0 | AD79: 0 | AE79: 0
B80: =B77+1 -> 75 | F80: SPS-tillæg og tillæg for uv. af 2-sprogede | G80: =IF(G35>0,G35*(19*G$6),0) -> 0 | H80: =IF(H35>0,H35*(19*H$6),0) -> 0 | I80: =IF(I35>0,I35*(19*I$6),0) -> 0 | J80: 0 | K80: 0 | L80: 0 | M80: 0 | N80: 0 | O80: 0 | P80: 0 | Q80: 0 | R80: 0 | T80: =ROUND(T35*ROUND(19*T$6,2),0) -> 0 | U80: 0 | V80: 0 | W80: 0 | X80: 0 | Y80: 0 | Z80: 0 | AA80: 0 | AB80: 0 | AC80: 0 | AD80: 0 | AE80: 0 | AF80: =SUM(G80:R80) -> 0
B81: 76 | F81: 25%-tillæg *) | G81: =IF(G38>0,G38*G$163*25%,0) -> 0 | H81: =IF(H38>0,H38*H$163*25%,0) -> 0 | I81: =IF(I38>0,I38*I$163*25%,0) -> 0 | J81: 0 | K81: 0 | L81: 0 | M81: 0 | N81: 0 | O81: 0 | P81: 0 | Q81: 0 | R81: 0 | T81: 0 | U81: 0 | V81: 0 | W81: 0 | X81: 0 | Y81: 0 | Z81: 0 | AA81: 0 | AB81: 0 | AC81: 0 | AD81: 0 | AE81: 0 | AF81: 0
B82: 77 | F82: 50%-tillæg *) | G82: =IF(G39>0,G39*G$163*50%,0) -> 0 | H82: 0 | I82: 0 | J82: 0 | K82: 0 | L82: 0 | M82: 0 | N82: 0 | O82: 0 | P82: 0 | Q82: 0 | R82: 0 | T82: 0 | U82: 0 | V82: 0 | W82: 0 | X82: 0 | Y82: 0 | Z82: 0 | AA82: 0 | AB82: 0 | AC82: 0 | AD82: 0 | AE82: 0 | AF82: 0
B83: 78 | F83: Weekendtimer til udbetaling *) | G83: =IF(G40>0,G40*G$163,0) -> 0 | H83: 0 | I83: 0 | J83: 0 | K83: 0 | L83: 0 | M83: 0 | N83: 0 | O83: 0 | P83: 0 | Q83: 0 | R83: 0 | T83: 0 | U83: 0 | V83: 0 | W83: 0 | X83: 0 | Y83: 0 | Z83: 0 | AA83: 0 | AB83: 0 | AC83: 0 | AD83: 0 | AE83: 0 | AF83: 0
B84: 79 | F84: Eksaminator eller censor tillæg | G84: =IF(G41>0,267.31*G6*G41,0) -> 0 | H84: 0 | I84: 0 | J84: 0 | K84: 0 | L84: 0 | M84: 0 | N84: 0 | O84: 0 | P84: 0 | Q84: 0 | R84: 0 | T84: 0 | U84: 0 | V84: 0 | W84: 0 | X84: 0 | Y84: 0 | Z84: 0 | AA84: 0 | AB84: 0 | AC84: 0 | AD84: 0 | AE84: 0
B85: 80 | F85: Skattepligtig jubilæumsgratiale | G85: =IF(G34>0,MAX(G34*G6-8000,0),0) -> 0 | H85: 0 | I85: 0 | J85: 0 | K85: 0 | L85: 0 | M85: 0 | N85: 0 | O85: 0 | P85: 0 | Q85: 0 | R85: 0 | T85: 0 | U85: 0 | V85: 0 | W85: 0 | X85: 0 | Y85: 0 | Z85: 0 | AA85: 0 | AB85: 0 | AC85: 0 | AD85: 0 | AE85: 0
B86: 81 | F86: Ferietillæg | G86: =G44 -> 0 | H86: 0 | I86: 0 | J86: 0 | K86: 0 | L86: 0 | M86: 0 | N86: 0 | O86: 0 | P86: 0 | Q86: 0 | R86: 0 | T86: 0 | U86: 0 | V86: 0 | W86: 0 | X86: 0 | Y86: 0 | Z86: 0 | AA86: 0 | AB86: 0 | AC86: 0 | AD86: 0 | AE86: 0
B87: 82 | F87: Andre engangsudbetalinger iflg. specifikation | G87: =SUM(G42:G43)+SUM(G45:G48) -> 0 | H87: =SUM(H42:H43)+SUM(H45:H48) -> 0 | I87: =SUM(I42:I43)+SUM(I45:I48) -> 0 | J87: 0 | K87: 0 | L87: 0 | M87: 0 | N87: 0 | O87: 0 | P87: 0 | Q87: 0 | R87: 0 | T87: 0 | U87: 0 | V87: 0 | W87: 0 | X87: 0 | Y87: 0 | Z87: 0 | AA87: 0 | AB87: 0 | AC87: 0 | AD87: 0 | AE87: 0 | AF87: 0
F88: Seniorbonus 0,8% af fastpåregnelige løndele - pensionsgivede | G88: =IF(G9="ja",SUM((G53:G68)*0.8%),0) -> 0 | H88: =IF(H9="ja",SUM((H53:H68)*0.8%),0) -> 0 | I88: =IF(I9="ja",SUM((I53:I68)*0.8%),0) -> 0 | J88: =IF(J9="ja",SUM((J53:J68)*0.8%),0) -> 0 | K88: =IF(K9="ja",SUM((K53:K68)*0.8%),0) -> 0 | L88: =IF(L9="ja",SUM((L53:L68)*0.8%),0) -> 0 | M88: =IF(M9="ja",SUM((M53:M68)*0.8%),0) -> 0 | N88: =IF(N9="ja",SUM((N53:N68)*0.8%),0) -> 0 | O88: =IF(O9="ja",SUM((O53:O68)*0.8%),0) -> 0 | P88: =IF(P9="ja",SUM((P53:P68)*0.8%),0) -> 0 | Q88: =IF(Q9="ja",SUM((Q53:Q68)*0.8%),0) -> 0 | R88: =IF(R9="ja",SUM((R53:R68)*0.8%),0) -> 0 | T88: =IF(T9="Ja",SUM(T53:T68)*0.8%,0) -> 0 | U88: =IF(U9="Ja",SUM(U53:U68)*0.8%,0) -> 0 | V88: =IF(V9="Ja",SUM(V53:V68)*0.8%,0) -> 0 | W88: 0 | X88: 0 | Y88: 0 | Z88: 0 | AA88: 0 | AB88: 0 | AC88: 0 | AD88: 0 | AE88: 0
B89: =B87+1 -> 83 | F89: Bruttoløn (ekskl. pensionstillæg og ATP) | G89: =SUM(G53:G88) -> 0 | H89: =SUM(H53:H88) -> 0 | I89: =SUM(I53:I88) -> 0 | J89: =SUM(J53:J88) -> 0 | K89: =SUM(K53:K88) -> 0 | L89: 0 | M89: 0 | N89: 0 | O89: 0 | P89: 0 | Q89: 0 | R89: 0 | T89: =SUM(T53:T87) -> 0 | U89: =SUM(U53:U87) -> 0 | V89: 0 | W89: 0 | X89: 0 | Y89: 0 | Z89: 0 | AA89: 0 | AB89: 0 | AC89: =SUM(AC53:AC87) -> 0 | AD89: =SUM(AD53:AD87) -> 0 | AE89: 0 | AF89: =SUM(G89:R89) -> 0
B90: =B89+1 -> 84 | F90: Pensionstillæg basisløn | G90: =ROUND(G53*17.3%/3,2)*(G5="L") -> 0 | H90: 0 | I90: 0 | J90: 0 | K90: 0 | L90: 0 | M90: 0 | N90: 0 | O90: 0 | P90: 0 | Q90: 0 | R90: 0 | T90: =ROUND(T53/T10*T11*17.3%/3,2)*(T5="L") ->  | U90: =ROUND(U53*17.3%/3,2)*(U5="L") -> 0 | V90: 0 | W90: 0 | X90: 0 | Y90: 0 | Z90: 0 | AA90: 0 | AB90: 0 | AC90: 0 | AD90: 0 | AE90: 0 | AF90: 0
B91: 85 | F91: Pensionstillæg undervisningstillæg | G91: =ROUND(G55*17.3%/3,2)*(G5="L") -> 0 | H91: 0 | I91: 0 | J91: 0 | K91: 0 | L91: 0 | M91: 0 | N91: 0 | O91: 0 | P91: 0 | Q91: 0 | R91: 0 | T91: 0 | U91: 0 | V91: 0 | W91: 0 | X91: 0 | Y91: 0 | Z91: 0 | AA91: 0 | AB91: 0 | AC91: 0 | AD91: 0 | AE91: 0 | AF91: 0
B92: 86 | F92: Pensionstillæg souscheftillæg | G92: =ROUND(G56*17.3%/3,2)*(G5="L") -> 0 | H92: 0 | I92: 0 | J92: 0 | K92: 0 | L92: 0 | M92: 0 | N92: 0 | O92: 0 | P92: 0 | Q92: 0 | R92: 0 | T92: 0 | U92: 0 | V92: 0 | W92: 0 | X92: 0 | Y92: 0 | Z92: 0 | AA92: 0 | AB92: 0 | AC92: 0 | AD92: 0 | AE92: 0 | AF92: 0
B93: 87 | D93: =(D14<>"")*1 -> 0 | F93: Pensionstillæg Funktionstillæg 1 | G93: =ROUND(G57*17.3%/3,2)*(G5="L") -> 0 | H93: 0 | I93: 0 | J93: 0 | K93: 0 | L93: 0 | M93: 0 | N93: 0 | O93: 0 | P93: 0 | Q93: 0 | R93: 0 | T93: 0 | U93: 0 | V93: 0 | W93: 0 | X93: 0 | Y93: 0 | Z93: 0 | AA93: 0 | AB93: 0 | AC93: 0 | AD93: 0 | AE93: 0 | AF93: 0
B94: 88 | D94: =(D15<>"")*1 -> 0 | F94: Pensionstillæg Funktionstillæg 2 | G94: =ROUND(G58*17.3%/3,2)*(G5="L") -> 0 | H94: 0 | I94: 0 | J94: 0 | K94: 0 | L94: 0 | M94: 0 | N94: 0 | O94: 0 | P94: 0 | Q94: 0 | R94: 0 | T94: 0 | U94: 0 | V94: 0 | W94: 0 | X94: 0 | Y94: 0 | Z94: 0 | AA94: 0 | AB94: 0 | AC94: 0 | AD94: 0 | AE94: 0 | AF94: 0
B95: 89 | D95: =(D16<>"")*1 -> 0 | F95: Pensionstillæg Funktionstillæg 3 | G95: =ROUND(G59*17.3%/3,2)*(G5="L") -> 0 | H95: 0 | I95: 0 | J95: 0 | K95: 0 | L95: 0 | M95: 0 | N95: 0 | O95: 0 | P95: 0 | Q95: 0 | R95: 0 | T95: 0 | U95: 0 | V95: 0 | W95: 0 | X95: 0 | Y95: 0 | Z95: 0 | AA95: 0 | AB95: 0 | AC95: 0 | AD95: 0 | AE95: 0 | AF95: 0
B96: 90 | D96: =(D18<>"")*1 -> 1 | F96: Pensionstillæg Kvalifikationstillæg 1 | G96: =ROUND(G60*17.3%/3,2)*(G5="L") -> 0 | H96: 0 | I96: 0 | J96: 0 | K96: 0 | L96: 0 | M96: 0 | N96: 0 | O96: 0 | P96: 0 | Q96: 0 | R96: 0 | T96: 0 | U96: 0 | V96: 0 | W96: 0 | X96: 0 | Y96: 0 | Z96: 0 | AA96: 0 | AB96: 0 | AC96: 0 | AD96: 0 | AE96: 0 | AF96: 0
B97: 91 | D97: =(D18<>"")*1 -> 1 | F97: Pensionstillæg Kvalifikationstillæg 2 | G97: =ROUND(G61*17.3%/3,2)*(G5="L") -> 0 | H97: 0 | I97: 0 | J97: 0 | K97: 0 | L97: 0 | M97: 0 | N97: 0 | O97: 0 | P97: 0 | Q97: 0 | R97: 0 | T97: 0 | U97: 0 | V97: 0 | W97: 0 | X97: 0 | Y97: 0 | Z97: 0 | AA97: 0 | AB97: 0 | AC97: 0 | AD97: 0 | AE97: 0 | AF97: 0
B98: 92 | D98: =(D19<>"")*1 -> 1 | F98: Pensionstillæg Kvalifikationstillæg 3 | G98: =ROUND(G62*17.3%/3,2)*(G5="L") -> 0 | H98: 0 | I98: 0 | J98: 0 | K98: 0 | L98: 0 | M98: 0 | N98: 0 | O98: 0 | P98: 0 | Q98: 0 | R98: 0 | T98: 0 | U98: 0 | V98: 0 | W98: 0 | X98: 0 | Y98: 0 | Z98: 0 | AA98: 0 | AB98: 0 | AC98: 0 | AD98: 0 | AE98: 0 | AF98: 0
B99: 93 | F99: Pensionstillæg af trin 4-tillæg | G99: =ROUND(G63*17.3%/3,2)*(G5="L") -> 0 | H99: 0 | I99: 0 | J99: 0 | K99: 0 | L99: 0 | M99: 0 | N99: 0 | O99: 0 | P99: 0 | Q99: 0 | R99: 0 | T99: 0 | U99: 0 | V99: 0 | W99: 0 | X99: 0 | Y99: 0 | Z99: 0 | AA99: 0 | AB99: 0 | AC99: 0 | AD99: 0 | AE99: 0 | AF99: =SUM(G99:R99) -> 0
B100: 94 | F100: Pensionstillæg af udligningstillæg | G100: =ROUND(G64*17.3%/3,2)*(G5="L") -> 0 | H100: 0 | I100: 0 | J100: 0 | K100: 0 | L100: 0 | M100: 0 | N100: 0 | O100: 0 | P100: 0 | Q100: 0 | R100: 0 | T100: 0 | U100: 0 | V100: 0 | W100: 0 | X100: 0 | Y100: 0 | Z100: 0 | AA100: 0 | AB100: 0 | AC100: 0 | AD100: 0 | AE100: 0 | AF100: 0
B101: 95 | F101: Pensionstillæg af OK13-tillæg | G101: =ROUND(G66*17.3%/3,2)*(G5="L") -> 0 | H101: 0 | I101: 0 | J101: 0 | K101: 0 | L101: 0 | M101: 0 | N101: 0 | O101: 0 | P101: 0 | Q101: 0 | R101: 0 | T101: 0 | U101: 0 | V101: 0 | W101: 0 | X101: 0 | Y101: 0 | Z101: 0 | AA101: 0 | AB101: 0 | AC101: 0 | AD101: 0 | AE101: 0 | AF101: 0
B102: 96 | F102: Pensionstillæg af OK18-tillæg | G102: =ROUND(G67*17.3%/3,2)*(G5="L") -> 0 | H102: 0 | I102: 0 | J102: 0 | K102: 0 | L102: 0 | M102: 0 | N102: 0 | O102: 0 | P102: 0 | Q102: 0 | R102: 0 | T102: =ROUND(T67*17.3%/3,2)*($T$5="L") -> 0 | U102: 0 | V102: 0 | W102: 0 | X102: 0 | Y102: 0 | Z102: 0 | AA102: 0 | AB102: 0 | AC102: 0 | AD102: 0 | AE102: 0 | AF102: 0
B103: 97 | F103: Pensionstillæg af fast ulempeydelse | G103: =G68*0.173*($C23="x")/3*(G5="L") -> 0 | H103: 0 | I103: 0 | J103: 0 | K103: 0 | L103: 0 | M103: 0 | N103: 0 | O103: 0 | P103: 0 | Q103: 0 | R103: 0 | T103: 0 | U103: 0 | V103: 0 | W103: 0 | X103: 0 | Y103: 0 | Z103: 0 | AA103: 0 | AB103: 0 | AC103: 0 | AD103: 0 | AE103: 0 | AF103: 0
B104: 98 | F104: Pensionstillæg af engangstillæg | G104: =(G84*0.173+(G45*0.173*($C45="x")+G46*0.173*($C46="x")+G42*0.173*(G11<1)))/3*(G5="L") -> 0 | H104: =(H84*0.173+(H45*0.173*($C45="x")+H46*0.173*($C46="x")+H42*0.173*(H11<1)))/3*(H5="L") -> 0 | I104: 0 | J104: 0 | K104: 0 | L104: 0 | M104: 0 | N104: 0 | O104: 0 | P104: 0 | Q104: 0 | R104: 0 | T104: =(T84*0.173+(T45*0.173*($C45="x")+T46*0.173*($C46="x")+T42*0.173*(T10<1)))/3*(T5="L") -> 0 | U104: 0 | V104: 0 | W104: 0 | X104: 0 | Y104: 0 | Z104: 0 | AA104: 0 | AB104: 0 | AC104: 0 | AD104: 0 | AE104: 0 | AF104: 0
B105: 99 | F105: Supplerende pensionstillæg på 18% **) | G105: =IF(LEFT(G$5)<>"L",G148/3,0) -> 0 | H105: =IF(LEFT(H$5)<>"L",H148/3,0) -> 0 | I105: 0 | J105: 0 | K105: 0 | L105: 0 | M105: 0 | N105: 0 | O105: 0 | P105: 0 | Q105: 0 | R105: 0 | T105: =IF(LEFT(T$5)<>"L",T148/3,0) -> 0 | U105: =IF(LEFT(U$5)<>"L",U148/3,0) -> 0 | V105: 0 | W105: 0 | X105: 0 | Y105: 0 | Z105: 0 | AA105: 0 | AB105: 0 | AC105: 0 | AD105: 0 | AE105: 0 | AF105: 0
B106: 96 | F106: Fradrag i pensionstillæg for ikke optjent ferie mv. | G106: =IF(G5="L",G70*17.3%/3,G70*18%/3) -> 0 | H106: =IF(H5="L",H70*17.3%/3,H70*18%/3) -> 0 | I106: 0 | J106: 0 | K106: 0 | L106: 0 | M106: 0 | N106: 0 | O106: 0 | P106: 0 | Q106: 0 | R106: 0 | T106: 0 | U106: 0 | V106: 0 | W106: 0 | X106: 0 | Y106: 0 | Z106: 0 | AA106: 0 | AB106: 0 | AC106: 0 | AD106: 0 | AE106: 0 | AF106: 0
B107: 97 | F107: Pensionstillæg af feriedifference | G107: =G72*17.3%/3*(G5="L") -> 0 | H107: =H72*17.3%/3*(H5="L") -> 0 | I107: 0 | J107: 0 | K107: 0 | L107: 0 | M107: 0 | N107: 0 | O107: 0 | P107: 0 | Q107: 0 | R107: 0 | T107: 0 | U107: 0 | V107: 0 | W107: 0 | X107: 0 | Y107: 0 | Z107: 0 | AA107: 0 | AB107: 0 | AC107: 0 | AD107: 0 | AE107: 0 | AF107: 0
B108: 98 | F108: Ekstra pension i forhold til seniorordning eller orlov uden løn men med pension | G108: =IF(OR(G8="Ja",G11>G10),SUM(T90:T107)-SUM(G90:G107)+T109-G109,0) -> 0 | H108: =IF(OR(H8="Ja",H11>H10),SUM(U90:U107)-SUM(H90:H107)+U109-H109,0) -> 0 | I108: =IF(OR(I8="Ja",I11>I10),SUM(V90:V107)-SUM(I90:I107)+V109-I109,0) -> 0 | J108: 0 | K108: 0 | L108: 0 | M108: 0 | N108: 0 | O108: 0 | P108: 0 | Q108: 0 | R108: 0
B109: 99 | F109: Pension af seniorbonus | G109: =ROUND(G88*17.3%/3,2)*(G5="L") -> 0 | H109: 0 | I109: 0 | J109: 0 | K109: 0 | L109: 0 | M109: 0 | N109: 0 | O109: 0 | P109: 0 | Q109: =ROUND(Q88*17.3%/3,2)*(Q5="L") -> 0 | R109: 0 | T109: =ROUND(T88*17.3%/3,2)*($T$5="L") -> 0 | U109: =ROUND(U88*17.3%/3,2)*($T$5="L") -> 0 | V109: 0 | W109: 0 | X109: 0 | Y109: 0 | Z109: 0 | AA109: 0 | AB109: 0 | AC109: 0 | AD109: 0 | AE109: 0
B110: 100 | F110: Pensionstillæg i alt | G110: =SUM(G90:G109) -> 0 | H110: =SUM(H90:H109) -> 0 | I110: 0 | J110: =SUM(J90:J109) -> 0 | K110: 0 | L110: 0 | M110: 0 | N110: 0 | O110: 0 | P110: 0 | Q110: 0 | R110: 0 | T110: =SUM(T90:T107)+T109 ->  | U110: =SUM(U90:U107)+U109 -> 0 | V110: =SUM(V90:V107) -> 0 | W110: 0 | X110: 0 | Y110: 0 | Z110: 0 | AA110: 0 | AB110: 0 | AC110: 0 | AD110: 0 | AE110: 0 | AF110: 0
B111: =B110+1 -> 101 | F111: Egetbidrag til ATP | G111: =ROUND(G123/3,2) -> 0 | H111: =ROUND(H123/3,2) -> 0 | I111: =IF(I8="Ja",0,ROUND(I123/3,2)) -> 0 | J111: 0 | K111: 0 | L111: 0 | M111: 0 | N111: 0 | O111: 0 | P111: 0 | Q111: 0 | R111: 0 | T111: =ROUND(T123/3,2) -> 0 | U111: =ROUND(U123/3,2) -> 0 | V111: 0 | W111: 0 | X111: 0 | Y111: 0 | Z111: 0 | AA111: 0 | AB111: 0 | AC111: 0 | AD111: 0 | AE111: 0 | AF111: =SUM(G111:R111) -> 0
B112: =B111+1 -> 102 | F112: AMB-grundlag | G112: =SUM(G53:G73)+SUM(G78:G88)-G111 -> 0 | H112: =SUM(H53:H73)+SUM(H78:H88)-H111 -> 0 | I112: 0 | J112: 0 | K112: 0 | L112: 0 | M112: 0 | N112: 0 | O112: 0 | P112: 0 | Q112: 0 | R112: 0 | T112: =SUM(T53:T73)+SUM(T78:T87)-T111 -> 0 | U112: =SUM(U53:U73)+SUM(U78:U87)-U111 -> 0 | V112: =SUM(V53:V73)+SUM(V78:V87)-V111 -> 0 | W112: =SUM(W53:W73)+SUM(W78:W87)-W111 -> 0 | X112: 0 | Y112: 0 | Z112: 0 | AA112: 0 | AB112: 0 | AC112: 0 | AD112: 0 | AE112: 0 | AF112: =SUM(G112:R112) -> 0
B113: =B112+1 -> 103 | F113: AM-bidrag | G113: =ROUND(G112*8%,0) -> 0 | H113: =ROUND(H112*8%,0) -> 0 | I113: 0 | J113: 0 | K113: 0 | L113: 0 | M113: 0 | N113: 0 | O113: 0 | P113: 0 | Q113: 0 | R113: 0 | T113: =ROUND(T112*8%,0) -> 0 | U113: =ROUND(U112*8%,0) -> 0 | V113: 0 | W113: 0 | X113: 0 | Y113: 0 | Z113: 0 | AA113: 0 | AB113: 0 | AC113: 0 | AD113: 0 | AE113: 0 | AF113: =SUM(G113:R113) -> 0
B114: 104 | F114: A-indkomst | G114: =G112-G113 -> 0 | H114: =H112-H113 -> 0 | I114: 0 | J114: 0 | K114: 0 | L114: 0 | M114: 0 | N114: 0 | O114: 0 | P114: 0 | Q114: 0 | R114: 0 | T114: =T112-T113 -> 0 | U114: =U112-U113 -> 0 | V114: 0 | W114: 0 | X114: 0 | Y114: 0 | Z114: 0 | AA114: 0 | AB114: 0 | AC114: 0 | AD114: 0 | AE114: 0 | AF114: =SUM(G114:R114) -> 0
B115: 105 | F115: Skattegrundlag | G115: =TRUNC((G114-G30)/10)*10 -> 0 | H115: =TRUNC((H114-H30)/10)*10 -> 0 | I115: =IF(I8="Ja",0,TRUNC((I114-I30)/10)*10) -> 0 | J115: =TRUNC((J114-J30)/10)*10 -> 0 | K115: 0 | L115: 0 | M115: 0 | N115: 0 | O115: 0 | P115: 0 | Q115: 0 | R115: 0 | T115: 0 | U115: 0 | V115: 0 | W115: 0 | X115: 0 | Y115: 0 | Z115: 0 | AA115: 0 | AB115: 0 | AC115: 0 | AD115: 0 | AE115: 0
B116: 106 | F116: Skat | G116: =MAX(0,TRUNC(G115*G29/100)) -> 0 | H116: 0 | I116: 0 | J116: 0 | K116: 0 | L116: 0 | M116: 0 | N116: 0 | O116: 0 | P116: 0 | Q116: 0 | R116: 0 | T116: 0 | U116: 0 | V116: 0 | W116: 0 | X116: 0 | Y116: 0 | Z116: 0 | AA116: 0 | AB116: 0 | AC116: 0 | AD116: 0 | AE116: 0 | AF116: =SUM(G116:R116) -> 0
B117: 107 | F117: Feriegodtgørelsesgrundlag | G117: =SUM(G53:G73)+G78+G79+SUM(G80:G84)+G87+G88 -> 0 | H117: =SUM(H53:H73)+H78+H79+SUM(H80:H84)+H87+H88 -> 0 | I117: 0 | J117: 0 | K117: =SUM(K53:K73)+K78+K79+SUM(K80:K84)+K87+K88 -> 0 | L117: 0 | M117: 0 | N117: 0 | O117: =SUM(O53:O73)+O78+O79+SUM(O80:O84)+O87+O88 -> 0 | P117: =SUM(P53:P73)+P78+P79+SUM(P80:P84)+P87+P88 -> 0 | T117: =SUM(T53:T73)+T78+T79+SUM(T80:T85)+T87 -> 0 | U117: =SUM(U53:U73)+U78+U79+SUM(U80:U85)+U87 -> 0 | V117: 0 | W117: 0 | X117: 0 | Y117: 0 | Z117: 0 | AA117: 0 | AB117: 0 | AC117: 0 | AF117: =G117+H117+I117+J117+K117+L117+M117+N117+O117+P117 -> 0
B118: 108 | F118: Feriegodtgørelsesgrundlag juni-juli | Q118: =SUM(Q53:Q73)+Q78+Q79+SUM(Q80:Q85)+Q87+Q88 -> 0 | R118: =SUM(R53:R73)+R78+R79+SUM(R80:R85)+R87+R88 -> 0 | S118: =SUM(Q118:R118) -> 0 | AD118: =SUM(AD53:AD73)+AD78+AD79+SUM(AD80:AD85)+AD87 -> 0 | AE118: =SUM(AE53:AE73)+AE78+AE79+SUM(AE80:AE85)+AE87 -> 0 | AF118: =SUM(L118:R118) -> 0
B119: 109 | F119: Egetbidrag til LP | G119: =G110 -> 0 | H119: =H110 -> 0 | I119: 0 | J119: 0 | K119: 0 | L119: 0 | M119: 0 | N119: 0 | O119: 0 | P119: 0 | Q119: 0 | R119: 0 | T119: =T110 ->  | U119: =U110 -> 0 | V119: 0 | W119: 0 | X119: 0 | Y119: 0 | Z119: 0 | AA119: 0 | AB119: 0 | AC119: 0 | AD119: 0 | AE119: 0 | AF119: 0
B120: 110 | F120: Arbejdsgiverbidrag til LP | G120: =G110*2 -> 0 | H120: =H110*2 -> 0 | I120: 0 | J120: 0 | K120: 0 | L120: 0 | M120: 0 | N120: 0 | O120: 0 | P120: 0 | Q120: 0 | R120: 0 | T120: =T110*2 ->  | U120: =U110*2 -> 0 | V120: 0 | W120: 0 | X120: 0 | Y120: 0 | Z120: 0 | AA120: 0 | AB120: 0 | AC120: 0 | AD120: 0 | AE120: 0 | AF120: 0
B121: 111 | F121: Arbejdsgiverbidrag til ATP | G121: =G123*2/3 -> 0 | H121: =H123*2/3 -> 0 | I121: 0 | J121: 0 | K121: 0 | L121: 0 | M121: 0 | N121: 0 | O121: 0 | P121: 0 | Q121: 0 | R121: 0 | T121: =T123*2/3 -> 0 | U121: =U123*2/3 -> 0 | V121: 0 | W121: 0 | X121: 0 | Y121: 0 | Z121: 0 | AA121: 0 | AB121: 0 | AC121: 0 | AD121: 0 | AE121: 0 | AF121: 0
B122: 112 | F122: Skolens samlede indbetaling til LP | G122: =G119+G120 -> 0 | H122: =H119+H120 -> 0 | I122: 0 | J122: 0 | K122: 0 | L122: 0 | M122: 0 | N122: 0 | O122: 0 | P122: 0 | Q122: 0 | R122: 0 | T122: =T119+T120 ->  | U122: =U119+U120 -> 0 | V122: 0 | W122: 0 | X122: 0 | Y122: 0 | Z122: 0 | AA122: 0 | AB122: 0 | AC122: 0 | AD122: 0 | AE122: 0 | AF122: 0
B123: 113 | F123: Skolens samlede indbetaling til ATP | G123: =297/3*(((G10*G3)>=9/37)+((G10*G3)>=18/37)+((G10*G3)>=27/37)) -> 0 | H123: 0 | I123: 0 | J123: 0 | K123: 0 | L123: =297/3*(((L10*L3)>=9/37)+((L10*L3)>=18/37)+((L10*L3)>=27/37)) -> 0 | M123: =297/3*(((M10*M3)>=9/37)+((M10*M3)>=18/37)+((M10*M3)>=27/37)) -> 0 | N123: 0 | O123: 0 | P123: 0 | Q123: 0 | R123: 0 | T123: =284/3*(((T10*T3)>=9/37)+((T10*T3)>=18/37)+((T10*T3)>=27/37)) -> 0 | U123: 0 | V123: 0 | W123: 0 | X123: 0 | Y123: 0 | Z123: 0 | AA123: 0 | AB123: 0 | AC123: 0 | AD123: 0 | AE123: 0 | AF123: 0
B124: 114 | F124: Skolens indbetaling til tjenestemandspension | G124: =IF(OR(LEFT(G5)="P",LEFT(G5)="E"),ROUND(ROUND(ROUND(VLOOKUP(VALUE(MID(G5,2,2)),Skalalontabel12,7,0)*G6,0)/12,2)*15%*MIN(1,G10)*G3,2)+G149,0) -> 0 | H124: 0 | I124: 0 | J124: 0 | K124: 0 | L124: 0 | M124: 0 | N124: 0 | O124: 0 | P124: 0 | Q124: 0 | R124: 0 | T124: =IF(OR(LEFT(T5)="P",LEFT(T5)="E"),ROUND(ROUND(ROUND(VLOOKUP(VALUE(MID(T5,2,2)),Skalalontabel12,7,0)*T6,0)/12,2)*15%*MIN(1,T10)*T3,2),0) -> 0 | U124: 0 | V124: 0 | W124: 0 | X124: 0 | Y124: 0 | Z124: 0 | AA124: 0 | AB124: 0 | AC124: 0 | AD124: 0 | AE124: 0 | AF124: 0
B125: 115 | F125: Indbetaling til Gruppeliv | G125: =108.35*(G10>0) -> 0 | H125: =108.35*(H10>0) -> 0 | I125: =IF(I8="Ja",0,108.35*(I10>0)) -> 0 | J125: =108.35*(J10>0) -> 0 | K125: 0 | L125: 0 | M125: 0 | N125: 0 | O125: 0 | P125: 0 | Q125: 0 | R125: 0 | T125: 0 | U125: 0 | V125: 0 | W125: 0 | X125: 0 | Y125: 0 | Z125: 0 | AA125: 0 | AB125: 0 | AC125: 0 | AD125: 0 | AE125: 0 | AF125: 0
B126: =B125+1 -> 116 | F126: Løn til den ansattes disposition | G126: =G89-(G116+G111+G113+G125)-G49-G50-G51 -> 0 | H126: =H89-(H116+H111+H113+H125)-H49-H50-H51 -> 0 | I126: =IF(I8="Ja",0,I89-(I116+I111+I113+I125)-I49-I50-I51) -> 0 | J126: =J89-(J116+J111+J113+J125)-J49-J50-J51 -> 0 | K126: 0 | L126: 0 | M126: 0 | N126: 0 | O126: 0 | P126: 0 | Q126: 0 | R126: 0 | T126: 0 | U126: 0 | V126: 0 | W126: 0 | X126: 0 | Y126: 0 | Z126: 0 | AA126: 0 | AB126: 0 | AC126: 0 | AD126: 0 | AE126: 0 | AF126: =SUM(G126:R126) -> 0
B127: 117 | F127: ="Feriepengeberegningsgrundlag, jan-dec "&MID($A$1,3,2)+1 -> Feriepengeberegningsgrundlag, jan-dec 24 | G127: =(G117+G110)*(1-12/260*G24) -> 0 | H127: =(H117+H110)*(1-12/260*H24) -> 0 | I127: =(I117+I110)*(1-12/260*I24) -> 0 | J127: =(J117+J110)*(1-12/260*J24) -> 0 | K127: 0 | L127: Kalenderårets sum benyttes ved fratræden og særlige feriedage | S127: =SUM(G127:K127)+A127 -> 0 | T127: =(T117+T110)*(1-12/260*T24) ->  | U127: =(U117+U110)*(1-12/260*U24) -> 0 | V127: 0 | W127: 0 | X127: 0 | Y127: Kalenderårets sum benyttes ved fratræden og særlige feriedage | AF127: =A127+SUM(G127:K127) -> 0
B128: 118 | F128: ="Feriepengeberegningsgrundlag, jan-jul "&MID($A$1,3,2)+2 -> Feriepengeberegningsgrundlag, jan-jul 25 | G128: Kalenderårets sum benyttes ved fratræden og særlige feriedage | L128: =(L118+L110)*(1-12/260*L24) -> 0 | M128: =(M118+M110)*(1-12/260*M24) -> 0 | N128: 0 | O128: 0 | P128: 0 | Q128: 0 | R128: 0 | S128: =SUM(L128:R128) -> 0 | T128: Kalenderårets sum benyttes ved fratræden og særlige feriedage | Y128: =(Y118+Y110)*(1-12/260*Y24) -> 0 | Z128: =(Z118+Z110)*(1-12/260*Z24) -> 0 | AA128: 0 | AB128: 0 | AC128: 0 | AD128: 0 | AE128: 0 | AF128: =SUM(L128:R128) -> 0
B129: 119 | F129: Beregningsgrundlag for fastpåregnelige løndele | G129: =IF(G10>0,SUM(G53:G69)/G10/G3+G88/G10/G3,0) -> 0 | H129: =IF(H10>0,SUM(H53:H69)/H10/H3+H88/H10/H3,0) -> 0 | I129: 0 | J129: 0 | K129: 0 | L129: 0 | M129: 0 | N129: 0 | O129: 0 | P129: 0 | Q129: 0 | R129: 0 | T129: =IF(T10>0,SUM(T53:T68)/T10/T3,0) -> 0 | U129: 0 | V129: 0 | W129: 0 | X129: 0 | Y129: 0 | Z129: 0 | AA129: 0 | AB129: 0 | AC129: 0 | AD129: 0 | AE129: 0
B130: =B129+1 -> 120 | F130: Beregningsgrundlag af feriediff. for pension | G130: =IF(G10>0,SUM(G90:G103+G109)/G10/G3,0) -> 0 | H130: =IF(H10>0,SUM(H90:H103+H109)/H10/H3,0) -> 0 | I130: =IF(I10>0,SUM(I90:I103+I109)/I10/I3,0) -> 0 | J130: =IF(J10>0,SUM(J90:J103+J109)/J10/J3,0) -> 0 | K130: =IF(K10>0,SUM(K90:K103+K109)/K10/K3,0) -> 0 | L130: =IF(L10>0,SUM(L90:L103+L109)/L10/L3,0) -> 0 | M130: =IF(M10>0,SUM(M90:M103+M109)/M10/M3,0) -> 0 | N130: =IF(N10>0,SUM(N90:N103+N109)/N10/N3,0) -> 0 | O130: =IF(O10>0,SUM(O90:O103+O109)/O10/O3,0) -> 0 | P130: =IF(P10>0,SUM(P90:P103+P109)/P10/P3,0) -> 0 | Q130: =IF(Q10>0,SUM(Q90:Q103+Q109)/Q10/Q3,0) -> 0 | R130: =IF(R10>0,SUM(R90:R103+R109)/R10/R3,0) -> 0 | T130: =IF(T10>0,SUM(T90:T103)/T10/T3,0) -> 0 | U130: 0 | V130: 0 | W130: 0 | X130: 0 | Y130: 0 | Z130: 0 | AA130: 0 | AB130: 0 | AC130: 0 | AD130: 0 | AE130: 0
B131: =B130+1 -> 121 | F131: læ: 0-650, bh: 0-750 | G131: =IF(LEFT(G$4)<>"b",IF(G$12>=650,650*ROUND(16.38*G$6,2)/12,G$12*ROUND(16.38*G$6,2)/12),IF(G$12>=750,750*ROUND(22.41*G$6,2)/12,G$12*ROUND(22.41*G$6,2)/12)) -> 0 | H131: 0 | I131: 0 | J131: 0 | K131: 0 | L131: 0 | M131: 0 | N131: 0 | O131: 0 | P131: 0 | Q131: 0 | R131: 0 | T131: 0 | U131: 0 | V131: 0 | W131: 0 | X131: 0 | Y131: 0 | Z131: 0 | AA131: 0 | AB131: 0 | AC131: 0 | AD131: 0 | AE131: 0 | AF131: specifikation af uv.tillæg
B132: =B131+1 -> 122 | F132: læ: 650-700, bh: 750-800 | G132: =IF(LEFT(G$4)<>"b",IF(G$12>650,IF(G$12>=700,50*ROUND(98.3*G$6,2)/12,(G$12-650)*ROUND(98.3*G$6,2)/12),0),IF(G$12>750,IF(G$12>=800,50*ROUND(65.53*G$6,2)/12,(G$12-750)*ROUND(65.53*G$6,2)/12),0)) -> 0 | H132: 0 | I132: 0 | J132: 0 | K132: 0 | L132: 0 | M132: 0 | N132: 0 | O132: 0 | P132: 0 | Q132: 0 | R132: 0 | T132: 0 | U132: 0 | V132: 0 | W132: 0 | X132: 0 | Y132: 0 | Z132: 0 | AA132: 0 | AB132: 0 | AC132: 0 | AD132: 0 | AE132: 0 | AF132: specifikation af uv.tillæg
B133: =B132+1 -> 123 | F133: læ: 700-750, bh: 800-835 | G133: =IF(LEFT(G$4)<>"b",IF(G$12>700,IF(G$12>=750,50*ROUND(131.07*G$6,2)/12,(G$12-700)*ROUND(131.07*G$6,2)/12),0),IF(G$12>800,IF(G$12>=835,35*ROUND(131.07*G$6,2)/12,(G$12-800)*ROUND(131.07*G$6,2)/12),0)) -> 0 | H133: 0 | I133: 0 | J133: 0 | K133: 0 | L133: 0 | M133: 0 | N133: 0 | O133: 0 | P133: 0 | Q133: 0 | R133: 0 | T133: 0 | U133: 0 | V133: 0 | W133: 0 | X133: 0 | Y133: 0 | Z133: 0 | AA133: 0 | AB133: 0 | AC133: 0 | AD133: 0 | AE133: 0 | AF133: specifikation af uv.tillæg
B134: =B133+1 -> 124 | F134: læ: 750- , bh: 835- | G134: =IF(LEFT(G$4)<>"b",IF(G$12>750,(G$12-750)*ROUND(163.83*G$6,2)/12,0),IF(G$12>835,(G$12-835)*ROUND(163.83*G$6,2)/12,0)) -> 0 | H134: 0 | I134: 0 | J134: 0 | K134: 0 | L134: 0 | M134: 0 | N134: 0 | O134: 0 | P134: 0 | Q134: 0 | R134: 0 | T134: 0 | U134: 0 | V134: 0 | W134: 0 | X134: 0 | Y134: 0 | Z134: 0 | AA134: 0 | AB134: 0 | AC134: 0 | AD134: 0 | AE134: 0 | AF134: specifikation af uv.tillæg
G135: =IF(G10<G11,G124*G10,G124) -> 0
F139: Pensg. løn skalatrin 33 eller 42 | G139: =ROUND(ROUND(ROUND(VLOOKUP(IF(LEFT(G4)="B",33,42),Skalalontabel12,7,0)*G6,0)/12,2)*G10*G3,2) -> 0 | H139: 0 | I139: 0 | J139: 0 | K139: 0 | L139: 0 | M139: 0 | N139: 0 | O139: 0 | P139: 0 | Q139: 0 | R139: 0 | T139: 0 | U139: 0 | V139: 0 | W139: 0 | X139: 0 | Y139: 0 | Z139: 0 | AA139: 0 | AB139: 0 | AC139: 0 | AD139: 0 | AE139: 0
F140: PENSIONSGRUNDLAG | G140: =IF($C$56=1,G56,"0")+IF($C$57=1,G57,"0")+IF($C$58=1,G58,"0")+IF($C$59=1,G59,"0")+IF($C$60=1,G60,"0")+IF($C$61=1,G61,"0")+IF($C$62=1,G62,"0")+IF($C$68=1,G68,"0")+G63+G64+G66+G67+G72+G88+IF($C$45="x",G45,"0")+IF($C$46="x",G46,"0")+IF(G84>0,G84,0) -> 0 | H140: =IF($C$56=1,H56,"0")+IF($C$57=1,H57,"0")+IF($C$58=1,H58,"0")+IF($C$59=1,H59,"0")+IF($C$60=1,H60,"0")+IF($C$61=1,H61,"0")+IF($C$62=1,H62,"0")+IF($C$68=1,H68,"0")+H63+H64+H66+H67+H72+H88+IF($C$45="x",H45,"0")+IF($C$46="x",H46,"0")+IF(H84>0,H84,0) -> 0 | I140: 0 | J140: 0 | K140: 0 | L140: 0 | M140: 0 | N140: 0 | O140: 0 | P140: 0 | Q140: 0 | R140: 0 | T140: =IF($C$56=1,T56,"0")+IF($C$57=1,T57,"0")+IF($C$58=1,T58,"0")+IF($C$59=1,T59,"0")+IF($C$60=1,T60,"0")+IF($C$61=1,T61,"0")+IF($C$62=1,T62,"0")+IF($C$68=1,T68,"0")+T63+T64+T66+T67+T72+T88+IF($C$45="x",T45,"0")+IF($C$46="x",T46,"0")+IF(T84>0,T84,0) -> 0 | U140: =IF($C$56=1,U56,"0")+IF($C$57=1,U57,"0")+IF($C$58=1,U58,"0")+IF($C$59=1,U59,"0")+IF($C$60=1,U60,"0")+IF($C$61=1,U61,"0")+IF($C$62=1,U62,"0")+IF($C$68=1,U68,"0")+U63+U64+U66+U67+U72+U88+IF($C$45="x",U45,"0")+IF($C$46="x",U46,"0")+IF(U84>0,U84,0) -> 0 | V140: 0 | W140: 0 | X140: 0 | Y140: 0 | Z140: 0 | AA140: 0 | AB140: 0 | AC140: 0 | AD140: 0 | AE140: 0
F141: 0.18 | G141: =ROUND(G140*18%,2) -> 0 | H141: 0 | I141: 0 | J141: 0 | K141: 0 | L141: 0 | M141: 0 | N141: 0 | O141: 0 | P141: 0 | Q141: 0 | R141: 0 | T141: =ROUND(T140*18%,2) -> 0 | U141: 0 | V141: 0 | W141: 0 | X141: 0 | Y141: 0 | Z141: 0 | AA141: 0 | AB141: 0 | AC141: 0 | AD141: 0 | AE141: 0
F142: basisløn, uv-tillæg, område og ok08 | G142: =G53+G54+G55+G65 -> 0 | H142: =H53+H54+H55+H65 -> 0 | I142: 0 | J142: 0 | K142: 0 | L142: 0 | M142: 0 | N142: 0 | O142: 0 | P142: 0 | Q142: 0 | R142: 0 | T142: =T53+T54+T55+T65 -> 0 | U142: 0 | V142: 0 | W142: 0 | X142: 0 | Y142: 0 | Z142: 0 | AA142: 0 | AB142: 0 | AC142: 0 | AD142: 0 | AE142: 0
F143: Hvor meget overstigers skalatrinsløn med | G143: =G142-G139 -> 0 | H143: =H142-H139 -> 0 | I143: 0 | J143: 0 | K143: 0 | L143: 0 | M143: 0 | N143: 0 | O143: 0 | P143: 0 | Q143: 0 | R143: 0 | T143: =T142-T139 -> 0 | U143: =U142-U139 -> 0 | V143: =V142-V139 -> 0 | W143: 0 | X143: 0 | Y143: 0 | Z143: 0 | AA143: 0 | AB143: 0 | AC143: 0 | AD143: 0 | AE143: 0
F144: REN 17,3% PENSION | G144: =IF(AND(G143<-1,G140<G145),G140*17.3%,G141) -> 0 | H144: =IF(AND(H143<-1,H140<H145),H140*17.3%,H141) -> 0 | I144: 0 | J144: 0 | K144: 0 | L144: 0 | M144: 0 | N144: 0 | O144: 0 | P144: 0 | Q144: 0 | R144: 0 | T144: =IF(AND(T143<-1,T140<T145),T140*17.3%,T141) -> 0 | U144: =IF(AND(U143<-1,U140<U145),U140*17.3%,U141) -> 0 | V144: =IF(AND(V143<0,V140<V145),V140*17.3%,0) -> 0 | W144: =IF(AND(W143<-1,W140<W145),W140*17.3%,W141) -> 0 | X144: =IF(AND(X143<0,X140<X145),X140*17.3%,0) -> 0 | Y144: =IF(AND(Y143<-1,Y140<Y145),Y140*17.3%,Y141) -> 0 | Z144: =IF(AND(Z143<0,Z140<Z145),Z140*17.3%,0) -> 0 | AA144: =IF(AND(AA143<-1,AA140<AA145),AA140*17.3%,AA141) -> 0 | AB144: =IF(AND(AB143<0,AB140<AB145),AB140*17.3%,0) -> 0 | AC144: =IF(AND(AC143<-1,AC140<AC145),AC140*17.3%,AC141) -> 0 | AD144: =IF(AND(AD143<0,AD140<AD145),AD140*17.3%,0) -> 0 | AE144: =IF(AND(AE143<-1,AE140<AE145),AE140*17.3%,AE141) -> 0
F145: Supplerende pension | G145: =G143*-1 -> 0 | H145: =H143*-1 -> 0 | I145: 0 | J145: 0 | K145: 0 | L145: 0 | M145: 0 | N145: 0 | O145: 0 | P145: 0 | Q145: 0 | R145: 0 | T145: =T143*-1 -> 0 | U145: =U143*-1 -> 0 | V145: =V143*-1 -> 0 | W145: 0 | X145: 0 | Y145: 0 | Z145: 0 | AA145: 0 | AB145: 0 | AC145: 0 | AD145: 0 | AE145: 0
F146: 18% BEREGNING | G146: =IF(AND(G140>G145,G143<-1),(G140-G145)*18%+G145*17.3%,G140*18%) -> 0 | H146: =IF(AND(H140>H145,H143<-1),(H140-H145)*18%+H145*17.3%,H140*18%) -> 0 | I146: 0 | J146: 0 | K146: 0 | L146: 0 | M146: 0 | N146: 0 | O146: 0 | P146: 0 | Q146: 0 | R146: 0 | T146: =IF(AND(T140>T145,T143<-1),(T140-T145)*18%+T145*17.3%,T140*18%) -> 0 | U146: =IF(AND(U140>U145,U143<-1),(U140-U145)*18%+U145*17.3%,U140*18%) -> 0 | V146: =IF(AND(V140>V145,V143<-1),(V140-V145)*18%+V145*17.3%,V140*18%) -> 0 | W146: 0 | X146: 0 | Y146: 0 | Z146: 0 | AA146: 0 | AB146: 0 | AC146: 0 | AD146: 0 | AE146: 0
F147: ER DER EN 17,3% FRADRAG | G147: =IF(AND(G143<-1,G140<G145),G140*-0.7%,0) -> 0 | H147: =IF(AND(H143<-1,H140<H145),H140*-0.7%,0) -> 0 | I147: 0 | J147: 0 | K147: 0 | L147: 0 | M147: 0 | N147: 0 | O147: 0 | P147: 0 | Q147: 0 | R147: 0 | T147: =IF(AND(T143<-1,T140<T145),T140*-0.7%,0) -> 0 | U147: =IF(AND(U143<-1,U140<U145),U140*-0.7%,0) -> 0 | V147: =IF(AND(V143<-1,V140<V145),V140*-0.7%,0) -> 0 | W147: 0 | X147: 0 | Y147: 0 | Z147: 0 | AA147: 0 | AB147: 0 | AC147: 0 | AD147: 0 | AE147: 0
F148: SUPPLERENDE PENSION I ALT | G148: =IF(G143<-1,G146-G147,G141) -> 0 | H148: =IF(H143<-1,H146-H147,H141) -> 0 | I148: 0 | J148: 0 | K148: 0 | L148: 0 | M148: 0 | N148: 0 | O148: 0 | P148: 0 | Q148: 0 | R148: 0 | T148: =IF(T143<-1,T146-T147,T141) -> 0 | U148: =IF(U143<-1,U146-U147,U141) -> 0 | V148: =SUM(V146:V147) -> 0 | W148: =IF(W143<-1,W146-W147,W141) -> 0 | X148: =SUM(X146:X147) -> 0 | Y148: =IF(Y143<-1,Y146-Y147,Y141) -> 0 | Z148: =SUM(Z146:Z147) -> 0 | AA148: =IF(AA143<-1,AA146-AA147,AA141) -> 0 | AB148: =SUM(AB146:AB147) -> 0 | AC148: =IF(AC143<-1,AC146-AC147,AC141) -> 0 | AD148: =SUM(AD146:AD147) -> 0 | AE148: =IF(AE143<-1,AE146-AE147,AE141) -> 0
F149: Difference tjenestemandspension - seniorordning | G149: =T124-(T124/T11*G10) -> 
F157: ferietillægsberegning | P157: ="1,5% * "&TEXT($A117+SUM($G117:$K117),"#.000,00")&" (feriegodtgørelsesgrundlag for "&LEFT($A$1,4)+1&")" -> 1,5% * 000,00 (feriegodtgørelsesgrundlag for 2024) | Q157: ="1,5% * "&TEXT($A117+SUM($G117:$K117),"#.000,00")&" (feriegodtgørelsesgrundlag for "&LEFT($A$1,4)+1&")" -> 1,5% * 000,00 (feriegodtgørelsesgrundlag for 2024) | R157: ="1,5% * "&TEXT($A117+SUM($G117:$K117),"#.000,00")&" (feriegodtgørelsesgrundlag for "&LEFT($A$1,4)+1&")" -> 1,5% * 000,00 (feriegodtgørelsesgrundlag for 2024) | AC157: ="1,5% * "&TEXT($A117+SUM($G117:$K117),"#.000,00")&" (feriegodtgørelsesgrundlag for "&LEFT($A$1,4)+1&")" -> 1,5% * 000,00 (feriegodtgørelsesgrundlag for 2024) | AD157: ="1,5% * "&TEXT($A117+SUM($G117:$K117),"#.000,00")&" (feriegodtgørelsesgrundlag for "&LEFT($A$1,4)+1&")" -> 1,5% * 000,00 (feriegodtgørelsesgrundlag for 2024) | AE157: ="1,5% * "&TEXT($A117+SUM($G117:$K117),"#.000,00")&" (feriegodtgørelsesgrundlag for "&LEFT($A$1,4)+1&")" -> 1,5% * 000,00 (feriegodtgørelsesgrundlag for 2024)
A162: LinJer i spec-arket, til beregn. af timeløn mv. | G162: ="lin. 1 - lin.16" -> lin. 1 - lin.16 | H162: ="lin. 1, lin.2"&IF($D57>0,", lin.5","")&IF($D58>0,", lin.6","")&IF($D59>0,", lin.7","")&IF($D60>0,", lin.8","")&IF($D61>0,", lin.9","")&IF($D62>0,", lin.10","")&", lin. 11 - lin. 15"&IF($D68>0,", lin.16","") -> lin. 1, lin.2, lin.8, lin.9, lin.10, lin. 11 - lin. 15 | I162: lin. 1, lin.2, lin.8, lin.9, lin.10, lin. 11 - lin. 15 | J162: lin. 1, lin.2, lin.8, lin.9, lin.10, lin. 11 - lin. 15 | K162: lin. 1, lin.2, lin.8, lin.9, lin.10, lin. 11 - lin. 15 | L162: lin. 1, lin.2, lin.8, lin.9, lin.10, lin. 11 - lin. 15 | M162: lin. 1, lin.2, lin.8, lin.9, lin.10, lin. 11 - lin. 15 | N162: lin. 1, lin.2, lin.8, lin.9, lin.10, lin. 11 - lin. 15 | O162: lin. 1, lin.2, lin.8, lin.9, lin.10, lin. 11 - lin. 15 | P162: lin. 1, lin.2, lin.8, lin.9, lin.10, lin. 11 - lin. 15 | Q162: lin. 1, lin.2, lin.8, lin.9, lin.10, lin. 11 - lin. 15 | R162: lin. 1, lin.2, lin.8, lin.9, lin.10, lin. 11 - lin. 15 | T162: ="lin. 1 - lin.16" -> lin. 1 - lin.16 | U162: ="lin. 1, lin.2"&IF($D57>0,", lin.5","")&IF($D58>0,", lin.6","")&IF($D59>0,", lin.7","")&IF($D60>0,", lin.8","")&IF($D61>0,", lin.9","")&IF($D62>0,", lin.10","")&", lin. 11 - lin. 15"&IF($D68>0,", lin.16","") -> lin. 1, lin.2, lin.8, lin.9, lin.10, lin. 11 - lin. 15 | V162: lin. 1, lin.2, lin.8, lin.9, lin.10, lin. 11 - lin. 15 | W162: lin. 1, lin.2, lin.8, lin.9, lin.10, lin. 11 - lin. 15 | X162: lin. 1, lin.2, lin.8, lin.9, lin.10, lin. 11 - lin. 15 | Y162: lin. 1, lin.2, lin.8, lin.9, lin.10, lin. 11 - lin. 15 | Z162: lin. 1, lin.2, lin.8, lin.9, lin.10, lin. 11 - lin. 15 | AA162: lin. 1, lin.2, lin.8, lin.9, lin.10, lin. 11 - lin. 15 | AB162: lin. 1, lin.2, lin.8, lin.9, lin.10, lin. 11 - lin. 15 | AC162: lin. 1, lin.2, lin.8, lin.9, lin.10, lin. 11 - lin. 15 | AD162: lin. 1, lin.2, lin.8, lin.9, lin.10, lin. 11 - lin. 15 | AE162: lin. 1, lin.2, lin.8, lin.9, lin.10, lin. 11 - lin. 15
A163: Timetakst vedr 25, og 50% mv. | G163: =ROUND(G129/160.33,2) -> 0 | H163: 0 | I163: 0 | J163: 0 | K163: 0 | L163: 0 | M163: 0 | N163: 0 | O163: 0 | P163: 0 | Q163: 0 | R163: 0 | T163: =ROUND(T129/160.33,2) -> 0 | U163: 0 | V163: 0 | W163: 0 | X163: 0 | Y163: 0 | Z163: 0 | AA163: 0 | AB163: 0 | AC163: 0 | AD163: 0 | AE163: 0
A164: Timetakst vedr 25, og 50% mv., pensionstillæg | G164: 0 | H164: 0 | I164: 0 | J164: 0 | K164: 0 | L164: 0 | M164: 0 | N164: 0 | O164: 0 | P164: 0 | Q164: 0 | R164: 0 | T164: 0 | U164: 0 | V164: 0 | W164: 0 | X164: 0 | Y164: 0 | Z164: 0 | AA164: 0 | AB164: 0 | AC164: 0 | AD164: 0 | AE164: 0
A165: Læ UV-tillæg | G165: ="= ("&TEXT(16.38*G$6,"#0,00")&" * "&MIN(650,G$12)&" + "&TEXT(98.3*G$6,"#0,00")&" * "&MAX(0,MIN(50,G$12-650))&" + "&TEXT(131.07*G$6,"#0,00")&" * "&MAX(0,MIN(50,G$12-700))&" + "&TEXT(163.83*G$6,"#0,00")&" * "&MAX(0,G$12-750)&") / 12 * "&TEXT(G$3,"#0/#0")&" =" -> = (20,12 * 650 + 120,72 * 0 + 160,96 * 0 + 201,19 * 0) / 12 * 1/1 = | H165: = (20,12 * 0 + 120,72 * 0 + 160,96 * 0 + 201,19 * 0) / 12 * 1/1 = | I165: = (20,12 * 0 + 120,72 * 0 + 160,96 * 0 + 201,19 * 0) / 12 * 1/1 = | J165: = (20,12 * 0 + 120,72 * 0 + 160,96 * 0 + 201,19 * 0) / 12 * 1/1 = | K165: = (20,12 * 0 + 120,72 * 0 + 160,96 * 0 + 201,19 * 0) / 12 * 1/1 = | L165: = (20,12 * 0 + 120,72 * 0 + 160,96 * 0 + 201,19 * 0) / 12 * 1/1 = | M165: = (20,12 * 0 + 120,72 * 0 + 160,96 * 0 + 201,19 * 0) / 12 * 1/1 = | N165: = (20,12 * 0 + 120,72 * 0 + 160,96 * 0 + 201,19 * 0) / 12 * 1/1 = | O165: = (20,12 * 0 + 120,72 * 0 + 160,96 * 0 + 201,19 * 0) / 12 * 1/1 = | P165: = (20,12 * 0 + 120,72 * 0 + 160,96 * 0 + 201,19 * 0) / 12 * 1/1 = | Q165: = (20,12 * 0 + 120,72 * 0 + 160,96 * 0 + 201,19 * 0) / 12 * 1/1 = | R165: = (20,12 * 0 + 120,72 * 0 + 160,96 * 0 + 201,19 * 0) / 12 * 1/1 = | T165: = (20,12 * 0 + 120,72 * 0 + 160,96 * 0 + 201,19 * 0) / 12 * 1/1 = | U165: = (20,12 * 0 + 120,72 * 0 + 160,96 * 0 + 201,19 * 0) / 12 * 1/1 = | V165: = (20,12 * 0 + 120,72 * 0 + 160,96 * 0 + 201,19 * 0) / 12 * 1/1 = | W165: = (20,12 * 0 + 120,72 * 0 + 160,96 * 0 + 201,19 * 0) / 12 * 1/1 = | X165: = (20,12 * 0 + 120,72 * 0 + 160,96 * 0 + 201,19 * 0) / 12 * 1/1 = | Y165: = (20,12 * 0 + 120,72 * 0 + 160,96 * 0 + 201,19 * 0) / 12 * 1/1 = | Z165: = (20,12 * 0 + 120,72 * 0 + 160,96 * 0 + 201,19 * 0) / 12 * 1/1 = | AA165: = (20,12 * 0 + 120,72 * 0 + 160,96 * 0 + 201,19 * 0) / 12 * 1/1 = | AB165: = (20,12 * 0 + 120,72 * 0 + 160,96 * 0 + 201,19 * 0) / 12 * 1/1 = | AC165: = (20,12 * 0 + 120,72 * 0 + 160,96 * 0 + 201,19 * 0) / 12 * 1/1 = | AD165: = (20,12 * 0 + 120,72 * 0 + 160,96 * 0 + 201,19 * 0) / 12 * 1/1 = | AE165: = (20,12 * 0 + 120,72 * 0 + 160,96 * 0 + 201,19 * 0) / 12 * 1/1 =
A166: Bhkl-uvtillæg | G166: ="= ("&TEXT(22.41*G$6,"#0,00")&" * "&MIN(750,G$12)&" + "&TEXT(55.63*G$6,"#0,00")&" * "&MAX(0,MIN(50,G$12-750))&" + "&TEXT(131.07*G$6,"#0,00")&" * "&MAX(0,MIN(50,G$12-800))&" + "&TEXT(163.83*G$6,"#0,00")&" * "&MAX(0,G$12-835)&") / 12 * "&TEXT(G$3,"#0/#0")&" =" -> = (27,52 * 750 + 68,32 * 0 + 160,96 * 0 + 201,19 * 0) / 12 * 1/1 = | H166: = (27,52 * 0 + 68,32 * 0 + 160,96 * 0 + 201,19 * 0) / 12 * 1/1 = | I166: = (27,52 * 0 + 68,32 * 0 + 160,96 * 0 + 201,19 * 0) / 12 * 1/1 = | J166: = (27,52 * 0 + 68,32 * 0 + 160,96 * 0 + 201,19 * 0) / 12 * 1/1 = | K166: = (27,52 * 0 + 68,32 * 0 + 160,96 * 0 + 201,19 * 0) / 12 * 1/1 = | L166: = (27,52 * 0 + 68,32 * 0 + 160,96 * 0 + 201,19 * 0) / 12 * 1/1 = | M166: = (27,52 * 0 + 68,32 * 0 + 160,96 * 0 + 201,19 * 0) / 12 * 1/1 = | N166: = (27,52 * 0 + 68,32 * 0 + 160,96 * 0 + 201,19 * 0) / 12 * 1/1 = | O166: = (27,52 * 0 + 68,32 * 0 + 160,96 * 0 + 201,19 * 0) / 12 * 1/1 = | P166: = (27,52 * 0 + 68,32 * 0 + 160,96 * 0 + 201,19 * 0) / 12 * 1/1 = | Q166: = (27,52 * 0 + 68,32 * 0 + 160,96 * 0 + 201,19 * 0) / 12 * 1/1 = | R166: = (27,52 * 0 + 68,32 * 0 + 160,96 * 0 + 201,19 * 0) / 12 * 1/1 = | T166: = (27,52 * 0 + 68,32 * 0 + 160,96 * 0 + 201,19 * 0) / 12 * 1/1 = | U166: = (27,52 * 0 + 68,32 * 0 + 160,96 * 0 + 201,19 * 0) / 12 * 1/1 = | V166: = (27,52 * 0 + 68,32 * 0 + 160,96 * 0 + 201,19 * 0) / 12 * 1/1 = | W166: = (27,52 * 0 + 68,32 * 0 + 160,96 * 0 + 201,19 * 0) / 12 * 1/1 = | X166: = (27,52 * 0 + 68,32 * 0 + 160,96 * 0 + 201,19 * 0) / 12 * 1/1 = | Y166: = (27,52 * 0 + 68,32 * 0 + 160,96 * 0 + 201,19 * 0) / 12 * 1/1 = | Z166: = (27,52 * 0 + 68,32 * 0 + 160,96 * 0 + 201,19 * 0) / 12 * 1/1 = | AA166: = (27,52 * 0 + 68,32 * 0 + 160,96 * 0 + 201,19 * 0) / 12 * 1/1 = | AB166: = (27,52 * 0 + 68,32 * 0 + 160,96 * 0 + 201,19 * 0) / 12 * 1/1 = | AC166: = (27,52 * 0 + 68,32 * 0 + 160,96 * 0 + 201,19 * 0) / 12 * 1/1 = | AD166: = (27,52 * 0 + 68,32 * 0 + 160,96 * 0 + 201,19 * 0) / 12 * 1/1 = | AE166: = (27,52 * 0 + 68,32 * 0 + 160,96 * 0 + 201,19 * 0) / 12 * 1/1 =
B167: 1 | D167: 50 | F167: Basisløn | G167: ="= "&TEXT(VLOOKUP(G$4,basistabel12,2,0)*G$6/12,"#.000,00")&" * "&TEXT(G$10,"0,0000")&" * "&TEXT(G$3,"#0/#0")&" =" ->  | U167: ="= "&TEXT(VLOOKUP(U4,basistabel12,2,0)*U6/12,"#.000,00")&" * "&TEXT(U10,"0,0000")&" * "&TEXT(U3,"#0/#0")&" =" -> 
B168: =B167+1 -> 2 | D168: =B54 -> 51 | F168: Områdetillæg | G168: ="= "&TEXT(VLOOKUP(G$4,omraadetabel12,G$7,0)/12,"#.000,00")&" * "&TEXT(G$10,"0,0000")&" * "&TEXT(G$3,"#0/#0")&" =" -> 
B169: =B168+1 -> 3 | D169: 52 | F169: Undervisningstillæg | G169: =IF(LEFT(G4)="L",G165,G166) -> = (27,52 * 750 + 68,32 * 0 + 160,96 * 0 + 201,19 * 0) / 12 * 1/1 = | H169: = (27,52 * 0 + 68,32 * 0 + 160,96 * 0 + 201,19 * 0) / 12 * 1/1 = | I169: = (27,52 * 0 + 68,32 * 0 + 160,96 * 0 + 201,19 * 0) / 12 * 1/1 = | J169: = (27,52 * 0 + 68,32 * 0 + 160,96 * 0 + 201,19 * 0) / 12 * 1/1 = | K169: = (27,52 * 0 + 68,32 * 0 + 160,96 * 0 + 201,19 * 0) / 12 * 1/1 = | L169: = (27,52 * 0 + 68,32 * 0 + 160,96 * 0 + 201,19 * 0) / 12 * 1/1 = | M169: = (27,52 * 0 + 68,32 * 0 + 160,96 * 0 + 201,19 * 0) / 12 * 1/1 = | N169: = (27,52 * 0 + 68,32 * 0 + 160,96 * 0 + 201,19 * 0) / 12 * 1/1 = | O169: = (27,52 * 0 + 68,32 * 0 + 160,96 * 0 + 201,19 * 0) / 12 * 1/1 = | P169: = (27,52 * 0 + 68,32 * 0 + 160,96 * 0 + 201,19 * 0) / 12 * 1/1 = | Q169: = (27,52 * 0 + 68,32 * 0 + 160,96 * 0 + 201,19 * 0) / 12 * 1/1 = | R169: = (27,52 * 0 + 68,32 * 0 + 160,96 * 0 + 201,19 * 0) / 12 * 1/1 = | S169: 0 | T169: = (27,52 * 0 + 68,32 * 0 + 160,96 * 0 + 201,19 * 0) / 12 * 1/1 = | U169: = (27,52 * 0 + 68,32 * 0 + 160,96 * 0 + 201,19 * 0) / 12 * 1/1 = | V169: = (27,52 * 0 + 68,32 * 0 + 160,96 * 0 + 201,19 * 0) / 12 * 1/1 = | W169: = (27,52 * 0 + 68,32 * 0 + 160,96 * 0 + 201,19 * 0) / 12 * 1/1 = | X169: = (27,52 * 0 + 68,32 * 0 + 160,96 * 0 + 201,19 * 0) / 12 * 1/1 = | Y169: = (27,52 * 0 + 68,32 * 0 + 160,96 * 0 + 201,19 * 0) / 12 * 1/1 = | Z169: = (27,52 * 0 + 68,32 * 0 + 160,96 * 0 + 201,19 * 0) / 12 * 1/1 = | AA169: = (27,52 * 0 + 68,32 * 0 + 160,96 * 0 + 201,19 * 0) / 12 * 1/1 = | AB169: = (27,52 * 0 + 68,32 * 0 + 160,96 * 0 + 201,19 * 0) / 12 * 1/1 = | AC169: = (27,52 * 0 + 68,32 * 0 + 160,96 * 0 + 201,19 * 0) / 12 * 1/1 = | AD169: = (27,52 * 0 + 68,32 * 0 + 160,96 * 0 + 201,19 * 0) / 12 * 1/1 = | AE169: = (27,52 * 0 + 68,32 * 0 + 160,96 * 0 + 201,19 * 0) / 12 * 1/1 =
B170: 4 | D170: 53 | F170: Souscheftillæg | G170: 19.300 i årligt grundbeløb. Ikke afh. Af bg. | H170: 19.300 i årligt grundbeløb. Ikke afh. Af bg. | I170: 19.300 i årligt grundbeløb. Ikke afh. Af bg. | J170: 19.300 i årligt grundbeløb. Ikke afh. Af bg. | K170: 19.300 i årligt grundbeløb. Ikke afh. Af bg. | L170: 19.300 i årligt grundbeløb. Ikke afh. Af bg. | M170: 19.300 i årligt grundbeløb. Ikke afh. Af bg. | N170: 19.300 i årligt grundbeløb. Ikke afh. Af bg. | O170: 19.300 i årligt grundbeløb. Ikke afh. Af bg. | P170: 19.300 i årligt grundbeløb. Ikke afh. Af bg. | Q170: 19.300 i årligt grundbeløb. Ikke afh. Af bg. | R170: 19.300 i årligt grundbeløb. Ikke afh. Af bg. | S170: 19.300 i årligt grundbeløb. Ikke afh. Af bg. | T170: 19.300 i årligt grundbeløb. Ikke afh. Af bg. | U170: 19.300 i årligt grundbeløb. Ikke afh. Af bg. | V170: 19.300 i årligt grundbeløb. Ikke afh. Af bg. | W170: 19.300 i årligt grundbeløb. Ikke afh. Af bg. | X170: 19.300 i årligt grundbeløb. Ikke afh. Af bg. | Y170: 19.300 i årligt grundbeløb. Ikke afh. Af bg. | Z170: 19.300 i årligt grundbeløb. Ikke afh. Af bg. | AA170: 19.300 i årligt grundbeløb. Ikke afh. Af bg. | AB170: 19.300 i årligt grundbeløb. Ikke afh. Af bg. | AC170: 19.300 i årligt grundbeløb. Ikke afh. Af bg. | AD170: 19.300 i årligt grundbeløb. Ikke afh. Af bg. | AE170: 19.300 i årligt grundbeløb. Ikke afh. Af bg.
B171: 5 | D171: 54 | F171: Funktionstillæg 1 | G171: ="= "&TEXT(G14,"#.###,00")&" * "&G$6&IF($D57>0," * "&TEXT(G$10,"0,0000"),"")&" * "&TEXT(G$3,"#0/#0")&" / 12 =" -> = ,00 * 1,228067 * 1/1 / 12 = | H171: = ,00 * 1,228067 * 1/1 / 12 = | I171: = ,00 * 1,228067 * 1/1 / 12 = | J171: = ,00 * 1,228067 * 1/1 / 12 = | K171: = ,00 * 1,228067 * 1/1 / 12 = | L171: = ,00 * 1,228067 * 1/1 / 12 = | M171: = ,00 * 1,228067 * 1/1 / 12 = | N171: = ,00 * 1,228067 * 1/1 / 12 = | O171: = ,00 * 1,228067 * 1/1 / 12 = | P171: = ,00 * 1,228067 * 1/1 / 12 = | Q171: = ,00 * 1,228067 * 1/1 / 12 = | R171: = ,00 * 1,228067 * 1/1 / 12 = | S171: = ,00 * * 0/1 / 12 = | T171: = ,00 * 1,228067 * 1/1 / 12 = | U171: = ,00 * 1,228067 * 1/1 / 12 = | V171: = ,00 * 1,228067 * 1/1 / 12 = | W171: = ,00 * 1,228067 * 1/1 / 12 = | X171: = ,00 * 1,228067 * 1/1 / 12 = | Y171: = ,00 * 1,228067 * 1/1 / 12 = | Z171: = ,00 * 1,228067 * 1/1 / 12 = | AA171: = ,00 * 1,228067 * 1/1 / 12 = | AB171: = ,00 * 1,228067 * 1/1 / 12 = | AC171: = ,00 * 1,228067 * 1/1 / 12 = | AD171: = ,00 * 1,228067 * 1/1 / 12 = | AE171: = ,00 * 1,228067 * 1/1 / 12 =
B172: 6 | D172: 55 | F172: Funktionstillæg 2 | G172: = ,00 * 1,228067 * 1/1 / 12 = | H172: = ,00 * 1,228067 * 1/1 / 12 = | I172: = ,00 * 1,228067 * 1/1 / 12 = | J172: = ,00 * 1,228067 * 1/1 / 12 = | K172: = ,00 * 1,228067 * 1/1 / 12 = | L172: = ,00 * 1,228067 * 1/1 / 12 = | M172: = ,00 * 1,228067 * 1/1 / 12 = | N172: = ,00 * 1,228067 * 1/1 / 12 = | O172: = ,00 * 1,228067 * 1/1 / 12 = | P172: = ,00 * 1,228067 * 1/1 / 12 = | Q172: = ,00 * 1,228067 * 1/1 / 12 = | R172: = ,00 * 1,228067 * 1/1 / 12 = | S172: = ,00 * * 0/1 / 12 = | T172: = ,00 * 1,228067 * 1/1 / 12 = | U172: = ,00 * 1,228067 * 1/1 / 12 = | V172: = ,00 * 1,228067 * 1/1 / 12 = | W172: = ,00 * 1,228067 * 1/1 / 12 = | X172: = ,00 * 1,228067 * 1/1 / 12 = | Y172: = ,00 * 1,228067 * 1/1 / 12 = | Z172: = ,00 * 1,228067 * 1/1 / 12 = | AA172: = ,00 * 1,228067 * 1/1 / 12 = | AB172: = ,00 * 1,228067 * 1/1 / 12 = | AC172: = ,00 * 1,228067 * 1/1 / 12 = | AD172: = ,00 * 1,228067 * 1/1 / 12 = | AE172: = ,00 * 1,228067 * 1/1 / 12 =
B173: 7 | D173: 56 | F173: Funktionstillæg 3 | G173: = ,00 * 1,228067 * 1/1 / 12 = | H173: = ,00 * 1,228067 * 1/1 / 12 = | I173: = ,00 * 1,228067 * 1/1 / 12 = | J173: = ,00 * 1,228067 * 1/1 / 12 = | K173: = ,00 * 1,228067 * 1/1 / 12 = | L173: = ,00 * 1,228067 * 1/1 / 12 = | M173: = ,00 * 1,228067 * 1/1 / 12 = | N173: = ,00 * 1,228067 * 1/1 / 12 = | O173: = ,00 * 1,228067 * 1/1 / 12 = | P173: = ,00 * 1,228067 * 1/1 / 12 = | Q173: = ,00 * 1,228067 * 1/1 / 12 = | R173: = ,00 * 1,228067 * 1/1 / 12 = | S173: = ,00 * * 0/1 / 12 = | T173: = ,00 * 1,228067 * 1/1 / 12 = | U173: = ,00 * 1,228067 * 1/1 / 12 = | V173: = ,00 * 1,228067 * 1/1 / 12 = | W173: = ,00 * 1,228067 * 1/1 / 12 = | X173: = ,00 * 1,228067 * 1/1 / 12 = | Y173: = ,00 * 1,228067 * 1/1 / 12 = | Z173: = ,00 * 1,228067 * 1/1 / 12 = | AA173: = ,00 * 1,228067 * 1/1 / 12 = | AB173: = ,00 * 1,228067 * 1/1 / 12 = | AC173: = ,00 * 1,228067 * 1/1 / 12 = | AD173: = ,00 * 1,228067 * 1/1 / 12 = | AE173: = ,00 * 1,228067 * 1/1 / 12 =
B174: 8 | D174: 57 | F174: Kvalifikationstillæg 1 | G174: = ,00 * 1,228067 * 0,0000 * 1/1 / 12 = | H174: = ,00 * 1,228067 * 0,0000 * 1/1 / 12 = | I174: = ,00 * 1,228067 * 0,0000 * 1/1 / 12 = | J174: = ,00 * 1,228067 * 0,0000 * 1/1 / 12 = | K174: = ,00 * 1,228067 * 0,0000 * 1/1 / 12 = | L174: = ,00 * 1,228067 * 0,0000 * 1/1 / 12 = | M174: = ,00 * 1,228067 * 0,0000 * 1/1 / 12 = | N174: = ,00 * 1,228067 * 0,0000 * 1/1 / 12 = | O174: = ,00 * 1,228067 * 0,0000 * 1/1 / 12 = | P174: = ,00 * 1,228067 * 0,0000 * 1/1 / 12 = | Q174: = ,00 * 1,228067 * 0,0000 * 1/1 / 12 = | R174: = ,00 * 1,228067 * 0,0000 * 1/1 / 12 = | S174: = ,00 * * 0,0000 * 0/1 / 12 = | T174: = ,00 * 1,228067 * 0,0000 * 1/1 / 12 = | U174: = ,00 * 1,228067 * 0,0000 * 1/1 / 12 = | V174: = ,00 * 1,228067 * 0,0000 * 1/1 / 12 = | W174: = ,00 * 1,228067 * 0,0000 * 1/1 / 12 = | X174: = ,00 * 1,228067 * 0,0000 * 1/1 / 12 = | Y174: = ,00 * 1,228067 * 0,0000 * 1/1 / 12 = | Z174: = ,00 * 1,228067 * 0,0000 * 1/1 / 12 = | AA174: = ,00 * 1,228067 * 0,0000 * 1/1 / 12 = | AB174: = ,00 * 1,228067 * 0,0000 * 1/1 / 12 = | AC174: = ,00 * 1,228067 * 0,0000 * 1/1 / 12 = | AD174: = ,00 * 1,228067 * 0,0000 * 1/1 / 12 = | AE174: = ,00 * 1,228067 * 0,0000 * 1/1 / 12 =
B175: 9 | D175: 58 | F175: Kvalifikationstillæg 2 | G175: = ,00 * 1,228067 * 0,0000 * 1/1 / 12 = | H175: = ,00 * 1,228067 * 0,0000 * 1/1 / 12 = | I175: = ,00 * 1,228067 * 0,0000 * 1/1 / 12 = | J175: = ,00 * 1,228067 * 0,0000 * 1/1 / 12 = | K175: = ,00 * 1,228067 * 0,0000 * 1/1 / 12 = | L175: = ,00 * 1,228067 * 0,0000 * 1/1 / 12 = | M175: = ,00 * 1,228067 * 0,0000 * 1/1 / 12 = | N175: = ,00 * 1,228067 * 0,0000 * 1/1 / 12 = | O175: = ,00 * 1,228067 * 0,0000 * 1/1 / 12 = | P175: = ,00 * 1,228067 * 0,0000 * 1/1 / 12 = | Q175: = ,00 * 1,228067 * 0,0000 * 1/1 / 12 = | R175: = ,00 * 1,228067 * 0,0000 * 1/1 / 12 = | S175: = ,00 * * 0,0000 * 0/1 / 12 = | T175: = ,00 * 1,228067 * 0,0000 * 1/1 / 12 = | U175: = ,00 * 1,228067 * 0,0000 * 1/1 / 12 = | V175: = ,00 * 1,228067 * 0,0000 * 1/1 / 12 = | W175: = ,00 * 1,228067 * 0,0000 * 1/1 / 12 = | X175: = ,00 * 1,228067 * 0,0000 * 1/1 / 12 = | Y175: = ,00 * 1,228067 * 0,0000 * 1/1 / 12 = | Z175: = ,00 * 1,228067 * 0,0000 * 1/1 / 12 = | AA175: = ,00 * 1,228067 * 0,0000 * 1/1 / 12 = | AB175: = ,00 * 1,228067 * 0,0000 * 1/1 / 12 = | AC175: = ,00 * 1,228067 * 0,0000 * 1/1 / 12 = | AD175: = ,00 * 1,228067 * 0,0000 * 1/1 / 12 = | AE175: = ,00 * 1,228067 * 0,0000 * 1/1 / 12 =
B176: 10 | D176: 59 | F176: Kvalifikationstillæg 3 | G176: = ,00 * 1,228067 * 0,0000 * 1/1 / 12 = | H176: = ,00 * 1,228067 * 0,0000 * 1/1 / 12 = | I176: = ,00 * 1,228067 * 0,0000 * 1/1 / 12 = | J176: = ,00 * 1,228067 * 0,0000 * 1/1 / 12 = | K176: = ,00 * 1,228067 * 0,0000 * 1/1 / 12 = | L176: = ,00 * 1,228067 * 0,0000 * 1/1 / 12 = | M176: = ,00 * 1,228067 * 0,0000 * 1/1 / 12 = | N176: = ,00 * 1,228067 * 0,0000 * 1/1 / 12 = | O176: = ,00 * 1,228067 * 0,0000 * 1/1 / 12 = | P176: = ,00 * 1,228067 * 0,0000 * 1/1 / 12 = | Q176: = ,00 * 1,228067 * 0,0000 * 1/1 / 12 = | R176: = ,00 * 1,228067 * 0,0000 * 1/1 / 12 = | S176: = ,00 * * 0,0000 * 0/1 / 12 = | T176: = ,00 * 1,228067 * 0,0000 * 1/1 / 12 = | U176: = ,00 * 1,228067 * 0,0000 * 1/1 / 12 = | V176: = ,00 * 1,228067 * 0,0000 * 1/1 / 12 = | W176: = ,00 * 1,228067 * 0,0000 * 1/1 / 12 = | X176: = ,00 * 1,228067 * 0,0000 * 1/1 / 12 = | Y176: = ,00 * 1,228067 * 0,0000 * 1/1 / 12 = | Z176: = ,00 * 1,228067 * 0,0000 * 1/1 / 12 = | AA176: = ,00 * 1,228067 * 0,0000 * 1/1 / 12 = | AB176: = ,00 * 1,228067 * 0,0000 * 1/1 / 12 = | AC176: = ,00 * 1,228067 * 0,0000 * 1/1 / 12 = | AD176: = ,00 * 1,228067 * 0,0000 * 1/1 / 12 = | AE176: = ,00 * 1,228067 * 0,0000 * 1/1 / 12 =
B177: 11 | D177: 60 | F177: Trin 4-tillæg beregnet 1. aug 2013 | G177: ="= "&TEXT(G20,"#.###,00")&" * "&G$6&" * "&TEXT(G$10,"0,0000")&" * "&TEXT(G$3,"#0/#0")&" / 12 =" -> = ,00 * 1,228067 * 0,0000 * 1/1 / 12 = | H177: = ,00 * 1,228067 * 0,0000 * 1/1 / 12 = | I177: = ,00 * 1,228067 * 0,0000 * 1/1 / 12 = | J177: = ,00 * 1,228067 * 0,0000 * 1/1 / 12 = | K177: = ,00 * 1,228067 * 0,0000 * 1/1 / 12 = | L177: = ,00 * 1,228067 * 0,0000 * 1/1 / 12 = | M177: = ,00 * 1,228067 * 0,0000 * 1/1 / 12 = | N177: = ,00 * 1,228067 * 0,0000 * 1/1 / 12 = | O177: = ,00 * 1,228067 * 0,0000 * 1/1 / 12 = | P177: = ,00 * 1,228067 * 0,0000 * 1/1 / 12 = | Q177: = ,00 * 1,228067 * 0,0000 * 1/1 / 12 = | R177: = ,00 * 1,228067 * 0,0000 * 1/1 / 12 = | S177: = ,00 * * 0,0000 * 0/1 / 12 = | T177: = ,00 * 1,228067 * 0,0000 * 1/1 / 12 = | U177: = ,00 * 1,228067 * 0,0000 * 1/1 / 12 = | V177: = ,00 * 1,228067 * 0,0000 * 1/1 / 12 = | W177: = ,00 * 1,228067 * 0,0000 * 1/1 / 12 = | X177: = ,00 * 1,228067 * 0,0000 * 1/1 / 12 = | Y177: = ,00 * 1,228067 * 0,0000 * 1/1 / 12 = | Z177: = ,00 * 1,228067 * 0,0000 * 1/1 / 12 = | AA177: = ,00 * 1,228067 * 0,0000 * 1/1 / 12 = | AB177: = ,00 * 1,228067 * 0,0000 * 1/1 / 12 = | AC177: = ,00 * 1,228067 * 0,0000 * 1/1 / 12 = | AD177: = ,00 * 1,228067 * 0,0000 * 1/1 / 12 = | AE177: = ,00 * 1,228067 * 0,0000 * 1/1 / 12 =
B178: 12 | D178: 61 | F178: Udligningstillæg beregnet 1. aug 2004 | G178: = ,00 * 1,228067 * 0,0000 * 1/1 / 12 = | H178: = ,00 * 1,228067 * 0,0000 * 1/1 / 12 = | I178: = ,00 * 1,228067 * 0,0000 * 1/1 / 12 = | J178: = ,00 * 1,228067 * 0,0000 * 1/1 / 12 = | K178: = ,00 * 1,228067 * 0,0000 * 1/1 / 12 = | L178: = ,00 * 1,228067 * 0,0000 * 1/1 / 12 = | M178: = ,00 * 1,228067 * 0,0000 * 1/1 / 12 = | N178: = ,00 * 1,228067 * 0,0000 * 1/1 / 12 = | O178: = ,00 * 1,228067 * 0,0000 * 1/1 / 12 = | P178: = ,00 * 1,228067 * 0,0000 * 1/1 / 12 = | Q178: = ,00 * 1,228067 * 0,0000 * 1/1 / 12 = | R178: = ,00 * 1,228067 * 0,0000 * 1/1 / 12 = | S178: = ,00 * * 0,0000 * 0/1 / 12 = | T178: = ,00 * 1,228067 * 0,0000 * 1/1 / 12 = | U178: = ,00 * 1,228067 * 0,0000 * 1/1 / 12 = | V178: = ,00 * 1,228067 * 0,0000 * 1/1 / 12 = | W178: = ,00 * 1,228067 * 0,0000 * 1/1 / 12 = | X178: = ,00 * 1,228067 * 0,0000 * 1/1 / 12 = | Y178: = ,00 * 1,228067 * 0,0000 * 1/1 / 12 = | Z178: = ,00 * 1,228067 * 0,0000 * 1/1 / 12 = | AA178: = ,00 * 1,228067 * 0,0000 * 1/1 / 12 = | AB178: = ,00 * 1,228067 * 0,0000 * 1/1 / 12 = | AC178: = ,00 * 1,228067 * 0,0000 * 1/1 / 12 = | AD178: = ,00 * 1,228067 * 0,0000 * 1/1 / 12 = | AE178: = ,00 * 1,228067 * 0,0000 * 1/1 / 12 =
B179: 13 | D179: 62 | F179: OK08-tillæg | G179: ="= "&TEXT(IF(RIGHT(G4)="1",5200)+IF(RIGHT(G4)="2",7900)+IF(RIGHT(G4)="3",7900),"#.###")&" * "&G$6&" * "&TEXT(G$10,"0,0000")&" * "&TEXT(G$3,"#0/#0")&" / 12 =" -> = * 1,228067 * 0,0000 * 1/1 / 12 = | H179: = * 1,228067 * 0,0000 * 1/1 / 12 = | I179: = * 1,228067 * 0,0000 * 1/1 / 12 = | J179: = * 1,228067 * 0,0000 * 1/1 / 12 = | K179: = * 1,228067 * 0,0000 * 1/1 / 12 = | L179: = * 1,228067 * 0,0000 * 1/1 / 12 = | M179: = * 1,228067 * 0,0000 * 1/1 / 12 = | N179: = * 1,228067 * 0,0000 * 1/1 / 12 = | O179: = * 1,228067 * 0,0000 * 1/1 / 12 = | P179: = * 1,228067 * 0,0000 * 1/1 / 12 = | Q179: = * 1,228067 * 0,0000 * 1/1 / 12 = | R179: = * 1,228067 * 0,0000 * 1/1 / 12 = | S179: = * * 0,0000 * 0/1 / 12 = | T179: = * 1,228067 * 0,0000 * 1/1 / 12 = | U179: = * 1,228067 * 0,0000 * 1/1 / 12 = | V179: = * 1,228067 * 0,0000 * 1/1 / 12 = | W179: = * 1,228067 * 0,0000 * 1/1 / 12 = | X179: = * 1,228067 * 0,0000 * 1/1 / 12 = | Y179: = * 1,228067 * 0,0000 * 1/1 / 12 = | Z179: = * 1,228067 * 0,0000 * 1/1 / 12 = | AA179: = * 1,228067 * 0,0000 * 1/1 / 12 = | AB179: = * 1,228067 * 0,0000 * 1/1 / 12 = | AC179: = * 1,228067 * 0,0000 * 1/1 / 12 = | AD179: = * 1,228067 * 0,0000 * 1/1 / 12 = | AE179: = * 1,228067 * 0,0000 * 1/1 / 12 =
B180: 14 | D180: 63 | F180: OK13-tillæg | G180: ="= 2.800 * "&G6&" * "&TEXT(G$10,"0,0000")&" * "&TEXT(G$3,"#0/#0")&" / 12 =" -> = 2.800 * 1,228067 * 0,0000 * 1/1 / 12 = | H180: = 2.800 * 1,228067 * 0,0000 * 1/1 / 12 = | I180: = 2.800 * 1,228067 * 0,0000 * 1/1 / 12 = | J180: = 2.800 * 1,228067 * 0,0000 * 1/1 / 12 = | K180: = 2.800 * 1,228067 * 0,0000 * 1/1 / 12 = | L180: = 2.800 * 1,228067 * 0,0000 * 1/1 / 12 = | M180: = 2.800 * 1,228067 * 0,0000 * 1/1 / 12 = | N180: = 2.800 * 1,228067 * 0,0000 * 1/1 / 12 = | O180: = 2.800 * 1,228067 * 0,0000 * 1/1 / 12 = | P180: = 2.800 * 1,228067 * 0,0000 * 1/1 / 12 = | Q180: = 2.800 * 1,228067 * 0,0000 * 1/1 / 12 = | R180: = 2.800 * 1,228067 * 0,0000 * 1/1 / 12 = | S180: = 2.800 * * 0,0000 * 0/1 / 12 = | T180: = 2.800 * 1,228067 * 0,0000 * 1/1 / 12 = | U180: = 2.800 * 1,228067 * 0,0000 * 1/1 / 12 = | V180: = 2.800 * 1,228067 * 0,0000 * 1/1 / 12 = | W180: = 2.800 * 1,228067 * 0,0000 * 1/1 / 12 = | X180: = 2.800 * 1,228067 * 0,0000 * 1/1 / 12 = | Y180: = 2.800 * 1,228067 * 0,0000 * 1/1 / 12 = | Z180: = 2.800 * 1,228067 * 0,0000 * 1/1 / 12 = | AA180: = 2.800 * 1,228067 * 0,0000 * 1/1 / 12 = | AB180: = 2.800 * 1,228067 * 0,0000 * 1/1 / 12 = | AC180: = 2.800 * 1,228067 * 0,0000 * 1/1 / 12 = | AD180: = 2.800 * 1,228067 * 0,0000 * 1/1 / 12 = | AE180: = 2.800 * 1,228067 * 0,0000 * 1/1 / 12 =
B181: 15 | D181: 64 | F181: OK18-tillæg | G181: ="= 900 * "&G6&" * "&TEXT(G$10,"0,0000")&" * "&TEXT(G$3,"#0/#0")&" / 12 =" -> = 900 * 1,228067 * 0,0000 * 1/1 / 12 = | H181: = 900 * 1,228067 * 0,0000 * 1/1 / 12 = | I181: = 900 * 1,228067 * 0,0000 * 1/1 / 12 = | J181: = 900 * 1,228067 * 0,0000 * 1/1 / 12 = | K181: = 900 * 1,228067 * 0,0000 * 1/1 / 12 = | L181: = 900 * 1,228067 * 0,0000 * 1/1 / 12 = | M181: = 900 * 1,228067 * 0,0000 * 1/1 / 12 = | N181: = 900 * 1,228067 * 0,0000 * 1/1 / 12 = | O181: = 900 * 1,228067 * 0,0000 * 1/1 / 12 = | P181: = 900 * 1,228067 * 0,0000 * 1/1 / 12 = | Q181: = 900 * 1,228067 * 0,0000 * 1/1 / 12 = | R181: = 900 * 1,228067 * 0,0000 * 1/1 / 12 = | S181: = 900 * * 0,0000 * 0/1 / 12 = | T181: = 900 * 1,228067 * 0,0000 * 1/1 / 12 = | U181: = 900 * 1,228067 * 0,0000 * 1/1 / 12 = | V181: = 900 * 1,228067 * 0,0000 * 1/1 / 12 = | W181: = 900 * 1,228067 * 0,0000 * 1/1 / 12 = | X181: = 900 * 1,228067 * 0,0000 * 1/1 / 12 = | Y181: = 900 * 1,228067 * 0,0000 * 1/1 / 12 = | Z181: = 900 * 1,228067 * 0,0000 * 1/1 / 12 = | AA181: = 900 * 1,228067 * 0,0000 * 1/1 / 12 = | AB181: = 900 * 1,228067 * 0,0000 * 1/1 / 12 = | AC181: = 900 * 1,228067 * 0,0000 * 1/1 / 12 = | AD181: = 900 * 1,228067 * 0,0000 * 1/1 / 12 = | AE181: = 900 * 1,228067 * 0,0000 * 1/1 / 12 =
B182: 16 | D182: 65 | F182: Fast lokalaftalt godtgørelse | G182: ="= "&TEXT(G23,"#.###,00")&IF($E23<>""," * "&G$6,"")&IF($D23<>""," * "&TEXT(G$10,"0,0000"),"")&" * "&TEXT(G$3,"#0/#0")&" / 12 =" -> = ,00 * 1/1 / 12 = | H182: = ,00 * 1/1 / 12 = | I182: = ,00 * 1/1 / 12 = | J182: = ,00 * 1/1 / 12 = | K182: = ,00 * 1/1 / 12 = | L182: = ,00 * 1/1 / 12 = | M182: = ,00 * 1/1 / 12 = | N182: = ,00 * 1/1 / 12 = | O182: = ,00 * 1/1 / 12 = | P182: = ,00 * 1/1 / 12 = | Q182: = ,00 * 1/1 / 12 = | R182: = ,00 * 1/1 / 12 = | S182: = ,00 * 0/1 / 12 = | T182: = ,00 * 1/1 / 12 = | U182: = ,00 * 1/1 / 12 = | V182: = ,00 * 1/1 / 12 = | W182: = ,00 * 1/1 / 12 = | X182: = ,00 * 1/1 / 12 = | Y182: = ,00 * 1/1 / 12 = | Z182: = ,00 * 1/1 / 12 = | AA182: = ,00 * 1/1 / 12 = | AB182: = ,00 * 1/1 / 12 = | AC182: = ,00 * 1/1 / 12 = | AD182: = ,00 * 1/1 / 12 = | AE182: = ,00 * 1/1 / 12 =
B183: 17 | D183: 66 | F183: Gruppelivstillæg | G183: ="= 108,35 * "&TEXT(G$3,"#0/#0")&" =" -> = 108,35 * 1/1 = | H183: ="= 108,35 * "&TEXT(H$3,"#0/#0")&" =" -> = 108,35 * 1/1 = | I183: = 108,35 * 1/1 = | J183: = 108,35 * 1/1 = | K183: = 108,35 * 1/1 = | L183: = 108,35 * 1/1 = | M183: = 108,35 * 1/1 = | N183: = 108,35 * 1/1 = | O183: = 108,35 * 1/1 = | P183: ="= 108,35 * "&TEXT(P$3,"#0/#0")&" =" -> = 108,35 * 1/1 = | Q183: = 108,35 * 1/1 = | R183: = 108,35 * 1/1 = | S183: = 108,35 * 0/1 = | T183: ="= 108,35 * "&TEXT(T$3,"#0/#0")&" =" -> = 108,35 * 1/1 = | U183: ="= 108,35 * "&TEXT(U$3,"#0/#0")&" =" -> = 108,35 * 1/1 = | V183: = 108,35 * 1/1 = | W183: = 108,35 * 1/1 = | X183: = 108,35 * 1/1 = | Y183: = 108,35 * 1/1 = | Z183: = 108,35 * 1/1 = | AA183: = 108,35 * 1/1 = | AB183: = 108,35 * 1/1 = | AC183: = 108,35 * 1/1 = | AD183: = 108,35 * 1/1 = | AE183: = 108,35 * 1/1 =
B184: 18 | D184: 67 | F184: Lønfradrag for ikke optjent ferie mv., pensionsgiv. | G184: ="= "&-(MAX(0,MIN(G$24,G$25*1))+G$28)&" * 4,62% * SUM(lin. 1; lin. 3 - 12; lin. 14-15; lin. 36"&(IF(AND($C$68=1,G$68>0)," - 16","; ")&") =") -> = 0 * 4,62% * SUM(lin. 1; lin. 3 - 12; lin. 14-15; lin. 36; ) = | H184: ="= "&-(MAX(0,MIN(H$24,H$25*1))+H$28)&" * 4,62% * SUM(lin. 1; lin. 3 - 12; lin. 14-15; lin. 36"&(IF(AND($C$68=1,H$68>0)," - 16","; ")&") =") -> = 0 * 4,62% * SUM(lin. 1; lin. 3 - 12; lin. 14-15; lin. 36; ) = | I184: = 0 * 4,62% * SUM(lin. 1; lin. 3 - 12; lin. 14-15; lin. 36; ) = | J184: = 0 * 4,62% * SUM(lin. 1; lin. 3 - 12; lin. 14-15; lin. 36; ) = | K184: = 0 * 4,62% * SUM(lin. 1; lin. 3 - 12; lin. 14-15; lin. 36; ) = | L184: = 0 * 4,62% * SUM(lin. 1; lin. 3 - 12; lin. 14-15; lin. 36; ) = | M184: = 0 * 4,62% * SUM(lin. 1; lin. 3 - 12; lin. 14-15; lin. 36; ) = | N184: = 0 * 4,62% * SUM(lin. 1; lin. 3 - 12; lin. 14-15; lin. 36; ) = | O184: = 0 * 4,62% * SUM(lin. 1; lin. 3 - 12; lin. 14-15; lin. 36; ) = | P184: ="= "&-(MAX(0,MIN(P$24,P$25*1))+P$28)&" * 4,62% * SUM(lin. 1; lin. 3 - 12; lin. 14-15; lin. 36"&(IF(AND($C$68=1,P$68>0)," - 16","; ")&") =") -> = 0 * 4,62% * SUM(lin. 1; lin. 3 - 12; lin. 14-15; lin. 36; ) = | Q184: = 0 * 4,62% * SUM(lin. 1; lin. 3 - 12; lin. 14-15; lin. 36; ) = | R184: = 0 * 4,62% * SUM(lin. 1; lin. 3 - 12; lin. 14-15; lin. 36; ) = | S184: = 0 * 4,62% * SUM(lin. 1; lin. 3 - 12; lin. 14-15; lin. 36; ) = | T184: ="= "&-(MAX(0,MIN(T$24,T$25*1))+T$28)&" * 4,62% * SUM(lin. 1; lin. 3 - 12; lin. 14-15"&(IF(AND($C$68=1,T$68>0)," - 16","; ")&") =") -> = 0 * 4,62% * SUM(lin. 1; lin. 3 - 12; lin. 14-15; ) = | U184: = 0 * 4,62% * SUM(lin. 1; lin. 3 - 12; lin. 14-15; ) = | V184: = 0 * 4,62% * SUM(lin. 1; lin. 3 - 12; lin. 14-15; ) = | W184: = 0 * 4,62% * SUM(lin. 1; lin. 3 - 12; lin. 14-15; ) = | X184: = 0 * 4,62% * SUM(lin. 1; lin. 3 - 12; lin. 14-15; ) = | Y184: = 0 * 4,62% * SUM(lin. 1; lin. 3 - 12; lin. 14-15; ) = | Z184: = 0 * 4,62% * SUM(lin. 1; lin. 3 - 12; lin. 14-15; ) = | AA184: = 0 * 4,62% * SUM(lin. 1; lin. 3 - 12; lin. 14-15; ) = | AB184: = 0 * 4,62% * SUM(lin. 1; lin. 3 - 12; lin. 14-15; ) = | AC184: = 0 * 4,62% * SUM(lin. 1; lin. 3 - 12; lin. 14-15; ) = | AD184: = 0 * 4,62% * SUM(lin. 1; lin. 3 - 12; lin. 14-15; ) = | AE184: = 0 * 4,62% * SUM(lin. 1; lin. 3 - 12; lin. 14-15; ) =
B185: 19 | D185: 68 | F185: Lønfradrag for ikke optjent ferie mv., ej pensionsg. | G185: ="= "&-(MAX(0,MIN(G$24,G$25*1))+G$28)&" * 4,62% * SUM(lin. 2; lin. 13"&(IF(AND($C$68=1,G$68>0),";"," ; lin. 16")&") =") -> = 0 * 4,62% * SUM(lin. 2; lin. 13 ; lin. 16) = | H185: = 0 * 4,62% * SUM(lin. 2; lin. 13 ; lin. 16) = | I185: = 0 * 4,62% * SUM(lin. 2; lin. 13 ; lin. 16) = | J185: = 0 * 4,62% * SUM(lin. 2; lin. 13 ; lin. 16) = | K185: = 0 * 4,62% * SUM(lin. 2; lin. 13 ; lin. 16) = | L185: = 0 * 4,62% * SUM(lin. 2; lin. 13 ; lin. 16) = | M185: = 0 * 4,62% * SUM(lin. 2; lin. 13 ; lin. 16) = | N185: = 0 * 4,62% * SUM(lin. 2; lin. 13 ; lin. 16) = | O185: = 0 * 4,62% * SUM(lin. 2; lin. 13 ; lin. 16) = | P185: = 0 * 4,62% * SUM(lin. 2; lin. 13 ; lin. 16) = | Q185: = 0 * 4,62% * SUM(lin. 2; lin. 13 ; lin. 16) = | R185: = 0 * 4,62% * SUM(lin. 2; lin. 13 ; lin. 16) = | S185: = 0 * 4,62% * SUM(lin. 2; lin. 13 ; lin. 16) = | T185: = 0 * 4,62% * SUM(lin. 2; lin. 13 ; lin. 16) = | U185: = 0 * 4,62% * SUM(lin. 2; lin. 13 ; lin. 16) = | V185: = 0 * 4,62% * SUM(lin. 2; lin. 13 ; lin. 16) = | W185: = 0 * 4,62% * SUM(lin. 2; lin. 13 ; lin. 16) = | X185: = 0 * 4,62% * SUM(lin. 2; lin. 13 ; lin. 16) = | Y185: = 0 * 4,62% * SUM(lin. 2; lin. 13 ; lin. 16) = | Z185: = 0 * 4,62% * SUM(lin. 2; lin. 13 ; lin. 16) = | AA185: = 0 * 4,62% * SUM(lin. 2; lin. 13 ; lin. 16) = | AB185: = 0 * 4,62% * SUM(lin. 2; lin. 13 ; lin. 16) = | AC185: = 0 * 4,62% * SUM(lin. 2; lin. 13 ; lin. 16) = | AD185: = 0 * 4,62% * SUM(lin. 2; lin. 13 ; lin. 16) = | AE185: = 0 * 4,62% * SUM(lin. 2; lin. 13 ; lin. 16) =
B186: 20 | D186: 69 | F186: Feriedifference, pensionsgivende | G186: Hvis forskel på bg. fra optjening til afvikling(se evt. særskilt bilag) | H186: Hvis forskel på bg. fra optjening til afvikling(se evt. særskilt bilag) | I186: Hvis forskel på bg. fra optjening til afvikling(se evt. særskilt bilag) | J186: Hvis forskel på bg. fra optjening til afvikling(se evt. særskilt bilag) | K186: Hvis forskel på bg. fra optjening til afvikling(se evt. særskilt bilag) | L186: Hvis forskel på bg. fra optjening til afvikling(se evt. særskilt bilag) | M186: Hvis forskel på bg. fra optjening til afvikling(se evt. særskilt bilag) | N186: Hvis forskel på bg. fra optjening til afvikling(se evt. særskilt bilag) | O186: Hvis forskel på bg. fra optjening til afvikling(se evt. særskilt bilag) | P186: Hvis forskel på bg. fra optjening til afvikling(se evt. særskilt bilag) | Q186: Hvis forskel på bg. fra optjening til afvikling(se evt. særskilt bilag) | R186: Hvis forskel på bg. fra optjening til afvikling(se evt. særskilt bilag) | S186: Hvis forskel på bg. fra optjening til afvikling(se evt. særskilt bilag) | T186: Hvis forskel på bg. fra optjening til afvikling(se evt. særskilt bilag) | U186: Hvis forskel på bg. fra optjening til afvikling(se evt. særskilt bilag) | V186: Hvis forskel på bg. fra optjening til afvikling(se evt. særskilt bilag) | W186: Hvis forskel på bg. fra optjening til afvikling(se evt. særskilt bilag) | X186: Hvis forskel på bg. fra optjening til afvikling(se evt. særskilt bilag) | Y186: Hvis forskel på bg. fra optjening til afvikling(se evt. særskilt bilag) | Z186: Hvis forskel på bg. fra optjening til afvikling(se evt. særskilt bilag) | AA186: Hvis forskel på bg. fra optjening til afvikling(se evt. særskilt bilag) | AB186: Hvis forskel på bg. fra optjening til afvikling(se evt. særskilt bilag) | AC186: Hvis forskel på bg. fra optjening til afvikling(se evt. særskilt bilag) | AD186: Hvis forskel på bg. fra optjening til afvikling(se evt. særskilt bilag) | AE186: Hvis forskel på bg. fra optjening til afvikling(se evt. særskilt bilag)
B187: 21 | D187: 70 | F187: Feriedifference, ikke pensionsgivende | G187: Hvis forskel på bg. fra optjening til afvikling(se evt. særskilt bilag) | H187: Hvis forskel på bg. fra optjening til afvikling(se evt. særskilt bilag) | I187: Hvis forskel på bg. fra optjening til afvikling(se evt. særskilt bilag) | J187: Hvis forskel på bg. fra optjening til afvikling(se evt. særskilt bilag) | K187: Hvis forskel på bg. fra optjening til afvikling(se evt. særskilt bilag) | L187: Hvis forskel på bg. fra optjening til afvikling(se evt. særskilt bilag) | M187: Hvis forskel på bg. fra optjening til afvikling(se evt. særskilt bilag) | N187: Hvis forskel på bg. fra optjening til afvikling(se evt. særskilt bilag) | O187: Hvis forskel på bg. fra optjening til afvikling(se evt. særskilt bilag) | P187: Hvis forskel på bg. fra optjening til afvikling(se evt. særskilt bilag) | Q187: Hvis forskel på bg. fra optjening til afvikling(se evt. særskilt bilag) | R187: Hvis forskel på bg. fra optjening til afvikling(se evt. særskilt bilag) | S187: Hvis forskel på bg. fra optjening til afvikling(se evt. særskilt bilag) | T187: Hvis forskel på bg. fra optjening til afvikling(se evt. særskilt bilag) | U187: Hvis forskel på bg. fra optjening til afvikling(se evt. særskilt bilag) | V187: Hvis forskel på bg. fra optjening til afvikling(se evt. særskilt bilag) | W187: Hvis forskel på bg. fra optjening til afvikling(se evt. særskilt bilag) | X187: Hvis forskel på bg. fra optjening til afvikling(se evt. særskilt bilag) | Y187: Hvis forskel på bg. fra optjening til afvikling(se evt. særskilt bilag) | Z187: Hvis forskel på bg. fra optjening til afvikling(se evt. særskilt bilag) | AA187: Hvis forskel på bg. fra optjening til afvikling(se evt. særskilt bilag) | AB187: Hvis forskel på bg. fra optjening til afvikling(se evt. særskilt bilag) | AC187: Hvis forskel på bg. fra optjening til afvikling(se evt. særskilt bilag) | AD187: Hvis forskel på bg. fra optjening til afvikling(se evt. særskilt bilag) | AE187: Hvis forskel på bg. fra optjening til afvikling(se evt. særskilt bilag)
B188: 22 | D188: 71 | F188: Skattefri km.godtgørelse, lav sats | G188: ="= "&G31&" km a "&TEXT($D$31,"0,00")&" =" -> = km a 2,23 = | H188: = km a 2,23 = | I188: = km a 2,23 = | J188: = km a 2,23 = | K188: = km a 2,23 = | L188: = km a 2,23 = | M188: = km a 2,23 = | N188: = km a 2,23 = | O188: = km a 2,23 = | P188: = km a 2,23 = | Q188: = km a 2,23 = | R188: = km a 2,23 = | S188: = km a 2,23 = | T188: = 0 km a 2,23 = | U188: = 0 km a 2,23 = | V188: = 0 km a 2,23 = | W188: = 0 km a 2,23 = | X188: = 0 km a 2,23 = | Y188: = 0 km a 2,23 = | Z188: ="= "&Z31&" km a "&TEXT($E$31,"0,00")&" =" -> = 0 km a 0,00 = | AA188: = 0 km a 0,00 = | AB188: = 0 km a 0,00 = | AC188: = 0 km a 0,00 = | AD188: = 0 km a 0,00 = | AE188: = 0 km a 0,00 =
B189: 23 | D189: 72 | F189: Skattefri km.godtgørelse, høj sats | G189: ="= "&G32&" km a "&TEXT($D$32,"0,00")&" =" -> = km a 3,79 = | H189: = km a 3,79 = | I189: = km a 3,79 = | J189: = km a 3,79 = | K189: = km a 3,79 = | L189: = km a 3,79 = | M189: = km a 3,79 = | N189: = km a 3,79 = | O189: = km a 3,79 = | P189: = km a 3,79 = | Q189: = km a 3,79 = | R189: = km a 3,79 = | S189: = km a 3,79 = | T189: = 0 km a 3,79 = | U189: = 0 km a 3,79 = | V189: = 0 km a 3,79 = | W189: = 0 km a 3,79 = | X189: = 0 km a 3,79 = | Y189: = 0 km a 3,79 = | Z189: ="= "&Z32&" km a "&TEXT($E$32,"0,00")&" =" -> = 0 km a 0,00 = | AA189: = 0 km a 0,00 = | AB189: = 0 km a 0,00 = | AC189: = 0 km a 0,00 = | AD189: = 0 km a 0,00 = | AE189: = 0 km a 0,00 =
